Workbook

Sheet Title Page
A1: U.S. EPA Office of Ground Water and Drinking Water
A2: Work Breakdown Structure (WBS) Model for PACKED TOWER AERATION (PTA) Treatment
A3: Release Date: March 2023
A4: · The primary purpose of this model is to assist EPA in estimating national compliance costs.
A5: · As such, the costs are intended to be representative of the central tendency of typical facilities.
A6: · The default settings, however, do not account for all of the site-specific factors that could affect the cost of any given individual facility or project.
A7: · Still, other uses of the model might be reasonable if sufficient care is taken by the user to account for site- or project-specific factors.
A8: · The model results are point estimates shown to the nearest $1, but this precision is not meant to imply that the results are accurate to $1.
A9: · Instead, users should review all documentation, modify inputs/assumptions as appropriate to their specific purpose, and form their own informed opinions about the accuracy and suitability of the results.
A10: · Use of this model requires Excel 2007 or later.
A11: · The model should be opened as Read-only, so that any changes you make are saved under a new file name.
A12: · To function properly, macros ("active content") must be enabled. If a security warning appears, click "options" and "enable this content."
A13: · For further information see the following document distributed with this file:
A14: USEPA. 2023. Work Breakdown Structure-Based Cost Model for PACKED TOWER AERATION (PTA) Drinking Water Treatment. Office of Water.
A15: · To begin using the model, go to the INPUT sheet.

Sheet Index
A1: INDEX
A2: This page provides an index to all user-adjustable inputs and assumptions. Click on a variable name to go directly to the adjustable cells.
A4: User-adjustable Input or Assumption | B4: Variable Name and Link
A5: Acceleration of gravity | B5: G
A6: Access space for each pump/blower for large systems | B6: space_pumps_large
A7: Access space for each pump/blower for small systems | B7: space_pumps_small
A8: Additional freeboard | B8: sec_cont_freeboard
A9: Additional height added per tower | B9: r_xtraheight_I
A10: Additional pump head required | B10: add_head
A11: Administrative LOE as a percent of average technical labor | B11: Clerical_percent
A12: Air conditioning EER | B12: EER
A13: Air pipe length per tower | B13: air_L
A14: Alkalinity as CaCO3 | B14: alk_I_default
A15: Alternate packing unit cost | B15: alt_pack_cost
A16: Annual cooling degree days | B16: cool_DD
A17: Annual heating degree days | B17: heat_DD
A18: Average Flow (including bypass) | B18: Qwa_in
A19: Basin excavation depth above which deeper boreholes are needed | B19: bore_need
A20: Basin excavation depth above which deeper boreholes are needed | B20: deep_bore_need
A21: Bedding depth below pipe | B21: bedding_depth
A22: Bedding depth surrounding the pipe | B22: bedding_pct
A23: Blower efficiency | B23: BLOW_EFF
A24: Boiling point of contaminant | B24: Tb_in
A25: Boiling point of new contaminant | B25: r_Tb_in
A26: Borehole depth for deep clearwells | B26: bore_depth_max
A27: Borehole depth for shallow clearwells | B27: bore_depth_min
A28: Borehole depth with no clearwell | B28: bore_depth_nobasin
A29: Borehole needed every x square feet | B29: hole_per_sf
A30: Boreholes per job | B30: hole_per_job
A31: Buffer space around other sides of buildings | B31: non_fire_buffer
A32: Builder's risk insurance percentage | B32: br_ins_pct
A33: Building height | B33: Building_height
A34: Bypass pipe length multiplier | B34: bp_pipe_mult
A35: Chemical pipe length multiplier | B35: chem_pipe_mult
A36: Chemical resistant coating coverage | B36: sec_cont_coating_cvg
A37: Chemical storage required | B37: cstore_days
A38: Chemical tank mixer horsepower | B38: cmix_hp_per
A39: City Index for Total Capital Cost | B39: City_Index
A40: City Index for Total O&M Cost | B40: OM_City_Index
A41: Clearance space beneath the ceiling | B41: ceiling_clearance
A42: Clearwell detention time | B42: AW_Det
A43: Coefficient of passive pressure | B43: Coeff_Kp
A44: Component level | B44: component_level_I
A45: Computer workstations per x operators | B45: workstation_ratio
A46: Concrete pad thickness | B46: pad_thick
A47: Concrete pad thickness for small systems | B47: pad_thick_small
A48: Concrete thickness | B48: conc_thick
A49: Contaminant removal input type | B49: Units_rem_I
A50: Cooling table for buildings 500 square feet or greater | B50: cooling_table
A51: Cooling table for buildings less than 500 ft2 | B51: cooling_table_shed
A52: Cooling ventilation/infiltration load | B52: cool_viload
A53: Corrosion control chemical chosen | B53: chem_type_default
A54: Cost estimating method | B54: curve
A55: Cost for parts & maintenance for PTA towers | B55: PTA_maintenance
A56: Cost for parts & maintenance for pumps and blowers | B56: pump_maintenance
A57: Critical surface tension of packing | B57: SP
A58: Days per year of chemical feed | B58: chem_freq
A59: Default initial water pH for acid addition | B59: pHo_default
A60: Density of air | B60: PA
A61: Density of water | B61: PW
A62: Design Flow (including bypass) | B62: Qw_in
A63: Design safety factor for standby power | B63: std_safety_factor
A64: Desired treated water pH | B64: pH_f
A65: Dosage of sodium hexametaphosphate | B65: sh_dose
A66: Dosage of tetrasodium pyrophosphate | B66: tp_dose
A67: Drive controllers per blower | B67: S_blower
A68: Drive controllers per booster pump | B68: S_booster_pump
A69: Drive controllers per catalytic oxidizer | B69: S_CO
A70: Drive controllers per chemical metering pump | B70: S_cm_pump
A71: Drive controllers per mixer | B71: S_mix
A72: Drive controllers per thermal oxidizer | B72: S_TO
A73: Electric resistance heating efficiency | B73: resist_eff
A74: Electrical percentage | B74: elect_pct
A75: Engineering percentage for large systems | B75: eng_pct_large
A76: Engineering percentage for medium systems | B76: eng_pct_medium
A77: Engineering percentage for small systems | B77: eng_pct_small
A78: Ethernet modules | B78: plc_ethernet
A79: Excess air required | B79: CO_ex_air
A80: Excess air required | B80: TO_ex_air
A81: Financing percentage | B81: finance_pct
A82: Financing percentage for small systems | B82: finance_pct_small
A83: Fire truck buffer requirements | B83: fire_buffer
A84: Flow meters for air line per tower | B84: fm_air
A85: Flow meters for influent and treated water line | B85: tot_fm_in
A86: Flow meters for process line per tower | B86: fm_proc
A87: Force Constant for Air | B87: E_KA
A88: Freeboard | B88: freeboard
A89: Freundlich isotherm constant 1/n for MTBE | B89: 1_n
A90: Freundlich isotherm constant K for MTBE | B90: K
A91: Friction factor | B91: CF
A92: Frost depth | B92: frost
A93: GAC bed life | B93: og_opt3
A94: GAC Density | B94: GAC_density
A95: GAC type | B95: GHG_GAC_type
A96: Gas law constant | B96: R_C
A97: H2SO4 molecular weight | B97: H2SO4_molwt
A98: H2SO4 solution strength | B98: H2SO4_strength
A99: HCl molecular weight | B99: hcl_molwt
A100: HCl quantity to trigger RMP requirement | B100: HCl_quant_RMP
A101: HCl solution strength | B101: hcl_strength
A102: HCl strength to trigger RMP requirement | B102: HCl_strength_RMP
A103: Heat pump cooling mode EER | B103: hp_EER
A104: Heat pump heating coefficient of performance | B104: COP
A105: Heat recovery type | B105: og_opt1_I
A106: Heating oil heat content | B106: diesel_heat_content
A107: Heating table for buildings 500 square feet or greater | B107: heating_table
A108: Heating table for buildings less than 500 ft2 | B108: heating_table_shed
A109: Heating ventilation/infiltration load | B109: heat_viload
A110: Henry's coefficient | B110: Henry
A111: Henry's coefficient for new contaminant | B111: r_Henry
A112: High/low alarms per chemical tank | B112: alarm_chem
A113: Hours per media changeout | B113: uloe_throwaway
A114: I/O port table | B114: port_table
A115: Include a separate day tank if daily volume is x or greater | B115: day_tank_needed
A116: Include architectural fee for small systems? | B116: include_arch_small
A117: Include architectural fee? | B117: include_arch
A118: Include buildings? | B118: include_buildings_I
A119: Include concrete pad in total capital cost? | B119: include_pad
A120: Include construction management cost? | B120: include_cm
A121: Include contingency costs for high cost systems? | B121: include_conting_high
A122: Include contingency costs for low cost systems? | B122: include_conting_low
A123: Include contingency costs for medium cost systems? | B123: include_conting_medium
A124: Include cooling in standby power | B124: need_cool
A125: Include geotechnical costs for high cost systems? | B125: include_geo_high
A126: Include geotechnical costs for low cost systems? | B126: include_geo_low
A127: Include geotechnical costs for medium cost systems? | B127: include_geo_medium
A128: Include heating in standby power | B128: need_heat
A129: Include HVAC? | B129: include_HVAC_I
A130: Include land? | B130: include_land_I
A131: Include mixers for chemical tanks | B131: include_cmix
A132: Include NEPA compliance costs? | B132: include_NEPA
A133: Include performance bond cost? | B133: include_bond
A134: Include permit costs? | B134: include_permits
A135: Include pilot study costs? | B135: include_pilot
A136: Include secondary containment | B136: include_sec_cont
A137: Include sitework costs? | B137: include_sitework
A138: Include standby power costs for small systems? | B138: include_standby_small
A139: Include standby power costs? | B139: include_standby
A140: Include yard piping costs? | B140: include_yardpipe
A141: Influent and treated water pipe length multiplier | B141: in_out_pipe_mult
A142: Influent concentration | B142: Influent_conc_I
A143: Influent concentration of new contaminant | B143: r_influent_conc_I
A144: Influent pH | B144: pH_i
A145: Influent water alkalinity | B145: alk_I
A146: Influent water total dissolved solids | B146: TDS_I
A147: Installation, Transportatation, and O&P percentage | B147: inst_pct
A148: Instrumentation and control percentage | B148: i_c_pct
A149: Legal percentage | B149: legal_pct
A150: Lighting power per sf, high-quality buildings | B150: lighting_power_high
A151: Lighting power per sf, low-quality buildings and sheds | B151: lighting_power_low
A152: Lighting power per sf, mid-quality buildings | B152: lighting_power_mid
A153: Linear feet bored per day | B153: hole_per_day
A154: Maintenance LOE for chemical supply systems | B154: uloe_chem_maint
A155: Maintenance LOE for instruments (includes calibration) | B155: uloe_inst_maint
A156: Maintenance LOE for pumps | B156: uloe_pump_maint
A157: Maintenance LOE for valves | B157: uloe_valve_maint
A158: Makeup carbon for off-site reactivation | B158: makeup_rate_off
A159: Mangerial LOE as a percent of average technical labor | B159: Manager_percent
A160: Maximum access space per tower or tank | B160: max_space_vessels
A161: Maximum curb thickness | B161: sec_cont_max_thick
A162: Maximum packing height | B162: Max_pack_std
A163: Maximum packing height for difficult contaminants | B163: Max_pack_MTBE
A164: Maximum packing height to diameter ratio | B164: Max_d_rat_cda
A165: Maximum tower area | B165: Max_Area_cda
A166: Melting point of contaminant | B166: Tm_in
A167: Melting point of new contaminant | B167: r_Tm_in
A168: Mid-efficiency oil furnace efficiency | B168: diesel_eff
A169: Miles to non-hazardous solid waste disposal site | B169: non_haz_miles
A170: Minimum average flow as percentage of design | B170: min_avg_flow
A171: Minimum chemical feed pump size | B171: min_chem_flow
A172: Minimum chemical tank mixer horsepower | B172: min_cmix_hp
A173: Minimum number of boreholes | B173: min_holes
A174: Minimum number of towers | B174: min_col
A175: Minimum packing height to diameter ratio | B175: Min_d_rat_cda
A176: Minimum standby power generator size | B176: min_standby
A177: Minimum tower area | B177: Min_Area_cda
A178: Minimum trench depth to top of pipe | B178: min_trench_depth
A179: Minutes per 100 sf per day | B179: uloe_fp
A180: Minutes per instrument per day | B180: uloe_inst
A181: Minutes per pump, blower, and offgas unit per day | B181: uloe_pump
A182: Minutes per valve per week | B182: uloe_valve
A183: Miscellaneous allowance percentage | B183: misc_pct
A184: Mobilization percentage for large systems | B184: mob_pct_large
A185: Mobilization percentage for medium systems | B185: mob_pct_medium
A186: Mobilization percentage for small systems | B186: mob_pct_small
A187: Molar volume of contaminant | B187: Mv_in
A188: Molar volume of gas at STP | B188: GO
A189: Molar volume of new contaminant | B189: r_Mv_in
A190: Molecular Radius of Air | B190: RA
A191: Molecular weight of air | B191: MWA
A192: Molecular weight of contaminant | B192: Mw_in
A193: Molecular weight of new contaminant | B193: r_Mw_in
A194: NaOH solution strength | B194: naoh_strength
A195: Natural gas condensing furnace efficiency | B195: gas_eff
A196: Natural gas non-condensing furnace efficiency | B196: gas_non_eff
A197: New percent removal | B197: r_rem_I
A198: Number of blowers | B198: parallel_I
A199: Number of booster pumps | B199: num_pumps_I
A200: Number of check valves on acid line per chemical pump | B200: HCl_chv_pump
A201: Number of check valves on bypass line | B201: tot_bp_chv
... 89 more rows

Sheet INPUT
A1: PACKED TOWER AERATION (PTA) SYSTEM DESIGN AND COST INPUT
E3: STEP 1
E4: Select Contaminant | H4: =IF(contam_name="other","For other contaminants, the buttons shown in Step 2 will enter flows only, and clear all other inputs. Advanced users can change this behavior by entering inputs on the Standard Inputs sheet","") -> 
C7: =CHOOSE(contam,'Standard Inputs'!BC9,'Standard Inputs'!BC17,'Standard Inputs'!BC25,'Standard Inputs'!BC33,'Standard Inputs'!BC41,'Standard Inputs'!BC49,'Standard Inputs'!BC57,'Standard Inputs'!BC65,'Standard Inputs'!BC73,'Standard Inputs'!BC81,'Standard Inputs'!BC89,'Standard Inputs'!BC97,'Standard Inputs'!BC105,'Standard Inputs'!BC113,'Standard Inputs'!BC121,'Standard Inputs'!BC129,'Standard Inputs'!BC137,'Standard Inputs'!BC145,'Standard Inputs'!BC153,'Standard Inputs'!BC161,'Standard Inputs'!BC169) -> TRUE | D7: =CHOOSE(contam,'Standard Inputs'!BD9,'Standard Inputs'!BD17,'Standard Inputs'!BD25,'Standard Inputs'!BD33,'Standard Inputs'!BD41,'Standard Inputs'!BD49,'Standard Inputs'!BD57,'Standard Inputs'!BD65,'Standard Inputs'!BD73,'Standard Inputs'!BD81,'Standard Inputs'!BD89,'Standard Inputs'!BD97,'Standard Inputs'!BD105,'Standard Inputs'!BD113,'Standard Inputs'!BD121,'Standard Inputs'!BD129,'Standard Inputs'!BD137,'Standard Inputs'!BD145,'Standard Inputs'!BD153,'Standard Inputs'!BD161,'Standard Inputs'!BD169) -> TRUE | E7: STEP 2 | H7: =IF(C7,"<- Using this design",IF(D7,"<- You modified this design","")) -> <- Using this design | I7: The standard design buttons are for EPA's use in estimating national costs, but other users might find them useful as a starting point. See documentation for more information
C8: =CHOOSE(contam,'Standard Inputs'!BC10,'Standard Inputs'!BC18,'Standard Inputs'!BC26,'Standard Inputs'!BC34,'Standard Inputs'!BC42,'Standard Inputs'!BC50,'Standard Inputs'!BC58,'Standard Inputs'!BC66,'Standard Inputs'!BC74,'Standard Inputs'!BC82,'Standard Inputs'!BC90,'Standard Inputs'!BC98,'Standard Inputs'!BC106,'Standard Inputs'!BC114,'Standard Inputs'!BC122,'Standard Inputs'!BC130,'Standard Inputs'!BC138,'Standard Inputs'!BC146,'Standard Inputs'!BC154,'Standard Inputs'!BC162,'Standard Inputs'!BC170) -> FALSE | D8: =CHOOSE(contam,'Standard Inputs'!BD10,'Standard Inputs'!BD18,'Standard Inputs'!BD26,'Standard Inputs'!BD34,'Standard Inputs'!BD42,'Standard Inputs'!BD50,'Standard Inputs'!BD58,'Standard Inputs'!BD66,'Standard Inputs'!BD74,'Standard Inputs'!BD82,'Standard Inputs'!BD90,'Standard Inputs'!BD98,'Standard Inputs'!BD106,'Standard Inputs'!BD114,'Standard Inputs'!BD122,'Standard Inputs'!BD130,'Standard Inputs'!BD138,'Standard Inputs'!BD146,'Standard Inputs'!BD154,'Standard Inputs'!BD162,'Standard Inputs'!BD170) -> FALSE | E8: Select one of the eight standard designs at right OR select "CLEAR FOR MANUAL ENTRY" | H8: =IF(C8,"<- Using this design",IF(D8,"<- You modified this design","")) -> 
C9: =CHOOSE(contam,'Standard Inputs'!BC11,'Standard Inputs'!BC19,'Standard Inputs'!BC27,'Standard Inputs'!BC35,'Standard Inputs'!BC43,'Standard Inputs'!BC51,'Standard Inputs'!BC59,'Standard Inputs'!BC67,'Standard Inputs'!BC75,'Standard Inputs'!BC83,'Standard Inputs'!BC91,'Standard Inputs'!BC99,'Standard Inputs'!BC107,'Standard Inputs'!BC115,'Standard Inputs'!BC123,'Standard Inputs'!BC131,'Standard Inputs'!BC139,'Standard Inputs'!BC147,'Standard Inputs'!BC155,'Standard Inputs'!BC163,'Standard Inputs'!BC171) -> FALSE | D9: =CHOOSE(contam,'Standard Inputs'!BD11,'Standard Inputs'!BD19,'Standard Inputs'!BD27,'Standard Inputs'!BD35,'Standard Inputs'!BD43,'Standard Inputs'!BD51,'Standard Inputs'!BD59,'Standard Inputs'!BD67,'Standard Inputs'!BD75,'Standard Inputs'!BD83,'Standard Inputs'!BD91,'Standard Inputs'!BD99,'Standard Inputs'!BD107,'Standard Inputs'!BD115,'Standard Inputs'!BD123,'Standard Inputs'!BD131,'Standard Inputs'!BD139,'Standard Inputs'!BD147,'Standard Inputs'!BD155,'Standard Inputs'!BD163,'Standard Inputs'!BD171) -> FALSE
C10: =CHOOSE(contam,'Standard Inputs'!BC12,'Standard Inputs'!BC20,'Standard Inputs'!BC28,'Standard Inputs'!BC36,'Standard Inputs'!BC44,'Standard Inputs'!BC52,'Standard Inputs'!BC60,'Standard Inputs'!BC68,'Standard Inputs'!BC76,'Standard Inputs'!BC84,'Standard Inputs'!BC92,'Standard Inputs'!BC100,'Standard Inputs'!BC108,'Standard Inputs'!BC116,'Standard Inputs'!BC124,'Standard Inputs'!BC132,'Standard Inputs'!BC140,'Standard Inputs'!BC148,'Standard Inputs'!BC156,'Standard Inputs'!BC164,'Standard Inputs'!BC172) -> FALSE | D10: =CHOOSE(contam,'Standard Inputs'!BD12,'Standard Inputs'!BD20,'Standard Inputs'!BD28,'Standard Inputs'!BD36,'Standard Inputs'!BD44,'Standard Inputs'!BD52,'Standard Inputs'!BD60,'Standard Inputs'!BD68,'Standard Inputs'!BD76,'Standard Inputs'!BD84,'Standard Inputs'!BD92,'Standard Inputs'!BD100,'Standard Inputs'!BD108,'Standard Inputs'!BD116,'Standard Inputs'!BD124,'Standard Inputs'!BD132,'Standard Inputs'!BD140,'Standard Inputs'!BD148,'Standard Inputs'!BD156,'Standard Inputs'!BD164,'Standard Inputs'!BD172) -> FALSE
C11: =CHOOSE(contam,'Standard Inputs'!BC13,'Standard Inputs'!BC21,'Standard Inputs'!BC29,'Standard Inputs'!BC37,'Standard Inputs'!BC45,'Standard Inputs'!BC53,'Standard Inputs'!BC61,'Standard Inputs'!BC69,'Standard Inputs'!BC77,'Standard Inputs'!BC85,'Standard Inputs'!BC93,'Standard Inputs'!BC101,'Standard Inputs'!BC109,'Standard Inputs'!BC117,'Standard Inputs'!BC125,'Standard Inputs'!BC133,'Standard Inputs'!BC141,'Standard Inputs'!BC149,'Standard Inputs'!BC157,'Standard Inputs'!BC165,'Standard Inputs'!BC173) -> FALSE | D11: =CHOOSE(contam,'Standard Inputs'!BD13,'Standard Inputs'!BD21,'Standard Inputs'!BD29,'Standard Inputs'!BD37,'Standard Inputs'!BD45,'Standard Inputs'!BD53,'Standard Inputs'!BD61,'Standard Inputs'!BD69,'Standard Inputs'!BD77,'Standard Inputs'!BD85,'Standard Inputs'!BD93,'Standard Inputs'!BD101,'Standard Inputs'!BD109,'Standard Inputs'!BD117,'Standard Inputs'!BD125,'Standard Inputs'!BD133,'Standard Inputs'!BD141,'Standard Inputs'!BD149,'Standard Inputs'!BD157,'Standard Inputs'!BD165,'Standard Inputs'!BD173) -> FALSE
C12: =CHOOSE(contam,'Standard Inputs'!BC14,'Standard Inputs'!BC22,'Standard Inputs'!BC30,'Standard Inputs'!BC38,'Standard Inputs'!BC46,'Standard Inputs'!BC54,'Standard Inputs'!BC62,'Standard Inputs'!BC70,'Standard Inputs'!BC78,'Standard Inputs'!BC86,'Standard Inputs'!BC94,'Standard Inputs'!BC102,'Standard Inputs'!BC110,'Standard Inputs'!BC118,'Standard Inputs'!BC126,'Standard Inputs'!BC134,'Standard Inputs'!BC142,'Standard Inputs'!BC150,'Standard Inputs'!BC158,'Standard Inputs'!BC166,'Standard Inputs'!BC174) -> FALSE | D12: =CHOOSE(contam,'Standard Inputs'!BD14,'Standard Inputs'!BD22,'Standard Inputs'!BD30,'Standard Inputs'!BD38,'Standard Inputs'!BD46,'Standard Inputs'!BD54,'Standard Inputs'!BD62,'Standard Inputs'!BD70,'Standard Inputs'!BD78,'Standard Inputs'!BD86,'Standard Inputs'!BD94,'Standard Inputs'!BD102,'Standard Inputs'!BD110,'Standard Inputs'!BD118,'Standard Inputs'!BD126,'Standard Inputs'!BD134,'Standard Inputs'!BD142,'Standard Inputs'!BD150,'Standard Inputs'!BD158,'Standard Inputs'!BD166,'Standard Inputs'!BD174) -> FALSE
C13: =CHOOSE(contam,'Standard Inputs'!BC15,'Standard Inputs'!BC23,'Standard Inputs'!BC31,'Standard Inputs'!BC39,'Standard Inputs'!BC47,'Standard Inputs'!BC55,'Standard Inputs'!BC63,'Standard Inputs'!BC71,'Standard Inputs'!BC79,'Standard Inputs'!BC87,'Standard Inputs'!BC95,'Standard Inputs'!BC103,'Standard Inputs'!BC111,'Standard Inputs'!BC119,'Standard Inputs'!BC127,'Standard Inputs'!BC135,'Standard Inputs'!BC143,'Standard Inputs'!BC151,'Standard Inputs'!BC159,'Standard Inputs'!BC167,'Standard Inputs'!BC175) -> FALSE | D13: =CHOOSE(contam,'Standard Inputs'!BD15,'Standard Inputs'!BD23,'Standard Inputs'!BD31,'Standard Inputs'!BD39,'Standard Inputs'!BD47,'Standard Inputs'!BD55,'Standard Inputs'!BD63,'Standard Inputs'!BD71,'Standard Inputs'!BD79,'Standard Inputs'!BD87,'Standard Inputs'!BD95,'Standard Inputs'!BD103,'Standard Inputs'!BD111,'Standard Inputs'!BD119,'Standard Inputs'!BD127,'Standard Inputs'!BD135,'Standard Inputs'!BD143,'Standard Inputs'!BD151,'Standard Inputs'!BD159,'Standard Inputs'!BD167,'Standard Inputs'!BD175) -> FALSE
C14: =CHOOSE(contam,'Standard Inputs'!BC16,'Standard Inputs'!BC24,'Standard Inputs'!BC32,'Standard Inputs'!BC40,'Standard Inputs'!BC48,'Standard Inputs'!BC56,'Standard Inputs'!BC64,'Standard Inputs'!BC72,'Standard Inputs'!BC80,'Standard Inputs'!BC88,'Standard Inputs'!BC96,'Standard Inputs'!BC104,'Standard Inputs'!BC112,'Standard Inputs'!BC120,'Standard Inputs'!BC128,'Standard Inputs'!BC136,'Standard Inputs'!BC144,'Standard Inputs'!BC152,'Standard Inputs'!BC160,'Standard Inputs'!BC168,'Standard Inputs'!BC176) -> FALSE | D14: =CHOOSE(contam,'Standard Inputs'!BD16,'Standard Inputs'!BD24,'Standard Inputs'!BD32,'Standard Inputs'!BD40,'Standard Inputs'!BD48,'Standard Inputs'!BD56,'Standard Inputs'!BD64,'Standard Inputs'!BD72,'Standard Inputs'!BD80,'Standard Inputs'!BD88,'Standard Inputs'!BD96,'Standard Inputs'!BD104,'Standard Inputs'!BD112,'Standard Inputs'!BD120,'Standard Inputs'!BD128,'Standard Inputs'!BD136,'Standard Inputs'!BD144,'Standard Inputs'!BD152,'Standard Inputs'!BD160,'Standard Inputs'!BD168,'Standard Inputs'!BD176) -> FALSE
H15: =IF(COUNTIF(H7:H14,"")=8,"Using a manual design","") ->  | I15: =IF(COUNTIF(H7:H14,"")=16,"Fill in all gold cells below","") -> 
E16: STEP 3:
E17: (Optional for standard designs) | G17: =IF(input_complete,IF('Standard Inputs'!BC179,IF(ERRORNOTE<>"",ERRORNOTE,"Input Complete -- Results Ready"),"Input Complete--Press 'Run Design Program, Generate Results'"),"Input Incomplete--Check for Error Messages Below") -> Input Complete -- Results Ready
C18: =AND(C32,C47,C55,C60,C77,C88,C107,C124) -> TRUE | E18: Enter or change values in the gold and blue cells below, under "Manual Inputs"
E20: STEP 4: | I20: ="Resulting Costs (in year "&TEXT(current_year_cl,0)&" dollars, see OUTPUT sheet for details)" -> Resulting Costs (in year 2021 dollars, see OUTPUT sheet for details)
C21: TRUE | E21: =IF(input_status="input complete -- results ready","Results are ready (no need to click button)","Click here to generate results -->") -> Results are ready (no need to click button) | I21: ="Direct Capital Cost: " & IF(input_status<>"Input Complete -- Results Ready",input_status,IF(Missing_Cost,"Missing cost!",IF(cost_buildup_error,"Cost buildup error!",IF(ISERROR(direct_cost),"Calculation error!",TEXT(direct_cost,"$0,0"))))) -> Direct Capital Cost: $161,636
I22: ="Total Capital Cost: " & IF(input_status<>"Input Complete -- Results Ready",input_status,IF(Missing_Cost,"Missing cost!",IF(cost_buildup_error,"Cost buildup error!",IF(ISERROR(system_cost),"Calculation error!",TEXT(system_cost,"$0,0"))))) -> Total Capital Cost: $264,288
I23: ="Annualized Capital Cost: "&IF(input_status<>"Input Complete -- Results Ready",input_status,IF(Missing_Cost,"Missing Price!",IF(cost_buildup_error,"Cost buildup error!",IF(ISERROR(Annualized_Capital_Cost),"Calculation error!",TEXT(Annualized_Capital_Cost,"$0,0")&" per year"&" (over "&useful_life&" years at "&Discount_rate*100&"%)")))) -> Annualized Capital Cost: $26,502 per year (over 17.7 years at 7%)
E24: MANUAL INPUTS | I24: ="Annual O&M Cost: "&IF(input_status<>"input complete -- results ready",input_status,IF(ISERROR(om_cost),"Calculation error!",TEXT(om_cost,"$0,0")&" per year")) -> Annual O&M Cost: $13,043 per year
E25: Cells in gold are required; cells in blue are optional | I25: ="Total Annualized Cost: "&IF(input_status<>"Input Complete -- Results Ready",input_status,IF(Missing_Cost,"Missing Price!",IF(cost_buildup_error,"Cost buildup error!",IF(ISERROR(Annualized_Cost),"Calculation error!",TEXT(Annualized_Cost,"$0,0")&" per year ("&TEXT(TAC_pct_cap,"0%")&" capital, "&TEXT(TAC_pct_OM,"0%")&" O&M)")))) -> Total Annualized Cost: $39,545 per year (67% capital, 33% O&M)
B26: Used? | C26: Valid input? | D26: Invalid reason? | H26: Select units | I26: =IF(Missing_Cost,"A price is not available for at least one required component. See Use? column on OUTPUT sheet.",IF(cost_buildup_error,"There is an Excel error in the price for at least one component. Please see the Use? column on OUTPUT sheet.",IF(warning_details<>"",warning_details,""))) -> 
E27: Design Flow (including bypass) | F27: Qw_in | G27: 0.03 | H27: MGD
E28: Average Flow (including bypass) | F28: Qwa_in | G28: 0.007 | H28: MGD
E29: For information:
E30: Treatment system design flow | G30: =IF(ISERROR(design_flow),"",IF(df_units="gpm",Design_Flow_Rate,IF(df_units="cubic meters/second",QW, design_flow))) -> 0.03 | H30: =IF(df_units="","",df_units) -> MGD
E31: Bypass design flow | G31: =IF(ISERROR(design_flow),"",IF(df_units="gpm",bp_flow_rate, bp_flow_rate*60*24/10^6)) -> 0 | H31: =IF(df_units="","",df_units) -> MGD | I31: ="Current bypass percentage is "&TEXT(bp_pct,"0%")&". Go to Critical Design Assumptions (link below) to change this value." -> Current bypass percentage is 0%. Go to Critical Design Assumptions (link below) to change this value.
C32: =IF(OR(df_units="",af_units=""),FALSE,IF(OR(average_flow>design_flow,average_flow<min_avg_flow*design_flow),FALSE,IF(OR(QW_IN=0,QWA_IN=0),FALSE,TRUE))) -> TRUE | D32: =IF(OR(df_units="",af_units=""),"Choose units for design and average flow",IF(average_flow>design_flow,"The average flow should not be greater than the design flow",IF(average_flow<design_flow*min_avg_flow,"The average flow must be at least " & min_avg_flow & " times design flow",IF(OR(QW_IN=0,QWA_IN=0),"Input incomplete","OK")))) -> OK | H32: =IF(C32,"System Size Inputs OK",D32) -> System Size Inputs OK | I32: Adjust bypass percentage
B34: =IF(Units_rem=3,FALSE,TRUE) -> TRUE | C34: =IF(Influent_conc="",FALSE,TRUE) -> TRUE | D34: =IF(C34,"OK","Removal Inputs Incomplete") -> OK | E34: Influent concentration | F34: Influent_conc_I | G34: 5 | H34: =IF(contam_name="radon","pCi/L",IF(contam_name="carbon dioxide","mg/L","ug/L")) -> ug/L | I34: =IF(Units_rem=3,"Optional. Enter a value to use a measurment instead of the theoretical maximum CO2"&IF(ISERROR(CO2_max),""," of "&TEXT(CO2_max,"0.00")&" mg/L"),"") -> 
C35: =IF(Units_rem_I="",FALSE,TRUE) -> TRUE | D35: OK | E35: Contaminant removal input type | F35: Units_rem_I | G35: treated water concentration | H35: <--- pick one
B36: =IF(Units_rem=3,FALSE,TRUE) -> TRUE | C36: =IF(NOT(B36),TRUE,IF(Rem_I="",FALSE,IF(AND(Units_rem=1,Rem_I>=1),FALSE,IF(AND(Units_rem=2,Rem_I>=Influent_conc),FALSE,TRUE)))) -> TRUE | D36: =IF(C36,"OK",IF(Rem_I="","Removal Inputs Incomplete",IF(AND(Units_rem=1,Rem_I>=1),"Set percent removal to a decimal greater than 0 and less than 1",IF(AND(Units_rem=2,Rem_I>=Influent_conc),"Set treated water concentration less than influent concentration",TRUE)))) -> OK | E36: =IF(NOT(B36),"Not required",IF(Units_rem=1,"Percent removal ",IF(Units_rem=2,"Treated water concentration",""))) -> Treated water concentration | F36: Rem_I | G36: 0.5 | H36: =IF(NOT(B36),"not required",IF(Units_rem=1,"decimal between 0 and 1",IF(contam_name="radon","pCi/L",IF(contam_name="carbon dioxide","mg/L","ug/L")))) -> ug/L
B37: =IF(Units_rem=3,TRUE,FALSE) -> FALSE | C37: =IF(NOT(B37),TRUE,IF(pH_i="",FALSE,TRUE)) -> TRUE | D37: =IF(C37,"OK","Removal Inputs Incomplete") -> OK | E37: =IF(NOT(B37),"Not required","Influent pH") -> Not required | F37: pH_i | H37: =IF(NOT(B37),"not required","SU") -> not required
B38: =IF(Units_rem=3,TRUE,FALSE) -> FALSE | C38: =IF(NOT(B38),TRUE,IF(pH_f="",FALSE,IF(pH_f<=pH_i,FALSE,TRUE))) -> TRUE | D38: =IF(C38,"OK",IF(pH_f="","Removal Inputs Incomplete",IF(pH_f<=pH_i,"Set desired treated water pH greater than influent pH","OK"))) -> OK | E38: =IF(NOT(B38),"Not required","Desired treated water pH") -> Not required | F38: pH_f | H38: =IF(NOT(B38),"not required","SU") -> not required
B39: =IF(Units_rem=3,TRUE,FALSE) -> FALSE | C39: =IF(NOT(B39),TRUE,IF(alk_I="",FALSE,TRUE)) -> TRUE | D39: =IF(C39,"OK","Removal Inputs Incomplete") -> OK | E39: =IF(NOT(B39),"Not required","Influent water alkalinity") -> Not required | F39: alk_I | H39: =IF(NOT(B39),"not required","mg/L as CaCO3") -> not required
C40: =IF(SF_KLA="",FALSE,TRUE) -> TRUE | D40: =IF(C40,"OK","Removal Inputs Incomplete") -> OK | E40: Safety factor (Kla) | F40: SF_Kla | G40: 1.4 | H40: decimal greater than 1.0 | I40: Typical values are 1.2 to 1.4.
C41: =IF(SF_HENRY="",FALSE,TRUE) -> TRUE | D41: =IF(C41,"OK","Removal Inputs Incomplete") -> OK | E41: Safety factor (Henry's) | F41: SF_Henry | G41: 1.4 | H41: decimal greater than 1.0 | I41: Typical values are 1.2 to 1.4.
B42: =IF(Units_rem=3,TRUE,FALSE) -> FALSE | C42: =IF(NOT(B42),TRUE,IF(NOT(AND($C$34:$C$39)),FALSE,IF(T_in="",FALSE,IF(Influent_conc>CO2_max,FALSE,TRUE)))) -> TRUE | D42: =IF(NOT(B42),"OK",IF(NOT(AND($C$34:$C$39)),"Removal inputs incomplete",IF(T_in="","Enter operating temperature below",IF(Influent_conc>CO2_max,"Influent carbon dioxide concentration exceeds theoretical maximum, based on influent pH and alkalinity","OK")))) -> OK | E42: For information:
B43: =IF(Units_rem=3,TRUE,FALSE) -> FALSE | C43: =IF(NOT(B43),TRUE,IF(NOT(AND($C$34:$C$39)),FALSE,IF(T_in="",FALSE,IF(Influent_conc>CO2_max,FALSE,TRUE)))) -> TRUE | D43: =IF(NOT(B43),"OK",IF(NOT(AND($C$34:$C$39)),"",IF(T_in="","",IF(Influent_conc>CO2_max,"Adjust influent water chemistry to realistic values","OK")))) -> OK | E43: Influent concentration | G43: =IF(Influent_conc="","",IF(Influent_conc_I="",TEXT(Influent_conc,"0.00"),Influent_conc)) -> 5 | H43: =IF(contam_name="radon","pCi/L",IF(contam_name="carbon dioxide","mg/L","ug/L")) -> ug/L | I43: =IF(Units_rem=3,"The maximum theoretical influent CO2 concentration is: "&IF(ISERROR(CO2_max),"",TEXT(CO2_max,"0.00")&" mg/L"),"") -> 
B44: =IF(contam_name="carbon dioxide",TRUE,FALSE) -> FALSE | C44: =IF(NOT(B44),TRUE,IF(NOT(AND($C$34:$C$39)),FALSE,IF(T_in="",FALSE,IF(CO2_f<CO2_min,FALSE,TRUE)))) -> TRUE | D44: =IF(NOT(B44),"OK",IF(NOT(AND($C$34:$C$39)),"Removal inputs incomplete",IF(T_in="","Enter operating temperature below",IF(CO2_f<CO2_min,"Target treated water carbon dioxide is less than theoretical minimum in equilibrium with the atmosphere","OK")))) -> OK | E44: =IF(Units_rem=3,"Target treated water concentration","Treated water concentration") -> Treated water concentration | G44: =IF(OR(Influent_conc="",Units_rem_I=""),"",IF(Units_rem=1,Influent_conc*(1-Rem_I),IF(Units_rem=2,Rem_I,IF(ISERROR(CO2_f),"",TEXT(CO2_f,"0.00"))))) -> 0.5 | H44: =IF(contam_name="radon","pCi/L",IF(contam_name="carbon dioxide","mg/L","ug/L")) -> ug/L | I44: =IF(contam_name="carbon dioxide","The theoretical minimum CO2 concentration in equilibrium with the atmosphere is: "&IF(ISERROR(CO2_min),"",TEXT(CO2_min,"0.00")&" mg/L"),"") -> 
B45: =IF(contam_name="carbon dioxide",TRUE,FALSE) -> FALSE | C45: =IF(NOT(B45),TRUE,IF(NOT(AND($C$34:$C$39)),FALSE,IF(T_in="",FALSE,IF(CO2_f<CO2_min,FALSE,TRUE)))) -> TRUE | D45: =IF(NOT(B45),"OK",IF(NOT(AND($C$34:$C$39)),"",IF(T_in="","",IF(CO2_f<CO2_min,"Therefore, achieving the desired treated water pH is not feasible using carbon dioxide stripping","OK")))) -> OK | E45: ="Percent removal"&IF(Units_rem=3," required","") -> Percent removal | G45: =IF(OR(Influent_conc="",Units_rem_I=""),"",IF(Units_rem=1,TEXT(Rem_I,"0.0%"),IF(Units_rem=2,TEXT(1-(Rem_I/Influent_conc),"0.0%"),IF(Units_rem=3,IF(ISERROR(Rem_in_CO2),"",TEXT(Rem_in_CO2,"0.0%")),"")))) -> 90.0% | I45: =IF(OR(contam_name<>"carbon dioxide",NOT(C47)),"","Percent shown is absolute removal; removal of removable CO2, accounting for equilibrium with the atmosphere, is "&TEXT(Rem_removableCO2,"0.0%")) -> 
I46: =IF(Units_rem=3,"Percent removal required is an estimate only. Actual pH results may vary based on specific water chemistry","") -> 
C47: =AND(C34:C42,C44) -> TRUE | D47: =IF(C47,"OK",IF(NOT(C34),D34,IF(NOT(C35),D35,IF(NOT(C36),D36,IF(NOT(C37),D37,IF(NOT(C38),D38,IF(NOT(C39),D39,IF(NOT(C40),D40,IF(NOT(C41),D41,IF(NOT(C42),D42,IF(NOT(C44),D44,"OK"))))))))))) -> OK | H47: =IF(C47,"Removal Inputs OK",D47) -> Removal Inputs OK | I47: =IF(Units_rem=3,"Bench- or pilot-scale testing is recommended to guide site-specific full-scale design","") -> 
C48: =IF(Units_rem=3,TRUE,FALSE) -> FALSE | D48: =IF(NOT(C48),"",IF(NOT(C43),D43,IF(NOT(C45),D45,""))) ->  | H48: =D48 ->  | I48: =IF(D48="","","See guidance above") -> 
E50: Henry's coefficient | F50: Henry | G50: 0.187 | H50: atm m3/m3 | I50: ="Note: units for Henry's law constant MUST be atm m3/m3 at "&OP_PRESS&" atm and the operating temperature selected below. For information on converting units, adjusting for temperature, and example coefficients for various contaminants, see the sheet 'Henry's Reference' (link below)." -> Note: units for Henry's law constant MUST be atm m3/m3 at 1 atm and the operating temperature selected below. For information on converting units, adjusting for temperature, and example coefficients for various contaminants, see the sheet 'Henry's Reference' (link below).
E51: Molecular weight of contaminant | F51: Mw_in | G51: 131.39 | H51: kg/kilomole | I51: Henry's Coefficient Reference Sheet
E52: Molar volume of contaminant | F52: Mv_in | G52: 0.102 | H52: m3/kilomole
E53: Boiling point of contaminant | F53: Tb_in | G53: 359.7 | H53: degrees Kelvin | I53: If unknown, enter melting point instead
E54: Melting point of contaminant | F54: Tm_in | H54: =IF(NOT(ISBLANK(TB_IN)),"not required","degrees Kelvin") -> not required | I54: Required only if boiling point is not available
C55: =IF(OR(HENRY="",MW_IN="",MV_IN="",AND(TB_IN="",TM_IN="")),FALSE,TRUE) -> TRUE | D55: =IF(OR(HENRY="",MW_IN="",MV_IN="",AND(TB_IN="",TM_IN="")),"Contaminant inputs incomplete","OK") -> OK | H55: =IF(C55,"Contaminant Inputs OK",D55) -> Contaminant Inputs OK
E57: Operating temperature | F57: T_in | G57: 283 | H57: degrees Kelvin | I57: Equilibrium operating temperature. 283 degrees K (10 degrees C) is typical of groundwater. If changed, also change air density and viscosity below, and change Henry's constant above. See sheets "Air Reference" (link below) and "Henry's Reference" (link above) for information on changing these values.
E58: Density of air | F58: PA | G58: 1.247 | H58: kg/m3 | I58: Adjust density and viscosity to match temperature using info on air reference sheet for other operating temperatures (see link below).
E59: Viscosity of air | F59: UA | G59: 1.79e-05 | H59: kg/m-sec | I59: Air Reference Sheet
C60: =IF(OR(T_in="",PA="",UA=""),FALSE,TRUE) -> TRUE | D60: =IF(C60,"OK","Operating parameter inputs incomplete") -> OK | H60: =IF(C60,"Operating Parameter Inputs OK",D60) -> Operating Parameter Inputs OK
C62: =NOT(Packing_size="") -> TRUE | E62: Packing size | F62: Packing_Size | G62: 2 | H62: inches | I62: Model default inputs are 2 inch tripacks
C63: =NOT(AP="") -> TRUE | E63: Surface area of packing | F63: AP | G63: 157 | H63: m2/m3 | I63: See packing reference sheet (link below) for alternate values for different packing materials
C64: =NOT(SP="") -> TRUE | E64: Critical surface tension of packing | F64: SP | G64: 0.033 | H64: kg/sec2 | I64: Packing Reference Sheet
C65: =NOT(CF="") -> TRUE | E65: Friction factor | F65: CF | G65: 15
E66: Alternate packing unit cost | F66: alt_pack_cost | H66: $/cubic foot | I66: Optional. If a packing material other than the default is used, enter a unit cost here.
E67: Design program results (for information):
E68: Number of Towers (including redundancy) | G68: =IF(ISERROR(TOT_COL),"",TOT_COL) -> 2 | H68: units | I68: Design program is using the following constraints:
E69: Packing Height | G69: =IF(ISERROR(PACK_HT),"",ROUND(PACK_HT*3.28,1)) -> 11.3 | H69: ft | I69: ="Minimum packing height to diameter ratio: "&MIN_D_RAT&"x tower diameter" -> Minimum packing height to diameter ratio: 1.5x tower diameter
E70: Overall Tower Height | G70: =IF(ISERROR(Shell_Height),"",ROUND(Shell_Height*3.28,1)) -> 21.3 | H70: ft | I70: ="Maximum packing height to diameter ratio: "&MAX_D_RAT&"x tower diameter" -> Maximum packing height to diameter ratio: 10x tower diameter
E71: Tower Diameter | G71: =IF(ISERROR(D),"",ROUND(D*3.28,1)) -> 1.2 | H71: ft | I71: ="Maximum packing height: "&MAX_PACK&" meters ("&MAX_PACK*3.28&" feet)" -> Maximum packing height: 9.15 meters (30.012 feet)
E72: Air-To-Water Ratio | G72: =RATIO&":1" -> 93:1 | I72: ="Maximum tower area: "&MAX_AREA&" sq. meters ("&TEXT(MAX_AREA*(3.28^2),"0.0")&" sq. feet)" -> Maximum tower area: 10.5 sq. meters (113.0 sq. feet)
E73: Liquid Loading Rate | G73: =L_LOAD -> 0.006586148313 | H73: m3/m2 - sec | I73: ="Minimum tower area: "&MIN_AREA&" sq. meters ("&TEXT(MIN_AREA*(3.28^2),"0.0")&" sq. feet)" -> Minimum tower area: 0.01825 sq. meters (0.2 sq. feet)
E74: Air Loading Rate | G74: =G_LOAD -> 0.6125117931 | H74: m3/m2 - sec | I74: Adjust tower design program constraints
C76: =NOT(AW_DET="") -> TRUE | E76: Clearwell detention time | F76: AW_Det | G76: 5 | H76: minutes | I76: Guidance: 5 to 10 minutes. Enter 0 to remove clearwell (e.g., use existing clearwell)
C77: =IF(NOT(AND(C62:C65,C76)),FALSE,TRUE) -> TRUE | D77: =IF(NOT(C77),"Tower Design Inputs Incomplete","OK") -> OK | H77: =IF(C77,"Tower Design Inputs OK",D77) -> Tower Design Inputs OK
B79: =b_offgas_valid -> TRUE | C79: =IF(NOT(B79),TRUE,NOT(max_VOC_release="")) -> TRUE | E79: VOC release at which air pollution control system is needed | F79: max_VOC_release | G79: 1 | H79: =IF(NOT(b_offgas_valid),"not required","lbs/day") -> lbs/day | I79: =IF(NOT(b_offgas_valid),"","CMRP (2000) states 1 lb/day is the maximum emission level for all VOCs for California South Coast AQMD, but other districts may require different emissions standards based on location of the site and regional ambient air quality.") -> CMRP (2000) states 1 lb/day is the maximum emission level for all VOCs for California South Coast AQMD, but other districts may require different emissions standards based on location of the site and regional ambient air quality.
E80: For information: | G80: =IF(NOT(b_offgas_valid),"Available off-gas control options not relevant for this contaminant",IF(max_VOC_release="","",IF(VOC_Release>max_VOC_release,"Off-gas control system may be required if contaminant is a regulated VOC","Off-gas control system may not be required"))) -> Off-gas control system may not be required
B82: =b_offgas_valid -> TRUE | C82: =IF(NOT(B82),TRUE,NOT(Offgas_Tech_I="")) -> TRUE | E82: Off-gas pollution control technology | F82: Offgas_Tech_I | G82: none | H82: =IF(NOT(b_offgas_valid),"not required","<--- pick one") -> <--- pick one
B83: =OR(Offgas_Tech=2,Offgas_Tech=3) -> FALSE | C83: =IF(B83,NOT(og_opt1_I=""),TRUE) -> TRUE | E83: Heat recovery type | F83: og_opt1_I | G83: none | H83: =IF(NOT(B83),"not required","<--- pick one") -> not required
B84: =Offgas_Tech=1 -> FALSE | C84: =IF(B84,NOT(og_opt2_I=""),TRUE) -> TRUE | E84: Spent GAC reactivation | F84: og_opt2_I | H84: =IF(NOT(B84),"not required","<--- pick one") -> not required
B85: =Offgas_Tech=1 -> FALSE | C85: =IF(B84,IF(contam_name="MTBE",TRUE,NOT(og_opt3="")),TRUE) -> TRUE | E85: ="GAC bed life"&IF(contam_name="MTBE"," (optional)","") -> GAC bed life | F85: og_opt3 | H85: =IF(NOT(B85),"not required","months") -> not required | I85: =IF(AND(Offgas_Tech=1,contam_name="MTBE"),"Leave blank to use default calculation","") -> 
E86: =IF(AND(Offgas_Tech=1,og_opt3="",contam_name="MTBE"),"For information:","") -> 
E87: =IF(AND(Offgas_Tech=1,og_opt3="",contam_name="MTBE"),"Calculated GAC bed life","") ->  | G87: =IF(AND(Offgas_Tech=1,og_opt3="",contam_name="MTBE"),bed_life,"") ->  | H87: =IF(AND(Offgas_Tech=1,og_opt3="",contam_name="MTBE"),"months","") -> 
C88: =IF(NOT(AND(C79,C82:C85)),FALSE,TRUE) -> TRUE | D88: =IF(NOT(C88),"Offgas Inputs Incomplete","OK") -> OK | H88: =IF(C88,"Off-gas Inputs OK",D88) -> Off-gas Inputs OK
E90: Number of booster pumps | F90: num_pumps_I | H90: pumps | I90: Enter 0 to exclude booster pumps (e.g., use existing pumps). Leave blank to accept model default calculations.
C91: =IF(ISERROR(QP),FALSE,IF(QP>max_pump_size,FALSE,TRUE)) -> TRUE | D91: =IF(C91=FALSE,"Warning: insufficient number of pumps","") ->  | E91: For information: # of booster pumps | G91: =IF(ISERROR(NUM_OF_PUMPS),"",NUM_OF_PUMPS) -> 2 | H91: pumps
E93: Number of blowers | F93: parallel_I | H93: blowers | I93: Designs should always include at least one blower. Leave blank to accept model default calculations.
C94: =IF(ISERROR(Q_BLOWER),FALSE,IF(Q_BLOWER>max_blow_size,FALSE,TRUE)) -> TRUE | D94: =IF(C94=FALSE,"Warning: insufficient number of blowers","") ->  | E94: For information: # of blowers | G94: =IF(ISERROR(PARALLEL),"",PARALLEL) -> 2 | H94: blowers
E96: Number of redundant towers to be added | F96: NRD_I | H96: units | I96: Leave blank to accept redundancy frequency specified in critical design assumptions
E97: For information: Redundant towers | G97: =IF(ISERROR(NRD_col),"",NRD_col) -> 0 | H97: units
E98: Component level | F98: component_level_I | H98: <-- pick or leave blank | I98: Leave blank to use low cost components
E99: System automation | F99: manual_I | G99: fully automated | H99: <-- pick or leave blank | I99: Leave blank to allow model to pick based on component level
E100: Include buildings? | F100: include_buildings_I | H100: <-- pick or leave blank | I100: Leave blank to include buildings
E101: Include HVAC? | F101: include_HVAC_I | H101: <-- pick or leave blank | I101: Leave blank to allow model to pick based on component level and building type
E102: Include land? | F102: include_land_I | H102: <-- pick or leave blank | I102: Leave blank to include land
E103: For information: Component level | G103: =IF(component_level=2,"high cost",IF(component_level=1,"mid cost","low cost")) -> low cost
E104: Automation | G104: =IF(manual=1,"manual",IF(manual=2,"semi-automated",IF(manual=3,"fully automated"))) -> fully automated
H105: =D91 -> 
H106: =D94 -> 
C107: =IF(NOT(AND(C91,C94)),FALSE,TRUE) -> TRUE | D107: =IF(NOT(C107),"Optional Inputs Incomplete","OK") -> OK | H107: =IF(C107,"Optional Inputs OK",D107) -> Optional Inputs OK
E109: Retrofit | F109: retrofit_I | H109: <-- pick or leave blank | I109: Select to calculate costs to retrofit a system for a new contaminant or greater removal
B110: =IF(retrofit=1,TRUE,FALSE) -> FALSE | C110: =IF(r_xtraheight_I="",TRUE,IF(r_xtraheight_units="",FALSE,TRUE)) -> TRUE | E110: Additional height added per tower | F110: r_xtraheight_I | I110: =IF(retrofit=0,"","Current height between redistribution rings is "&r_ring_space_ft&" ft. Enter 0 or leave blank to retrofit by adjusting air-to-water ratio only") -> 
B111: =IF(r_new_contam=1,TRUE,FALSE) -> FALSE | C111: =IF(B111,NOT(r_Henry=""),TRUE) -> TRUE | E111: Henry's coefficient for new contaminant | F111: r_Henry | H111: =IF(B111,"atm m3/m3","not required") -> not required | I111: See above for notes on Henry's constant
B112: FALSE | C112: =IF(B112,NOT(r_Mw_in=""),TRUE) -> TRUE | E112: Molecular weight of new contaminant | F112: r_Mw_in | H112: =IF(B112,"kg/kilomole","not required") -> not required
B113: FALSE | C113: =IF(B113,NOT(r_Mv_in=""),TRUE) -> TRUE | E113: Molar volume of new contaminant | F113: r_Mv_in | H113: =IF(B113,"m3/kilomole","not required") -> not required
B114: FALSE | C114: =IF(B114,NOT(r_Tb_in=""),TRUE) -> TRUE | E114: Boiling point of new contaminant | F114: r_Tb_in | H114: =IF(B114,"degrees Kelvin","not required") -> not required
B115: =IF(r_new_contam=1,IF(r_Tb_in="",TRUE,FALSE),FALSE) -> FALSE | C115: =IF(B115,NOT(r_Tm_in=""),TRUE) -> TRUE | E115: Melting point of new contaminant | F115: r_Tm_in | H115: =IF(B115,"degrees Kelvin","not required") -> not required
B116: FALSE | C116: =IF(B116,NOT(r_influent_conc_I=""),TRUE) -> TRUE | E116: Influent concentration of new contaminant | F116: r_influent_conc_I | H116: =IF(B116,"ug/L","not required") -> not required
B117: FALSE | C117: =IF(B117,NOT(r_units_rem_I=""),TRUE) -> TRUE | E117: Removal input type for new contaminant | F117: r_units_rem_I | H117: =IF(B117,"<--- pick one","not required") -> not required
B118: =IF(retrofit=1,TRUE,FALSE) -> FALSE | C118: =IF(NOT(B118),TRUE,IF(r_rem_I="",FALSE,IF(AND(r_units_rem=1,r_rem_I>=1),FALSE,IF(AND(r_units_rem=2,r_rem_I>=r_influent_conc),FALSE,IF(r_new_contam=0,CHOOSE(r_units_rem,r_rem_I>Rem_I,r_rem_I<Rem_I),TRUE))))) -> TRUE | E118: =IF(r_new_contam=1,IF(r_units_rem=1,"Percent removal for new contaminant", IF(r_units_rem=2,"Treated water concentration of new contaminant","")),IF(r_units_rem=1,"New percent removal", IF(r_units_rem=2,"New treated water concentration",""))) -> New treated water concentration | F118: r_rem_I | H118: =IF(B118,IF(r_units_rem=1,"decimal between 0 and 1",IF(AND(contam_name="radon",r_new_contam=0),"pCi/L",IF(AND(contam_name="carbon dioxide",r_new_contam=0),"mg/L","ug/L"))),"not required") -> not required
E119: =IF(r_new_contam=1,"","For information:") -> For information:
E120: =IF(r_new_contam=1,"For Information:","Original "&IF(OR(Units_rem=2,Units_rem=3),"percent removal", IF(Units_rem=1,"treated water concentration",""))) -> Original percent removal | G120: =IF(OR(retrofit=0,r_influent_conc="",r_units_rem="",r_new_contam=1),"",G45) ->  | H120: =IF(OR(retrofit=0,r_units_rem=2,r_new_contam=1),"",IF(contam_name="radon","pCi/L",IF(contam_name="carbon dioxide","mg/L","ug/L"))) -> 
E121: =IF(r_new_contam=1,IF(r_units_rem=2,"Percent removal for new contaminant", IF(r_units_rem=1,"Treated water concentration of new contaminant","")),IF(r_units_rem=2,"New percent removal", IF(r_units_rem=1,"New treated water concentration",""))) -> New percent removal | G121: =IF(retrofit=0,"",IF(AND(r_new_contam=1,OR(r_influent_conc_I="",r_units_rem_I="")),"",IF(r_rem_I="","",IF(r_units_rem=1,r_influent_conc*(1-r_rem_I),IF(r_units_rem=2,TEXT(r_P_REM,"0.0%")))))) ->  | H121: =IF(OR(retrofit=0,r_units_rem=2),"",IF(AND(contam_name="radon",r_new_contam=0),"pCi/L",IF(AND(contam_name="carbon dioxide",r_new_contam=0),"mg/L","ug/L"))) -> 
E122: New tower height | G122: =IF(OR(ISERROR(r_Shell_height),retrofit=0),"",IF(r_xtraheight=0,"unchanged",ROUND(r_Shell_height*3.28,1))) ->  | H122: =IF(OR(retrofit=0,r_xtraheight=0),"","ft") -> 
E123: New air-to-water ratio | G123: =IF(retrofit=0,"",IF(r_RATIO=RATIO,"unchanged",r_RATIO&":1")) -> 
C124: =IF(NOT(AND(C110:C118)),FALSE,TRUE) -> TRUE | D124: =IF(NOT(C124),IF(AND(r_units_rem=1,r_rem_I>=1),"Set percent removal to a decimal greater than 0 and less than 1",IF(AND(r_new_contam=1,r_units_rem=2,r_rem_I>=r_influent_conc),"Set treated water concentration less than influent concentration",IF(AND(r_new_contam=0,OR(AND(r_units_rem=1,r_rem_I<=Rem_I),AND(r_units_rem=2,r_rem_I>=Rem_I))),"New removal must be greater than old removal",IF(AND(B110,NOT(C110)),"Choose units for additional tower height","Retrofit Inputs Incomplete")))),"OK") -> OK | H124: =IF(C124,"Retrofit Inputs OK",D124) -> Retrofit Inputs OK

Sheet OUTPUT
A1: OUTPUT SUMMARY
B2: Parameter | C2: Value | D2: Units
B3: Technology | C3: PTA
B4: Contaminant | C4: =contam_name&IF(retrofit=1," Retrofit","") -> TCE
B5: =IF(retrofit=1,"Original ","")&"Percent Removal" -> Percent Removal | C5: =P_REM -> 0.9
B6: System Size Category | C6: =IF(ss_cat2=1,"small","large") -> small
B7: Design Flow | C7: =design_flow -> 0.03 | D7: MGD (excludes bypass flow)
B8: Average Flow | C8: =average_flow -> 0.007 | D8: MGD (excludes bypass flow)
B9: =IF(retrofit=1,"Original Packing Height","Packing Height") -> Packing Height | C9: =ROUND(PACK_HT*3.28,1) -> 11.3 | D9: ft
B10: =IF(retrofit=1,"Original Overall Tower Height","Overall Tower Height") -> Overall Tower Height | C10: =ROUND(Shell_Height*3.28,1) -> 21.3 | D10: ft
B11: Tower Diameter | C11: =ROUND(D*3.28,1) -> 1.2 | D11: ft
B12: =IF(retrofit=1,"Original A:W Ratio","Air-To-Water Ratio") -> Air-To-Water Ratio | C12: =RATIO&":1" -> 93:1
B13: Liquid Loading Rate | C13: =L_LOAD -> 0.006586148313 | D13: m3/m2 - sec
B14: =IF(retrofit=1,"Original Air Load Rate","Air Loading Rate") -> Air Loading Rate | C14: =G_LOAD -> 0.6125117931 | D14: m3/m2 - sec
B15: Off-Gas Treatment | C15: =IF(Offgas_Tech_I="","none",Offgas_Tech_I) -> none
B16: Component level | C16: =IF(component_level=2,"high cost",IF(component_level=1,"mid cost","low cost")) -> low cost
B17: System automation | C17: =IF(manual=1,"manual",IF(manual=2,"semi-automated",IF(manual=3,"fully automated"))) -> fully automated
B20: ="Resulting Costs (in year "&TEXT(current_year_cl,0)&" dollars)" -> Resulting Costs (in year 2021 dollars)
B21: Direct Capital Cost | C21: =IF(input_status<>"input complete -- results ready","Action required",IF(Missing_Cost,"Missing cost!",IF(cost_buildup_error,"Error in buildup!",direct_cost))) -> 161636.0386 | D21: Details | E21: =IF(input_status<>"input complete -- results ready",IF(input_complete,"Press Generate Results","Check INPUT sheet for errors"),IF(Missing_Cost,"A price is not available for at least one required component. See Use? column below.",IF(cost_buildup_error,"There is an Excel error in the price for at least one component. See Use? column below.",""))) -> 
B22: Add-on Cost | C22: =IF(input_status<>"input complete -- results ready","Action required",addon_cost) -> 1755.046125 | D22: Details
B23: Indirect Capital Cost | C23: =IF(input_status<>"input complete -- results ready","Action required",indirect_cost) -> 100897.0212 | D23: Details | E23: =IF(retrofit=1,"After Retrofit:","") -> 
B24: Total Capital Cost | C24: =IF(input_status<>"input complete -- results ready","Action required",IF(Missing_Cost,"Missing cost!",IF(cost_buildup_error,"Error in buildup!",system_cost))) -> 264288.1058 | D24: Details | E24: =IF(retrofit=1,"New Tower Height","") ->  | F24: =IF(OR(ISERROR(r_Shell_height),retrofit=0),"",IF(r_xtraheight=0,"unchanged",ROUND(r_Shell_height*3.3,1))) ->  | G24: =IF(retrofit=1,"ft","") -> 
B25: ="Annualized Capital Cost "&IF(OR(input_status<>"input complete -- results ready",Missing_Cost,cost_buildup_error),"","(per year over "&useful_life&" years at "&Discount_rate*100&"%)") -> Annualized Capital Cost (per year over 17.7 years at 7%) | C25: =IF(input_status<>"input complete -- results ready","Action required",Annualized_Capital_Cost) -> 26501.90296 | D25: Details
B26: Annual O&M Cost (per year) | C26: =IF(input_status<>"input complete -- results ready","Action required",om_cost) -> 13042.65954 | D26: Details | E26: =IF(retrofit=1,"New A:W Ratio","") ->  | F26: =IF(retrofit=0,"",IF(r_RATIO=RATIO,"unchanged",r_RATIO&":1")) -> 
B27: ="Total Annualized Cost (per year"&IF(OR(input_status<>"input complete -- results ready",ISERROR(OR(TAC_pct_cap,TAC_pct_OM))),"",", "&TEXT(TAC_pct_cap,"0%")&" capital, "&TEXT(TAC_pct_OM,"0%")&" O&M")&")" -> Total Annualized Cost (per year, 67% capital, 33% O&M) | C27: =IF(input_status<>"input complete -- results ready","Action required",IF(Missing_Cost,"Missing cost!",IF(cost_buildup_error,"Error in buildup!",Annualized_Cost))) -> 39544.5625 | D27: Details | E27: =IF(retrofit=1,"New Air Load Rate","") ->  | F27: =IF(retrofit=0,"",IF(r_RATIO=RATIO,"unchanged",r_G_Load)) ->  | G27: =IF(retrofit=1,"m3/m2 - sec","") -> 
B28: Annualized cost per 1,000 gallons average flow | C28: =IF(input_status<>"input complete -- results ready","Action required",IF(Missing_Cost,"Missing cost!",IF(cost_buildup_error,"Error in buildup!",C402))) -> 15.47732387
B29: Annualized cost per household per year | C29: =IF(input_status<>"input complete -- results ready","Action required",IF(Missing_Cost,"Missing cost!",IF(cost_buildup_error,"Error in buildup!",C403))) -> 1559.628656
A31: Direct Capital Cost Details (items in italics, without a 1 in the "Use?" column, represent alternate costs and are excluded from total)
A32: WBS # | B32: Item | C32: Design Quantity | E32: Design Size | G32: Size used in estimate | I32: Unit Cost | J32: Total Cost | K32: Useful Life | L32: Use? | M32: Full Line Item Name | N32: Resulting priority selection (after considering whether this is a retrofit scenario) | W32: Include in Retrofit? | X32: Baseline priority selection | AG32: Useful Life
N33: Small (<1 mgd) | Q33: Medium (1-10 mgd) | T33: Large (>10 mgd) | X33: Small (<1 mgd) | AA33: Medium (1-10 mgd) | AD33: Large (>10 mgd)
N34: Low | O34: Mid | P34: High | Q34: Low | R34: Mid | S34: High | T34: Low | U34: Mid | V34: High | X34: Low | Y34: Mid | Z34: High | AA34: Low | AB34: Mid | AC34: High | AD34: Low | AE34: Mid | AF34: High | AG34: Count? | AH34: Depreciation
A35: 1. | B35: Aeration Towers
A36: 1.1 | B36: Shell
A37: 1.1.1 | B37: Stainless Steel | C37: =TOT_COL -> 2 | D37: units | E37: =col_vol -> 179.2282494 | F37: gal | G37: =IF(curve=1,col_vol,VLOOKUP(col_vol,ss_shell_cost_cl,2)) -> 179.2282494 | H37: gal | I37: =IF(curve=1,ss_shell_eq,VLOOKUP(col_vol,ss_shell_cost_cl,3)) -> 33897.85793 | J37: =IF(I37="contact vendor","--",C37*I37) -> 67795.71585 | K37: =VLOOKUP(col_vol,ss_shell_cost_cl,IF(ss_cat="large",4,5)) -> 20 | L37: 0 | M37: =$B$35&" - "&$B$36&" - "&B37 -> Aeration Towers - Shell - Stainless Steel | N37: =IF(retrofit=1,$W37*X37,IF(ISBLANK(X37),"",X37)) -> 3 | O37: 3 | P37: 1 | Q37: 3 | R37: 3 | S37: 1 | T37: 3 | U37: =IF(retrofit=1,$W37*AE37,IF(ISBLANK(AE37),"",AE37)) -> 3 | V37: 1 | W37: 0 | X37: 3 | Y37: 3 | Z37: 1 | AA37: 3 | AB37: 3 | AC37: 1 | AD37: 3 | AE37: 3 | AF37: 1 | AG37: =IF(ISERROR(K37*L37),0,IF(K37<1,0,L37)) -> 0 | AH37: =IF(AG37,J37/K37,0) -> 0
A38: 1.1.1 | B38: Fiberglass | C38: =TOT_COL -> 2 | D38: units | E38: =col_vol -> 179.2282494 | F38: gal | G38: =IF(curve=1,col_vol,VLOOKUP(col_vol,fg_shell_cost_cl,2)) -> 179.2282494 | H38: gal | I38: =IF(curve=1,fg_shell_eq,VLOOKUP(col_vol,fg_shell_cost_cl,3)) -> 27368.51286 | J38: =IF(I38="contact vendor","--",C38*I38) -> 54737.02572 | K38: =VLOOKUP(col_vol,fg_shell_cost_cl,IF(ss_cat="large",4,5)) -> 18 | L38: 1 | M38: =$B$35&" - "&$B$36&" - "&B38 -> Aeration Towers - Shell - Fiberglass | N38: 1 | O38: 2 | P38: 2 | Q38: 1 | R38: 2 | S38: 2 | T38: 1 | U38: 2 | V38: 2 | W38: 0 | X38: 1 | Y38: 2 | Z38: 2 | AA38: 1 | AB38: 2 | AC38: 2 | AD38: 1 | AE38: 2 | AF38: 2 | AG38: 1 | AH38: 3040.945874
A39: 1.1.1 | B39: Aluminum | C39: =TOT_COL -> 2 | D39: units | E39: =col_vol -> 179.2282494 | F39: gal | G39: =IF(curve=1,col_vol,VLOOKUP(col_vol,al_shell_cost_cl,2)) -> 179.2282494 | H39: gal | I39: =IF(curve=1,al_shell_eq,VLOOKUP(col_vol,al_shell_cost_cl,3)) -> 27746.5245 | J39: =IF(I39="contact vendor","--",C39*I39) -> 55493.04899 | K39: =VLOOKUP(col_vol,al_shell_cost_cl,IF(ss_cat="large",4,5)) -> 20 | L39: 0 | M39: =$B$35&" - "&$B$36&" - "&B39 -> Aeration Towers - Shell - Aluminum | N39: 2 | O39: 1 | P39: 3 | Q39: 2 | R39: 1 | S39: 3 | T39: 2 | U39: 1 | V39: 3 | W39: 0 | X39: 2 | Y39: 1 | Z39: 3 | AA39: 2 | AB39: 1 | AC39: 3 | AD39: 2 | AE39: 1 | AF39: 3 | AG39: 0 | AH39: 0
A40: 1.2 | B40: Support Plate | AG40: 0 | AH40: 0
A41: 1.2.1 | B41: Stainless Steel | C41: =TOT_COL -> 2 | D41: units | E41: =AREA -> 0.1043781536 | F41: square m | G41: =IF(curve=1,AREA,VLOOKUP(AREA,ss_splate_cost_cl,2)) -> 0.1043781536 | H41: square m | I41: =IF(curve=1,ss_splate_eq,VLOOKUP(AREA,ss_splate_cost_cl,3)) -> 1712.434715 | J41: =IF(I41="contact vendor","--",C41*I41) -> 3424.869431 | K41: =VLOOKUP(AREA,ss_splate_cost_cl,IF(ss_cat="large",4,5)) -> 30 | L41: 0 | M41: =$B$35&" - "&$B$40&" - "&B41 -> Aeration Towers - Support Plate - Stainless Steel | N41: =IF(retrofit=1,$W41*X41,IF(ISBLANK(X41),"",X41)) -> 2 | O41: 1 | P41: 1 | Q41: 2 | R41: 1 | S41: 1 | T41: 2 | U41: 1 | V41: 1 | W41: 0 | X41: 2 | Y41: 1 | Z41: 1 | AA41: 2 | AB41: 1 | AC41: 1 | AD41: 2 | AE41: 1 | AF41: 1 | AG41: 0 | AH41: 0
A42: 1.2.1 | B42: Plastic | C42: =TOT_COL -> 2 | D42: units | E42: =AREA -> 0.1043781536 | F42: square m | G42: =IF(curve=1,AREA,VLOOKUP(AREA,pl_splate_cost_cl,2)) -> 0.1043781536 | H42: square m | I42: =IF(curve=1,pl_splate_eq,VLOOKUP(AREA,pl_splate_cost_cl,3)) -> 2616.152084 | J42: =IF(I42="contact vendor","--",C42*I42) -> 5232.304167 | K42: =VLOOKUP(AREA,pl_splate_cost_cl,IF(ss_cat="large",4,5)) -> 20 | L42: 1 | M42: =$B$35&" - "&$B$40&" - "&B42 -> Aeration Towers - Support Plate - Plastic | N42: 1 | O42: 2 | P42: 2 | Q42: 1 | R42: 2 | S42: 2 | T42: 1 | U42: 2 | V42: 2 | W42: 0 | X42: 1 | Y42: 2 | Z42: 2 | AA42: 1 | AB42: 2 | AC42: 2 | AD42: 1 | AE42: 2 | AF42: 2 | AG42: 1 | AH42: 261.6152084
A43: 1.3 | B43: Liquid Distributor | AG43: 0 | AH43: 0
A44: 1.3.1 | B44: Stainless Steel | C44: =TOT_COL -> 2 | D44: units | E44: =AREA -> 0.1043781536 | F44: square m | G44: =IF(curve=1,AREA,VLOOKUP(AREA,ss_ldist_cost_cl,2)) -> 0.1043781536 | H44: square m | I44: =IF(curve=1,ss_ldist_eq,VLOOKUP(AREA,ss_ldist_cost_cl,3)) -> 2464.715053 | J44: =IF(I44="contact vendor","--",C44*I44) -> 4929.430105 | K44: =VLOOKUP(AREA,ss_ldist_cost_cl,IF(ss_cat="large",4,5)) -> 30 | L44: 0 | M44: =$B$35&" - "&$B$43&" - "&B44 -> Aeration Towers - Liquid Distributor - Stainless Steel | N44: =IF(retrofit=1,$W44*X44,IF(ISBLANK(X44),"",X44)) -> 2 | O44: 1 | P44: 1 | Q44: 2 | R44: 1 | S44: 1 | T44: 2 | U44: 1 | V44: 1 | W44: 0 | X44: 2 | Y44: 1 | Z44: 1 | AA44: 2 | AB44: 1 | AC44: 1 | AD44: 2 | AE44: 1 | AF44: 1 | AG44: 0 | AH44: 0
A45: 1.3.1 | B45: Plastic | C45: =TOT_COL -> 2 | D45: units | E45: =AREA -> 0.1043781536 | F45: square m | G45: =IF(curve=1,AREA,VLOOKUP(AREA,pl_ldist_cost_cl,2)) -> 0.1043781536 | H45: square m | I45: =IF(curve=1,pl_ldist_eq,VLOOKUP(AREA,pl_ldist_cost_cl,3)) -> 5319.944794 | J45: =IF(I45="contact vendor","--",C45*I45) -> 10639.88959 | K45: =VLOOKUP(AREA,pl_ldist_cost_cl,IF(ss_cat="large",4,5)) -> 20 | L45: 1 | M45: =$B$35&" - "&$B$43&" - "&B45 -> Aeration Towers - Liquid Distributor - Plastic | N45: 1 | O45: 2 | P45: 2 | Q45: 1 | R45: 2 | S45: 2 | T45: 1 | U45: 2 | V45: 2 | W45: 0 | X45: 1 | Y45: 2 | Z45: 2 | AA45: 1 | AB45: 2 | AC45: 2 | AD45: 1 | AE45: 2 | AF45: 2 | AG45: 1 | AH45: 531.9944794
A46: 1.4 | B46: Liquid Redistributor | AG46: 0 | AH46: 0
A47: 1.4.1 | B47: Stainless Steel | C47: =tot_R -> 2 | D47: units | E47: =AREA -> 0.1043781536 | F47: square m | G47: =IF(curve=1,AREA,VLOOKUP(AREA,ss_redist_cost_cl,2)) -> 0.1043781536 | H47: square m | I47: =IF(curve=1,ss_redist_eq,VLOOKUP(AREA,ss_redist_cost_cl,3)) -> 2621.319415 | J47: =IF(I47="contact vendor","--",C47*I47) -> 5242.638829 | K47: =VLOOKUP(AREA,ss_redist_cost_cl,IF(ss_cat="large",4,5)) -> 30 | L47: 0 | M47: =$B$35&" - "&$B$46&" - "&B47 -> Aeration Towers - Liquid Redistributor - Stainless Steel | N47: =IF(retrofit=1,$W47*X47,IF(ISBLANK(X47),"",X47)) -> 2 | O47: 1 | P47: 1 | Q47: 2 | R47: 1 | S47: 1 | T47: 2 | U47: =IF(retrofit=1,$W47*AE47,IF(ISBLANK(AE47),"",AE47)) -> 1 | V47: 1 | W47: 0 | X47: 2 | Y47: 1 | Z47: 1 | AA47: 2 | AB47: 1 | AC47: 1 | AD47: 2 | AE47: 1 | AF47: 1 | AG47: 0 | AH47: 0
A48: 1.4.1 | B48: Plastic | C48: =tot_R -> 2 | D48: units | E48: =AREA -> 0.1043781536 | F48: square m | G48: =IF(curve=1,AREA,VLOOKUP(AREA,pl_redist_cost_cl,2)) -> 0.1043781536 | H48: square m | I48: =IF(curve=1,pl_redist_eq,VLOOKUP(AREA,pl_redist_cost_cl,3)) -> 6098.165235 | J48: =IF(I48="contact vendor","--",C48*I48) -> 12196.33047 | K48: =VLOOKUP(AREA,pl_redist_cost_cl,IF(ss_cat="large",4,5)) -> 20 | L48: 1 | M48: =$B$35&" - "&$B$46&" - "&B48 -> Aeration Towers - Liquid Redistributor - Plastic | N48: 1 | O48: 2 | P48: 2 | Q48: 1 | R48: 2 | S48: 2 | T48: 1 | U48: 2 | V48: 2 | W48: 0 | X48: 1 | Y48: 2 | Z48: 2 | AA48: 1 | AB48: 2 | AC48: 2 | AD48: 1 | AE48: 2 | AF48: 2 | AG48: 1 | AH48: 609.8165235
A49: 1.5 | B49: Packing | C49: =Pv_ft -> 25.31437523 | D49: cubic ft | E49: =Packing_size -> 2 | F49: inches | G49: =IF(alt_pack_cost="",VLOOKUP(Packing_size,packing_cost_cl,2),Packing_size) -> 2 | H49: inches | I49: =IF(alt_pack_cost="",VLOOKUP(Packing_size,packing_cost_cl,3),alt_pack_cost) -> 28.81312905 | J49: =IF(I49="contact vendor","--",C49*I49) -> 729.3863602 | K49: =VLOOKUP(Packing_size,packing_cost_cl,IF(ss_cat="large",4,5)) -> 20 | L49: 1 | M49: =$B$35&" - "&B49 -> Aeration Towers - Packing | N49: 1 | O49: 1 | P49: 1 | Q49: 1 | R49: 1 | S49: 1 | T49: 1 | U49: 1 | V49: 1 | W49: 0 | X49: 1 | Y49: 1 | Z49: 1 | AA49: 1 | AB49: 1 | AC49: 1 | AD49: 1 | AE49: 1 | AF49: 1 | AG49: 1 | AH49: 36.46931801
A50: 2. | B50: Pumps and Blowers | AG50: 0 | AH50: 0
A51: 2.1 | B51: Booster Pumps | C51: =tot_pumps -> 2 | D51: units | E51: =QP -> 13.02083333 | F51: gpm | G51: =IF(curve=1,QP,VLOOKUP(QP,pump_cost_cl,2)) -> 13.02083333 | H51: gpm | I51: =IF(C51=0,"NA",IF(curve=1,pump_eq,VLOOKUP(QP,pump_cost_cl,3))) -> 4286.206802 | J51: =IF(C51=0,"--",IF(I51="contact vendor","--",C51*I51)) -> 8572.413605 | K51: =IF(C51=0,"NA",VLOOKUP(QP,pump_cost_cl,IF(ss_cat="large",4,5))) -> 17 | L51: 1 | M51: =$B$50&" - "&B51 -> Pumps and Blowers - Booster Pumps | N51: =IF(retrofit=1,$W51*X51,IF(ISBLANK(X51),"",X51)) -> 1 | O51: 1 | P51: 1 | Q51: 1 | R51: 1 | S51: 1 | T51: 1 | U51: 1 | V51: 1 | W51: 0 | X51: 1 | Y51: 1 | Z51: 1 | AA51: 1 | AB51: 1 | AC51: 1 | AD51: 1 | AE51: 1 | AF51: 1 | AG51: 1 | AH51: 504.2596238
A52: 2.2 | B52: Acid Metering Pumps | AG52: 0 | AH52: 0
A53: 2.2.1 | B53: PVC - Motor Driven | C53: =HCl_pumps -> 0 | D53: units | E53: =IF(C53=0,"NA",HCl_pump_rate) -> NA | F53: =IF(C53=0,"","gph") ->  | G53: =IF(C53=0,"NA",IF(curve=1,HCl_pump_rate,VLOOKUP(HCl_pump_rate,pvc_mmpump_cost_cl,2))) -> NA | H53: =IF(C53=0,"","gph") ->  | I53: =IF(C53=0,"NA",IF(curve=1,pvc_mmpump_eq_hcl,VLOOKUP(HCl_pump_rate,pvc_mmpump_cost_cl,3))) -> NA | J53: =IF(C53=0,"--",IF(I53="contact vendor","--",C53*I53)) -> -- | K53: =IF(C53=0,"NA",VLOOKUP(HCl_pump_rate,pvc_mmpump_cost_cl,IF(ss_cat="large",4,5))) -> NA | M53: =$B$50&" - "&$B$52&" - "&B53 -> Pumps and Blowers - Acid Metering Pumps - PVC - Motor Driven | N53: =IF(retrofit=1,$W53*X53,IF(ISBLANK(X53),"",X53)) -> 2 | O53: 1 | P53: 1 | Q53: 2 | R53: 2 | S53: 1 | T53: 2 | U53: 2 | V53: 1 | W53: 0 | X53: 2 | Y53: 1 | Z53: 1 | AA53: 2 | AB53: 2 | AC53: 1 | AD53: 2 | AE53: 2 | AF53: 1 | AG53: 0 | AH53: 0
A54: 2.2.1 | B54: PVC - Electric | C54: =HCl_pumps -> 0 | D54: units | E54: =IF(C54=0,"NA",HCl_pump_rate) -> NA | F54: =IF(C54=0,"","gph") ->  | G54: =IF(C54=0,"NA",IF(curve=1,HCl_pump_rate,VLOOKUP(HCl_pump_rate,pvc_empump_cost_cl,2))) -> NA | H54: =IF(C54=0,"","gph") ->  | I54: =IF(C54=0,"NA",IF(curve=1,pvc_empump_eq_hcl,VLOOKUP(HCl_pump_rate,pvc_empump_cost_cl,3))) -> NA | J54: -- | K54: =IF(C54=0,"NA",VLOOKUP(HCl_pump_rate,pvc_empump_cost_cl,IF(ss_cat="large",4,5))) -> NA | M54: =$B$50&" - "&$B$52&" - "&B54 -> Pumps and Blowers - Acid Metering Pumps - PVC - Electric | N54: 1 | O54: 2 | P54: 2 | Q54: 1 | R54: 1 | S54: 2 | T54: 1 | U54: 1 | V54: 2 | W54: 0 | X54: 1 | Y54: 2 | Z54: 2 | AA54: 1 | AB54: 1 | AC54: 2 | AD54: 1 | AE54: 1 | AF54: 2 | AG54: 0 | AH54: 0
A55: 2.3 | B55: Sodium Hydroxide Metering Pumps | AG55: 0 | AH55: 0
A56: 2.3.1 | B56: PVC - Motor Driven | C56: =NaOH_pumps -> 0 | D56: units | E56: =IF(C56=0,"NA",NaOH_pump_rate) -> NA | F56: =IF(C56=0,"","gph") ->  | G56: =IF(C56=0,"NA",IF(curve=1,NaOH_pump_rate,VLOOKUP(NaOH_pump_rate,pvc_mmpump_cost_cl,2))) -> NA | H56: =IF(C56=0,"","gph") ->  | I56: =IF(C56=0,"NA",IF(curve=1,pvc_mmpump_eq_naoh,VLOOKUP(NaOH_pump_rate,pvc_mmpump_cost_cl,3))) -> NA | J56: =IF(C56=0,"--",IF(I56="contact vendor","--",C56*I56)) -> -- | K56: =IF(C56=0,"NA",VLOOKUP(NaOH_pump_rate,pvc_mmpump_cost_cl,IF(ss_cat="large",4,5))) -> NA | M56: =$B$50&" - "&$B$55&" - "&B56 -> Pumps and Blowers - Sodium Hydroxide Metering Pumps - PVC - Motor Driven | N56: =IF(retrofit=1,$W56*X56,IF(ISBLANK(X56),"",X56)) -> 3 | O56: 3 | P56: 2 | Q56: 3 | R56: 3 | S56: 2 | T56: 3 | U56: =IF(retrofit=1,$W56*AE56,IF(ISBLANK(AE56),"",AE56)) -> 3 | V56: 2 | W56: 0 | X56: 3 | Y56: 3 | Z56: 2 | AA56: 3 | AB56: 3 | AC56: 2 | AD56: 3 | AE56: 3 | AF56: 2 | AG56: 0 | AH56: 0
A57: 2.3.1 | B57: Stainless Steel - Motor Driven | C57: =NaOH_pumps -> 0 | D57: units | E57: =IF(C57=0,"NA",NaOH_pump_rate) -> NA | F57: =IF(C57=0,"","gph") ->  | G57: =IF(C57=0,"NA",IF(curve=1,NaOH_pump_rate,VLOOKUP(NaOH_pump_rate,ss_mmpump_cost_cl,2))) -> NA | H57: =IF(C57=0,"","gph") ->  | I57: =IF(C57=0,"NA",IF(curve=1,ss_mmpump_eq_naoh,VLOOKUP(NaOH_pump_rate,ss_mmpump_cost_cl,3))) -> NA | J57: -- | K57: =IF(C57=0,"NA",VLOOKUP(NaOH_pump_rate,ss_mmpump_cost_cl,IF(ss_cat="large",4,5))) -> NA | M57: =$B$50&" - "&$B$55&" - "&B57 -> Pumps and Blowers - Sodium Hydroxide Metering Pumps - Stainless Steel - Motor Driven | N57: 4 | O57: 4 | P57: 1 | Q57: 4 | R57: 4 | S57: 1 | T57: 4 | U57: 4 | V57: 1 | W57: 0 | X57: 4 | Y57: 4 | Z57: 1 | AA57: 4 | AB57: 4 | AC57: 1 | AD57: 4 | AE57: 4 | AF57: 1 | AG57: 0 | AH57: 0
A58: 2.3.1 | B58: PVC - Electric | C58: =NaOH_pumps -> 0 | D58: units | E58: =IF(C58=0,"NA",NaOH_pump_rate) -> NA | F58: =IF(C58=0,"","gph") ->  | G58: =IF(C58=0,"NA",IF(curve=1,NaOH_pump_rate,VLOOKUP(NaOH_pump_rate,pvc_empump_cost_cl,2))) -> NA | H58: =IF(C58=0,"","gph") ->  | I58: =IF(C58=0,"NA",IF(curve=1,pvc_empump_eq_naoh,VLOOKUP(NaOH_pump_rate,pvc_empump_cost_cl,3))) -> NA | J58: -- | K58: =IF(C58=0,"NA",VLOOKUP(NaOH_pump_rate,pvc_empump_cost_cl,IF(ss_cat="large",4,5))) -> NA | M58: =$B$50&" - "&$B$55&" - "&B58 -> Pumps and Blowers - Sodium Hydroxide Metering Pumps - PVC - Electric | N58: 1 | O58: 2 | P58: 4 | Q58: 1 | R58: 2 | S58: 4 | T58: 1 | U58: 2 | V58: 4 | W58: 0 | X58: 1 | Y58: 2 | Z58: 4 | AA58: 1 | AB58: 2 | AC58: 4 | AD58: 1 | AE58: 2 | AF58: 4 | AG58: 0 | AH58: 0
A59: 2.3.1 | B59: Stainless Steel - Electric | C59: =NaOH_pumps -> 0 | D59: units | E59: =IF(C59=0,"NA",NaOH_pump_rate) -> NA | F59: =IF(C59=0,"","gph") ->  | G59: =IF(C59=0,"NA",IF(curve=1,NaOH_pump_rate,VLOOKUP(NaOH_pump_rate,ss_empump_cost_cl,2))) -> NA | H59: =IF(C59=0,"","gph") ->  | I59: =IF(C59=0,"NA",IF(curve=1,ss_empump_eq_naoh,VLOOKUP(NaOH_pump_rate,ss_empump_cost_cl,3))) -> NA | J59: -- | K59: =IF(C59=0,"NA",VLOOKUP(NaOH_pump_rate,ss_empump_cost_cl,IF(ss_cat="large",4,5))) -> NA | M59: =$B$50&" - "&$B$55&" - "&B59 -> Pumps and Blowers - Sodium Hydroxide Metering Pumps - Stainless Steel - Electric | N59: =IF(retrofit=1,$W59*X59,IF(ISBLANK(X59),"",X59)) -> 2 | O59: =IF(retrofit=1,$W59*Y59,IF(ISBLANK(Y59),"",Y59)) -> 1 | P59: =IF(retrofit=1,$W59*Z59,IF(ISBLANK(Z59),"",Z59)) -> 3 | Q59: =IF(retrofit=1,$W59*AA59,IF(ISBLANK(AA59),"",AA59)) -> 2 | R59: =IF(retrofit=1,$W59*AB59,IF(ISBLANK(AB59),"",AB59)) -> 1 | S59: =IF(retrofit=1,$W59*AC59,IF(ISBLANK(AC59),"",AC59)) -> 3 | T59: =IF(retrofit=1,$W59*AD59,IF(ISBLANK(AD59),"",AD59)) -> 2 | U59: =IF(retrofit=1,$W59*AE59,IF(ISBLANK(AE59),"",AE59)) -> 1 | V59: =IF(retrofit=1,$W59*AF59,IF(ISBLANK(AF59),"",AF59)) -> 3 | W59: 0 | X59: 2 | Y59: 1 | Z59: 3 | AA59: 2 | AB59: 1 | AC59: 3 | AD59: 2 | AE59: 1 | AF59: 3 | AG59: =IF(ISERROR(K59*L59),0,IF(K59<1,0,L59)) -> 0 | AH59: =IF(AG59,J59/K59,0) -> 0
A60: 2.4 | B60: Corrosion Control Chemical Metering Pumps | AG60: 0 | AH60: 0
A61: 2.4.1 | B61: PVC - Motor Driven | C61: =IF(chem_type=1,0,cc_pumps) -> 2 | D61: units | E61: =IF(chem_type=1,"NA",cc_pump_rate) -> 0.13 | F61: =IF(chem_type=1,"","gph") -> gph | G61: =IF(chem_type=1,"NA",IF(curve=1,cc_pump_rate,VLOOKUP(cc_pump_rate,pvc_mmpump_cost_cl,2))) -> 0.13 | H61: =IF(chem_type=1,"","gph") -> gph | I61: =IF(chem_type=1,"NA",IF(curve=1,pvc_mmpump_eq_cc,VLOOKUP(cc_pump_rate,pvc_mmpump_cost_cl,3))) -> 3008.169431 | J61: =IF(C61=0,"--",IF(I61="contact vendor","--",C61*I61)) -> 6016.338862 | K61: =IF(chem_type=1,"NA",VLOOKUP(cc_pump_rate,pvc_mmpump_cost_cl,IF(ss_cat="large",4,5))) -> 17 | L61: 0 | M61: =$B$50&" - "&$B$60&" - "&B61 -> Pumps and Blowers - Corrosion Control Chemical Metering Pumps - PVC - Motor Driven | N61: =IF(retrofit=1,$W61*X61,IF(ISBLANK(X61),"",X61)) -> 3 | O61: 3 | P61: 2 | Q61: 3 | R61: 3 | S61: 2 | T61: 3 | U61: =IF(retrofit=1,$W61*AE61,IF(ISBLANK(AE61),"",AE61)) -> 3 | V61: 2 | W61: 0 | X61: 3 | Y61: 3 | Z61: 2 | AA61: 3 | AB61: 3 | AC61: 2 | AD61: 3 | AE61: 3 | AF61: 2 | AG61: 0 | AH61: 0
A62: 2.4.1 | B62: Stainless Steel - Motor Driven | C62: =IF(chem_type=1,0,cc_pumps) -> 2 | D62: units | E62: =IF(chem_type=1,"NA",cc_pump_rate) -> 0.13 | F62: =IF(chem_type=1,"","gph") -> gph | G62: =IF(chem_type=1,"NA",IF(curve=1,cc_pump_rate,VLOOKUP(cc_pump_rate,ss_mmpump_cost_cl,2))) -> 0.13 | H62: =IF(chem_type=1,"","gph") -> gph | I62: =IF(chem_type=1,"NA",IF(curve=1,ss_mmpump_eq_cc,VLOOKUP(cc_pump_rate,ss_mmpump_cost_cl,3))) -> 3438.717763 | J62: 6877.435526 | K62: =IF(chem_type=1,"NA",VLOOKUP(cc_pump_rate,ss_mmpump_cost_cl,IF(ss_cat="large",4,5))) -> 17 | L62: 0 | M62: =$B$50&" - "&$B$60&" - "&B62 -> Pumps and Blowers - Corrosion Control Chemical Metering Pumps - Stainless Steel - Motor Driven | N62: 4 | O62: 4 | P62: 1 | Q62: 4 | R62: 4 | S62: 1 | T62: 4 | U62: 4 | V62: 1 | W62: 0 | X62: 4 | Y62: 4 | Z62: 1 | AA62: 4 | AB62: 4 | AC62: 1 | AD62: 4 | AE62: 4 | AF62: 1 | AG62: 0 | AH62: 0
A63: 2.4.1 | B63: PVC - Electric | C63: =IF(chem_type=1,0,cc_pumps) -> 2 | D63: units | E63: =IF(chem_type=1,"NA",cc_pump_rate) -> 0.13 | F63: =IF(chem_type=1,"","gph") -> gph | G63: =IF(chem_type=1,"NA",IF(curve=1,cc_pump_rate,VLOOKUP(cc_pump_rate,pvc_empump_cost_cl,2))) -> 0.13 | H63: =IF(chem_type=1,"","gph") -> gph | I63: =IF(chem_type=1,"NA",IF(curve=1,pvc_empump_eq_cc,VLOOKUP(cc_pump_rate,pvc_empump_cost_cl,3))) -> 1156.17085 | J63: 2312.3417 | K63: =IF(chem_type=1,"NA",VLOOKUP(cc_pump_rate,pvc_empump_cost_cl,IF(ss_cat="large",4,5))) -> 15 | L63: 1 | M63: =$B$50&" - "&$B$60&" - "&B63 -> Pumps and Blowers - Corrosion Control Chemical Metering Pumps - PVC - Electric | N63: 1 | O63: 2 | P63: 4 | Q63: 1 | R63: 2 | S63: 4 | T63: 1 | U63: 2 | V63: 4 | W63: 0 | X63: 1 | Y63: 2 | Z63: 4 | AA63: 1 | AB63: 2 | AC63: 4 | AD63: 1 | AE63: 2 | AF63: 4 | AG63: 1 | AH63: 154.1561133
A64: 2.4.1 | B64: Stainless Steel - Electric | C64: =IF(chem_type=1,0,cc_pumps) -> 2 | D64: units | E64: =IF(chem_type=1,"NA",cc_pump_rate) -> 0.13 | F64: =IF(chem_type=1,"","gph") -> gph | G64: =IF(chem_type=1,"NA",IF(curve=1,cc_pump_rate,VLOOKUP(cc_pump_rate,ss_empump_cost_cl,2))) -> 0.13 | H64: =IF(chem_type=1,"","gph") -> gph | I64: =IF(chem_type=1,"NA",IF(curve=1,ss_empump_eq_cc,VLOOKUP(cc_pump_rate,ss_empump_cost_cl,3))) -> 1729.497108 | J64: 3458.994216 | K64: =IF(chem_type=1,"NA",VLOOKUP(cc_pump_rate,ss_empump_cost_cl,IF(ss_cat="large",4,5))) -> 15 | L64: 0 | M64: =$B$50&" - "&$B$60&" - "&B64 -> Pumps and Blowers - Corrosion Control Chemical Metering Pumps - Stainless Steel - Electric | N64: 2 | O64: 1 | P64: 3 | Q64: 2 | R64: 1 | S64: 3 | T64: 2 | U64: 1 | V64: 3 | W64: 0 | X64: 2 | Y64: 1 | Z64: 3 | AA64: 2 | AB64: 1 | AC64: 3 | AD64: 2 | AE64: 1 | AF64: 3 | AG64: 0 | AH64: 0
A65: 2.5 | B65: Blowers | AG65: 0 | AH65: 0
A66: 2.5.1 | B66: Centrifugal | C66: =tot_blowers -> 2 | D66: units | E66: =Q_BLOWER -> 135.448136 | F66: cfm | G66: =IF(curve=1,Q_BLOWER,VLOOKUP(Q_BLOWER,cent_blow_cost_cl,2)) -> 135.448136 | H66: cfm | I66: =IF(curve=1,cent_blow_eq,VLOOKUP(Q_BLOWER,cent_blow_cost_cl,3)) -> 16417.10268 | J66: =IF(C66=0,"--",IF(I66="contact vendor","--",C66*I66)) -> 32834.20535 | K66: =VLOOKUP(Q_BLOWER,cent_blow_cost_cl,IF(ss_cat="large",4,5)) -> 20 | L66: 0 | M66: =$B$50&" - "&$B$65&" - "&B66 -> Pumps and Blowers - Blowers - Centrifugal | N66: =IF(retrofit=1,$W66*X66,IF(ISBLANK(X66),"",X66)) -> 3 | O66: =IF(retrofit=1,$W66*Y66,IF(ISBLANK(Y66),"",Y66)) -> 3 | P66: =IF(retrofit=1,$W66*Z66,IF(ISBLANK(Z66),"",Z66)) -> 1 | Q66: =IF(retrofit=1,$W66*AA66,IF(ISBLANK(AA66),"",AA66)) -> 3 | R66: =IF(retrofit=1,$W66*AB66,IF(ISBLANK(AB66),"",AB66)) -> 3 | S66: =IF(retrofit=1,$W66*AC66,IF(ISBLANK(AC66),"",AC66)) -> 1 | T66: =IF(retrofit=1,$W66*AD66,IF(ISBLANK(AD66),"",AD66)) -> 3 | U66: =IF(retrofit=1,$W66*AE66,IF(ISBLANK(AE66),"",AE66)) -> 3 | V66: =IF(retrofit=1,$W66*AF66,IF(ISBLANK(AF66),"",AF66)) -> 1 | W66: 0 | X66: 3 | Y66: 3 | Z66: 1 | AA66: 3 | AB66: 3 | AC66: 1 | AD66: 3 | AE66: 3 | AF66: 1 | AG66: 0 | AH66: 0
A67: 2.5.1 | B67: Positive Displacement | C67: =tot_blowers -> 2 | D67: units | E67: =Q_BLOWER -> 135.448136 | F67: cfm | G67: =IF(curve=1,Q_BLOWER,VLOOKUP(Q_BLOWER,pd_blow_cost_cl,2)) -> 135.448136 | H67: cfm | I67: =IF(curve=1,pd_blow_eq,VLOOKUP(Q_BLOWER,pd_blow_cost_cl,3)) -> 15407.07946 | J67: 30814.15893 | K67: =VLOOKUP(Q_BLOWER,pd_blow_cost_cl,IF(ss_cat="large",4,5)) -> 20 | L67: 0 | M67: =$B$50&" - "&$B$65&" - "&B67 -> Pumps and Blowers - Blowers - Positive Displacement | N67: 2 | O67: 1 | P67: 2 | Q67: 2 | R67: 1 | S67: 2 | T67: 2 | U67: 1 | V67: 2 | W67: 0 | X67: 2 | Y67: 1 | Z67: 2 | AA67: 2 | AB67: 1 | AC67: 2 | AD67: 2 | AE67: 1 | AF67: 2 | AG67: 0 | AH67: 0
A68: 2.5.1 | B68: Regenerative | C68: =tot_blowers -> 2 | D68: units | E68: =Q_BLOWER -> 135.448136 | F68: cfm | G68: =IF(curve=1,Q_BLOWER,VLOOKUP(Q_BLOWER,reg_blow_cost_cl,2)) -> 135.448136 | H68: cfm | I68: =IF(curve=1,reg_blow_eq,VLOOKUP(Q_BLOWER,reg_blow_cost_cl,3)) -> 2315.080256 | J68: =IF(C68=0,"--",IF(I68="contact vendor","--",C68*I68)) -> 4630.160512 | K68: =VLOOKUP(Q_BLOWER,reg_blow_cost_cl,IF(ss_cat="large",4,5)) -> 20 | L68: 1 | M68: =$B$50&" - "&$B$65&" - "&B68 -> Pumps and Blowers - Blowers - Regenerative | N68: 1 | O68: 2 | P68: 3 | Q68: 1 | R68: 2 | S68: 3 | T68: 1 | U68: 2 | V68: 3 | W68: 0 | X68: 1 | Y68: 2 | Z68: 3 | AA68: 1 | AB68: 2 | AC68: 3 | AD68: 1 | AE68: 2 | AF68: 3 | AG68: =IF(ISERROR(K68*L68),0,IF(K68<1,0,L68)) -> 1 | AH68: =IF(AG68,J68/K68,0) -> 231.5080256
A69: 3. | B69: Clearwell | AG69: 0 | AH69: 0
A70: 3.1 | B70: Concrete | C70: =IF(AW_DET=0,0,1) -> 1 | D70: units | E70: =clearwell_gal -> 652.6788423 | F70: gal | G70: =clearwell_gal -> 652.6788423 | H70: gal | I70: =IF(AW_DET=0,"NA",concrete_vol_yd/C70*VLOOKUP(0,conc_basin_cost_cl,3)) -> 4837.02055 | J70: =IF(C70=0,"--",IF(I70="contact vendor","--",C70*I70)) -> 4837.02055 | K70: =IF(AW_DET=0,"NA",VLOOKUP(0,conc_basin_cost_cl,IF(ss_cat="large",4,5))) -> 37 | L70: 1 | M70: =$B$69&" - "&B70 -> Clearwell - Concrete | N70: =IF(retrofit=1,$W70*X70,IF(ISBLANK(X70),"",X70)) -> 1 | O70: 1 | P70: 1 | Q70: 1 | R70: 1 | S70: 1 | T70: 1 | U70: =IF(retrofit=1,$W70*AE70,IF(ISBLANK(AE70),"",AE70)) -> 1 | V70: 1 | W70: 0 | X70: 1 | Y70: 1 | Z70: 1 | AA70: 1 | AB70: 1 | AC70: 1 | AD70: 1 | AE70: 1 | AF70: 1 | AG70: 1 | AH70: 130.7302851
A71: 3.2 | B71: Excavation | C71: =IF(AW_DET=0,0,x_vol_yd) -> 52 | D71: cubic yds | E71: NA | G71: NA | I71: =IF(AW_DET=0,"NA",VLOOKUP(0,excavate_cost_cl,3)) -> 30.88 | J71: 1605.76 | K71: =IF(AW_DET=0,"NA",VLOOKUP(0,conc_basin_cost_cl,IF(ss_cat="large",4,5))) -> 37 | L71: 1 | M71: =$B$69&" - "&B71 -> Clearwell - Excavation | N71: 1 | O71: 1 | P71: 1 | Q71: 1 | R71: 1 | S71: 1 | T71: 1 | U71: 1 | V71: 1 | W71: 0 | X71: 1 | Y71: 1 | Z71: 1 | AA71: 1 | AB71: 1 | AC71: 1 | AD71: 1 | AE71: 1 | AF71: 1 | AG71: =IF(ISERROR(K71*L71),0,IF(K71<1,0,L71)) -> 1 | AH71: =IF(AG71,J71/K71,0) -> 43.39891892
A72: 3.3 | B72: Backfill and Compaction | C72: =IF(AW_DET=0,0,b_vol_yd) -> 49 | D72: cubic yds | E72: NA | G72: NA | I72: =IF(AW_DET=0,"NA",VLOOKUP(0,backfill_cost_cl,3)) -> 18.65 | J72: 913.85 | K72: =IF(AW_DET=0,"NA",VLOOKUP(0,conc_basin_cost_cl,IF(ss_cat="large",4,5))) -> 37 | L72: 1 | M72: =$B$69&" - "&B72 -> Clearwell - Backfill and Compaction | N72: 1 | O72: 1 | P72: 1 | Q72: 1 | R72: 1 | S72: 1 | T72: 1 | U72: 1 | V72: 1 | W72: 0 | X72: 1 | Y72: 1 | Z72: 1 | AA72: 1 | AB72: 1 | AC72: 1 | AD72: 1 | AE72: 1 | AF72: 1 | AG72: 1 | AH72: 24.69864865
A73: 4. | B73: Chemical Storage | AG73: 0 | AH73: 0
A74: 4.1 | B74: Acid Storage Tanks | AG74: 0 | AH74: 0
A75: 4.1.1 | B75: Plastic/XLPE | C75: =HCl_tanks -> 0 | D75: units | E75: =IF(C75=0,"NA",HCl_tank_vol) -> NA | F75: =IF(C75=0,"","gal") ->  | G75: =IF(C75=0,"NA",IF(curve=1,HCl_tank_vol,VLOOKUP(HCl_tank_vol,pl_cst_cost_cl,2))) -> NA | H75: =IF(C75=0,"","gal") ->  | I75: =IF(C75=0,"NA",IF(curve=1,pl_cst_eq_hcl,VLOOKUP(HCl_tank_vol,pl_cst_cost_cl,3))) -> NA | J75: =IF(C75=0,"--",IF(I75="contact vendor","--",C75*I75)) -> -- | K75: =IF(C75=0,"NA",VLOOKUP(HCl_tank_vol,pl_cst_cost_cl,IF(ss_cat="large",4,5))) -> NA | M75: =$B$73&" - "&$B$74&" - "&B75 -> Chemical Storage - Acid Storage Tanks - Plastic/XLPE | N75: =IF(retrofit=1,$W75*X75,IF(ISBLANK(X75),"",X75)) -> 1 | O75: 2 | P75: 2 | Q75: 1 | R75: 2 | S75: 2 | T75: 1 | U75: 2 | V75: 2 | W75: 0 | X75: 1 | Y75: 2 | Z75: 2 | AA75: 1 | AB75: 2 | AC75: 2 | AD75: 1 | AE75: 2 | AF75: 2 | AG75: 0 | AH75: 0
A76: 4.1.1 | B76: Fiberglass | C76: =HCl_tanks -> 0 | D76: units | E76: =IF(C76=0,"NA",HCl_tank_vol) -> NA | F76: =IF(C76=0,"","gal") ->  | G76: =IF(C76=0,"NA",IF(curve=1,HCl_tank_vol,VLOOKUP(HCl_tank_vol,fg_cst_cost_cl,2))) -> NA | H76: =IF(C76=0,"","gal") ->  | I76: =IF(C76=0,"NA",IF(curve=1,fg_cst_eq_hcl,VLOOKUP(HCl_tank_vol,fg_cst_cost_cl,3))) -> NA | J76: -- | K76: =IF(C76=0,"NA",VLOOKUP(HCl_tank_vol,fg_cst_cost_cl,IF(ss_cat="large",4,5))) -> NA | M76: =$B$73&" - "&$B$74&" - "&B76 -> Chemical Storage - Acid Storage Tanks - Fiberglass | N76: 2 | O76: 1 | P76: 1 | Q76: 2 | R76: 1 | S76: 1 | T76: 2 | U76: 1 | V76: 1 | W76: 0 | X76: 2 | Y76: 1 | Z76: 1 | AA76: 2 | AB76: 1 | AC76: 1 | AD76: 2 | AE76: 1 | AF76: 1 | AG76: 0 | AH76: 0
A77: 4.1.2 | B77: Secondary Containment - Concrete Curbing | C77: =IF(OR(include_sec_cont=0,HCl_tanks=0),0,acid_st_curb_concrete) -> 0 | D77: cy | E77: NA | G77: NA | I77: =IF(C77=0,"NA",VLOOKUP(0,conc_basin_cost_cl,3)) -> NA | J77: =IF(C77=0,"--",IF(I77="contact vendor","--",C77*I77)) -> -- | K77: =IF(C77=0,"NA",VLOOKUP(0,conc_basin_cost_cl,IF(ss_cat="large",4,5))) -> NA | M77: =$B$73&" - "&$B$74&" - "&B77 -> Chemical Storage - Acid Storage Tanks - Secondary Containment - Concrete Curbing | N77: 1 | O77: 1 | P77: 1 | Q77: 1 | R77: 1 | S77: 1 | T77: 1 | U77: 1 | V77: 1 | W77: 0 | X77: 1 | Y77: 1 | Z77: 1 | AA77: 1 | AB77: 1 | AC77: 1 | AD77: 1 | AE77: 1 | AF77: 1 | AG77: =IF(ISERROR(K77*L77),0,IF(K77<1,0,L77)) -> 0 | AH77: =IF(AG77,J77/K77,0) -> 0
A78: 4.1.3 | B78: Secondary Containment - Chemical Resistant Coating | C78: =IF(OR(include_sec_cont=0,HCl_tanks=0),0,acid_st_coating_gal) -> 0 | D78: gal | E78: NA | G78: NA | I78: =IF(C78=0,"NA",VLOOKUP(0,conc_coating_cost_cl,3)) -> NA | J78: =IF(C78=0,"--",IF(I78="contact vendor","--",C78*I78)) -> -- | K78: =IF(C78=0,"NA",VLOOKUP(0,conc_coating_cost_cl,IF(ss_cat="large",4,5))) -> NA | M78: =$B$73&" - "&$B$74&" - "&B78 -> Chemical Storage - Acid Storage Tanks - Secondary Containment - Chemical Resistant Coating | N78: 1 | O78: 1 | P78: 1 | Q78: 1 | R78: 1 | S78: 1 | T78: 1 | U78: 1 | V78: 1 | W78: 0 | X78: 1 | Y78: 1 | Z78: 1 | AA78: 1 | AB78: 1 | AC78: 1 | AD78: 1 | AE78: 1 | AF78: 1 | AG78: 0 | AH78: 0
A79: 4.2 | B79: Acid Day Tanks | AG79: 0 | AH79: 0
A80: 4.2.1 | B80: Plastic/XLPE | C80: =day_tanks_acid -> 0 | D80: units | E80: =IF(C80=0,"NA",day_tank_vol_acid) -> NA | F80: =IF(C80=0,"","gal") ->  | G80: =IF(C80=0,"NA",IF(curve=1,day_tank_vol_acid,VLOOKUP(day_tank_vol_acid,pl_cst_cost_cl,2))) -> NA | H80: =IF(C80=0,"","gal") ->  | I80: =IF(C80=0,"NA",IF(curve=1,pl_day_eq_hcl,VLOOKUP(day_tank_vol_acid,pl_cst_cost_cl,3))) -> NA | J80: =IF(C80=0,"--",IF(I80="contact vendor","--",C80*I80)) -> -- | K80: =IF(C80=0,"NA",VLOOKUP(day_tank_vol_acid,pl_cst_cost_cl,IF(ss_cat="large",4,5))) -> NA | M80: =$B$73&" - "&$B$79&" - "&B80 -> Chemical Storage - Acid Day Tanks - Plastic/XLPE | N80: =IF(retrofit=1,$W80*X80,IF(ISBLANK(X80),"",X80)) -> 1 | O80: =IF(retrofit=1,$W80*Y80,IF(ISBLANK(Y80),"",Y80)) -> 2 | P80: =IF(retrofit=1,$W80*Z80,IF(ISBLANK(Z80),"",Z80)) -> 2 | Q80: =IF(retrofit=1,$W80*AA80,IF(ISBLANK(AA80),"",AA80)) -> 1 | R80: =IF(retrofit=1,$W80*AB80,IF(ISBLANK(AB80),"",AB80)) -> 2 | S80: =IF(retrofit=1,$W80*AC80,IF(ISBLANK(AC80),"",AC80)) -> 2 | T80: =IF(retrofit=1,$W80*AD80,IF(ISBLANK(AD80),"",AD80)) -> 1 | U80: =IF(retrofit=1,$W80*AE80,IF(ISBLANK(AE80),"",AE80)) -> 2 | V80: =IF(retrofit=1,$W80*AF80,IF(ISBLANK(AF80),"",AF80)) -> 2 | W80: 0 | X80: 1 | Y80: 2 | Z80: 2 | AA80: 1 | AB80: 2 | AC80: 2 | AD80: 1 | AE80: 2 | AF80: 2 | AG80: 0 | AH80: 0
A81: 4.2.1 | B81: Fiberglass | C81: =day_tanks_acid -> 0 | D81: units | E81: =IF(C81=0,"NA",day_tank_vol_acid) -> NA | F81: =IF(C81=0,"","gal") ->  | G81: =IF(C81=0,"NA",IF(curve=1,day_tank_vol_acid,VLOOKUP(day_tank_vol_acid,fg_cst_cost_cl,2))) -> NA | H81: =IF(C81=0,"","gal") ->  | I81: =IF(C81=0,"NA",IF(curve=1,fg_day_eq_hcl,VLOOKUP(day_tank_vol_acid,fg_cst_cost_cl,3))) -> NA | J81: =IF(C81=0,"--",IF(I81="contact vendor","--",C81*I81)) -> -- | K81: =IF(C81=0,"NA",VLOOKUP(day_tank_vol_acid,fg_cst_cost_cl,IF(ss_cat="large",4,5))) -> NA | M81: =$B$73&" - "&$B$79&" - "&B81 -> Chemical Storage - Acid Day Tanks - Fiberglass | N81: 2 | O81: 1 | P81: 1 | Q81: 2 | R81: 1 | S81: 1 | T81: 2 | U81: 1 | V81: 1 | W81: 0 | X81: 2 | Y81: 1 | Z81: 1 | AA81: 2 | AB81: 1 | AC81: 1 | AD81: 2 | AE81: 1 | AF81: 1 | AG81: 0 | AH81: 0
A82: 4.2.2 | B82: Secondary Containment - Concrete Curbing | C82: =IF(OR(include_sec_cont=0,day_tanks_acid=0),0,acid_dt_curb_concrete) -> 0 | D82: cy | E82: NA | G82: NA | I82: =IF(C82=0,"NA",VLOOKUP(0,conc_basin_cost_cl,3)) -> NA | J82: =IF(C82=0,"--",IF(I82="contact vendor","--",C82*I82)) -> -- | K82: =IF(C82=0,"NA",VLOOKUP(0,conc_basin_cost_cl,IF(ss_cat="large",4,5))) -> NA | M82: =$B$73&" - "&$B$79&" - "&B82 -> Chemical Storage - Acid Day Tanks - Secondary Containment - Concrete Curbing | N82: 1 | O82: 1 | P82: 1 | Q82: 1 | R82: 1 | S82: 1 | T82: 1 | U82: 1 | V82: 1 | W82: 0 | X82: 1 | Y82: 1 | Z82: 1 | AA82: 1 | AB82: 1 | AC82: 1 | AD82: 1 | AE82: 1 | AF82: 1 | AG82: 0 | AH82: 0
A83: 4.2.3 | B83: Secondary Containment - Chemical Resistant Coating | C83: =IF(OR(include_sec_cont=0,day_tanks_acid=0),0,acid_dt_coating_gal) -> 0 | D83: gal | E83: NA | G83: NA | I83: =IF(C83=0,"NA",VLOOKUP(0,conc_coating_cost_cl,3)) -> NA | J83: -- | K83: =IF(C83=0,"NA",VLOOKUP(0,conc_coating_cost_cl,IF(ss_cat="large",4,5))) -> NA | M83: Chemical Storage - Acid Day Tanks - Secondary Containment - Chemical Resistant Coating | N83: 1 | O83: 1 | P83: 1 | Q83: 1 | R83: 1 | S83: 1 | T83: 1 | U83: 1 | V83: 1 | W83: 0 | X83: 1 | Y83: 1 | Z83: 1 | AA83: 1 | AB83: 1 | AC83: 1 | AD83: 1 | AE83: 1 | AF83: 1 | AG83: 0 | AH83: 0
A84: 4.3 | B84: Mixers for Acid Storage Tanks | AG84: 0 | AH84: 0
A85: 4.3.1 | B85: Portable | C85: =cmixers_acid -> 0 | D85: units | E85: =IF(C85=0,"NA",cmix_size_acid) -> NA | F85: =IF(C85=0,"","hp") ->  | G85: =IF(C85=0,"NA",VLOOKUP(cmix_size_acid,port_mix_cost_cl,2)) -> NA | H85: =IF(C85=0,"","hp") ->  | I85: =IF(C85=0,"NA",VLOOKUP(cmix_size_acid,port_mix_cost_cl,3)) -> NA | J85: =IF(C85=0,"--",IF(I85="contact vendor","--",C85*I85)) -> -- | K85: =IF(C85=0,"NA",VLOOKUP(cmix_size_acid,port_mix_cost_cl,IF(ss_cat="large",4,5))) -> NA | M85: =$B$73&" - "&$B$84&" - "&B85 -> Chemical Storage - Mixers for Acid Storage Tanks - Portable | N85: =IF(retrofit=1,$W85*X85,IF(ISBLANK(X85),"",X85)) -> 3 | O85: 3 | P85: 3 | Q85: 3 | R85: 3 | S85: 3 | T85: 3 | U85: 3 | V85: 3 | W85: 0 | X85: 3 | Y85: 3 | Z85: 3 | AA85: 3 | AB85: 3 | AC85: 3 | AD85: 3 | AE85: 3 | AF85: 3 | AG85: 0 | AH85: 0
A86: 4.3.1 | B86: Mounted | C86: =cmixers_acid -> 0 | D86: units | E86: =IF(C86=0,"NA",cmix_size_acid) -> NA | F86: =IF(C86=0,"","hp") ->  | G86: =IF(C86=0,"NA",IF(curve=1,cmix_size_acid,VLOOKUP(cmix_size_acid,mount_mix_cost_cl,2))) -> NA | H86: =IF(C86=0,"","hp") ->  | I86: =IF(C86=0,"NA",IF(curve=1,cmount_mix_eq_hcl,VLOOKUP(cmix_size_acid,mount_mix_cost_cl,3))) -> NA | J86: =IF(C86=0,"--",IF(I86="contact vendor","--",C86*I86)) -> -- | K86: =IF(C86=0,"NA",VLOOKUP(cmix_size_acid,mount_mix_cost_cl,IF(ss_cat="large",4,5))) -> NA | M86: =$B$73&" - "&$B$84&" - "&B86 -> Chemical Storage - Mixers for Acid Storage Tanks - Mounted | N86: 1 | O86: 1 | P86: 1 | Q86: 1 | R86: 1 | S86: 1 | T86: 1 | U86: 1 | V86: 1 | W86: 0 | X86: 1 | Y86: 1 | Z86: 1 | AA86: 1 | AB86: 1 | AC86: 1 | AD86: 1 | AE86: 1 | AF86: 1 | AG86: 0 | AH86: 0
A87: 4.3.1 | B87: Impeller | C87: =cmixers_acid -> 0 | D87: units | E87: =IF(C87=0,"NA",cmix_size_acid) -> NA | F87: =IF(C87=0,"","hp") ->  | G87: =IF(C87=0,"NA",IF(curve=1,cmix_size_acid,VLOOKUP(cmix_size_acid,imp_mix_cost_cl,2))) -> NA | H87: =IF(C87=0,"","hp") ->  | I87: =IF(C87=0,"NA",IF(curve=1,cimp_mix_eq_hcl,VLOOKUP(cmix_size_acid,imp_mix_cost_cl,3))) -> NA | J87: =IF(C87=0,"--",IF(I87="contact vendor","--",C87*I87)) -> -- | K87: =IF(C87=0,"NA",VLOOKUP(cmix_size_acid,imp_mix_cost_cl,IF(ss_cat="large",4,5))) -> NA | M87: =$B$73&" - "&$B$84&" - "&B87 -> Chemical Storage - Mixers for Acid Storage Tanks - Impeller | N87: 2 | O87: 2 | P87: 2 | Q87: 2 | R87: 2 | S87: 2 | T87: 2 | U87: 2 | V87: 2 | W87: 0 | X87: 2 | Y87: 2 | Z87: 2 | AA87: 2 | AB87: 2 | AC87: 2 | AD87: 2 | AE87: 2 | AF87: 2 | AG87: 0 | AH87: 0
A88: 4.4 | B88: Mixers for Acid Day Tanks | AG88: 0 | AH88: 0
A89: 4.4.1 | B89: Portable | C89: =dmixers_acid -> 0 | D89: units | E89: =IF(C89=0,"NA",dmix_size_acid) -> NA | F89: =IF(C89=0,"","hp") ->  | G89: =IF(C89=0,"NA",VLOOKUP(dmix_size_acid,port_mix_cost_cl,2)) -> NA | H89: =IF(C89=0,"","hp") ->  | I89: =IF(C89=0,"NA",VLOOKUP(dmix_size_acid,port_mix_cost_cl,3)) -> NA | J89: =IF(C89=0,"--",IF(I89="contact vendor","--",C89*I89)) -> -- | K89: =IF(C89=0,"NA",VLOOKUP(dmix_size_acid,port_mix_cost_cl,IF(ss_cat="large",4,5))) -> NA | M89: =$B$73&" - "&$B$88&" - "&B89 -> Chemical Storage - Mixers for Acid Day Tanks - Portable | N89: =IF(retrofit=1,$W89*X89,IF(ISBLANK(X89),"",X89)) -> 3 | O89: 3 | P89: 3 | Q89: 3 | R89: 3 | S89: 3 | T89: 3 | U89: 3 | V89: 3 | W89: 0 | X89: 3 | Y89: 3 | Z89: 3 | AA89: 3 | AB89: 3 | AC89: 3 | AD89: 3 | AE89: 3 | AF89: 3 | AG89: 0 | AH89: 0
A90: 4.4.1 | B90: Mounted | C90: =dmixers_acid -> 0 | D90: units | E90: =IF(C90=0,"NA",dmix_size_acid) -> NA | F90: =IF(C90=0,"","hp") ->  | G90: =IF(C90=0,"NA",IF(curve=1,dmix_size_acid,VLOOKUP(dmix_size_acid,mount_mix_cost_cl,2))) -> NA | H90: =IF(C90=0,"","hp") ->  | I90: =IF(C90=0,"NA",IF(curve=1,dmount_mix_eq_hcl,VLOOKUP(dmix_size_acid,mount_mix_cost_cl,3))) -> NA | J90: =IF(C90=0,"--",IF(I90="contact vendor","--",C90*I90)) -> -- | K90: =IF(C90=0,"NA",VLOOKUP(dmix_size_acid,mount_mix_cost_cl,IF(ss_cat="large",4,5))) -> NA | M90: =$B$73&" - "&$B$88&" - "&B90 -> Chemical Storage - Mixers for Acid Day Tanks - Mounted | N90: 1 | O90: 1 | P90: 1 | Q90: 1 | R90: 1 | S90: 1 | T90: 1 | U90: 1 | V90: 1 | W90: 0 | X90: 1 | Y90: 1 | Z90: 1 | AA90: 1 | AB90: 1 | AC90: 1 | AD90: 1 | AE90: 1 | AF90: 1 | AG90: 0 | AH90: 0
A91: 4.4.1 | B91: Impeller | C91: =dmixers_acid -> 0 | D91: units | E91: =IF(C91=0,"NA",dmix_size_acid) -> NA | F91: =IF(C91=0,"","hp") ->  | G91: =IF(C91=0,"NA",IF(curve=1,dmix_size_acid,VLOOKUP(dmix_size_acid,imp_mix_cost_cl,2))) -> NA | H91: =IF(C91=0,"","hp") ->  | I91: =IF(C91=0,"NA",IF(curve=1,dimp_mix_eq_hcl,VLOOKUP(dmix_size_acid,imp_mix_cost_cl,3))) -> NA | J91: =IF(C91=0,"--",IF(I91="contact vendor","--",C91*I91)) -> -- | K91: =IF(C91=0,"NA",VLOOKUP(dmix_size_acid,imp_mix_cost_cl,IF(ss_cat="large",4,5))) -> NA | M91: =$B$73&" - "&$B$88&" - "&B91 -> Chemical Storage - Mixers for Acid Day Tanks - Impeller | N91: 2 | O91: 2 | P91: 2 | Q91: 2 | R91: 2 | S91: 2 | T91: 2 | U91: 2 | V91: 2 | W91: 0 | X91: 2 | Y91: 2 | Z91: 2 | AA91: 2 | AB91: 2 | AC91: 2 | AD91: 2 | AE91: 2 | AF91: 2 | AG91: 0 | AH91: 0
A92: 4.5 | B92: Sodium Hydroxide Storage Tanks | AG92: 0 | AH92: 0
A93: 4.5.1 | B93: Plastic/XLPE | C93: =NaOH_tanks -> 0 | D93: units | E93: =IF(C93=0,"NA",NaOH_tank_vol) -> NA | F93: =IF(C93=0,"","gal") ->  | G93: =IF(C93=0,"NA",IF(curve=1,NaOH_tank_vol,VLOOKUP(NaOH_tank_vol,pl_cst_cost_cl,2))) -> NA | H93: =IF(C93=0,"","gal") ->  | I93: =IF(C93=0,"NA",IF(curve=1,pl_cst_eq_naoh,VLOOKUP(NaOH_tank_vol,pl_cst_cost_cl,3))) -> NA | J93: =IF(C93=0,"--",IF(I93="contact vendor","--",C93*I93)) -> -- | K93: =IF(C93=0,"NA",VLOOKUP(NaOH_tank_vol,pl_cst_cost_cl,IF(ss_cat="large",4,5))) -> NA | M93: =$B$73&" - "&$B$92&" - "&B93 -> Chemical Storage - Sodium Hydroxide Storage Tanks - Plastic/XLPE | N93: =IF(retrofit=1,$W93*X93,IF(ISBLANK(X93),"",X93)) -> 1 | O93: 2 | P93: 3 | Q93: 1 | R93: 2 | S93: 3 | T93: 1 | U93: 2 | V93: 3 | W93: 0 | X93: 1 | Y93: 2 | Z93: 3 | AA93: 1 | AB93: 2 | AC93: 3 | AD93: 1 | AE93: 2 | AF93: 3 | AG93: 0 | AH93: 0
A94: 4.5.1 | B94: Fiberglass | C94: =NaOH_tanks -> 0 | D94: units | E94: =IF(C94=0,"NA",NaOH_tank_vol) -> NA | F94: =IF(C94=0,"","gal") ->  | G94: =IF(C94=0,"NA",IF(curve=1,NaOH_tank_vol,VLOOKUP(NaOH_tank_vol,fg_cst_cost_cl,2))) -> NA | H94: =IF(C94=0,"","gal") ->  | I94: =IF(C94=0,"NA",IF(curve=1,fg_cst_eq_naoh,VLOOKUP(NaOH_tank_vol,fg_cst_cost_cl,3))) -> NA | J94: -- | K94: =IF(C94=0,"NA",VLOOKUP(NaOH_tank_vol,fg_cst_cost_cl,IF(ss_cat="large",4,5))) -> NA | M94: =$B$73&" - "&$B$92&" - "&B94 -> Chemical Storage - Sodium Hydroxide Storage Tanks - Fiberglass | N94: 2 | O94: 1 | P94: 2 | Q94: 2 | R94: 1 | S94: 2 | T94: 2 | U94: 1 | V94: 2 | W94: 0 | X94: 2 | Y94: 1 | Z94: 2 | AA94: 2 | AB94: 1 | AC94: 2 | AD94: 2 | AE94: 1 | AF94: 2 | AG94: 0 | AH94: 0
A95: 4.5.1 | B95: Stainless Steel | C95: =NaOH_tanks -> 0 | D95: units | E95: =IF(C95=0,"NA",NaOH_tank_vol) -> NA | F95: =IF(C95=0,"","gal") ->  | G95: =IF(C95=0,"NA",IF(curve=1,NaOH_tank_vol,VLOOKUP(NaOH_tank_vol,ss_cst_cost_cl,2))) -> NA | H95: =IF(C95=0,"","gal") ->  | I95: =IF(C95=0,"NA",IF(curve=1,ss_cst_eq_naoh,VLOOKUP(NaOH_tank_vol,ss_cst_cost_cl,3))) -> NA | J95: -- | K95: =IF(C95=0,"NA",VLOOKUP(NaOH_tank_vol,ss_cst_cost_cl,IF(ss_cat="large",4,5))) -> NA | M95: =$B$73&" - "&$B$92&" - "&B95 -> Chemical Storage - Sodium Hydroxide Storage Tanks - Stainless Steel | N95: =IF(retrofit=1,$W95*X95,IF(ISBLANK(X95),"",X95)) -> 3 | O95: 3 | P95: 1 | Q95: 3 | R95: 3 | S95: 1 | T95: 3 | U95: 3 | V95: 1 | W95: 0 | X95: 3 | Y95: 3 | Z95: 1 | AA95: 3 | AB95: 3 | AC95: 1 | AD95: 3 | AE95: 3 | AF95: 1 | AG95: 0 | AH95: 0
A96: 4.5.2 | B96: Heat Tracing | C96: =NaOH_tanks -> 0 | D96: units | E96: =IF(C96=0,"NA",NaOH_tank_vol) -> NA | F96: =IF(C96=0,"","gal") ->  | G96: =IF(C96=0,"NA",IF(curve=1,NaOH_tank_vol,VLOOKUP(NaOH_tank_vol,cst_heat_cost_cl,2))) -> NA | H96: =IF(C96=0,"","gal") ->  | I96: =IF(C96=0,"NA",IF(curve=1,cst_heat_eq,VLOOKUP(NaOH_tank_vol,cst_heat_cost_cl,3))) -> NA | J96: -- | K96: =IF(C96=0,"NA",VLOOKUP(NaOH_tank_vol,cst_heat_cost_cl,IF(ss_cat="large",4,5))) -> NA | M96: =$B$73&" - "&$B$92&" - "&B96 -> Chemical Storage - Sodium Hydroxide Storage Tanks - Heat Tracing | N96: =IF(retrofit=1,$W96*X96,IF(ISBLANK(X96),"",X96)) -> 1 | O96: =IF(retrofit=1,$W96*Y96,IF(ISBLANK(Y96),"",Y96)) -> 1 | P96: =IF(retrofit=1,$W96*Z96,IF(ISBLANK(Z96),"",Z96)) -> 1 | Q96: =IF(retrofit=1,$W96*AA96,IF(ISBLANK(AA96),"",AA96)) -> 1 | R96: =IF(retrofit=1,$W96*AB96,IF(ISBLANK(AB96),"",AB96)) -> 1 | S96: =IF(retrofit=1,$W96*AC96,IF(ISBLANK(AC96),"",AC96)) -> 1 | T96: =IF(retrofit=1,$W96*AD96,IF(ISBLANK(AD96),"",AD96)) -> 1 | U96: =IF(retrofit=1,$W96*AE96,IF(ISBLANK(AE96),"",AE96)) -> 1 | V96: =IF(retrofit=1,$W96*AF96,IF(ISBLANK(AF96),"",AF96)) -> 1 | W96: 0 | X96: 1 | Y96: 1 | Z96: 1 | AA96: 1 | AB96: 1 | AC96: 1 | AD96: 1 | AE96: 1 | AF96: 1 | AG96: =IF(ISERROR(K96*L96),0,IF(K96<1,0,L96)) -> 0 | AH96: =IF(AG96,J96/K96,0) -> 0
A97: 4.5.3 | B97: Insulation | C97: =NaOH_tanks -> 0 | D97: units | E97: =IF(C97=0,"NA",NaOH_tank_vol) -> NA | F97: =IF(C97=0,"","gal") ->  | G97: =IF(C97=0,"NA",IF(curve=1,NaOH_tank_vol,VLOOKUP(NaOH_tank_vol,cst_insul_cost_cl,2))) -> NA | H97: =IF(C97=0,"","gal") ->  | I97: =IF(C97=0,"NA",IF(curve=1,cst_insul_eq,VLOOKUP(NaOH_tank_vol,cst_insul_cost_cl,3))) -> NA | J97: -- | K97: =IF(C97=0,"NA",VLOOKUP(NaOH_tank_vol,cst_insul_cost_cl,IF(ss_cat="large",4,5))) -> NA | M97: =$B$73&" - "&$B$92&" - "&B97 -> Chemical Storage - Sodium Hydroxide Storage Tanks - Insulation | N97: =IF(retrofit=1,$W97*X97,IF(ISBLANK(X97),"",X97)) -> 1 | O97: =IF(retrofit=1,$W97*Y97,IF(ISBLANK(Y97),"",Y97)) -> 1 | P97: =IF(retrofit=1,$W97*Z97,IF(ISBLANK(Z97),"",Z97)) -> 1 | Q97: =IF(retrofit=1,$W97*AA97,IF(ISBLANK(AA97),"",AA97)) -> 1 | R97: =IF(retrofit=1,$W97*AB97,IF(ISBLANK(AB97),"",AB97)) -> 1 | S97: =IF(retrofit=1,$W97*AC97,IF(ISBLANK(AC97),"",AC97)) -> 1 | T97: =IF(retrofit=1,$W97*AD97,IF(ISBLANK(AD97),"",AD97)) -> 1 | U97: =IF(retrofit=1,$W97*AE97,IF(ISBLANK(AE97),"",AE97)) -> 1 | V97: =IF(retrofit=1,$W97*AF97,IF(ISBLANK(AF97),"",AF97)) -> 1 | W97: 0 | X97: 1 | Y97: 1 | Z97: 1 | AA97: 1 | AB97: 1 | AC97: 1 | AD97: 1 | AE97: 1 | AF97: 1 | AG97: =IF(ISERROR(K97*L97),0,IF(K97<1,0,L97)) -> 0 | AH97: =IF(AG97,J97/K97,0) -> 0
A98: 4.5.4 | B98: Secondary Containment - Concrete Curbing | C98: =IF(OR(include_sec_cont=0,NaOH_tanks=0),0,NaOH_st_curb_concrete) -> 0 | D98: cy | E98: NA | G98: NA | I98: =IF(C98=0,"NA",VLOOKUP(0,conc_basin_cost_cl,3)) -> NA | J98: -- | K98: =IF(C98=0,"NA",VLOOKUP(0,conc_basin_cost_cl,IF(ss_cat="large",4,5))) -> NA | M98: =$B$73&" - "&$B$92&" - "&B98 -> Chemical Storage - Sodium Hydroxide Storage Tanks - Secondary Containment - Concrete Curbing | N98: 1 | O98: 1 | P98: 1 | Q98: 1 | R98: 1 | S98: 1 | T98: 1 | U98: 1 | V98: 1 | W98: 0 | X98: 1 | Y98: 1 | Z98: 1 | AA98: 1 | AB98: 1 | AC98: 1 | AD98: 1 | AE98: 1 | AF98: 1 | AG98: 0 | AH98: 0
A99: 4.5.5 | B99: Secondary Containment - Chemical Resistant Coating | C99: =IF(OR(include_sec_cont=0,NaOH_tanks=0),0,NaOH_st_coating_gal) -> 0 | D99: gal | E99: NA | G99: NA | I99: =IF(C99=0,"NA",VLOOKUP(0,conc_coating_cost_cl,3)) -> NA | J99: -- | K99: =IF(C99=0,"NA",VLOOKUP(0,conc_coating_cost_cl,IF(ss_cat="large",4,5))) -> NA | M99: Chemical Storage - Sodium Hydroxide Storage Tanks - Secondary Containment - Chemical Resistant Coating | N99: 1 | O99: 1 | P99: 1 | Q99: 1 | R99: 1 | S99: 1 | T99: 1 | U99: 1 | V99: 1 | W99: 0 | X99: 1 | Y99: 1 | Z99: 1 | AA99: 1 | AB99: 1 | AC99: 1 | AD99: 1 | AE99: 1 | AF99: 1 | AG99: 0 | AH99: 0
A100: 4.6 | B100: Sodium Hydroxide Day Tanks | AG100: =IF(ISERROR(K100*L100),0,IF(K100<1,0,L100)) -> 0 | AH100: =IF(AG100,J100/K100,0) -> 0
A101: 4.6.1 | B101: Plastic/XLPE | C101: =day_tanks_NaOH -> 0 | D101: units | E101: =IF(C101=0,"NA",day_tank_vol_NaOH) -> NA | F101: =IF(C101=0,"","gal") ->  | G101: =IF(C101=0,"NA",IF(curve=1,day_tank_vol_NaOH,VLOOKUP(day_tank_vol_NaOH,pl_cst_cost_cl,2))) -> NA | H101: =IF(C101=0,"","gal") ->  | I101: =IF(C101=0,"NA",IF(curve=1,pl_day_eq_naoh,VLOOKUP(day_tank_vol,pl_cst_cost_cl,3))) -> NA | J101: =IF(C101=0,"--",IF(I101="contact vendor","--",C101*I101)) -> -- | K101: =IF(C101=0,"NA",VLOOKUP(day_tank_vol_NaOH,pl_cst_cost_cl,IF(ss_cat="large",4,5))) -> NA | M101: =$B$73&" - "&$B$100&" - "&B101 -> Chemical Storage - Sodium Hydroxide Day Tanks - Plastic/XLPE | N101: =IF(retrofit=1,$W101*X101,IF(ISBLANK(X101),"",X101)) -> 1 | O101: 2 | P101: 3 | Q101: 1 | R101: 2 | S101: 3 | T101: 1 | U101: 2 | V101: 3 | W101: 0 | X101: 1 | Y101: 2 | Z101: 3 | AA101: 1 | AB101: 2 | AC101: 3 | AD101: 1 | AE101: 2 | AF101: 3 | AG101: =IF(ISERROR(K101*L101),0,IF(K101<1,0,L101)) -> 0 | AH101: =IF(AG101,J101/K101,0) -> 0
A102: 4.6.1 | B102: Fiberglass | C102: =day_tanks_NaOH -> 0 | D102: units | E102: =IF(C102=0,"NA",day_tank_vol_NaOH) -> NA | F102: =IF(C102=0,"","gal") ->  | G102: =IF(C102=0,"NA",IF(curve=1,day_tank_vol_NaOH,VLOOKUP(day_tank_vol_NaOH,fg_cst_cost_cl,2))) -> NA | H102: =IF(C102=0,"","gal") ->  | I102: =IF(C102=0,"NA",IF(curve=1,fg_day_eq_naoh,VLOOKUP(day_tank_vol,fg_cst_cost_cl,3))) -> NA | J102: =IF(C102=0,"--",IF(I102="contact vendor","--",C102*I102)) -> -- | K102: =IF(C102=0,"NA",VLOOKUP(day_tank_vol_NaOH,fg_cst_cost_cl,IF(ss_cat="large",4,5))) -> NA | M102: =$B$73&" - "&$B$100&" - "&B102 -> Chemical Storage - Sodium Hydroxide Day Tanks - Fiberglass | N102: 2 | O102: 1 | P102: 2 | Q102: 2 | R102: 1 | S102: 2 | T102: 2 | U102: 1 | V102: 2 | W102: 0 | X102: 2 | Y102: 1 | Z102: 2 | AA102: 2 | AB102: 1 | AC102: 2 | AD102: 2 | AE102: 1 | AF102: 2 | AG102: =IF(ISERROR(K102*L102),0,IF(K102<1,0,L102)) -> 0 | AH102: =IF(AG102,J102/K102,0) -> 0
A103: 4.6.1 | B103: Stainless Steel | C103: =day_tanks_NaOH -> 0 | D103: units | E103: =IF(C103=0,"NA",day_tank_vol_NaOH) -> NA | F103: =IF(C103=0,"","gal") ->  | G103: =IF(C103=0,"NA",IF(curve=1,day_tank_vol_NaOH,VLOOKUP(day_tank_vol_NaOH,ss_cst_cost_cl,2))) -> NA | H103: =IF(C103=0,"","gal") ->  | I103: =IF(C103=0,"NA",IF(curve=1,ss_day_eq_naoh,VLOOKUP(day_tank_vol,ss_cst_cost_cl,3))) -> NA | J103: =IF(C103=0,"--",IF(I103="contact vendor","--",C103*I103)) -> -- | K103: =IF(C103=0,"NA",VLOOKUP(day_tank_vol_NaOH,ss_cst_cost_cl,IF(ss_cat="large",4,5))) -> NA | M103: =$B$73&" - "&$B$100&" - "&B103 -> Chemical Storage - Sodium Hydroxide Day Tanks - Stainless Steel | N103: =IF(retrofit=1,$W103*X103,IF(ISBLANK(X103),"",X103)) -> 3 | O103: 3 | P103: 1 | Q103: 3 | R103: 3 | S103: 1 | T103: 3 | U103: 3 | V103: 1 | W103: 0 | X103: 3 | Y103: 3 | Z103: 1 | AA103: 3 | AB103: 3 | AC103: 1 | AD103: 3 | AE103: 3 | AF103: 1 | AG103: =IF(ISERROR(K103*L103),0,IF(K103<1,0,L103)) -> 0 | AH103: =IF(AG103,J103/K103,0) -> 0
A104: 4.6.2 | B104: Heat Tracing | C104: =day_tanks_NaOH -> 0 | D104: units | E104: =IF(C104=0,"NA",day_tank_vol_NaOH) -> NA | F104: =IF(C104=0,"","gal") ->  | G104: =IF(C104=0,"NA",IF(curve=1,day_tank_vol_NaOH,VLOOKUP(day_tank_vol_NaOH,cst_heat_cost_cl,2))) -> NA | H104: =IF(C104=0,"","gal") ->  | I104: =IF(C104=0,"NA",IF(curve=1,day_heat_eq,VLOOKUP(day_tank_vol,cst_heat_cost_cl,3))) -> NA | J104: =IF(C104=0,"--",IF(I104="contact vendor","--",C104*I104)) -> -- | K104: =IF(C104=0,"NA",VLOOKUP(day_tank_vol_NaOH,cst_heat_cost_cl,IF(ss_cat="large",4,5))) -> NA | M104: =$B$73&" - "&$B$100&" - "&B104 -> Chemical Storage - Sodium Hydroxide Day Tanks - Heat Tracing | N104: 1 | O104: 1 | P104: 1 | Q104: 1 | R104: 1 | S104: 1 | T104: 1 | U104: 1 | V104: 1 | W104: 0 | X104: 1 | Y104: 1 | Z104: 1 | AA104: 1 | AB104: 1 | AC104: 1 | AD104: 1 | AE104: 1 | AF104: 1 | AG104: =IF(ISERROR(K104*L104),0,IF(K104<1,0,L104)) -> 0 | AH104: =IF(AG104,J104/K104,0) -> 0
A105: 4.6.3 | B105: Insulation | C105: =day_tanks_NaOH -> 0 | D105: units | E105: =IF(C105=0,"NA",day_tank_vol_NaOH) -> NA | F105: =IF(C105=0,"","gal") ->  | G105: =IF(C105=0,"NA",IF(curve=1,day_tank_vol_NaOH,VLOOKUP(day_tank_vol_NaOH,cst_insul_cost_cl,2))) -> NA | H105: =IF(C105=0,"","gal") ->  | I105: =IF(C105=0,"NA",IF(curve=1,day_insul_eq,VLOOKUP(day_tank_vol,cst_insul_cost_cl,3))) -> NA | J105: =IF(C105=0,"--",IF(I105="contact vendor","--",C105*I105)) -> -- | K105: =IF(C105=0,"NA",VLOOKUP(day_tank_vol_NaOH,cst_insul_cost_cl,IF(ss_cat="large",4,5))) -> NA | M105: =$B$73&" - "&$B$100&" - "&B105 -> Chemical Storage - Sodium Hydroxide Day Tanks - Insulation | N105: 1 | O105: 1 | P105: 1 | Q105: 1 | R105: 1 | S105: 1 | T105: 1 | U105: 1 | V105: 1 | W105: 0 | X105: 1 | Y105: 1 | Z105: 1 | AA105: 1 | AB105: 1 | AC105: 1 | AD105: 1 | AE105: 1 | AF105: 1 | AG105: 0 | AH105: 0
A106: 4.6.4 | B106: Secondary Containment - Concrete Curbing | C106: =IF(OR(include_sec_cont=0,day_tanks_NaOH=0),0,NaOH_dt_curb_concrete) -> 0 | D106: cy | E106: NA | G106: NA | I106: =IF(C106=0,"NA",VLOOKUP(0,conc_basin_cost_cl,3)) -> NA | J106: =IF(C106=0,"--",IF(I106="contact vendor","--",C106*I106)) -> -- | K106: =IF(C106=0,"NA",VLOOKUP(0,conc_basin_cost_cl,IF(ss_cat="large",4,5))) -> NA | M106: =$B$73&" - "&$B$100&" - "&B106 -> Chemical Storage - Sodium Hydroxide Day Tanks - Secondary Containment - Concrete Curbing | N106: 1 | O106: 1 | P106: 1 | Q106: 1 | R106: 1 | S106: 1 | T106: 1 | U106: 1 | V106: 1 | W106: 0 | X106: 1 | Y106: 1 | Z106: 1 | AA106: 1 | AB106: 1 | AC106: 1 | AD106: 1 | AE106: 1 | AF106: 1 | AG106: 0 | AH106: 0
A107: 4.6.5 | B107: Secondary Containment - Chemical Resistant Coating | C107: =IF(OR(include_sec_cont=0,day_tanks_NaOH=0),0,NaOH_dt_coating_gal) -> 0 | D107: gal | E107: NA | G107: NA | I107: =IF(C107=0,"NA",VLOOKUP(0,conc_coating_cost_cl,3)) -> NA | J107: -- | K107: =IF(C107=0,"NA",VLOOKUP(0,conc_coating_cost_cl,IF(ss_cat="large",4,5))) -> NA | M107: Chemical Storage - Sodium Hydroxide Day Tanks - Secondary Containment - Chemical Resistant Coating | N107: 1 | O107: 1 | P107: 1 | Q107: 1 | R107: 1 | S107: 1 | T107: 1 | U107: 1 | V107: 1 | W107: 0 | X107: 1 | Y107: 1 | Z107: 1 | AA107: 1 | AB107: 1 | AC107: 1 | AD107: 1 | AE107: 1 | AF107: 1 | AG107: 0 | AH107: 0
A108: 4.7 | B108: Mixers for Sodium Hydroxide Storage Tanks | AG108: =IF(ISERROR(K108*L108),0,IF(K108<1,0,L108)) -> 0 | AH108: =IF(AG108,J108/K108,0) -> 0
A109: 4.7.1 | B109: Portable | C109: =cmixers_NaOH -> 0 | D109: units | E109: =IF(C109=0,"NA",cmix_size_NaOH) -> NA | F109: =IF(C109=0,"","hp") ->  | G109: =IF(C109=0,"NA",VLOOKUP(cmix_size_NaOH,port_mix_cost_cl,2)) -> NA | H109: =IF(C109=0,"","hp") ->  | I109: =IF(C109=0,"NA",VLOOKUP(cmix_size_NaOH,port_mix_cost_cl,3)) -> NA | J109: =IF(C109=0,"--",IF(I109="contact vendor","--",C109*I109)) -> -- | K109: =IF(C109=0,"NA",VLOOKUP(cmix_size_NaOH,port_mix_cost_cl,IF(ss_cat="large",4,5))) -> NA | M109: =$B$73&" - "&$B$108&" - "&B109 -> Chemical Storage - Mixers for Sodium Hydroxide Storage Tanks - Portable | N109: =IF(retrofit=1,$W109*X109,IF(ISBLANK(X109),"",X109)) -> 3 | O109: 3 | P109: 3 | Q109: 3 | R109: 3 | S109: 3 | T109: 3 | U109: 3 | V109: 3 | W109: 0 | X109: 3 | Y109: 3 | Z109: 3 | AA109: 3 | AB109: 3 | AC109: 3 | AD109: 3 | AE109: 3 | AF109: 3 | AG109: 0 | AH109: 0
A110: 4.7.1 | B110: Mounted | C110: =cmixers_NaOH -> 0 | D110: units | E110: =IF(C110=0,"NA",cmix_size_NaOH) -> NA | F110: =IF(C110=0,"","hp") ->  | G110: =IF(C110=0,"NA",IF(curve=1,cmix_size_NaOH,VLOOKUP(cmix_size_NaOH,mount_mix_cost_cl,2))) -> NA | H110: =IF(C110=0,"","hp") ->  | I110: =IF(C110=0,"NA",IF(curve=1,cmount_mix_eq_naoh,VLOOKUP(cmix_size_NaOH,mount_mix_cost_cl,3))) -> NA | J110: =IF(C110=0,"--",IF(I110="contact vendor","--",C110*I110)) -> -- | K110: =IF(C110=0,"NA",VLOOKUP(cmix_size_NaOH,mount_mix_cost_cl,IF(ss_cat="large",4,5))) -> NA | M110: =$B$73&" - "&$B$108&" - "&B110 -> Chemical Storage - Mixers for Sodium Hydroxide Storage Tanks - Mounted | N110: 1 | O110: 1 | P110: 1 | Q110: 1 | R110: 1 | S110: 1 | T110: 1 | U110: 1 | V110: 1 | W110: 0 | X110: 1 | Y110: 1 | Z110: 1 | AA110: 1 | AB110: 1 | AC110: 1 | AD110: 1 | AE110: 1 | AF110: 1 | AG110: 0 | AH110: 0
A111: 4.7.1 | B111: Impeller | C111: =cmixers_NaOH -> 0 | D111: units | E111: =IF(C111=0,"NA",cmix_size_NaOH) -> NA | F111: =IF(C111=0,"","hp") ->  | G111: =IF(C111=0,"NA",IF(curve=1,cmix_size_NaOH,VLOOKUP(cmix_size_NaOH,imp_mix_cost_cl,2))) -> NA | H111: =IF(C111=0,"","hp") ->  | I111: =IF(C111=0,"NA",IF(curve=1,cimp_mix_eq_naoh,VLOOKUP(cmix_size_NaOH,imp_mix_cost_cl,3))) -> NA | J111: =IF(C111=0,"--",IF(I111="contact vendor","--",C111*I111)) -> -- | K111: =IF(C111=0,"NA",VLOOKUP(cmix_size_NaOH,imp_mix_cost_cl,IF(ss_cat="large",4,5))) -> NA | M111: =$B$73&" - "&$B$108&" - "&B111 -> Chemical Storage - Mixers for Sodium Hydroxide Storage Tanks - Impeller | N111: 2 | O111: 2 | P111: 2 | Q111: 2 | R111: 2 | S111: 2 | T111: 2 | U111: 2 | V111: 2 | W111: 0 | X111: 2 | Y111: 2 | Z111: 2 | AA111: 2 | AB111: 2 | AC111: 2 | AD111: 2 | AE111: 2 | AF111: 2 | AG111: 0 | AH111: 0
A112: 4.8 | B112: Mixers for Sodium Hydroxide Day Tanks | AG112: 0 | AH112: 0
A113: 4.8.1 | B113: Portable | C113: =dmixers_NaOH -> 0 | D113: units | E113: =IF(C113=0,"NA",dmix_size_NaOH) -> NA | F113: =IF(C113=0,"","hp") ->  | G113: =IF(C113=0,"NA",VLOOKUP(dmix_size_NaOH,port_mix_cost_cl,2)) -> NA | H113: =IF(C113=0,"","hp") ->  | I113: =IF(C113=0,"NA",VLOOKUP(dmix_size_NaOH,port_mix_cost_cl,3)) -> NA | J113: =IF(C113=0,"--",IF(I113="contact vendor","--",C113*I113)) -> -- | K113: =IF(C113=0,"NA",VLOOKUP(dmix_size_NaOH,port_mix_cost_cl,IF(ss_cat="large",4,5))) -> NA | M113: =$B$73&" - "&$B$112&" - "&B113 -> Chemical Storage - Mixers for Sodium Hydroxide Day Tanks - Portable | N113: =IF(retrofit=1,$W113*X113,IF(ISBLANK(X113),"",X113)) -> 3 | O113: 3 | P113: 3 | Q113: 3 | R113: 3 | S113: 3 | T113: 3 | U113: 3 | V113: 3 | W113: 0 | X113: 3 | Y113: 3 | Z113: 3 | AA113: 3 | AB113: 3 | AC113: 3 | AD113: 3 | AE113: 3 | AF113: 3 | AG113: 0 | AH113: 0
A114: 4.8.1 | B114: Mounted | C114: =dmixers_NaOH -> 0 | D114: units | E114: =IF(C114=0,"NA",dmix_size_NaOH) -> NA | F114: =IF(C114=0,"","hp") ->  | G114: =IF(C114=0,"NA",IF(curve=1,dmix_size_NaOH,VLOOKUP(dmix_size_NaOH,mount_mix_cost_cl,2))) -> NA | H114: =IF(C114=0,"","hp") ->  | I114: =IF(C114=0,"NA",IF(curve=1,dmount_mix_eq_naoh,VLOOKUP(dmix_size_NaOH,mount_mix_cost_cl,3))) -> NA | J114: =IF(C114=0,"--",IF(I114="contact vendor","--",C114*I114)) -> -- | K114: =IF(C114=0,"NA",VLOOKUP(dmix_size_NaOH,mount_mix_cost_cl,IF(ss_cat="large",4,5))) -> NA | M114: =$B$73&" - "&$B$112&" - "&B114 -> Chemical Storage - Mixers for Sodium Hydroxide Day Tanks - Mounted | N114: 1 | O114: 1 | P114: 1 | Q114: 1 | R114: 1 | S114: 1 | T114: 1 | U114: 1 | V114: 1 | W114: 0 | X114: 1 | Y114: 1 | Z114: 1 | AA114: 1 | AB114: 1 | AC114: 1 | AD114: 1 | AE114: 1 | AF114: 1 | AG114: 0 | AH114: 0
A115: 4.8.1 | B115: Impeller | C115: =dmixers_NaOH -> 0 | D115: units | E115: =IF(C115=0,"NA",dmix_size_NaOH) -> NA | F115: =IF(C115=0,"","hp") ->  | G115: =IF(C115=0,"NA",IF(curve=1,dmix_size_NaOH,VLOOKUP(dmix_size_NaOH,imp_mix_cost_cl,2))) -> NA | H115: =IF(C115=0,"","hp") ->  | I115: =IF(C115=0,"NA",IF(curve=1,dimp_mix_eq_naoh,VLOOKUP(dmix_size_NaOH,imp_mix_cost_cl,3))) -> NA | J115: =IF(C115=0,"--",IF(I115="contact vendor","--",C115*I115)) -> -- | K115: =IF(C115=0,"NA",VLOOKUP(dmix_size_NaOH,imp_mix_cost_cl,IF(ss_cat="large",4,5))) -> NA | M115: =$B$73&" - "&$B$112&" - "&B115 -> Chemical Storage - Mixers for Sodium Hydroxide Day Tanks - Impeller | N115: 2 | O115: 2 | P115: 2 | Q115: 2 | R115: 2 | S115: 2 | T115: 2 | U115: 2 | V115: 2 | W115: 0 | X115: 2 | Y115: 2 | Z115: 2 | AA115: 2 | AB115: 2 | AC115: 2 | AD115: 2 | AE115: 2 | AF115: 2 | AG115: 0 | AH115: 0
A116: 4.9 | B116: Corrosion Control Chemical Storage Tanks | AG116: 0 | AH116: 0
A117: 4.9.1 | B117: Plastic/XLPE | C117: =IF(chem_type=1,0,cc_tanks) -> 1 | D117: units | E117: =IF(chem_type=1,"NA",cc_tank_vol) -> 10 | F117: =IF(chem_type=1,"","gal") -> gal | G117: =IF(chem_type=1,"NA",IF(curve=1,cc_tank_vol,VLOOKUP(cc_tank_vol,pl_cst_cost_cl,2))) -> 10 | H117: =IF(chem_type=1,"","gal") -> gal | I117: =IF(chem_type=1,"NA",IF(curve=1,pl_cst_eq,VLOOKUP(cc_tank_vol,pl_cst_cost_cl,3))) -> 722.1096398 | J117: =IF(C117=0,"--",IF(I117="contact vendor","--",C117*I117)) -> 722.1096398 | K117: =IF(chem_type=1,"NA",VLOOKUP(cc_tank_vol,pl_cst_cost_cl,IF(ss_cat="large",4,5))) -> 7 | L117: 1 | M117: =$B$73&" - "&$B$116&" - "&B117 -> Chemical Storage - Corrosion Control Chemical Storage Tanks - Plastic/XLPE | N117: =IF(retrofit=1,$W117*X117,IF(ISBLANK(X117),"",X117)) -> 1 | O117: 2 | P117: 3 | Q117: 1 | R117: 2 | S117: 3 | T117: 1 | U117: 2 | V117: 3 | W117: 0 | X117: =IF(chem_type=1,0,1) -> 1 | Y117: =IF(chem_type=1,0,2) -> 2 | Z117: 3 | AA117: =IF(chem_type=1,0,1) -> 1 | AB117: =IF(chem_type=1,0,2) -> 2 | AC117: 3 | AD117: =IF(chem_type=1,0,1) -> 1 | AE117: =IF(chem_type=1,0,2) -> 2 | AF117: 3 | AG117: 1 | AH117: 103.15852
A118: 4.9.1 | B118: Fiberglass | C118: =IF(chem_type=1,0,cc_tanks) -> 1 | D118: units | E118: =IF(chem_type=1,"NA",cc_tank_vol) -> 10 | F118: =IF(chem_type=1,"","gal") -> gal | G118: =IF(chem_type=1,"NA",IF(curve=1,cc_tank_vol,VLOOKUP(cc_tank_vol,fg_cst_cost_cl,2))) -> 10 | H118: =IF(chem_type=1,"","gal") -> gal | I118: =IF(chem_type=1,"NA",IF(curve=1,fg_cst_eq,VLOOKUP(cc_tank_vol,fg_cst_cost_cl,3))) -> 923.1488617 | J118: 923.1488617 | K118: =IF(chem_type=1,"NA",VLOOKUP(cc_tank_vol,fg_cst_cost_cl,IF(ss_cat="large",4,5))) -> 7 | L118: 0 | M118: =$B$73&" - "&$B$116&" - "&B118 -> Chemical Storage - Corrosion Control Chemical Storage Tanks - Fiberglass | N118: 2 | O118: 1 | P118: 2 | Q118: 2 | R118: 1 | S118: 2 | T118: 2 | U118: 1 | V118: 2 | W118: 0 | X118: =IF(chem_type=1,0,2) -> 2 | Y118: =IF(chem_type=1,0,1) -> 1 | Z118: 2 | AA118: =IF(chem_type=1,0,2) -> 2 | AB118: =IF(chem_type=1,0,1) -> 1 | AC118: 2 | AD118: =IF(chem_type=1,0,2) -> 2 | AE118: =IF(chem_type=1,0,1) -> 1 | AF118: 2 | AG118: 0 | AH118: 0
A119: 4.9.1 | B119: Stainless Steel | C119: =IF(chem_type=1,0,cc_tanks) -> 1 | D119: units | E119: =IF(chem_type=1,"NA",cc_tank_vol) -> 10 | F119: =IF(chem_type=1,"","gal") -> gal | G119: =IF(chem_type=1,"NA",IF(curve=1,cc_tank_vol,VLOOKUP(cc_tank_vol,ss_cst_cost_cl,2))) -> 10 | H119: =IF(chem_type=1,"","gal") -> gal | I119: =IF(chem_type=1,"NA",IF(curve=1,ss_cst_eq,VLOOKUP(cc_tank_vol,ss_cst_cost_cl,3))) -> 305.7487627 | J119: 305.7487627 | K119: =IF(chem_type=1,"NA",VLOOKUP(cc_tank_vol,ss_cst_cost_cl,IF(ss_cat="large",4,5))) -> 30 | L119: 0 | M119: =$B$73&" - "&$B$116&" - "&B119 -> Chemical Storage - Corrosion Control Chemical Storage Tanks - Stainless Steel | N119: =IF(retrofit=1,$W119*X119,IF(ISBLANK(X119),"",X119)) -> 3 | O119: 3 | P119: 1 | Q119: 3 | R119: 3 | S119: 1 | T119: 3 | U119: 3 | V119: 1 | W119: 1 | X119: 3 | Y119: 3 | Z119: 1 | AA119: 3 | AB119: 3 | AC119: 1 | AD119: 3 | AE119: 3 | AF119: 1 | AG119: 0 | AH119: 0
A120: 4.9.2 | B120: Secondary Containment - Concrete Curbing | C120: =IF(OR(include_sec_cont=0,cc_tanks=0),0,cc_st_curb_concrete) -> 1 | D120: cy | E120: NA | G120: NA | I120: =IF(C120=0,"NA",VLOOKUP(0,conc_basin_cost_cl,3)) -> 739.6055887 | J120: 739.6055887 | K120: =IF(C120=0,"NA",VLOOKUP(0,conc_basin_cost_cl,IF(ss_cat="large",4,5))) -> 37 | L120: 1 | M120: =$B$73&" - "&$B$116&" - "&B120 -> Chemical Storage - Corrosion Control Chemical Storage Tanks - Secondary Containment - Concrete Curbing | N120: 1 | O120: 1 | P120: 1 | Q120: 1 | R120: 1 | S120: 1 | T120: 1 | U120: 1 | V120: 1 | W120: 0 | X120: 1 | Y120: 1 | Z120: 1 | AA120: 1 | AB120: 1 | AC120: 1 | AD120: 1 | AE120: 1 | AF120: 1 | AG120: 1 | AH120: 19.98934024
A121: 4.9.3 | B121: Secondary Containment - Chemical Resistant Coating | C121: =IF(OR(include_sec_cont=0,cc_tanks=0),0,cc_st_coating_gal) -> 1 | D121: gal | E121: NA | G121: NA | I121: =IF(C121=0,"NA",VLOOKUP(0,conc_coating_cost_cl,3)) -> 389.13 | J121: 389.13 | K121: =IF(C121=0,"NA",VLOOKUP(0,conc_coating_cost_cl,IF(ss_cat="large",4,5))) -> 10 | L121: 1 | M121: Chemical Storage - Corrosion Control Chemical Storage Tanks - Secondary Containment - Chemical Resistant Coating | N121: 1 | O121: 1 | P121: 1 | Q121: 1 | R121: 1 | S121: 1 | T121: 1 | U121: 1 | V121: 1 | W121: 0 | X121: 1 | Y121: 1 | Z121: 1 | AA121: 1 | AB121: 1 | AC121: 1 | AD121: 1 | AE121: 1 | AF121: 1 | AG121: 1 | AH121: 38.913
A122: 4.10 | B122: Corrosion Control Chemical Day Tanks | AG122: 0 | AH122: 0
A123: 4.10.1 | B123: Plastic/XLPE | C123: =day_tanks_sh -> 0 | D123: units | E123: =IF(C123=0,"NA",day_tank_vol_sh) -> NA | F123: =IF(C123=0,"","gal") ->  | G123: =IF(C123=0,"NA",IF(curve=1,day_tank_vol_sh,VLOOKUP(day_tank_vol_sh,pl_cst_cost_cl,2))) -> NA | H123: =IF(C123=0,"","gal") ->  | I123: =IF(C123=0,"NA",IF(curve=1,pl_day_eq,VLOOKUP(day_tank_vol_sh,pl_cst_cost_cl,3))) -> NA | J123: =IF(C123=0,"--",IF(I123="contact vendor","--",C123*I123)) -> -- | K123: =IF(C123=0,"NA",VLOOKUP(day_tank_vol_sh,pl_cst_cost_cl,IF(ss_cat="large",4,5))) -> NA | M123: =$B$73&" - "&$B$122&" - "&B123 -> Chemical Storage - Corrosion Control Chemical Day Tanks - Plastic/XLPE | N123: =IF(retrofit=1,$W123*X123,IF(ISBLANK(X123),"",X123)) -> 1 | O123: 2 | P123: 3 | Q123: 1 | R123: 2 | S123: 3 | T123: 1 | U123: 2 | V123: 3 | W123: 0 | X123: 1 | Y123: 2 | Z123: 3 | AA123: 1 | AB123: 2 | AC123: 3 | AD123: 1 | AE123: 2 | AF123: 3 | AG123: 0 | AH123: 0
A124: 4.10.1 | B124: Fiberglass | C124: =day_tanks_sh -> 0 | D124: units | E124: =IF(C124=0,"NA",day_tank_vol_sh) -> NA | F124: =IF(C124=0,"","gal") ->  | G124: =IF(C124=0,"NA",IF(curve=1,day_tank_vol_sh,VLOOKUP(day_tank_vol_sh,fg_cst_cost_cl,2))) -> NA | H124: =IF(C124=0,"","gal") ->  | I124: =IF(C124=0,"NA",IF(curve=1,fg_day_eq,VLOOKUP(day_tank_vol_sh,fg_cst_cost_cl,3))) -> NA | J124: =IF(C124=0,"--",IF(I124="contact vendor","--",C124*I124)) -> -- | K124: =IF(C124=0,"NA",VLOOKUP(day_tank_vol_sh,fg_cst_cost_cl,IF(ss_cat="large",4,5))) -> NA | M124: =$B$73&" - "&$B$122&" - "&B124 -> Chemical Storage - Corrosion Control Chemical Day Tanks - Fiberglass | N124: 2 | O124: 1 | P124: 2 | Q124: 2 | R124: 1 | S124: 2 | T124: 2 | U124: 1 | V124: 2 | W124: 0 | X124: 2 | Y124: 1 | Z124: 2 | AA124: 2 | AB124: 1 | AC124: 2 | AD124: 2 | AE124: 1 | AF124: 2 | AG124: 0 | AH124: 0
A125: 4.10.1 | B125: Stainless Steel | C125: =day_tanks_sh -> 0 | D125: units | E125: =IF(C125=0,"NA",day_tank_vol_sh) -> NA | F125: =IF(C125=0,"","gal") ->  | G125: =IF(C125=0,"NA",IF(curve=1,day_tank_vol_sh,VLOOKUP(day_tank_vol_sh,ss_cst_cost_cl,2))) -> NA | H125: =IF(C125=0,"","gal") ->  | I125: =IF(C125=0,"NA",IF(curve=1,ss_day_eq,VLOOKUP(day_tank_vol_sh,ss_cst_cost_cl,3))) -> NA | J125: =IF(C125=0,"--",IF(I125="contact vendor","--",C125*I125)) -> -- | K125: =IF(C125=0,"NA",VLOOKUP(day_tank_vol_sh,ss_cst_cost_cl,IF(ss_cat="large",4,5))) -> NA | M125: Chemical Storage - Corrosion Control Chemical Day Tanks - Stainless Steel | N125: =IF(retrofit=1,$W125*X125,IF(ISBLANK(X125),"",X125)) -> 3 | O125: 3 | P125: 1 | Q125: 3 | R125: 3 | S125: 1 | T125: 3 | U125: 3 | V125: 1 | W125: 0 | X125: 3 | Y125: 3 | Z125: 1 | AA125: 3 | AB125: 3 | AC125: 1 | AD125: 3 | AE125: 3 | AF125: 1 | AG125: 0 | AH125: 0
A126: 4.10.2 | B126: Secondary Containment - Concrete Curbing | C126: =IF(OR(include_sec_cont=0,day_tanks_sh=0),0,cc_dt_curb_concrete) -> 0 | D126: cy | E126: NA | G126: NA | I126: =IF(C126=0,"NA",VLOOKUP(0,conc_basin_cost_cl,3)) -> NA | J126: =IF(C126=0,"--",IF(I126="contact vendor","--",C126*I126)) -> -- | K126: =IF(C126=0,"NA",VLOOKUP(0,conc_basin_cost_cl,IF(ss_cat="large",4,5))) -> NA | M126: Chemical Storage - Corrosion Control Chemical Day Tanks - Secondary Containment - Concrete Curbing | N126: 1 | O126: 1 | P126: 1 | Q126: 1 | R126: 1 | S126: 1 | T126: 1 | U126: 1 | V126: 1 | W126: 0 | X126: 1 | Y126: 1 | Z126: 1 | AA126: 1 | AB126: 1 | AC126: 1 | AD126: 1 | AE126: 1 | AF126: 1 | AG126: 0 | AH126: 0
A127: 4.10.3 | B127: Secondary Containment - Chemical Resistant Coating | C127: =IF(OR(include_sec_cont=0,day_tanks_sh=0),0,cc_dt_coating_gal) -> 0 | D127: gal | E127: NA | G127: NA | I127: =IF(C127=0,"NA",VLOOKUP(0,conc_coating_cost_cl,3)) -> NA | J127: -- | K127: =IF(C127=0,"NA",VLOOKUP(0,conc_coating_cost_cl,IF(ss_cat="large",4,5))) -> NA | M127: Chemical Storage - Corrosion Control Chemical Day Tanks - Secondary Containment - Chemical Resistant Coating | N127: 1 | O127: 1 | P127: 1 | Q127: 1 | R127: 1 | S127: 1 | T127: 1 | U127: 1 | V127: 1 | W127: 0 | X127: 1 | Y127: 1 | Z127: 1 | AA127: 1 | AB127: 1 | AC127: 1 | AD127: 1 | AE127: 1 | AF127: 1 | AG127: 0 | AH127: 0
A128: 4.11 | B128: Mixers for Corrosion Control Storage Tanks | AG128: 0 | AH128: 0
A129: 4.11.1 | B129: Portable | C129: =cmixers_sh -> 0 | D129: units | E129: =IF(C129=0,"NA",cmix_size_sh) -> NA | F129: =IF(C129=0,"","hp") ->  | G129: =IF(C129=0,"NA",VLOOKUP(cmix_size_sh,port_mix_cost_cl,2)) -> NA | H129: =IF(C129=0,"","hp") ->  | I129: =IF(C129=0,"NA",VLOOKUP(cmix_size_sh,port_mix_cost_cl,3)) -> NA | J129: =IF(C129=0,"--",IF(I129="contact vendor","--",C129*I129)) -> -- | K129: =IF(C129=0,"NA",VLOOKUP(cmix_size_sh,port_mix_cost_cl,IF(ss_cat="large",4,5))) -> NA | M129: =$B$73&" - "&$B$128&" - "&B129 -> Chemical Storage - Mixers for Corrosion Control Storage Tanks - Portable | N129: =IF(retrofit=1,$W129*X129,IF(ISBLANK(X129),"",X129)) -> 3 | O129: 3 | P129: 3 | Q129: 3 | R129: 3 | S129: 3 | T129: 3 | U129: 3 | V129: 3 | W129: 0 | X129: 3 | Y129: 3 | Z129: 3 | AA129: 3 | AB129: 3 | AC129: 3 | AD129: 3 | AE129: 3 | AF129: 3 | AG129: 0 | AH129: 0
A130: 4.11.1 | B130: Mounted | C130: =cmixers_sh -> 0 | D130: units | E130: =IF(C130=0,"NA",cmix_size_sh) -> NA | F130: =IF(C130=0,"","hp") ->  | G130: =IF(C130=0,"NA",IF(curve=1,cmix_size_sh,VLOOKUP(cmix_size_sh,mount_mix_cost_cl,2))) -> NA | H130: =IF(C130=0,"","hp") ->  | I130: =IF(C130=0,"NA",IF(curve=1,cmount_mix_eq,VLOOKUP(cmix_size_sh,mount_mix_cost_cl,3))) -> NA | J130: =IF(C130=0,"--",IF(I130="contact vendor","--",C130*I130)) -> -- | K130: =IF(C130=0,"NA",VLOOKUP(cmix_size_sh,mount_mix_cost_cl,IF(ss_cat="large",4,5))) -> NA | M130: =$B$73&" - "&$B$128&" - "&B130 -> Chemical Storage - Mixers for Corrosion Control Storage Tanks - Mounted | N130: 1 | O130: 1 | P130: 1 | Q130: 1 | R130: 1 | S130: 1 | T130: 1 | U130: 1 | V130: 1 | W130: 0 | X130: 1 | Y130: 1 | Z130: 1 | AA130: 1 | AB130: 1 | AC130: 1 | AD130: 1 | AE130: 1 | AF130: 1 | AG130: 0 | AH130: 0
A131: 4.11.1 | B131: Impeller | C131: =cmixers_sh -> 0 | D131: units | E131: =IF(C131=0,"NA",cmix_size_sh) -> NA | F131: =IF(C131=0,"","hp") ->  | G131: =IF(C131=0,"NA",IF(curve=1,cmix_size_sh,VLOOKUP(cmix_size_sh,imp_mix_cost_cl,2))) -> NA | H131: =IF(C131=0,"","hp") ->  | I131: =IF(C131=0,"NA",IF(curve=1,cimp_mix_eq,VLOOKUP(cmix_size_sh,imp_mix_cost_cl,3))) -> NA | J131: =IF(C131=0,"--",IF(I131="contact vendor","--",C131*I131)) -> -- | K131: =IF(C131=0,"NA",VLOOKUP(cmix_size_sh,imp_mix_cost_cl,IF(ss_cat="large",4,5))) -> NA | M131: =$B$73&" - "&$B$128&" - "&B131 -> Chemical Storage - Mixers for Corrosion Control Storage Tanks - Impeller | N131: 2 | O131: 2 | P131: 2 | Q131: 2 | R131: 2 | S131: 2 | T131: 2 | U131: 2 | V131: 2 | W131: 0 | X131: 2 | Y131: 2 | Z131: 2 | AA131: 2 | AB131: 2 | AC131: 2 | AD131: 2 | AE131: 2 | AF131: 2 | AG131: 0 | AH131: 0
A132: 4.12 | B132: Mixers for Corrosion Control Day Tanks | AG132: 0 | AH132: 0
A133: 4.12.1 | B133: Portable | C133: =dmixers_sh -> 0 | D133: units | E133: =IF(C133=0,"NA",dmix_size_sh) -> NA | F133: =IF(C133=0,"","hp") ->  | G133: =IF(C133=0,"NA",VLOOKUP(dmix_size_sh,port_mix_cost_cl,2)) -> NA | H133: =IF(C133=0,"","hp") ->  | I133: =IF(C133=0,"NA",VLOOKUP(dmix_size_sh,port_mix_cost_cl,3)) -> NA | J133: =IF(C133=0,"--",IF(I133="contact vendor","--",C133*I133)) -> -- | K133: =IF(C133=0,"NA",VLOOKUP(dmix_size_sh,port_mix_cost_cl,IF(ss_cat="large",4,5))) -> NA | M133: =$B$73&" - "&$B$132&" - "&B133 -> Chemical Storage - Mixers for Corrosion Control Day Tanks - Portable | N133: =IF(retrofit=1,$W133*X133,IF(ISBLANK(X133),"",X133)) -> 3 | O133: 3 | P133: 3 | Q133: 3 | R133: 3 | S133: 3 | T133: 3 | U133: 3 | V133: 3 | W133: 0 | X133: 3 | Y133: 3 | Z133: 3 | AA133: 3 | AB133: 3 | AC133: 3 | AD133: 3 | AE133: 3 | AF133: 3 | AG133: 0 | AH133: 0
A134: 4.12.1 | B134: Mounted | C134: =dmixers_sh -> 0 | D134: units | E134: =IF(C134=0,"NA",dmix_size_sh) -> NA | F134: =IF(C134=0,"","hp") ->  | G134: =IF(C134=0,"NA",IF(curve=1,dmix_size_sh,VLOOKUP(dmix_size_sh,mount_mix_cost_cl,2))) -> NA | H134: =IF(C134=0,"","hp") ->  | I134: =IF(C134=0,"NA",IF(curve=1,dmount_mix_eq,VLOOKUP(dmix_size_sh,mount_mix_cost_cl,3))) -> NA | J134: =IF(C134=0,"--",IF(I134="contact vendor","--",C134*I134)) -> -- | K134: =IF(C134=0,"NA",VLOOKUP(dmix_size_sh,mount_mix_cost_cl,IF(ss_cat="large",4,5))) -> NA | M134: =$B$73&" - "&$B$132&" - "&B134 -> Chemical Storage - Mixers for Corrosion Control Day Tanks - Mounted | N134: 1 | O134: 1 | P134: 1 | Q134: 1 | R134: 1 | S134: 1 | T134: 1 | U134: 1 | V134: 1 | W134: 0 | X134: 1 | Y134: 1 | Z134: 1 | AA134: 1 | AB134: 1 | AC134: 1 | AD134: 1 | AE134: 1 | AF134: 1 | AG134: 0 | AH134: 0
A135: 4.12.1 | B135: Impeller | C135: =dmixers_sh -> 0 | D135: units | E135: =IF(C135=0,"NA",dmix_size_sh) -> NA | F135: =IF(C135=0,"","hp") ->  | G135: =IF(C135=0,"NA",IF(curve=1,dmix_size_sh,VLOOKUP(dmix_size_sh,imp_mix_cost_cl,2))) -> NA | H135: =IF(C135=0,"","hp") ->  | I135: =IF(C135=0,"NA",IF(curve=1,dimp_mix_eq,VLOOKUP(dmix_size_sh,imp_mix_cost_cl,3))) -> NA | J135: =IF(C135=0,"--",IF(I135="contact vendor","--",C135*I135)) -> -- | K135: =IF(C135=0,"NA",VLOOKUP(dmix_size_sh,imp_mix_cost_cl,IF(ss_cat="large",4,5))) -> NA | M135: =$B$73&" - "&$B$132&" - "&B135 -> Chemical Storage - Mixers for Corrosion Control Day Tanks - Impeller | N135: 2 | O135: 2 | P135: 2 | Q135: 2 | R135: 2 | S135: 2 | T135: 2 | U135: 2 | V135: 2 | W135: 0 | X135: 2 | Y135: 2 | Z135: 2 | AA135: 2 | AB135: 2 | AC135: 2 | AD135: 2 | AE135: 2 | AF135: 2 | AG135: 0 | AH135: 0
A136: 5. | B136: Piping | AG136: 0 | AH136: 0
A137: 5.1 | B137: Process Piping | AG137: 0 | AH137: 0
A138: 5.1.1 | B138: Ductile Iron | C138: =proc_pipe_length -> 42.54290682 | D138: lf | E138: =proc_pipe_diam -> 1.5 | F138: in. diam | G138: =IF(curve=1,proc_pipe_diam,VLOOKUP(proc_pipe_diam,di_pipe_cost_cl,2)) -> 1.5 | H138: in. diam | I138: =IF(curve=1,di_pipe_eq_in,VLOOKUP(proc_pipe_diam,di_pipe_cost_cl,3)) -> contact vendor | J138: =IF(I138="contact vendor","--",C138*I138) -> -- | K138: =VLOOKUP(proc_pipe_diam,di_pipe_cost_cl,IF(ss_cat="large",4,5)) -> 35 | L138: 0 | M138: =$B$136&" - "&$B$137&" - "&B138 -> Piping - Process Piping - Ductile Iron | N138: =IF(retrofit=1,$W138*X138,IF(ISBLANK(X138),"",X138)) -> 3 | O138: =IF(retrofit=1,$W138*Y138,IF(ISBLANK(Y138),"",Y138)) -> 3 | P138: 3 | Q138: 3 | R138: 3 | S138: 3 | T138: 3 | U138: =IF(retrofit=1,$W138*AE138,IF(ISBLANK(AE138),"",AE138)) -> 3 | V138: 3 | W138: 0 | X138: 3 | Y138: 3 | Z138: 3 | AA138: 3 | AB138: 3 | AC138: 3 | AD138: 3 | AE138: 3 | AF138: 3 | AG138: 0 | AH138: 0
A139: 5.1.1 | B139: CPVC | C139: =proc_pipe_length -> 42.54290682 | D139: lf | E139: =proc_pipe_diam -> 1.5 | F139: in. diam | G139: =IF(curve=1,proc_pipe_diam,VLOOKUP(proc_pipe_diam,cpvc_pipe_cost_cl,2)) -> 1.5 | H139: in. diam | I139: =IF(curve=1,cpvc_pipe_eq_in,VLOOKUP(proc_pipe_diam,cpvc_pipe_cost_cl,3)) -> 7.013311728 | J139: =IF(I139="contact vendor","--",C139*I139) -> 298.3666673 | K139: =VLOOKUP(proc_pipe_diam,cpvc_pipe_cost_cl,IF(ss_cat="large",4,5)) -> 17 | L139: 0 | M139: =$B$136&" - "&$B$137&" - "&B139 -> Piping - Process Piping - CPVC | N139: 2 | O139: 1 | P139: 4 | Q139: 2 | R139: 1 | S139: 4 | T139: 2 | U139: 1 | V139: 4 | W139: 0 | X139: 2 | Y139: 1 | Z139: 4 | AA139: 2 | AB139: 1 | AC139: 4 | AD139: 2 | AE139: 1 | AF139: 4 | AG139: 0 | AH139: 0
A140: 5.1.1 | B140: PVC | C140: =proc_pipe_length -> 42.54290682 | D140: lf | E140: =proc_pipe_diam -> 1.5 | F140: in. diam | G140: =IF(curve=1,proc_pipe_diam,VLOOKUP(proc_pipe_diam,pvc_pipe_cost_cl,2)) -> 1.5 | H140: in. diam | I140: =IF(curve=1,pvc_pipe_eq_in,VLOOKUP(proc_pipe_diam,pvc_pipe_cost_cl,3)) -> 2.847676267 | J140: =IF(I140="contact vendor","--",C140*I140) -> 121.1484261 | K140: =VLOOKUP(proc_pipe_diam,pvc_pipe_cost_cl,IF(ss_cat="large",4,5)) -> 17 | L140: 1 | M140: =$B$136&" - "&$B$137&" - "&B140 -> Piping - Process Piping - PVC | N140: 1 | O140: 2 | P140: 5 | Q140: 1 | R140: 2 | S140: 5 | T140: 1 | U140: 2 | V140: 5 | W140: 0 | X140: 1 | Y140: 2 | Z140: 5 | AA140: 1 | AB140: 2 | AC140: 5 | AD140: 1 | AE140: 2 | AF140: 5 | AG140: =IF(ISERROR(K140*L140),0,IF(K140<1,0,L140)) -> 1 | AH140: =IF(AG140,J140/K140,0) -> 7.126378004
A141: 5.1.1 | B141: Stainless Steel | C141: =proc_pipe_length -> 42.54290682 | D141: lf | E141: =proc_pipe_diam -> 1.5 | F141: in. diam | G141: =IF(curve=1,proc_pipe_diam,VLOOKUP(proc_pipe_diam,ss_pipe_cost_cl,2)) -> 1.5 | H141: in. diam | I141: =IF(curve=1,ss_pipe_eq_in,VLOOKUP(proc_pipe_diam,ss_pipe_cost_cl,3)) -> 70.2752489 | J141: =IF(I141="contact vendor","--",C141*I141) -> 2989.713366 | K141: =VLOOKUP(proc_pipe_diam,ss_pipe_cost_cl,IF(ss_cat="large",4,5)) -> 40 | L141: 0 | M141: =$B$136&" - "&$B$137&" - "&B141 -> Piping - Process Piping - Stainless Steel | N141: 5 | O141: 5 | P141: 1 | Q141: 5 | R141: 5 | S141: 1 | T141: 5 | U141: 5 | V141: 1 | W141: 0 | X141: 5 | Y141: 5 | Z141: 1 | AA141: 5 | AB141: 5 | AC141: 1 | AD141: 5 | AE141: 5 | AF141: 1 | AG141: 0 | AH141: 0
A142: 5.1.1 | B142: Steel | C142: =proc_pipe_length -> 42.54290682 | D142: lf | E142: =proc_pipe_diam -> 1.5 | F142: in. diam | G142: =IF(curve=1,proc_pipe_diam,VLOOKUP(proc_pipe_diam,st_pipe_cost_cl,2)) -> 1.5 | H142: in. diam | I142: =IF(curve=1,st_pipe_eq_in,VLOOKUP(proc_pipe_diam,st_pipe_cost_cl,3)) -> 30.20656151 | J142: =IF(I142="contact vendor","--",C142*I142) -> 1285.074932 | K142: =VLOOKUP(proc_pipe_diam,st_pipe_cost_cl,IF(ss_cat="large",4,5)) -> 33 | L142: 0 | M142: =$B$136&" - "&$B$137&" - "&B142 -> Piping - Process Piping - Steel | N142: 4 | O142: 4 | P142: 2 | Q142: 4 | R142: 4 | S142: 2 | T142: 4 | U142: 4 | V142: 2 | W142: 0 | X142: 4 | Y142: 4 | Z142: 2 | AA142: 4 | AB142: 4 | AC142: 2 | AD142: 4 | AE142: 4 | AF142: 2 | AG142: 0 | AH142: 0
A143: 5.2 | B143: Influent and Treated Water Piping | AG143: 0 | AH143: 0
A144: 5.2.1 | B144: Ductile Iron | C144: =in_out_pipe_length -> 20 | D144: lf | E144: =in_out_pipe_diam -> 1.5 | F144: in. diam | G144: =IF(curve=1,in_out_pipe_diam,VLOOKUP(in_out_pipe_diam,di_pipe_cost_cl,2)) -> 1.5 | H144: in. diam | I144: =IF(curve=1,di_pipe_eq_head,VLOOKUP(in_out_pipe_diam,di_pipe_cost_cl,3)) -> contact vendor | J144: =IF(I144="contact vendor","--",C144*I144) -> -- | K144: =VLOOKUP(in_out_pipe_diam,di_pipe_cost_cl,IF(ss_cat="large",4,5)) -> 35 | L144: 0 | M144: =$B$136&" - "&$B$143&" - "&B144 -> Piping - Influent and Treated Water Piping - Ductile Iron | N144: =IF(retrofit=1,$W144*X144,IF(ISBLANK(X144),"",X144)) -> 3 | O144: 3 | P144: 3 | Q144: 3 | R144: 3 | S144: 3 | T144: 3 | U144: =IF(retrofit=1,$W144*AE144,IF(ISBLANK(AE144),"",AE144)) -> 3 | V144: 3 | W144: 0 | X144: 3 | Y144: 3 | Z144: 3 | AA144: 3 | AB144: 3 | AC144: 3 | AD144: 3 | AE144: 3 | AF144: 3 | AG144: 0 | AH144: 0
A145: 5.2.1 | B145: CPVC | C145: =in_out_pipe_length -> 20 | D145: lf | E145: =in_out_pipe_diam -> 1.5 | F145: in. diam | G145: =IF(curve=1,in_out_pipe_diam,VLOOKUP(in_out_pipe_diam,cpvc_pipe_cost_cl,2)) -> 1.5 | H145: in. diam | I145: =IF(curve=1,cpvc_pipe_eq_head,VLOOKUP(in_out_pipe_diam,cpvc_pipe_cost_cl,3)) -> 7.013311728 | J145: =IF(I145="contact vendor","--",C145*I145) -> 140.2662346 | K145: =VLOOKUP(in_out_pipe_diam,cpvc_pipe_cost_cl,IF(ss_cat="large",4,5)) -> 17 | L145: 0 | M145: =$B$136&" - "&$B$143&" - "&B145 -> Piping - Influent and Treated Water Piping - CPVC | N145: 2 | O145: 1 | P145: 4 | Q145: 2 | R145: 1 | S145: 4 | T145: 2 | U145: 1 | V145: 4 | W145: 0 | X145: 2 | Y145: 1 | Z145: 4 | AA145: 2 | AB145: 1 | AC145: 4 | AD145: 2 | AE145: 1 | AF145: 4 | AG145: 0 | AH145: 0
A146: 5.2.1 | B146: PVC | C146: =in_out_pipe_length -> 20 | D146: lf | E146: =in_out_pipe_diam -> 1.5 | F146: in. diam | G146: =IF(curve=1,in_out_pipe_diam,VLOOKUP(in_out_pipe_diam,pvc_pipe_cost_cl,2)) -> 1.5 | H146: in. diam | I146: =IF(curve=1,pvc_pipe_eq_head,VLOOKUP(in_out_pipe_diam,pvc_pipe_cost_cl,3)) -> 2.847676267 | J146: =IF(I146="contact vendor","--",C146*I146) -> 56.95352533 | K146: =VLOOKUP(in_out_pipe_diam,pvc_pipe_cost_cl,IF(ss_cat="large",4,5)) -> 17 | L146: 1 | M146: =$B$136&" - "&$B$143&" - "&B146 -> Piping - Influent and Treated Water Piping - PVC | N146: 1 | O146: 2 | P146: 5 | Q146: 1 | R146: 2 | S146: 5 | T146: 1 | U146: 2 | V146: 5 | W146: 0 | X146: 1 | Y146: 2 | Z146: 5 | AA146: 1 | AB146: 2 | AC146: 5 | AD146: 1 | AE146: 2 | AF146: 5 | AG146: 1 | AH146: 3.350207373
A147: 5.2.1 | B147: Stainless Steel | C147: =in_out_pipe_length -> 20 | D147: lf | E147: =in_out_pipe_diam -> 1.5 | F147: in. diam | G147: =IF(curve=1,in_out_pipe_diam,VLOOKUP(in_out_pipe_diam,ss_pipe_cost_cl,2)) -> 1.5 | H147: in. diam | I147: =IF(curve=1,ss_pipe_eq_head,VLOOKUP(in_out_pipe_diam,ss_pipe_cost_cl,3)) -> 70.2752489 | J147: =IF(I147="contact vendor","--",C147*I147) -> 1405.504978 | K147: =VLOOKUP(in_out_pipe_diam,ss_pipe_cost_cl,IF(ss_cat="large",4,5)) -> 40 | L147: 0 | M147: =$B$136&" - "&$B$143&" - "&B147 -> Piping - Influent and Treated Water Piping - Stainless Steel | N147: 5 | O147: 5 | P147: 1 | Q147: 5 | R147: 5 | S147: 1 | T147: 5 | U147: 5 | V147: 1 | W147: 0 | X147: 5 | Y147: 5 | Z147: 1 | AA147: 5 | AB147: 5 | AC147: 1 | AD147: 5 | AE147: 5 | AF147: 1 | AG147: 0 | AH147: 0
A148: 5.2.1 | B148: Steel | C148: =in_out_pipe_length -> 20 | D148: lf | E148: =in_out_pipe_diam -> 1.5 | F148: in. diam | G148: =IF(curve=1,in_out_pipe_diam,VLOOKUP(in_out_pipe_diam,st_pipe_cost_cl,2)) -> 1.5 | H148: in. diam | I148: =IF(curve=1,st_pipe_eq_head,VLOOKUP(in_out_pipe_diam,st_pipe_cost_cl,3)) -> 30.20656151 | J148: =IF(I148="contact vendor","--",C148*I148) -> 604.1312302 | K148: =VLOOKUP(in_out_pipe_diam,st_pipe_cost_cl,IF(ss_cat="large",4,5)) -> 33 | L148: 0 | M148: =$B$136&" - "&$B$143&" - "&B148 -> Piping - Influent and Treated Water Piping - Steel | N148: 4 | O148: 4 | P148: 2 | Q148: 4 | R148: 4 | S148: 2 | T148: 4 | U148: 4 | V148: 2 | W148: 0 | X148: 4 | Y148: 4 | Z148: 2 | AA148: 4 | AB148: 4 | AC148: 2 | AD148: 4 | AE148: 4 | AF148: 2 | AG148: 0 | AH148: 0
A149: 5.3 | B149: Air Piping | AG149: 0 | AH149: 0
A150: 5.3.1 | B150: CPVC | C150: =air_pipe_length -> 200 | D150: lf | E150: =air_pipe_diam -> 1.5 | F150: in. diam | G150: =IF(curve=1,air_pipe_diam,VLOOKUP(air_pipe_diam,cpvc_pipe_cost_cl,2)) -> 1.5 | H150: in. diam | I150: =IF(curve=1,cpvc_pipe_eq_air,VLOOKUP(air_pipe_diam,cpvc_pipe_cost_cl,3)) -> 7.013311728 | J150: =IF(I150="contact vendor","--",C150*I150) -> 1402.662346 | K150: =VLOOKUP(air_pipe_diam,cpvc_pipe_cost_cl,IF(ss_cat="large",4,5)) -> 17 | L150: 0 | M150: =$B$136&" - "&$B$149&" - "&B150 -> Piping - Air Piping - CPVC | N150: =IF(retrofit=1,$W150*X150,IF(ISBLANK(X150),"",X150)) -> 2 | O150: 1 | P150: 3 | Q150: 2 | R150: 1 | S150: 3 | T150: 2 | U150: =IF(retrofit=1,$W150*AE150,IF(ISBLANK(AE150),"",AE150)) -> 1 | V150: 3 | W150: 0 | X150: 2 | Y150: 1 | Z150: 3 | AA150: 2 | AB150: 1 | AC150: 3 | AD150: 2 | AE150: 1 | AF150: 3 | AG150: 0 | AH150: 0
A151: 5.3.1 | B151: PVC | C151: =air_pipe_length -> 200 | D151: lf | E151: =air_pipe_diam -> 1.5 | F151: in. diam | G151: =IF(curve=1,air_pipe_diam,VLOOKUP(air_pipe_diam,pvc_pipe_cost_cl,2)) -> 1.5 | H151: in. diam | I151: =IF(curve=1,pvc_pipe_eq_air,VLOOKUP(air_pipe_diam,pvc_pipe_cost_cl,3)) -> 2.847676267 | J151: =IF(I151="contact vendor","--",C151*I151) -> 569.5352533 | K151: =VLOOKUP(air_pipe_diam,pvc_pipe_cost_cl,IF(ss_cat="large",4,5)) -> 17 | L151: 1 | M151: =$B$136&" - "&$B$149&" - "&B151 -> Piping - Air Piping - PVC | N151: 1 | O151: 2 | P151: 4 | Q151: 1 | R151: 2 | S151: 4 | T151: 1 | U151: 2 | V151: 4 | W151: 0 | X151: 1 | Y151: 2 | Z151: 4 | AA151: 1 | AB151: 2 | AC151: 4 | AD151: 1 | AE151: 2 | AF151: 4 | AG151: 1 | AH151: 33.50207373
A152: 5.3.1 | B152: Stainless Steel | C152: =air_pipe_length -> 200 | D152: lf | E152: =air_pipe_diam -> 1.5 | F152: in. diam | G152: =IF(curve=1,air_pipe_diam,VLOOKUP(air_pipe_diam,ss_pipe_cost_cl,2)) -> 1.5 | H152: in. diam | I152: =IF(curve=1,ss_pipe_eq_air,VLOOKUP(air_pipe_diam,ss_pipe_cost_cl,3)) -> 70.2752489 | J152: =IF(I152="contact vendor","--",C152*I152) -> 14055.04978 | K152: =VLOOKUP(air_pipe_diam,ss_pipe_cost_cl,IF(ss_cat="large",4,5)) -> 40 | L152: 0 | M152: =$B$136&" - "&$B$149&" - "&B152 -> Piping - Air Piping - Stainless Steel | N152: 4 | O152: 4 | P152: 1 | Q152: 4 | R152: 4 | S152: 1 | T152: 4 | U152: 4 | V152: 1 | W152: 0 | X152: 4 | Y152: 4 | Z152: 1 | AA152: 4 | AB152: 4 | AC152: 1 | AD152: 4 | AE152: 4 | AF152: 1 | AG152: 0 | AH152: 0
A153: 5.3.1 | B153: Steel | C153: =air_pipe_length -> 200 | D153: lf | E153: =air_pipe_diam -> 1.5 | F153: in. diam | G153: =IF(curve=1,air_pipe_diam,VLOOKUP(air_pipe_diam,st_pipe_cost_cl,2)) -> 1.5 | H153: in. diam | I153: =IF(curve=1,st_pipe_eq_air,VLOOKUP(air_pipe_diam,st_pipe_cost_cl,3)) -> 30.20656151 | J153: =IF(I153="contact vendor","--",C153*I153) -> 6041.312302 | K153: =VLOOKUP(air_pipe_diam,st_pipe_cost_cl,IF(ss_cat="large",4,5)) -> 33 | L153: 0 | M153: =$B$136&" - "&$B$149&" - "&B153 -> Piping - Air Piping - Steel | N153: 3 | O153: 3 | P153: 2 | Q153: 3 | R153: 3 | S153: 2 | T153: 3 | U153: 3 | V153: 2 | W153: 0 | X153: 3 | Y153: 3 | Z153: 2 | AA153: 3 | AB153: 3 | AC153: 2 | AD153: 3 | AE153: 3 | AF153: 2 | AG153: 0 | AH153: 0
A154: 5.4 | B154: Acid Feed Piping | AG154: 0 | AH154: 0
A155: 5.4.1 | B155: CPVC | C155: =IF(acid_type=1,0,chem_pipe_length) -> 0 | D155: lf | E155: =IF(C155=0,"NA",HCl_pipe_diam) -> NA | F155: =IF(C155=0,"","in. diam") ->  | G155: =IF(C155=0,"NA",IF(curve=1,HCl_pipe_diam,VLOOKUP(HCl_pipe_diam,cpvc_pipe_cost_cl,2))) -> NA | H155: =IF(C155=0,"","in. diam") ->  | I155: =IF(C155=0,"NA",IF(curve=1,cpvc_pipe_eq_hcl,VLOOKUP(HCl_pipe_diam,cpvc_pipe_cost_cl,3))) -> NA | J155: =IF(C155=0,"--",IF(I155="contact vendor","--",C155*I155)) -> -- | K155: =IF(C155=0,"NA",VLOOKUP(HCl_pipe_diam,cpvc_pipe_cost_cl,IF(ss_cat="large",4,5))) -> NA | M155: =$B$136&" - "&$B$154&" - "&B155 -> Piping - Acid Feed Piping - CPVC | N155: =IF(retrofit=1,$W155*X155,IF(ISBLANK(X155),"",X155)) -> 2 | O155: 1 | P155: 2 | Q155: 2 | R155: 1 | S155: 2 | T155: 2 | U155: =IF(retrofit=1,$W155*AE155,IF(ISBLANK(AE155),"",AE155)) -> 1 | V155: 2 | W155: 0 | X155: 2 | Y155: 1 | Z155: 2 | AA155: 2 | AB155: 1 | AC155: 2 | AD155: 2 | AE155: 1 | AF155: 2 | AG155: 0 | AH155: 0
A156: 5.4.1 | B156: PVC | C156: =IF(acid_type=1,0,chem_pipe_length) -> 0 | D156: lf | E156: =IF(C156=0,"NA",HCl_pipe_diam) -> NA | F156: =IF(C156=0,"","in. diam") ->  | G156: =IF(C156=0,"NA",IF(curve=1,HCl_pipe_diam,VLOOKUP(HCl_pipe_diam,pvc_pipe_cost_cl,2))) -> NA | H156: =IF(C156=0,"","in. diam") ->  | I156: =IF(C156=0,"NA",IF(curve=1,pvc_pipe_eq_hcl,VLOOKUP(HCl_pipe_diam,pvc_pipe_cost_cl,3))) -> NA | J156: -- | K156: =IF(C156=0,"NA",VLOOKUP(HCl_pipe_diam,pvc_pipe_cost_cl,IF(ss_cat="large",4,5))) -> NA | M156: =$B$136&" - "&$B$154&" - "&B156 -> Piping - Acid Feed Piping - PVC | N156: 1 | O156: 2 | P156: 3 | Q156: 1 | R156: 2 | S156: 3 | T156: 1 | U156: 2 | V156: 3 | W156: 0 | X156: 1 | Y156: 2 | Z156: 3 | AA156: 1 | AB156: 2 | AC156: 3 | AD156: 1 | AE156: 2 | AF156: 3 | AG156: 0 | AH156: 0
A157: 5.4.1 | B157: Stainless Steel | C157: =IF(acid_type=1,0,chem_pipe_length) -> 0 | D157: lf | E157: =IF(C157=0,"NA",HCl_pipe_diam) -> NA | F157: =IF(C157=0,"","in. diam") ->  | G157: =IF(C157=0,"NA",IF(curve=1,HCl_pipe_diam,VLOOKUP(HCl_pipe_diam,ss_pipe_cost_cl,2))) -> NA | H157: =IF(C157=0,"","in. diam") ->  | I157: =IF(C157=0,"NA",IF(curve=1,ss_pipe_eq_hcl,VLOOKUP(HCl_pipe_diam,ss_pipe_cost_cl,3))) -> NA | J157: -- | K157: =IF(C157=0,"NA",VLOOKUP(HCl_pipe_diam,ss_pipe_cost_cl,IF(ss_cat="large",4,5))) -> NA | M157: =$B$136&" - "&$B$154&" - "&B157 -> Piping - Acid Feed Piping - Stainless Steel | N157: 3 | O157: 3 | P157: 1 | Q157: 3 | R157: 3 | S157: 1 | T157: 3 | U157: 3 | V157: 1 | W157: 0 | X157: 3 | Y157: 3 | Z157: 1 | AA157: 3 | AB157: 3 | AC157: 1 | AD157: 3 | AE157: 3 | AF157: 1 | AG157: 0 | AH157: 0
A158: 5.5 | B158: Sodium Hydroxide Feed Piping | AG158: 0 | AH158: 0
A159: 5.5.1 | B159: CPVC | C159: =IF(acid_type=1,0,chem_pipe_length) -> 0 | D159: lf | E159: =IF(C159=0,"NA",NaOH_pipe_diam) -> NA | F159: =IF(C159=0,"","in. diam") ->  | G159: =IF(C159=0,"NA",IF(curve=1,NaOH_pipe_diam,VLOOKUP(NaOH_pipe_diam,cpvc_pipe_cost_cl,2))) -> NA | H159: =IF(C159=0,"","in. diam") ->  | I159: =IF(C155=0,"NA",IF(curve=1,cpvc_pipe_eq_naoh,VLOOKUP(NaOH_pipe_diam,cpvc_pipe_cost_cl,3))) -> NA | J159: =IF(C159=0,"--",IF(I159="contact vendor","--",C159*I159)) -> -- | K159: =IF(C159=0,"NA",VLOOKUP(NaOH_pipe_diam,cpvc_pipe_cost_cl,IF(ss_cat="large",4,5))) -> NA | M159: =$B$136&" - "&$B$158&" - "&B159 -> Piping - Sodium Hydroxide Feed Piping - CPVC | N159: =IF(retrofit=1,$W159*X159,IF(ISBLANK(X159),"",X159)) -> 2 | O159: 1 | P159: 2 | Q159: 2 | R159: 1 | S159: 2 | T159: 2 | U159: =IF(retrofit=1,$W159*AE159,IF(ISBLANK(AE159),"",AE159)) -> 1 | V159: 2 | W159: 0 | X159: 2 | Y159: 1 | Z159: 2 | AA159: 2 | AB159: 1 | AC159: 2 | AD159: 2 | AE159: 1 | AF159: 2 | AG159: 0 | AH159: 0
A160: 5.5.1 | B160: PVC | C160: =IF(acid_type=1,0,chem_pipe_length) -> 0 | D160: lf | E160: =IF(C160=0,"NA",NaOH_pipe_diam) -> NA | F160: =IF(C160=0,"","in. diam") ->  | G160: =IF(C160=0,"NA",IF(curve=1,NaOH_pipe_diam,VLOOKUP(NaOH_pipe_diam,pvc_pipe_cost_cl,2))) -> NA | H160: =IF(C160=0,"","in. diam") ->  | I160: =IF(C155=0,"NA",IF(curve=1,pvc_pipe_eq_naoh,VLOOKUP(NaOH_pipe_diam,pvc_pipe_cost_cl,3))) -> NA | J160: -- | K160: =IF(C160=0,"NA",VLOOKUP(NaOH_pipe_diam,pvc_pipe_cost_cl,IF(ss_cat="large",4,5))) -> NA | M160: =$B$136&" - "&$B$158&" - "&B160 -> Piping - Sodium Hydroxide Feed Piping - PVC | N160: 1 | O160: 2 | P160: 3 | Q160: 1 | R160: 2 | S160: 3 | T160: 1 | U160: 2 | V160: 3 | W160: 0 | X160: 1 | Y160: 2 | Z160: 3 | AA160: 1 | AB160: 2 | AC160: 3 | AD160: 1 | AE160: 2 | AF160: 3 | AG160: 0 | AH160: 0
A161: 5.5.1 | B161: Stainless Steel | C161: =IF(acid_type=1,0,chem_pipe_length) -> 0 | D161: lf | E161: =IF(C161=0,"NA",NaOH_pipe_diam) -> NA | F161: =IF(C161=0,"","in. diam") ->  | G161: =IF(C161=0,"NA",IF(curve=1,NaOH_pipe_diam,VLOOKUP(NaOH_pipe_diam,ss_pipe_cost_cl,2))) -> NA | H161: =IF(C161=0,"","in. diam") ->  | I161: =IF(C155=0,"NA",IF(curve=1,ss_pipe_eq_naoh,VLOOKUP(NaOH_pipe_diam,ss_pipe_cost_cl,3))) -> NA | J161: -- | K161: =IF(C161=0,"NA",VLOOKUP(NaOH_pipe_diam,ss_pipe_cost_cl,IF(ss_cat="large",4,5))) -> NA | M161: =$B$136&" - "&$B$158&" - "&B161 -> Piping - Sodium Hydroxide Feed Piping - Stainless Steel | N161: 3 | O161: 3 | P161: 1 | Q161: 3 | R161: 3 | S161: 1 | T161: 3 | U161: 3 | V161: 1 | W161: 0 | X161: 3 | Y161: 3 | Z161: 1 | AA161: 3 | AB161: 3 | AC161: 1 | AD161: 3 | AE161: 3 | AF161: 1 | AG161: 0 | AH161: 0
A162: 5.6 | B162: Corrosion Control Chemical Feed Piping | AG162: 0 | AH162: 0
A163: 5.6.1 | B163: CPVC | C163: =IF(chem_type=1,0,chem_pipe_length) -> 10 | D163: lf | E163: =IF(chem_type=1,"NA",cc_pipe_diam) -> 0.5 | F163: =IF(chem_type=1,"","in. diam") -> in. diam | G163: =IF(chem_type=1,"NA",IF(curve=1,cc_pipe_diam,VLOOKUP(cc_pipe_diam,cpvc_pipe_cost_cl,2))) -> 0.5 | H163: =IF(chem_type=1,"","in. diam") -> in. diam | I163: =IF(chem_type=1,"NA",IF(curve=1,cpvc_pipe_eq_cc,VLOOKUP(cc_pipe_diam,cpvc_pipe_cost_cl,3))) -> 2.593344082 | J163: 25.93344082 | K163: =IF(chem_type=1,"NA",VLOOKUP(cc_pipe_diam,cpvc_pipe_cost_cl,IF(ss_cat="large",4,5))) -> 17 | L163: 0 | M163: =$B$136&" - "&$B$162&" - "&B163 -> Piping - Corrosion Control Chemical Feed Piping - CPVC | N163: =IF(retrofit=1,$W163*X163,IF(ISBLANK(X163),"",X163)) -> 2 | O163: 1 | P163: 2 | Q163: 2 | R163: 1 | S163: 2 | T163: 2 | U163: =IF(retrofit=1,$W163*AE163,IF(ISBLANK(AE163),"",AE163)) -> 1 | V163: 2 | W163: 0 | X163: =IF(chem_type=1,0,2) -> 2 | Y163: =IF(chem_type=1,0,1) -> 1 | Z163: =IF(chem_type=1,0,2) -> 2 | AA163: =IF(chem_type=1,0,2) -> 2 | AB163: =IF(chem_type=1,0,1) -> 1 | AC163: =IF(chem_type=1,0,2) -> 2 | AD163: =IF(chem_type=1,0,2) -> 2 | AE163: =IF(chem_type=1,0,1) -> 1 | AF163: =IF(chem_type=1,0,2) -> 2 | AG163: 0 | AH163: 0
A164: 5.6.1 | B164: PVC | C164: =IF(chem_type=1,0,chem_pipe_length) -> 10 | D164: lf | E164: =IF(chem_type=1,"NA",cc_pipe_diam) -> 0.5 | F164: =IF(chem_type=1,"","in. diam") -> in. diam | G164: =IF(chem_type=1,"NA",IF(curve=1,cc_pipe_diam,VLOOKUP(cc_pipe_diam,pvc_pipe_cost_cl,2))) -> 0.5 | H164: =IF(chem_type=1,"","in. diam") -> in. diam | I164: =IF(chem_type=1,"NA",IF(curve=1,pvc_pipe_eq_cc,VLOOKUP(cc_pipe_diam,pvc_pipe_cost_cl,3))) -> 1.852484879 | J164: 18.52484879 | K164: =IF(chem_type=1,"NA",VLOOKUP(cc_pipe_diam,pvc_pipe_cost_cl,IF(ss_cat="large",4,5))) -> 17 | L164: 1 | M164: =$B$136&" - "&$B$162&" - "&B164 -> Piping - Corrosion Control Chemical Feed Piping - PVC | N164: 1 | O164: 2 | P164: 3 | Q164: 1 | R164: 2 | S164: 3 | T164: 1 | U164: 2 | V164: 3 | W164: 0 | X164: =IF(chem_type=1,0,1) -> 1 | Y164: =IF(chem_type=1,0,2) -> 2 | Z164: =IF(chem_type=1,0,3) -> 3 | AA164: =IF(chem_type=1,0,1) -> 1 | AB164: =IF(chem_type=1,0,2) -> 2 | AC164: =IF(chem_type=1,0,3) -> 3 | AD164: =IF(chem_type=1,0,1) -> 1 | AE164: =IF(chem_type=1,0,2) -> 2 | AF164: =IF(chem_type=1,0,3) -> 3 | AG164: 1 | AH164: 1.089696987
A165: 5.6.1 | B165: Stainless Steel | C165: =IF(chem_type=1,0,chem_pipe_length) -> 10 | D165: lf | E165: =IF(chem_type=1,"NA",cc_pipe_diam) -> 0.5 | F165: =IF(chem_type=1,"","in. diam") -> in. diam | G165: =IF(chem_type=1,"NA",IF(curve=1,cc_pipe_diam,VLOOKUP(cc_pipe_diam,ss_pipe_cost_cl,2))) -> 0.5 | H165: =IF(chem_type=1,"","in. diam") -> in. diam | I165: =IF(chem_type=1,"NA",IF(curve=1,ss_pipe_eq_cc,VLOOKUP(cc_pipe_diam,ss_pipe_cost_cl,3))) -> 16.35807022 | J165: 163.5807022 | K165: =IF(chem_type=1,"NA",VLOOKUP(cc_pipe_diam,ss_pipe_cost_cl,IF(ss_cat="large",4,5))) -> 40 | L165: 0 | M165: =$B$136&" - "&$B$162&" - "&B165 -> Piping - Corrosion Control Chemical Feed Piping - Stainless Steel | N165: 3 | O165: 3 | P165: 1 | Q165: 3 | R165: 3 | S165: 1 | T165: 3 | U165: 3 | V165: 1 | W165: 0 | X165: =IF(chem_type=1,0,3) -> 3 | Y165: =IF(chem_type=1,0,3) -> 3 | Z165: =IF(chem_type=1,0,1) -> 1 | AA165: =IF(chem_type=1,0,3) -> 3 | AB165: =IF(chem_type=1,0,3) -> 3 | AC165: =IF(chem_type=1,0,1) -> 1 | AD165: =IF(chem_type=1,0,3) -> 3 | AE165: =IF(chem_type=1,0,3) -> 3 | AF165: =IF(chem_type=1,0,1) -> 1 | AG165: 0 | AH165: 0
A166: 5.7 | B166: Bypass Piping | AG166: 0 | AH166: 0
A167: 5.7.1 | B167: CPVC | C167: =bp_pipe_length -> 0 | D167: lf | E167: =IF(bp_pct>0,bp_pipe_diam,"NA") -> NA | F167: =IF(bp_pct=0," ","in. diam") ->  | G167: =IF(bp_pct=0,"NA",IF(curve=1,bp_pipe_diam,VLOOKUP(bp_pipe_diam,cpvc_pipe_cost_cl,2))) -> NA | H167: =IF(bp_pct=0," ","in. diam") ->  | I167: =IF(bp_pct=0,"NA",IF(curve=1,cpvc_pipe_eq_bp,VLOOKUP(bp_pipe_diam,cpvc_pipe_cost_cl,3))) -> NA | J167: -- | K167: =IF(C167=0,"NA",VLOOKUP(E167,cpvc_pipe_cost_cl,IF(ss_cat="large",4,5))) -> NA | M167: =$B$136&" - "&$B$166&" - "&B167 -> Piping - Bypass Piping - CPVC | N167: =IF(retrofit=1,$W167*X167,IF(ISBLANK(X167),"",X167)) -> 2 | O167: 1 | P167: 3 | Q167: 2 | R167: 1 | S167: 3 | T167: 2 | U167: =IF(retrofit=1,$W167*AE167,IF(ISBLANK(AE167),"",AE167)) -> 1 | V167: 3 | W167: 0 | X167: 2 | Y167: 1 | Z167: 3 | AA167: 2 | AB167: 1 | AC167: 3 | AD167: 2 | AE167: 1 | AF167: 3 | AG167: 0 | AH167: 0
A168: 5.7.1 | B168: PVC | C168: =bp_pipe_length -> 0 | D168: lf | E168: =IF(bp_pct>0,bp_pipe_diam,"NA") -> NA | F168: =IF(bp_pct=0," ","in. diam") ->  | G168: =IF(bp_pct=0,"NA",IF(curve=1,bp_pipe_diam,VLOOKUP(bp_pipe_diam,pvc_pipe_cost_cl,2))) -> NA | H168: =IF(bp_pct=0," ","in. diam") ->  | I168: =IF(bp_pct=0,"NA",IF(curve=1,pvc_pipe_eq_bp,VLOOKUP(bp_pipe_diam,pvc_pipe_cost_cl,3))) -> NA | J168: -- | K168: =IF(C168=0,"NA",VLOOKUP(E168,pvc_pipe_cost_cl,IF(ss_cat="large",4,5))) -> NA | M168: =$B$136&" - "&$B$166&" - "&B168 -> Piping - Bypass Piping - PVC | N168: 1 | O168: 2 | P168: 4 | Q168: 1 | R168: 2 | S168: 4 | T168: 1 | U168: 2 | V168: 4 | W168: 0 | X168: 1 | Y168: 2 | Z168: 4 | AA168: 1 | AB168: 2 | AC168: 4 | AD168: 1 | AE168: 2 | AF168: 4 | AG168: 0 | AH168: 0
A169: 5.7.1 | B169: Stainless Steel | C169: =bp_pipe_length -> 0 | D169: lf | E169: =IF(bp_pct>0,bp_pipe_diam,"NA") -> NA | F169: =IF(bp_pct=0," ","in. diam") ->  | G169: =IF(bp_pct=0,"NA",IF(curve=1,bp_pipe_diam,VLOOKUP(bp_pipe_diam,ss_pipe_cost_cl,2))) -> NA | H169: =IF(bp_pct=0," ","in. diam") ->  | I169: =IF(bp_pct=0,"NA",IF(curve=1,ss_pipe_eq_bp,VLOOKUP(bp_pipe_diam,ss_pipe_cost_cl,3))) -> NA | J169: -- | K169: =IF(C169=0,"NA",VLOOKUP(E169,ss_pipe_cost_cl,IF(ss_cat="large",4,5))) -> NA | M169: =$B$136&" - "&$B$166&" - "&B169 -> Piping - Bypass Piping - Stainless Steel | N169: 4 | O169: 4 | P169: 1 | Q169: 4 | R169: 4 | S169: 1 | T169: 4 | U169: 4 | V169: 1 | W169: 0 | X169: 4 | Y169: 4 | Z169: 1 | AA169: 4 | AB169: 4 | AC169: 1 | AD169: 4 | AE169: 4 | AF169: 1 | AG169: 0 | AH169: 0
A170: 5.7.1 | B170: Steel | C170: =bp_pipe_length -> 0 | D170: lf | E170: =IF(bp_pct>0,bp_pipe_diam,"NA") -> NA | F170: =IF(bp_pct=0," ","in. diam") ->  | G170: =IF(bp_pct=0,"NA",IF(curve=1,bp_pipe_diam,VLOOKUP(bp_pipe_diam,st_pipe_cost_cl,2))) -> NA | H170: =IF(bp_pct=0," ","in. diam") ->  | I170: =IF(bp_pct=0,"NA",IF(curve=1,st_pipe_eq_bp,VLOOKUP(bp_pipe_diam,st_pipe_cost_cl,3))) -> NA | J170: -- | K170: =IF(C170=0,"NA",VLOOKUP(E170,st_pipe_cost_cl,IF(ss_cat="large",4,5))) -> NA | M170: =$B$136&" - "&$B$166&" - "&B170 -> Piping - Bypass Piping - Steel | N170: 3 | O170: 3 | P170: 2 | Q170: 3 | R170: 3 | S170: 2 | T170: 3 | U170: 3 | V170: 2 | W170: 0 | X170: 3 | Y170: 3 | Z170: 2 | AA170: 3 | AB170: 3 | AC170: 2 | AD170: 3 | AE170: 3 | AF170: 2 | AG170: 0 | AH170: 0
A171: 6. | B171: Valves | AG171: 0 | AH171: 0
A172: 6.1 | B172: Motor/Air Operated (on/off) | AG172: =IF(ISERROR(K172*L172),0,IF(K172<1,0,L172)) -> 0 | AH172: =IF(AG172,J172/K172,0) -> 0
A173: 6.1.1 | B173: Process - Polypropylene/PVC | C173: =tot_proc_MOVs -> 6 | D173: units | E173: =IF(C173=0,"NA",tank_valve_size) -> 1.5 | F173: =IF(C173=0,"","in. diam") -> in. diam | G173: =IF(C173=0,"NA",IF(curve=1,tank_valve_size,VLOOKUP(tank_valve_size,pp_mov_cost_cl,2))) -> 1.5 | H173: =IF(C173=0,"","in. diam") -> in. diam | I173: =IF(C173=0,"NA",IF(curve=1,pp_mov_eq_in,VLOOKUP(tank_valve_size,pp_mov_cost_cl,3))) -> 787.0140404 | J173: =IF(C173=0,"--",IF(I173="contact vendor","--",C173*I173)) -> 4722.084242 | K173: =IF(C173=0,"NA",VLOOKUP(tank_valve_size,pp_mov_cost_cl,IF(ss_cat="large",4,5))) -> 20 | L173: 1 | M173: =$B$172&" "&$B$171&" - "&B173 -> Motor/Air Operated (on/off) Valves - Process - Polypropylene/PVC | N173: =IF(retrofit=1,$W173*X173,IF(ISBLANK(X173),"",X173)) -> 1 | O173: =IF(retrofit=1,$W173*Y173,IF(ISBLANK(Y173),"",Y173)) -> 2 | P173: =IF(retrofit=1,$W173*Z173,IF(ISBLANK(Z173),"",Z173)) -> 3 | Q173: =IF(retrofit=1,$W173*AA173,IF(ISBLANK(AA173),"",AA173)) -> 1 | R173: =IF(retrofit=1,$W173*AB173,IF(ISBLANK(AB173),"",AB173)) -> 2 | S173: =IF(retrofit=1,$W173*AC173,IF(ISBLANK(AC173),"",AC173)) -> 3 | T173: =IF(retrofit=1,$W173*AD173,IF(ISBLANK(AD173),"",AD173)) -> 1 | U173: =IF(retrofit=1,$W173*AE173,IF(ISBLANK(AE173),"",AE173)) -> 2 | V173: =IF(retrofit=1,$W173*AF173,IF(ISBLANK(AF173),"",AF173)) -> 3 | W173: 0 | X173: 1 | Y173: 2 | Z173: 3 | AA173: 1 | AB173: 2 | AC173: 3 | AD173: 1 | AE173: 2 | AF173: 3 | AG173: 1 | AH173: 236.1042121
A174: 6.1.1 | B174: Process - Stainless Steel | C174: =tot_proc_MOVs -> 6 | D174: units | E174: =IF(C174=0,"NA",tank_valve_size) -> 1.5 | F174: in. diam | G174: =IF(C174=0,"NA",IF(curve=1,tank_valve_size,VLOOKUP(tank_valve_size,ss_mov_cost_cl,2))) -> 1.5 | H174: =IF(C174=0,"","in. diam") -> in. diam | I174: =IF(C174=0,"NA",IF(curve=1,ss_mov_eq_in,VLOOKUP(tank_valve_size,ss_mov_cost_cl,3))) -> 1470.604046 | J174: 8823.624279 | K174: =IF(C174=0,"NA",VLOOKUP(tank_valve_size,ss_mov_cost_cl,IF(ss_cat="large",4,5))) -> 20 | L174: 0 | M174: =$B$172&" "&$B$171&" - "&B174 -> Motor/Air Operated (on/off) Valves - Process - Stainless Steel | N174: 3 | O174: 3 | P174: 1 | Q174: 3 | R174: 3 | S174: 1 | T174: 3 | U174: 3 | V174: 1 | W174: 0 | X174: 3 | Y174: 3 | Z174: 1 | AA174: 3 | AB174: 3 | AC174: 1 | AD174: 3 | AE174: 3 | AF174: 1 | AG174: 0 | AH174: 0
A175: 6.1.1 | B175: Process - Cast Iron | C175: =tot_proc_MOVs -> 6 | D175: units | E175: =IF(C175=0,"NA",tank_valve_size) -> 1.5 | F175: in. diam | G175: =IF(C175=0,"NA",IF(curve=1,tank_valve_size,VLOOKUP(tank_valve_size,ci_mov_cost_cl,2))) -> 1.5 | H175: in. diam | I175: =IF(C175=0,"NA",IF(curve=1,ci_mov_eq_in,VLOOKUP(tank_valve_size,ci_mov_cost_cl,3))) -> 791.8695572 | J175: 4751.217343 | K175: =IF(C175=0,"NA",VLOOKUP(tank_valve_size,ci_mov_cost_cl,IF(ss_cat="large",4,5))) -> 20 | L175: 0 | M175: Motor/Air Operated (on/off) Valves - Process - Cast Iron | N175: 2 | O175: 1 | P175: 2 | Q175: 2 | R175: 1 | S175: 2 | T175: 2 | U175: 1 | V175: 2 | W175: 0 | X175: 2 | Y175: 1 | Z175: 2 | AA175: 2 | AB175: 1 | AC175: 2 | AD175: 2 | AE175: 1 | AF175: 2 | AG175: 0 | AH175: 0
A176: 6.1.2 | B176: Air - Polypropylene/PVC | C176: =tot_air_MOVs -> 2 | D176: units | E176: =IF(C176=0,"NA",air_valve_size) -> 1.5 | F176: in. diam | G176: =IF(C176=0,"NA",IF(curve=1,air_valve_size,VLOOKUP(air_valve_size,pp_mov_cost_cl,2))) -> 1.5 | H176: in. diam | I176: =IF(C176=0,"NA",IF(curve=1,pp_mov_eq_air,VLOOKUP(air_valve_size,pp_mov_cost_cl,3))) -> 787.0140404 | J176: 1574.028081 | K176: =IF(C176=0,"NA",VLOOKUP(air_valve_size,pp_mov_cost_cl,IF(ss_cat="large",4,5))) -> 20 | L176: 1 | M176: Motor/Air Operated (on/off) Valves - Air - Polypropylene/PVC | N176: 1 | O176: 2 | P176: 3 | Q176: 1 | R176: 2 | S176: 3 | T176: 1 | U176: 2 | V176: 3 | W176: 0 | X176: 1 | Y176: 2 | Z176: 3 | AA176: 1 | AB176: 2 | AC176: 3 | AD176: 1 | AE176: 2 | AF176: 3 | AG176: 1 | AH176: 78.70140404
A177: 6.1.2 | B177: Air - Stainless Steel | C177: =tot_air_MOVs -> 2 | D177: units | E177: =IF(C177=0,"NA",air_valve_size) -> 1.5 | F177: in. diam | G177: =IF(C177=0,"NA",IF(curve=1,air_valve_size,VLOOKUP(air_valve_size,ss_mov_cost_cl,2))) -> 1.5 | H177: in. diam | I177: =IF(C177=0,"NA",IF(curve=1,ss_mov_eq_air,VLOOKUP(air_valve_size,ss_mov_cost_cl,3))) -> 1470.604046 | J177: 2941.208093 | K177: =IF(C177=0,"NA",VLOOKUP(air_valve_size,ss_mov_cost_cl,IF(ss_cat="large",4,5))) -> 20 | L177: 0 | M177: Motor/Air Operated (on/off) Valves - Air - Stainless Steel | N177: 3 | O177: 3 | P177: 1 | Q177: 3 | R177: 3 | S177: 1 | T177: 3 | U177: 3 | V177: 1 | W177: 0 | X177: 3 | Y177: 3 | Z177: 1 | AA177: 3 | AB177: 3 | AC177: 1 | AD177: 3 | AE177: 3 | AF177: 1 | AG177: 0 | AH177: 0
A178: 6.1.2 | B178: Air - Cast Iron | C178: =tot_air_MOVs -> 2 | D178: units | E178: =IF(C178=0,"NA",air_valve_size) -> 1.5 | F178: in. diam | G178: =IF(C178=0,"NA",IF(curve=1,air_valve_size,VLOOKUP(air_valve_size,ci_mov_cost_cl,2))) -> 1.5 | H178: in. diam | I178: =IF(C178=0,"NA",IF(curve=1,ci_mov_eq_air,VLOOKUP(air_valve_size,ci_mov_cost_cl,3))) -> 791.8695572 | J178: 1583.739114 | K178: =IF(C178=0,"NA",VLOOKUP(air_valve_size,ci_mov_cost_cl,IF(ss_cat="large",4,5))) -> 20 | L178: 0 | M178: Motor/Air Operated (on/off) Valves - Air - Cast Iron | N178: 2 | O178: 1 | P178: 2 | Q178: 2 | R178: 1 | S178: 2 | T178: 2 | U178: 1 | V178: 2 | W178: 0 | X178: 2 | Y178: 1 | Z178: 2 | AA178: 2 | AB178: 1 | AC178: 2 | AD178: 2 | AE178: 1 | AF178: 2 | AG178: 0 | AH178: 0
A179: 6.1.3 | B179: Acid - Polypropylene/PVC | C179: =tot_HCl_MOVs -> 0 | D179: units | E179: =IF(C179=0,"NA",HCl_valve_size) -> NA | G179: =IF(C179=0,"NA",IF(curve=1,HCl_valve_size,VLOOKUP(HCl_valve_size,pp_mov_cost_cl,2))) -> NA | I179: =IF(C179=0,"NA",IF(curve=1,pp_mov_eq_hcl,VLOOKUP(HCl_valve_size,pp_mov_cost_cl,3))) -> NA | J179: -- | K179: =IF(C179=0,"NA",VLOOKUP(HCl_valve_size,pp_mov_cost_cl,IF(ss_cat="large",4,5))) -> NA | M179: Motor/Air Operated (on/off) Valves - Acid - Polypropylene/PVC | N179: 1 | O179: 2 | P179: 2 | Q179: 1 | R179: 2 | S179: 2 | T179: 1 | U179: 2 | V179: 2 | W179: 0 | X179: 1 | Y179: 2 | Z179: 2 | AA179: 1 | AB179: 2 | AC179: 2 | AD179: 1 | AE179: 2 | AF179: 2 | AG179: 0 | AH179: 0
A180: 6.1.3 | B180: Acid - Stainless Steel | C180: =tot_HCl_MOVs -> 0 | D180: units | E180: =IF(C180=0,"NA",HCl_valve_size) -> NA | G180: =IF(C180=0,"NA",IF(curve=1,HCl_valve_size,VLOOKUP(HCl_valve_size,ss_mov_cost_cl,2))) -> NA | I180: =IF(C180=0,"NA",IF(curve=1,ss_mov_eq_hcl,VLOOKUP(HCl_valve_size,ss_mov_cost_cl,3))) -> NA | J180: -- | K180: =IF(C180=0,"NA",VLOOKUP(HCl_valve_size,ss_mov_cost_cl,IF(ss_cat="large",4,5))) -> NA | M180: Motor/Air Operated (on/off) Valves - Acid - Stainless Steel | N180: 2 | O180: 1 | P180: 1 | Q180: 2 | R180: 1 | S180: 1 | T180: 2 | U180: 1 | V180: 1 | W180: 0 | X180: 2 | Y180: 1 | Z180: 1 | AA180: 2 | AB180: 1 | AC180: 1 | AD180: 2 | AE180: 1 | AF180: 1 | AG180: 0 | AH180: 0
A181: 6.1.4 | B181: Sodium Hydroxide - Polypropylene/PVC | C181: =tot_NaOH_MOVs -> 0 | D181: units | E181: =IF(C181=0,"NA",NaOH_valve_size) -> NA | G181: =IF(C181=0,"NA",IF(curve=1,NaOH_valve_size,VLOOKUP(NaOH_valve_size,pp_mov_cost_cl,2))) -> NA | I181: =IF(C181=0,"NA",IF(curve=1,pp_mov_eq_naoh,VLOOKUP(NaOH_valve_size,pp_mov_cost_cl,3))) -> NA | J181: -- | K181: =IF(C181=0,"NA",VLOOKUP(NaOH_valve_size,pp_mov_cost_cl,IF(ss_cat="large",4,5))) -> NA | M181: Motor/Air Operated (on/off) Valves - Sodium Hydroxide - Polypropylene/PVC | N181: 1 | O181: 2 | P181: 2 | Q181: 1 | R181: 2 | S181: 2 | T181: 1 | U181: 2 | V181: 2 | W181: 0 | X181: 1 | Y181: 2 | Z181: 2 | AA181: 1 | AB181: 2 | AC181: 2 | AD181: 1 | AE181: 2 | AF181: 2 | AG181: 0 | AH181: 0
A182: 6.1.4 | B182: Sodium Hydroxide - Stainless Steel | C182: =tot_NaOH_MOVs -> 0 | D182: units | E182: =IF(C182=0,"NA",NaOH_valve_size) -> NA | G182: =IF(C182=0,"NA",IF(curve=1,NaOH_valve_size,VLOOKUP(NaOH_valve_size,ss_mov_cost_cl,2))) -> NA | I182: =IF(C182=0,"NA",IF(curve=1,ss_mov_eq_naoh,VLOOKUP(NaOH_valve_size,ss_mov_cost_cl,3))) -> NA | J182: -- | K182: =IF(C182=0,"NA",VLOOKUP(NaOH_valve_size,ss_mov_cost_cl,IF(ss_cat="large",4,5))) -> NA | M182: Motor/Air Operated (on/off) Valves - Sodium Hydroxide - Stainless Steel | N182: 2 | O182: 1 | P182: 1 | Q182: 2 | R182: 1 | S182: 1 | T182: 2 | U182: 1 | V182: 1 | W182: 0 | X182: 2 | Y182: 1 | Z182: 1 | AA182: 2 | AB182: 1 | AC182: 1 | AD182: 2 | AE182: 1 | AF182: 1 | AG182: 0 | AH182: 0
A183: 6.1.5 | B183: Corrosion Control Chemical - Polypropylene/PVC | C183: =IF(chem_type=1,0,tot_chem_MOVs) -> 4 | D183: units | E183: =IF(C183=0,"NA",IF(chem_type=1,"NA",cc_valve_size)) -> 0.5 | F183: in. diam | G183: =IF(C183=0,"NA",IF(chem_type=1,"NA",IF(curve=1,cc_valve_size,VLOOKUP(cc_valve_size,pp_mov_cost_cl,2)))) -> 0.5 | H183: in. diam | I183: =IF(C183=0,"NA",IF(chem_type=1,"NA",IF(curve=1,pp_mov_eq_cc,VLOOKUP(cc_valve_size,pp_mov_cost_cl,3)))) -> 656.0631953 | J183: 2624.252781 | K183: =IF(C183=0,"NA",IF(chem_type=1,"NA",VLOOKUP(cc_valve_size,pp_mov_cost_cl,IF(ss_cat="large",4,5)))) -> 20 | L183: 1 | M183: Motor/Air Operated (on/off) Valves - Corrosion Control Chemical - Polypropylene/PVC | N183: 1 | O183: 2 | P183: 2 | Q183: 1 | R183: 2 | S183: 2 | T183: 1 | U183: 2 | V183: 2 | W183: 0 | X183: =IF(chem_type=1,0,1) -> 1 | Y183: =IF(chem_type=1,0,2) -> 2 | Z183: =IF(chem_type=1,0,2) -> 2 | AA183: =IF(chem_type=1,0,1) -> 1 | AB183: =IF(chem_type=1,0,2) -> 2 | AC183: =IF(chem_type=1,0,2) -> 2 | AD183: =IF(chem_type=1,0,1) -> 1 | AE183: =IF(chem_type=1,0,2) -> 2 | AF183: =IF(chem_type=1,0,2) -> 2 | AG183: 1 | AH183: 131.2126391
A184: 6.1.5 | B184: Corrosion Control Chemical - Stainless Steel | C184: =IF(chem_type=1,0,tot_chem_MOVs) -> 4 | D184: units | E184: =IF(C184=0,"NA",IF(chem_type=1,"NA",cc_valve_size)) -> 0.5 | F184: in. diam | G184: =IF(C184=0,"NA",IF(chem_type=1,"NA",IF(curve=1,cc_valve_size,VLOOKUP(cc_valve_size,ss_mov_cost_cl,2)))) -> 0.5 | H184: in. diam | I184: =IF(C184=0,"NA",IF(chem_type=1,"NA",IF(curve=1,ss_mov_eq_cc,VLOOKUP(cc_valve_size,ss_mov_cost_cl,3)))) -> 1419.488948 | J184: 5677.95579 | K184: =IF(C184=0,"NA",IF(chem_type=1,"NA",VLOOKUP(cc_valve_size,ss_mov_cost_cl,IF(ss_cat="large",4,5)))) -> 20 | L184: 0 | M184: =$B$172&" "&$B$171&" - "&B184 -> Motor/Air Operated (on/off) Valves - Corrosion Control Chemical - Stainless Steel | N184: 2 | O184: 1 | P184: 1 | Q184: 2 | R184: 1 | S184: 1 | T184: 2 | U184: 1 | V184: 1 | W184: 0 | X184: =IF(chem_type=1,0,2) -> 2 | Y184: =IF(chem_type=1,0,1) -> 1 | Z184: =IF(chem_type=1,0,1) -> 1 | AA184: =IF(chem_type=1,0,2) -> 2 | AB184: =IF(chem_type=1,0,1) -> 1 | AC184: =IF(chem_type=1,0,1) -> 1 | AD184: =IF(chem_type=1,0,2) -> 2 | AE184: =IF(chem_type=1,0,1) -> 1 | AF184: =IF(chem_type=1,0,1) -> 1 | AG184: 0 | AH184: 0
A185: 6.1.6 | B185: Bypass - Polypropylene/PVC | C185: =IF(bp_pct>0,tot_bp_MOVs,0) -> 0 | D185: units | E185: =IF(C185=0,"NA",IF(bp_pct=0,"NA",bypass_valve_size)) -> NA | G185: =IF(C185=0,"NA",IF(bp_pct=0,"NA",(IF(curve=1,bypass_valve_size,VLOOKUP(bypass_valve_size,pp_mov_cost_cl,2))))) -> NA | I185: =IF(C185=0,"NA",IF(bp_pct=0,"NA",(IF(curve=1,pp_mov_eq_bp,VLOOKUP(bypass_valve_size,pp_mov_cost_cl,3))))) -> NA | J185: -- | K185: =IF(C185=0,"NA",IF(bp_pct=0,"NA",VLOOKUP(bypass_valve_size,pp_mov_cost_cl,IF(ss_cat="large",4,5)))) -> NA | M185: =$B$172&" "&$B$171&" - "&B185 -> Motor/Air Operated (on/off) Valves - Bypass - Polypropylene/PVC | N185: 1 | O185: 2 | P185: 3 | Q185: 1 | R185: 2 | S185: 3 | T185: 1 | U185: 2 | V185: 3 | W185: 0 | X185: 1 | Y185: 2 | Z185: 3 | AA185: 1 | AB185: 2 | AC185: 3 | AD185: 1 | AE185: 2 | AF185: 3 | AG185: 0 | AH185: 0
A186: 6.1.6 | B186: Bypass - Stainless Steel | C186: =IF(bp_pct>0,tot_bp_MOVs,0) -> 0 | D186: units | E186: =IF(C186=0,"NA",IF(bp_pct=0,"NA",bypass_valve_size)) -> NA | G186: =IF(C186=0,"NA",IF(bp_pct=0,"NA",(IF(curve=1,bypass_valve_size,VLOOKUP(bypass_valve_size,ss_mov_cost_cl,2))))) -> NA | I186: =IF(C186=0,"NA",IF(bp_pct=0,"NA",(IF(curve=1,ss_mov_eq_bp,VLOOKUP(bypass_valve_size,ss_mov_cost_cl,3))))) -> NA | J186: -- | K186: =IF(C186=0,"NA",IF(bp_pct=0,"NA",VLOOKUP(bypass_valve_size,ss_mov_cost_cl,IF(ss_cat="large",4,5)))) -> NA | M186: =$B$172&" "&$B$171&" - "&B186 -> Motor/Air Operated (on/off) Valves - Bypass - Stainless Steel | N186: 3 | O186: 3 | P186: 1 | Q186: 3 | R186: 3 | S186: 1 | T186: 3 | U186: 3 | V186: 1 | W186: 0 | X186: 3 | Y186: 3 | Z186: 1 | AA186: 3 | AB186: 3 | AC186: 1 | AD186: 3 | AE186: 3 | AF186: 1 | AG186: 0 | AH186: 0
A187: 6.1.6 | B187: Bypass - Cast Iron | C187: =IF(bp_pct>0,tot_bp_MOVs,0) -> 0 | D187: units | E187: =IF(C187=0,"NA",IF(bp_pct=0,"NA",bypass_valve_size)) -> NA | G187: =IF(C187=0,"NA",IF(bp_pct=0,"NA",(IF(curve=1,bypass_valve_size,VLOOKUP(bypass_valve_size,ci_mov_cost_cl,2))))) -> NA | I187: =IF(C187=0,"NA",IF(bp_pct=0,"NA",(IF(curve=1,ci_mov_eq_bp,VLOOKUP(bypass_valve_size,ci_mov_cost_cl,3))))) -> NA | J187: -- | K187: =IF(C187=0,"NA",IF(bp_pct=0,"NA",VLOOKUP(bypass_valve_size,ci_mov_cost_cl,IF(ss_cat="large",4,5)))) -> NA | M187: =$B$172&" "&$B$171&" - "&B187 -> Motor/Air Operated (on/off) Valves - Bypass - Cast Iron | N187: 2 | O187: 1 | P187: 2 | Q187: 2 | R187: 1 | S187: 2 | T187: 2 | U187: 1 | V187: 2 | W187: 0 | X187: 2 | Y187: 1 | Z187: 2 | AA187: 2 | AB187: 1 | AC187: 2 | AD187: 2 | AE187: 1 | AF187: 2 | AG187: 0 | AH187: 0
A188: 6.2 | B188: Manual | AG188: 0 | AH188: 0
A189: 6.2.1 | B189: Influent and treated water - Polypropylene/PVC | C189: =tot_man_valves -> 2 | D189: units | E189: =IF(C189=0,"NA",in_valve_size) -> 1.5 | F189: =IF(C189=0,"","in. diam") -> in. diam | G189: =IF(C189=0,"NA",IF(curve=1,in_valve_size,VLOOKUP(in_valve_size,pp_man_cost_cl,2))) -> 1.5 | H189: =IF(C189=0,"","in. diam") -> in. diam | I189: =IF(C189=0,"NA",IF(curve=1,pp_man_eq,VLOOKUP(in_valve_size,pp_man_cost_cl,3))) -> 207.8491463 | J189: 415.6982927 | K189: =IF(C189=0,"NA",VLOOKUP(in_valve_size,pp_man_cost_cl,IF(ss_cat="large",4,5))) -> 20 | L189: 1 | M189: =$B$188&" "&$B$171&" - "&B189 -> Manual Valves - Influent and treated water - Polypropylene/PVC | N189: =IF(retrofit=1,$W189*X189,IF(ISBLANK(X189),"",X189)) -> 1 | O189: =IF(retrofit=1,$W189*Y189,IF(ISBLANK(Y189),"",Y189)) -> 2 | P189: =IF(retrofit=1,$W189*Z189,IF(ISBLANK(Z189),"",Z189)) -> 3 | Q189: =IF(retrofit=1,$W189*AA189,IF(ISBLANK(AA189),"",AA189)) -> 1 | R189: =IF(retrofit=1,$W189*AB189,IF(ISBLANK(AB189),"",AB189)) -> 2 | S189: =IF(retrofit=1,$W189*AC189,IF(ISBLANK(AC189),"",AC189)) -> 3 | T189: =IF(retrofit=1,$W189*AD189,IF(ISBLANK(AD189),"",AD189)) -> 1 | U189: =IF(retrofit=1,$W189*AE189,IF(ISBLANK(AE189),"",AE189)) -> 2 | V189: =IF(retrofit=1,$W189*AF189,IF(ISBLANK(AF189),"",AF189)) -> 3 | W189: 0 | X189: 1 | Y189: 2 | Z189: 3 | AA189: 1 | AB189: 2 | AC189: 3 | AD189: 1 | AE189: 2 | AF189: 3 | AG189: 1 | AH189: 20.78491463
A190: 6.2.1 | B190: Influent and treated water - Stainless Steel | C190: =tot_man_valves -> 2 | D190: units | E190: =IF(C190=0,"NA",in_valve_size) -> 1.5 | F190: in. diam | G190: =IF(C190=0,"NA",IF(curve=1,in_valve_size,VLOOKUP(in_valve_size,ss_man_cost_cl,2))) -> 1.5 | H190: in. diam | I190: =IF(C190=0,"NA",IF(curve=1,ss_man_eq,VLOOKUP(in_valve_size,ss_man_cost_cl,3))) -> 395.8808732 | J190: 791.7617464 | K190: =IF(C190=0,"NA",VLOOKUP(in_valve_size,ss_man_cost_cl,IF(ss_cat="large",4,5))) -> 20 | L190: 0 | M190: =$B$188&" "&$B$171&" - "&B190 -> Manual Valves - Influent and treated water - Stainless Steel | N190: 3 | O190: 3 | P190: 1 | Q190: 3 | R190: 3 | S190: 1 | T190: 3 | U190: 3 | V190: 1 | W190: 0 | X190: 3 | Y190: 3 | Z190: 1 | AA190: 3 | AB190: 3 | AC190: 1 | AD190: 3 | AE190: 3 | AF190: 1 | AG190: 0 | AH190: 0
A191: 6.2.1 | B191: Influent and treated water - Cast Iron | C191: =tot_man_valves -> 2 | D191: units | E191: =IF(C191=0,"NA",in_valve_size) -> 1.5 | F191: in. diam | G191: =IF(C191=0,"NA",IF(curve=1,in_valve_size,VLOOKUP(in_valve_size,ci_bfv_cost_cl,2))) -> 1.5 | H191: in. diam | I191: =IF(C191=0,"NA",IF(curve=1,ci_bfv_eq,VLOOKUP(in_valve_size,ci_bfv_cost_cl,3))) -> 338.9786776 | J191: 677.9573551 | K191: =IF(C191=0,"NA",VLOOKUP(in_valve_size,ci_bfv_cost_cl,IF(ss_cat="large",4,5))) -> 20 | L191: 0 | M191: =$B$188&" "&$B$171&" - "&B191 -> Manual Valves - Influent and treated water - Cast Iron | N191: 2 | O191: 1 | P191: 2 | Q191: 2 | R191: 1 | S191: 2 | T191: 2 | U191: 1 | V191: 2 | W191: 0 | X191: 2 | Y191: 1 | Z191: 2 | AA191: 2 | AB191: 1 | AC191: 2 | AD191: 2 | AE191: 1 | AF191: 2 | AG191: 0 | AH191: 0
A192: 6.2.2 | B192: Process - Polypropylene/PVC | C192: =tot_proc_man -> 0 | D192: units | E192: =IF(C192=0,"NA",tank_valve_size) -> NA | G192: =IF(C192=0,"NA",IF(curve=1,tank_valve_size,VLOOKUP(tank_valve_size,pp_man_cost_cl,2))) -> NA | I192: =IF(C192=0,"NA",IF(curve=1,pp_man_eq_in,VLOOKUP(tank_valve_size,pp_man_cost_cl,3))) -> NA | J192: -- | K192: =IF(C192=0,"NA",VLOOKUP(tank_valve_size,pp_man_cost_cl,IF(ss_cat="large",4,5))) -> NA | M192: =$B$188&" "&$B$171&" - "&B192 -> Manual Valves - Process - Polypropylene/PVC | N192: 1 | O192: 2 | P192: 3 | Q192: 1 | R192: 2 | S192: 3 | T192: 1 | U192: 2 | V192: 3 | W192: 0 | X192: 1 | Y192: 2 | Z192: 3 | AA192: 1 | AB192: 2 | AC192: 3 | AD192: 1 | AE192: 2 | AF192: 3 | AG192: 0 | AH192: 0
A193: 6.2.2 | B193: Process - Stainless Steel | C193: =tot_proc_man -> 0 | D193: units | E193: =IF(C193=0,"NA",tank_valve_size) -> NA | G193: =IF(C193=0,"NA",IF(curve=1,tank_valve_size,VLOOKUP(tank_valve_size,ss_man_cost_cl,2))) -> NA | I193: =IF(C193=0,"NA",IF(curve=1,ss_man_eq_in,VLOOKUP(tank_valve_size,ss_man_cost_cl,3))) -> NA | J193: -- | K193: =IF(C193=0,"NA",VLOOKUP(tank_valve_size,ss_man_cost_cl,IF(ss_cat="large",4,5))) -> NA | M193: Manual Valves - Process - Stainless Steel | N193: 3 | O193: 3 | P193: 1 | Q193: 3 | R193: 3 | S193: 1 | T193: 3 | U193: 3 | V193: 1 | W193: 0 | X193: 3 | Y193: 3 | Z193: 1 | AA193: 3 | AB193: 3 | AC193: 1 | AD193: 3 | AE193: 3 | AF193: 1 | AG193: 0 | AH193: 0
A194: 6.2.2 | B194: Process - Cast Iron | C194: =tot_proc_man -> 0 | D194: units | E194: =IF(C194=0,"NA",tank_valve_size) -> NA | G194: =IF(C194=0,"NA",IF(curve=1,tank_valve_size,VLOOKUP(tank_valve_size,ci_bfv_cost_cl,2))) -> NA | I194: =IF(C194=0,"NA",IF(curve=1,ci_man_eq_in,VLOOKUP(tank_valve_size,ci_bfv_cost_cl,3))) -> NA | J194: -- | K194: =IF(C194=0,"NA",VLOOKUP(tank_valve_size,ci_bfv_cost_cl,IF(ss_cat="large",4,5))) -> NA | M194: Manual Valves - Process - Cast Iron | N194: 2 | O194: 1 | P194: 2 | Q194: 2 | R194: 1 | S194: 2 | T194: 2 | U194: 1 | V194: 2 | W194: 0 | X194: 2 | Y194: 1 | Z194: 2 | AA194: 2 | AB194: 1 | AC194: 2 | AD194: 2 | AE194: 1 | AF194: 2 | AG194: 0 | AH194: 0
A195: 6.2.3 | B195: Air - Polypropylene/PVC | C195: =tot_air_man -> 0 | D195: units | E195: =IF(C195=0,"NA",air_valve_size) -> NA | G195: =IF(C195=0,"NA",IF(curve=1,air_valve_size,VLOOKUP(air_valve_size,pp_man_cost_cl,2))) -> NA | I195: =IF(C195=0,"NA",IF(curve=1,pp_man_eq_air,VLOOKUP(air_valve_size,pp_man_cost_cl,3))) -> NA | J195: -- | K195: =IF(C195=0,"NA",VLOOKUP(air_valve_size,pp_man_cost_cl,IF(ss_cat="large",4,5))) -> NA | M195: Manual Valves - Air - Polypropylene/PVC | N195: 1 | O195: 2 | P195: 3 | Q195: 1 | R195: 2 | S195: 3 | T195: 1 | U195: 2 | V195: 3 | W195: 0 | X195: 1 | Y195: 2 | Z195: 3 | AA195: 1 | AB195: 2 | AC195: 3 | AD195: 1 | AE195: 2 | AF195: 3 | AG195: 0 | AH195: 0
A196: 6.2.3 | B196: Air - Stainless Steel | C196: =tot_air_man -> 0 | D196: units | E196: =IF(C196=0,"NA",air_valve_size) -> NA | G196: =IF(C196=0,"NA",IF(curve=1,air_valve_size,VLOOKUP(air_valve_size,ss_man_cost_cl,2))) -> NA | I196: =IF(C196=0,"NA",IF(curve=1,ss_man_eq_air,VLOOKUP(air_valve_size,ss_man_cost_cl,3))) -> NA | J196: -- | K196: =IF(C196=0,"NA",VLOOKUP(air_valve_size,ss_man_cost_cl,IF(ss_cat="large",4,5))) -> NA | M196: Manual Valves - Air - Stainless Steel | N196: 3 | O196: 3 | P196: 1 | Q196: 3 | R196: 3 | S196: 1 | T196: 3 | U196: 3 | V196: 1 | W196: 0 | X196: 3 | Y196: 3 | Z196: 1 | AA196: 3 | AB196: 3 | AC196: 1 | AD196: 3 | AE196: 3 | AF196: 1 | AG196: 0 | AH196: 0
A197: 6.2.3 | B197: Air - Cast Iron | C197: =tot_air_man -> 0 | D197: units | E197: =IF(C197=0,"NA",air_valve_size) -> NA | G197: =IF(C197=0,"NA",IF(curve=1,air_valve_size,VLOOKUP(air_valve_size,ci_bfv_cost_cl,2))) -> NA | I197: =IF(C197=0,"NA",IF(curve=1,ci_man_eq_air,VLOOKUP(air_valve_size,ci_bfv_cost_cl,3))) -> NA | J197: -- | K197: =IF(C197=0,"NA",VLOOKUP(air_valve_size,ci_bfv_cost_cl,IF(ss_cat="large",4,5))) -> NA | M197: Manual Valves - Air - Cast Iron | N197: 2 | O197: 1 | P197: 2 | Q197: 2 | R197: 1 | S197: 2 | T197: 2 | U197: 1 | V197: 2 | W197: 0 | X197: 2 | Y197: 1 | Z197: 2 | AA197: 2 | AB197: 1 | AC197: 2 | AD197: 2 | AE197: 1 | AF197: 2 | AG197: 0 | AH197: 0
A198: 6.2.4 | B198: Acid - Polypropylene/PVC | C198: =tot_HCl_man -> 0 | D198: units | E198: =IF(C198=0,"NA",HCl_valve_size) -> NA | G198: =IF(C198=0,"NA",IF(curve=1,HCl_valve_size,VLOOKUP(HCl_valve_size,pp_man_cost_cl,2))) -> NA | I198: =IF(C198=0,"NA",IF(curve=1,pp_man_eq_hcl,VLOOKUP(HCl_valve_size,pp_man_cost_cl,3))) -> NA | J198: -- | K198: =IF(C198=0,"NA",VLOOKUP(HCl_valve_size,pp_man_cost_cl,IF(ss_cat="large",4,5))) -> NA | M198: Manual Valves - Acid - Polypropylene/PVC | N198: 1 | O198: 2 | P198: 2 | Q198: 1 | R198: 2 | S198: 2 | T198: 1 | U198: 2 | V198: 2 | W198: 0 | X198: 1 | Y198: 2 | Z198: 2 | AA198: 1 | AB198: 2 | AC198: 2 | AD198: 1 | AE198: 2 | AF198: 2 | AG198: 0 | AH198: 0
A199: 6.2.4 | B199: Acid - Stainless Steel | C199: =tot_HCl_man -> 0 | D199: units | E199: =IF(C199=0,"NA",HCl_valve_size) -> NA | G199: =IF(C199=0,"NA",IF(curve=1,HCl_valve_size,VLOOKUP(HCl_valve_size,ss_man_cost_cl,2))) -> NA | I199: =IF(C199=0,"NA",IF(curve=1,ss_man_eq_hcl,VLOOKUP(HCl_valve_size,ss_man_cost_cl,3))) -> NA | J199: -- | K199: =IF(C199=0,"NA",VLOOKUP(HCl_valve_size,ss_man_cost_cl,IF(ss_cat="large",4,5))) -> NA | M199: Manual Valves - Acid - Stainless Steel | N199: 2 | O199: 1 | P199: 1 | Q199: 2 | R199: 1 | S199: 1 | T199: 2 | U199: 1 | V199: 1 | W199: 0 | X199: 2 | Y199: 1 | Z199: 1 | AA199: 2 | AB199: 1 | AC199: 1 | AD199: 2 | AE199: 1 | AF199: 1 | AG199: 0 | AH199: 0
A200: 6.2.5 | B200: Sodium Hydroxide - Polypropylene/PVC | C200: =tot_NaOH_man -> 0 | D200: units | E200: =IF(C200=0,"NA",NaOH_valve_size) -> NA | G200: =IF(C200=0,"NA",IF(curve=1,NaOH_valve_size,VLOOKUP(NaOH_valve_size,pp_man_cost_cl,2))) -> NA | I200: =IF(C200=0,"NA",IF(curve=1,pp_man_eq_naoh,VLOOKUP(NaOH_valve_size,pp_man_cost_cl,3))) -> NA | J200: -- | K200: =IF(C200=0,"NA",VLOOKUP(NaOH_valve_size,pp_man_cost_cl,IF(ss_cat="large",4,5))) -> NA | M200: Manual Valves - Sodium Hydroxide - Polypropylene/PVC | N200: 1 | O200: 2 | P200: 2 | Q200: 1 | R200: 2 | S200: 2 | T200: 1 | U200: 2 | V200: 2 | W200: 0 | X200: 1 | Y200: 2 | Z200: 2 | AA200: 1 | AB200: 2 | AC200: 2 | AD200: 1 | AE200: 2 | AF200: 2 | AG200: 0 | AH200: 0
A201: 6.2.5 | B201: Sodium Hydroxide - Stainless Steel | C201: =tot_NaOH_man -> 0 | D201: units | E201: =IF(C201=0,"NA",NaOH_valve_size) -> NA | G201: =IF(C201=0,"NA",IF(curve=1,NaOH_valve_size,VLOOKUP(NaOH_valve_size,ss_man_cost_cl,2))) -> NA | I201: =IF(C201=0,"NA",IF(curve=1,ss_man_eq_naoh,VLOOKUP(NaOH_valve_size,ss_man_cost_cl,3))) -> NA | J201: -- | K201: =IF(C201=0,"NA",VLOOKUP(NaOH_valve_size,ss_man_cost_cl,IF(ss_cat="large",4,5))) -> NA | M201: Manual Valves - Sodium Hydroxide - Stainless Steel | N201: 2 | O201: 1 | P201: 1 | Q201: 2 | R201: 1 | S201: 1 | T201: 2 | U201: 1 | V201: 1 | W201: 0 | X201: 2 | Y201: 1 | Z201: 1 | AA201: 2 | AB201: 1 | AC201: 1 | AD201: 2 | AE201: 1 | AF201: 1 | AG201: 0 | AH201: 0
A202: 6.2.6 | B202: Corrosion Control Chemical - Polypropylene/PVC | C202: =IF(chem_type=1,0,tot_chem_man) -> 0 | D202: units | E202: =IF(C202=0,"NA",IF(chem_type=1,"NA",cc_valve_size)) -> NA | G202: =IF(C202=0,"NA",IF(chem_type=1,"NA",IF(curve=1,cc_valve_size,VLOOKUP(cc_valve_size,pp_man_cost_cl,2)))) -> NA | I202: =IF(C202=0,"NA",IF(chem_type=1,"NA",IF(curve=1,pp_man_eq_cc,VLOOKUP(cc_valve_size,pp_man_cost_cl,3)))) -> NA | J202: -- | K202: =IF(C202=0,"NA",IF(chem_type=1,"NA",VLOOKUP(cc_valve_size,pp_man_cost_cl,IF(ss_cat="large",4,5)))) -> NA | M202: Manual Valves - Corrosion Control Chemical - Polypropylene/PVC | N202: 1 | O202: 2 | P202: 2 | Q202: 1 | R202: 2 | S202: 2 | T202: 1 | U202: 2 | V202: 2 | W202: 0 | X202: =IF(chem_type=1,0,1) -> 1 | Y202: =IF(chem_type=1,0,2) -> 2 | Z202: =IF(chem_type=1,0,2) -> 2 | AA202: =IF(chem_type=1,0,1) -> 1 | AB202: =IF(chem_type=1,0,2) -> 2 | AC202: =IF(chem_type=1,0,2) -> 2 | AD202: =IF(chem_type=1,0,1) -> 1 | AE202: =IF(chem_type=1,0,2) -> 2 | AF202: =IF(chem_type=1,0,2) -> 2 | AG202: 0 | AH202: 0
A203: 6.2.6 | B203: Corrosion Control Chemical - Stainless Steel | C203: =IF(chem_type=1,0,tot_chem_man) -> 0 | D203: units | E203: =IF(C203=0,"NA",IF(chem_type=1,"NA",cc_valve_size)) -> NA | G203: =IF(C203=0,"NA",IF(chem_type=1,"NA",IF(curve=1,cc_valve_size,VLOOKUP(cc_valve_size,ss_man_cost_cl,2)))) -> NA | I203: =IF(C203=0,"NA",IF(chem_type=1,"NA",IF(curve=1,ss_man_eq_cc,VLOOKUP(cc_valve_size,ss_man_cost_cl,3)))) -> NA | J203: -- | K203: =IF(C203=0,"NA",IF(chem_type=1,"NA",VLOOKUP(cc_valve_size,ss_man_cost_cl,IF(ss_cat="large",4,5)))) -> NA | M203: Manual Valves - Corrosion Control Chemical - Stainless Steel | N203: 2 | O203: 1 | P203: 1 | Q203: 2 | R203: 1 | S203: 1 | T203: 2 | U203: 1 | V203: 1 | W203: 0 | X203: =IF(chem_type=1,0,2) -> 2 | Y203: =IF(chem_type=1,0,1) -> 1 | Z203: =IF(chem_type=1,0,1) -> 1 | AA203: =IF(chem_type=1,0,2) -> 2 | AB203: =IF(chem_type=1,0,1) -> 1 | AC203: =IF(chem_type=1,0,1) -> 1 | AD203: =IF(chem_type=1,0,2) -> 2 | AE203: =IF(chem_type=1,0,1) -> 1 | AF203: =IF(chem_type=1,0,1) -> 1 | AG203: 0 | AH203: 0
... 215 more rows

Sheet Critical Design Assumptions
A1: Default Critical Design Assumptions
A2: Users may change any of the cells in the Value column; cells in gold are most important and may vary based on contaminant treated and site-specific conditions
A4: Assumption | B4: Range Name | C4: Value | D4: Units | E4: Guidance
A5: Cost estimating method | B5: curve | C5: 1 | D5: <-- enter 1 to use cost equations, leave blank to use lookup tables for component costs | E5: Keeping this assumption with a value of 1 is strongly recommended; the cost equations method is more appropriate for national cost estimating and will be more accurate for nearly all user-specified designs
A6: Minimum average flow as percentage of design | B6: min_avg_flow | C6: 0.1 | E6: The minimum ratio of average flow to design flow. If the ratio falls below this value, it will trigger a warning on the INPUT sheet. If this value is zero, no minimum is enforced.
A8: Tower Design Constraints
A9: Minimum packing height to diameter ratio | B9: Min_d_rat_cda | C9: 1.5 | D9: x tower diameter | E9: Constraint is to maintain a practical geometry for radon removal, which in theory could operate with a low packing height. Constraint not relevant to more conventional contaminants because design program will require high packing height to achieve removal.
A10: Maximum packing height to diameter ratio | B10: Max_d_rat_cda | C10: 10 | D10: x tower diameter | E10: Maximum is <10 due to need to consider structural stability of tower (Richard E. Hubel, Tim O'Brien, American Water Works Service Company).
A11: Maximum packing height | B11: Max_pack_std | C11: 9.15 | D11: meters | E11: Maximum tower height depends on local considerations; 9.15 meters corresponds to 30 feet (recommended in Homza peer review comments)
A12: Maximum packing height for difficult contaminants | B12: Max_pack_MTBE | C12: 13 | D12: meters | E12: Currently used for MTBE; 13 meters is approximately 43 feet
A13: Maximum tower area | B13: Max_Area_cda | C13: 10.5 | D13: square meters | E13: Based on a maximum tower diamter of 12 ft (recommended in Homza peer review comments)
A14: Minimum tower area | B14: Min_Area_cda | C14: 0.01825 | D14: square meters | E14: Based on a minimum diameter of 0.5 feet
A15: Overdesign sensitivity | B15: P_REM_INC | C15: 0.05 | E15: Used by design program when overdesign is required. Lower values will allow more precise designs, but increase processing time.
A16: Operating Pressure | B16: Op_Press | C16: 1 | D16: atm
A17: Spacing between liquid redistribution rings | B17: ring_space | C17: 2 | D17: meters
A18: Tower shell height above and below packing (i.e., freeboard) | B18: Free_Board_Col | C18: 3.05 | D18: meters | E18: 3.05 meters corresponds to 10 feet (recommended in Homza peer review comments)
A19: Minimum number of towers | B19: min_col | C19: 2 | D19: units | E19: Minimum of two units allows for operational reundancy; system can operate at reduced flow with one tower out of service
A20: Number of redundant towers for small systems | B20: NRD_small | C20: 0 | D20: units | E20: PTA towers are out of service infrequently, so small systems typically do not require a redundant tower (O'Brien Peer Review Comments)
A21: Redundancy frequency for large systems | B21: redund_freq | C21: 0 | E21: Add a tower for every x operating towers, rounded up. 0 indicates no redundant towers; redundancy not required with minimum of two towers
A23: Pumps and Blowers
A24: Safety factor for pumps | B24: pump_safety_factor | C24: 0.25 | E24: Used for both booster and chemical metering pumps
A25: Number of redundant booster pumps | B25: NRD_pump | C25: 0 | D25: units | E25: Multiple pump approach eliminates need for redundant pumps
A26: Number of redundant blowers | B26: NRD_blower | C26: 0 | D26: units | E26: Multiple blower approach eliminates need for redundant blowers
A27: Number of redundant chemical metering pumps | B27: NRD_cm_pump | C27: 1 | D27: pumps
A28: Minimum chemical feed pump size | B28: min_chem_flow | C28: 0.13 | D28: gph | E28: Metering pumps will be designed to meet this minimum
A30: Bypass Flow
A31: Percent of Total Flow that is Bypassed | B31: bp_pct | C31: 0 | E31: Typically, bypass flow ranges between 0% and 50% of inflow. Enter zero to remove bypass piping and components. 0% is default consistent with the type of cost curves that EPA will need for its national cost simulation model.
A33: Clearwell design
A34: Freeboard | B34: freeboard | C34: 3 | D34: feet
A35: Overexcavation | B35: overexcavate | C35: 4 | D35: ft | E35: 2 feet each side in each dimension
A36: Concrete thickness | B36: conc_thick | C36: 1 | D36: ft
A38: Chemical storage and use
A39: Days per year of chemical feed | B39: chem_freq | C39: 365 | D39: days per year | E39: Default of 365 assumes continuous addition. Reduce days per year to simulate intermittent addition.
A40: Chemical storage required | B40: cstore_days | C40: 30 | D40: days | E40: Adjust this value if intermittent addition is chosen
A41: Include a separate day tank if daily volume is x or greater | B41: day_tank_needed | C41: 5 | D41: gal
A42: Include mixers for chemical tanks | B42: include_cmix | C42: 0 | D42: <--- enter 1 for yes, 0 for no | E42: Ignored for tetrasodium pyrophosphate; mixers are always included because TSPP is delivered dry and mixed in storage tank
A43: Chemical tank mixer horsepower | B43: cmix_hp_per | C43: 0.25 | D43: hp per 1000 gal
A44: Minimum chemical tank mixer horsepower | B44: min_cmix_hp | C44: =1/3 -> 0.3333333333 | D44: hp
A46: Secondary Containment Requirements
A47: Include secondary containment | B47: include_sec_cont | C47: 1 | D47: <--- enter 1 for yes, 0 for no
A48: Volume required as a percentage of the largest tank | B48: sec_cont_pct_of_largest | C48: 1.1
A49: Volume required as a percentage of total storage | B49: sec_cont_pct_of_total | C49: 0.1
A50: Additional freeboard | B50: sec_cont_freeboard | C50: 6 | D50: inches | E50: Additional freeboard is typically required to contain precipitation when storage is outside; we also include freeboard indoors to ensure a minimum reasonable curb height
A51: Maximum curb thickness | B51: sec_cont_max_thick | C51: 1 | D51: foot | E51: Calculations assume thickness equal to height, up to this maximum
A52: Chemical resistant coating coverage | B52: sec_cont_coating_cvg | C52: 125 | D52: square feet/gallon
A54: Corrosion control chemicals | E54: Chemical additions below are to prevent scaling and corrosion, and may depend on influent water quality
A55: Corrosion control chemical chosen | B55: chem_type_default | C55: 2 | D55: <-- 1 for no corrosion control chemical, 2 for sodium hexametaphosphate, 3 for tetrasodium pyrophosphate | E55: This assumption is not used when CO2 is the target, because corrosion control chemical addition should be costed separately in this case, with wholistic consideration of distribution system needs
A56: Dosage of sodium hexametaphosphate | B56: sh_dose | C56: 5 | D56: mg/l | E56: Addition of sodium hexametaphosphate or tetrasodium pyrophosphate may be employed for scaling and corrosion control
A57: Sodium hexametaphospate solution strength | B57: sh_strength | C57: 0.1 | E57: Prepare solution @ ~1 lb/gal/ BIF Chemicals Used in Water and Waste Water (Richard E. Hubel, Tim O'Brien, American Water Works Service Company)
A58: Specific gravity of sodium hexametaphosphate solution | B58: sh_spgr | C58: 1.11
A59: Dosage of tetrasodium pyrophosphate | B59: tp_dose | C59: 5 | D59: mg/l
A60: Tetrasodium pyrophospate solution strength | B60: tp_strength | C60: 0.04 | E60: Prepare solution @ ~0.3 lb/gal/ BIF Chemicals Used in Water and Waste Water (Richard E. Hubel, Tim O'Brien, American Water Works Service Company)
A61: Specific gravity of tetrasodium pyrophosphate solution | B61: tp_spgr | C61: 1.04
A63: Acid/Caustic Addition | E63: Acid addition to lower pH may also be used to prevent scaling
A64: Type of acid | B64: acid_type_default | C64: 1 | D64: <-- 1 for no acid addition, 2 for HCl, 3 for H2SO4 | E64: This assumption is not used when is CO2 the target, because acid/caustic addition would defeat the purpose of the design (i.e., chemical-free pH adjustment)
A65: Default initial water pH for acid addition | B65: pHo_default | C65: 7.5
A66: Alkalinity as CaCO3 | B66: alk_I_default | C66: 100 | D66: ppm
A67: Influent water total dissolved solids | B67: TDS_I | C67: 200 | D67: mg/L
A68: Target pH for acid addition | B68: pHf_default | C68: 5.5
A69: HCl solution strength | B69: hcl_strength | C69: 0.36
A70: HCl molecular weight | B70: hcl_molwt | C70: 36.5 | D70: g/mol
A71: H2SO4 solution strength | B71: H2SO4_strength | C71: 0.7767
A72: H2SO4 molecular weight | B72: H2SO4_molwt | C72: 98.1 | D72: g/mol
A73: NaOH solution strength | B73: naoh_strength | C73: 0.5 | E73: Prices are available for 25% and 50% solutions
A75: Chemical Constants
A76: Acceleration of gravity | B76: G | C76: 9.81 | D76: m/s2
A77: Gas law constant | B77: R_C | C77: 0.0821 | D77: (atm m3)/(KM deg K)
A78: Molar volume of gas at STP | B78: GO | C78: 22.4 | D78: m3/kmole
A79: Standard temperature | B79: TS | C79: 273 | D79: Deg. Kelvin
A80: Standard pressure | B80: PS | C80: 1 | D80: atm
A81: Molecular weight of air | B81: MWA | C81: 29 | D81: kg/kmole
A82: Density of water | B82: PW | C82: 999.7 | D82: kg/m3 | E82: @10 C
A83: Viscosity of water | B83: UW | C83: 0.001307 | D83: kg/m s | E83: @10 C
A84: Surface tension of water | B84: SW | C84: 0.0742 | D84: kg/s2 | E84: @10 C, from StEPP
A85: Molecular Radius of Air | B85: RA | C85: 0.3711 | D85: nm
A86: Force Constant for Air | B86: E_KA | C86: 78.6 | D86: Deg. Kelvin
A87: Standard Pressure | B87: P_S | C87: 101325 | D87: N/m2
A89: Pipe Length Multipliers
A90: Influent and treated water pipe length multiplier | B90: in_out_pipe_mult | C90: 2 | D90: times facility length
A91: Process pipe length multiplier | B91: proc_pipe_mult | C91: 2 | D91: times facility length
A92: Bypass pipe length multiplier | B92: bp_pipe_mult | C92: 2.5 | D92: times facility length
A93: Chemical pipe length multiplier | B93: chem_pipe_mult | C93: 1 | D93: times facility length
A94: Air pipe length per tower | B94: air_L | C94: 100 | D94: feet/tower
A95: Off-gas pipe length multiplier | B95: air_pipe_mult | C95: 1 | D95: times facility length | E95: Additional air piping when off-gas control system is present
A97: Valves and Instrumentation
A98: See the Valve Table at the bottom of this page for additional assumptions relating to valves
A99: Number of manual valves on influent and treated water line | B99: tot_man_valves | C99: 2 | D99: valves
A101: Number of check valves on influent line | B101: tot_in_chv | C101: 1 | D101: valves
A102: Number of check valves on bypass line | B102: tot_bp_chv | C102: 1 | D102: valves
A103: Number of check valves on acid line per chemical pump | B103: HCl_chv_pump | C103: 2 | D103: valves/pump
A104: Number of check valves on caustic line per chemical pump | B104: NaOH_chv_pump | C104: 2 | D104: valves/pump
A105: Number of check valves on corrosion chemical line per chemical pump | B105: chem_chv_pump | C105: 2 | D105: valves/pump
A107: Flow meters for influent and treated water line | B107: tot_fm_in | C107: 1 | D107: units | E107: Only on treated water line in this technology
A108: Flow meters for process line per tower | B108: fm_proc | C108: 1 | D108: units/tower
A109: Flow meters for air line per tower | B109: fm_air | C109: 1 | D109: units/tower
A110: High/low alarms per chemical tank | B110: alarm_chem | C110: 1 | D110: units/tank
A111: pH meters | B111: pH_controls | C111: 2 | D111: units | E111: One for influent line, one for treated water line
A112: Temperature meters | B112: temp_meters | C112: 1 | D112: units | E112: One for influent line
A113: TDS monitors | B113: num_TDS | C113: 0 | D113: units
A114: Turbidity meters | B114: turb_meters | C114: 1 | D114: units | E114: One for treated water line
A115: Turbidity meters (for small systems <1 MGD) | B115: turb_meters_small | C115: 0 | D115: units | E115: Reduced instrumentation for small systems
A116: Number of electrical enclosures | B116: elec_encl | C116: 1 | D116: units
A118: System Controls
A119: See the I/O Port Table at the bottom of this page for additional assumptions relating to system controls
A120: Controllers are used only under full automation
A121: To change the degree of automation, change the number of controllers to zero for the appropriate items.
A122: Drive controllers per booster pump | B122: S_booster_pump | C122: 1 | D122: units
A123: Drive controllers per blower | B123: S_blower | C123: 1 | D123: units
A124: Drive controllers per chemical metering pump | B124: S_cm_pump | C124: 1 | D124: units
A125: Drive controllers per thermal oxidizer | B125: S_TO | C125: 2 | D125: units | E125: One for burners, one for secondary air
A126: Drive controllers per catalytic oxidizer | B126: S_CO | C126: 2 | D126: units | E126: One for burners, one for secondary air
A127: Drive controllers per mixer | B127: S_mix | C127: 1 | D127: units
A129: Number of CPUs | B129: plc_cpu | C129: 2 | D129: units | E129: One CPU is needed to run the local and expansion bases and modules (max 8192 I/O); using two to provide redundancy
A130: Ethernet modules | B130: plc_ethernet | C130: 2 | D130: units | E130: One ethernet module is needed; using two to provide redundancy
A131: Operator interfaces | B131: plc_interface | C131: 2 | D131: units | E131: Two to provide redundancy in the event of SCADA node failure
A132: UPSs | B132: ups | C132: 1 | D132: unit | E132: UPS protects the PLC system from undesired outages and surges that can adversely affect the performance of the PLC unit
A133: Computer workstations per x operators | B133: workstation_ratio | C133: 1 | D133: operator/workstation | E133: Minimum will always be one, but larger systems will have multiple workstations to control the system
A134: Number of shifts | B134: shifts_day | C134: 3 | D134: shifts/day | E134: Used to determine number of workstations
A135: Printers per x computer workstations | B135: printer_ratio | C135: 4 | D135: workstations/printer | E135: Minimum will always be one, but larger systems will have multiple printers
A137: Structure/Floorplan
A138: Maximum access space per tower or tank | B138: max_space_vessels | C138: 6 | D138: feet | E138: This is the MAXIMUM; space between towers and tanks defaults to tower or tank diameter, up to this maximum. Maximum provides space for sandblasting and painting for large tanks (5-8 feet per Richard E. Hubel, Peter Keenan, American Water Works Service Company).
A139: Access space for each pump/blower for large systems | B139: space_pumps_large | C139: 4 | D139: feet | E139: Used for both pumps and blowers; provide a minimum of 3 ft (1 m) of clear space around each item of equipment (American Water Works Association and American Society of Civil Engineers. Water Treatment Plant Design. Third Edition. New York: McGraw Hill, 1998. Pp. 695).
A140: Access space for each pump/blower for small systems | B140: space_pumps_small | C140: 0.5 | D140: feet
A141: Fire truck buffer requirements | B141: fire_buffer | C141: 40 | D141: feet
A142: Buffer space around other sides of buildings | B142: non_fire_buffer | C142: 10 | D142: feet
A143: Building height | B143: Building_height | C143: 20 | D143: feet
A144: Clearance space beneath the ceiling | B144: ceiling_clearance | C144: 3 | D144: feet | E144: Minimum space between the tops of storage tanks and the ceiling
A145: Office space per employee | B145: space_office | C145: 100 | D145: square ft
A146: Office space per employee for small systems | B146: space_office_small | C146: 0 | D146: square ft | E146: Small systems do not require office space
A147: Concrete pad thickness | B147: pad_thick | C147: =6/12 -> 0.5 | D147: feet
A148: Concrete pad thickness for small systems | B148: pad_thick_small | C148: =4/12 -> 0.3333333333 | D148: feet
A151: Valve Table
A152: Under assumptions below, valves are motorized for fully automated systems, manual for semi-automated and manual systems
A153: To change the degree of automation, the user may replace the numbers in each of the blue columns.
A154: Number of control valves of x type on y line per z | B154: Lookup name | C154: Manual | D154: Semi-auto | E154: Fully Auto | F154: Units
A155: Number of motor/air operated control valves on process line per tower | B155: proc_MOV_vessel | C155: 0 | D155: 0 | E155: 1 | F155: valves/tower
A156: Number of motor/air operated control valves on process line per booster pump | B156: proc_MOV_pump | C156: 0 | D156: 0 | E156: 2 | F156: valves/pump
A157: Number of motor/air operated control valves on air line per tower | B157: air_MOV_vessel | C157: 0 | D157: 0 | E157: 1 | F157: valves/tower
A158: Number of motor/air operated control valves on caustic lines per pump | B158: NaOH_MOV_pump | C158: 0 | D158: 0 | E158: 2 | F158: valves/pump
A159: Number of motor/air operated control valves on acid lines per pump | B159: HCl_MOV_pump | C159: 0 | D159: 0 | E159: 2 | F159: valves/pump
A160: Number of motor/air operated control valves on corrosion chemical lines per pump | B160: chem_MOV_pump | C160: 0 | D160: 0 | E160: 2 | F160: valves/pump
A161: Number of motor/air operated control valves on by-pass line | B161: tot_bp_MOVs | C161: 0 | D161: 0 | E161: 1 | F161: valves
A162: Number of motor/air operated control valves per day tank | B162: chem_mov_day | C162: 0 | D162: 0 | E162: 1 | F162: valves/tank
A163: Number of manual valves per day tank | B163: chem_man_day | C163: 1 | D163: 1 | E163: 0 | F163: valves/tank
A164: Number of motor/air operated control valves per offgas control unit | B164: air_MOV_og | C164: 0 | D164: 0 | E164: 1 | F164: valves/unit
A165: Additional motor/air operated control valves with offgas control | B165: add_MOV_og | C165: 0 | D165: 0 | E165: 1 | F165: valve
A166: Number of manual control valves on process line per tower | B166: proc_man_vessel | C166: 1 | D166: 1 | E166: 0 | F166: valves/tower | G166: For emergency direct venting
A167: Number of manual control valves on process line per booster pump | B167: proc_man_pump | C167: 2 | D167: 2 | E167: 0 | F167: valves/pump
A168: Number of manual control valves on air line per tower | B168: air_man_vessel | C168: 1 | D168: 1 | E168: 0 | F168: valves/tower
A169: Number of manual control valves on caustic lines per pump | B169: NaOH_man_pump | C169: 2 | D169: 2 | E169: 0 | F169: valves/pump
A170: Number of manual control valves on acid lines per pump | B170: HCl_man_pump | C170: 2 | D170: 2 | E170: 0 | F170: valves/pump
A171: Number of manual control valves on corrosion chemical lines per pump | B171: chem_man_pump | C171: 2 | D171: 2 | E171: 0 | F171: valves/pump
A172: Number of manual control valves on by-pass line | B172: tot_bp_man | C172: 1 | D172: 1 | E172: 0 | F172: valves
A173: Number of manual control valves per offgas control unit | B173: air_man_og | C173: 1 | D173: 1 | E173: 0 | F173: valves/unit
A174: Additional manual control valves with offgas control | B174: add_man_og | C174: 1 | D174: 1 | E174: 0 | F174: valve
G175: For emergency direct venting
A177: I/O Port Table
A178: Full automation includes all inputs and outputs, semi-automated uses inputs only, manual control uses neither
A179: To change the degree of automation, the user may replace the numbers in each of the blue columns.
A180: I/O Ports needed per…. | B180: Lookup name | C180: Discrete Inputs | D180: Discrete Outputs | E180: Analog Inputs | F180: Analog Outputs
A181: Alarm (including level switch/alarms, high/low alarms, low alarms) | B181: alarm | C181: 1 | D181: 1 | E181: 0 | F181: 0 | G181: Guidance
A182: Catalytic oxidizer | B182: CO | C182: 3 | D182: 2 | E182: 2 | F182: 1
A183: Air flow meter (rotameter) | B183: flow_air | C183: 0 | D183: 0 | E183: 1 | F183: 0 | G183: Air flow: 2 AI, 1 AO, Temperature controller: 1 DI, 1 DO, Automated shut down: 1 DI, 1 DO, LEL sensor: 1 DI
A184: Magnetic flow meter | B184: flow_mag | C184: 0 | D184: 0 | E184: 1 | F184: 0
A185: Orifice plate flow meter | B185: flow_op | C185: 0 | D185: 0 | E185: 2 | F185: 1
A186: Propeller flow meter | B186: flow_prop | C186: 0 | D186: 0 | E186: 1 | F186: 0 | G186: Additional analog input because flow meters include pressure gauges
A187: Venturi flow meter | B187: flow_ven | C187: 0 | D187: 0 | E187: 2 | F187: 1
A188: pH meter | B188: ph | C188: 0 | D188: 0 | E188: 1 | F188: 0 | G188: Additional analog input because flow meters include pressure gauges
A189: Drive controller | B189: switch | C189: 3 | D189: 1 | E189: 0 | F189: 0
A190: TDS monitor | B190: TDS | C190: 1 | D190: 0 | E190: 0 | F190: 0
A191: Temperature meter | B191: temp | C191: 0 | D191: 0 | E191: 1 | F191: 0
A192: Thermal oxidizer | B192: TO | C192: 3 | D192: 2 | E192: 2 | F192: 1
A193: Turbidity meter | B193: turb | C193: 0 | D193: 0 | E193: 1 | F193: 0 | G193: Air flow: 2 AI, 1 AO, Temperature controller: 1 DI, 1 DO, Automated shut down: 1 DI, 1 DO, LEL sensor: 1 DI
A194: Motor/air operated valve | B194: valve | C194: 0 | D194: 0 | E194: 1 | F194: 1

Sheet O&M Assumptions
A1: Default O&M Assumptions
A2: Users may change any of the cells in the Value column
A4: Assumption | B4: Range Name | C4: Value | D4: Units | E4: Guidance
A5: Materials
A6: Cost for parts & maintenance for pumps and blowers | B6: pump_maintenance | C6: 0.01 | D6: of capital cost | E6: For calculating cost of actual maintenance materials; not to be confused with depreciation; 5% would be too high (Richard E. Hubel, Peter Keenan, American Water Works Service Company, Inc)
A7: Cost for parts & maintenance for PTA towers | B7: PTA_maintenance | C7: 0.01 | D7: of capital cost | E7: For calculating cost of actual maintenance materials; not to be confused with depreciation; 4% would be too high, 1% is recommended (Homza peer review comments)
A9: Labor
A10: Mangerial LOE as a percent of average technical labor | B10: Manager_percent | C10: 0.1 | D10: fraction
A11: Administrative LOE as a percent of average technical labor | B11: Clerical_percent | C11: 0.1 | D11: fraction
A13: Operating LOE assumptions
A14: Minutes per instrument per day | B14: uloe_inst | C14: 5 | D14: min/day | E14: For manual systems only
A15: Recording operating paramenters for automated systems | B15: uloe_inst_auto | C15: 5 | D15: min/day | E15: For semiautomated and automated systems
A16: Minutes per pump, blower, and offgas unit per day | B16: uloe_pump | C16: 5 | D16: min/day | E16: For manual and semiautomated systems
A17: Minutes per valve per week | B17: uloe_valve | C17: 5 | D17: min/week | E17: For manual and semiautomated systems
A18: Minutes per 100 sf per day | B18: uloe_fp | C18: 1 | D18: min/100 sf/day
A19: Hours per media changeout | B19: uloe_throwaway | C19: 4 | D19: hours/bed/event | E19: For systems with GAC offgas treatment
A21: Maintenance LOE assumptions
A22: Maintenance LOE for instruments (includes calibration) | B22: uloe_inst_maint | C22: 10 | D22: min/month
A23: Maintenance LOE for pumps | B23: uloe_pump_maint | C23: 30.25 | D23: hours/year | E23: Based on vendor recommended maintenance activities; applied to large, frequently operated pumps only
A24: Maintenance LOE for valves | B24: uloe_valve_maint | C24: 5 | D24: min/year | E24: Applied to main process valves only
A25: Maintenance LOE for chemical supply systems | B25: uloe_chem_maint | C25: 120 | D25: min/month
A27: Energy
A28: Additional pump head required | B28: add_head | C28: 3.5 | D28: meters | E28: Pump head = tower packing height + clearwell depth + this addition
A29: Pump efficiency | B29: PUMP_EFF | C29: 0.75
A30: Blower efficiency | B30: BLOW_EFF | C30: 0.7
A32: Lighting and HVAC
A33: Lighting power per sf, low-quality buildings and sheds | B33: lighting_power_low | C33: 0.3 | D33: W/sf | E33: 0.3, 0.6, and 1.2 W/sf are the assumptions used for building capital costs
A34: Lighting power per sf, mid-quality buildings | B34: lighting_power_mid | C34: 0.6 | D34: W/sf
A35: Lighting power per sf, high-quality buildings | B35: lighting_power_high | C35: 1.2 | D35: W/sf
A37: Ventilation air change rate for pump room | B37: Air_changes_pump | C37: 20 | D37: air changes/hr | E37: Could be lower (annual average 3 changes/hr) in a northern climate
A38: Ventilation air change rate for chemical storage | B38: Air_changes_chem_storage | C38: 2 | D38: air changes/hr
A39: Ventilation air change rate for offices | B39: Air_changes_office | C39: 2 | D39: air changes/hr
A40: Pressure drop across the fan | B40: Fan_pressure_drop | C40: 0.25 | D40: lbs/ft2
E41: Number of days per year where natural ventilation is applicable cannot be greater than 365 days
A42: Number of mechanical ventilation days per year (small system) | B42: fan_days_small | C42: 90 | D42: days/year | E42: For small systems (<1 MGD)
A43: Number of mechanical ventilation days per year (medium system) | B43: fan_days_medium | C43: 120 | D43: days/year | E43: For medium systems (1 - 10 MGD)
A44: Number of mechanical ventilation days per year (large system) | B44: fan_days_large | C44: 185 | D44: days/year | E44: For large systems (> 10 MGD)
A46: R-value for walls | B46: R_wall | C46: 25 | D46: hr-sf-degF/BTU | E46: See Appendix E. If higher R-value materials are desired, user may also need to adjust the cost of building materials in cl.xls
A47: R-value for ceilings | B47: R_ceiling | C47: 49 | D47: hr-sf-degF/BTU | E47: See Appendix E. If higher R-value materials are desired, user may also need to adjust the cost of building materials in cl.xls
A48: Annual heating degree days | B48: heat_DD | C48: 4260 | D48: degree days | E48: Heating and cooling assumptions should be consistent with one another. Assumed values are for a climate that results in a total energy usage for heating and cooling equal to the national median.
A49: Annual cooling degree days | B49: cool_DD | C49: 1415 | D49: degree days | E49: Heating and cooling assumptions should be consistent with one another. Assumed values are for a climate that results in a total energy usage for heating and cooling equal to the national median.
A50: Heating ventilation/infiltration load | B50: heat_viload | C50: 168679 | D50: BTU/cfm | E50: Heating and cooling assumptions should be consistent with one another. Assumed values are for a climate that results in a total energy usage for heating and cooling equal to the national median.
A51: Cooling ventilation/infiltration load | B51: cool_viload | C51: 51771 | D51: BTU/cfm | E51: Heating and cooling assumptions should be consistent with one another. Assumed values are for a climate that results in a total energy usage for heating and cooling equal to the national median.
A52: Electric resistance heating efficiency | B52: resist_eff | C52: 0.98 | E52: See Appendix E
A53: Heat pump heating coefficient of performance | B53: COP | C53: 3.3 | E53: See Appendix E
A54: Natural gas non-condensing furnace efficiency | B54: gas_non_eff | C54: 0.85 | E54: See Appendix E
A55: Natural gas condensing furnace efficiency | B55: gas_eff | C55: 0.9 | E55: See Appendix E
A56: Standard oil furnace efficiency | B56: diesel_non_eff | C56: 0.82 | E56: See Appendix E
A57: Mid-efficiency oil furnace efficiency | B57: diesel_eff | C57: 0.9 | E57: See Appendix E
A58: Air conditioning EER | B58: EER | C58: 11.8 | D58: BTU/Whr | E58: See Appendix E
A59: Heat pump cooling mode EER | B59: hp_EER | C59: 11.8 | D59: BTU/Whr | E59: See Appendix E
A61: Heating oil heat content | B61: diesel_heat_content | C61: 139000 | D61: BTU/gal | E61: U.S. DOE, Energy Information Administration.

Sheet Indirect Assumptions
A1: Default Assumptions for Indirect and Add-On Costs
A2: Users may change any of the cells in the Value column
A4: Assumption | B4: Range Name | C4: Value | D4: Units | E4: Guidance
A5: Permits
A6: Include permit costs? | B6: include_permits | C6: 1 | D6: <--- enter 1 for yes, 0 for no
A7: Include NEPA compliance costs? | B7: include_NEPA | C7: 1 | D7: <--- enter 1 for default, enter 2 for yes, 3 for no | E7: Default of 1 means NEPA compliance is included only for systems that discharge to surface water. Selecting 2 means NEPA compliance will be included in all estimates. Selecting 3 means NEPA compliance will never be included.
A8: HCl strength to trigger RMP requirement | B8: HCl_strength_RMP | C8: 0.37
A9: HCl quantity to trigger RMP requirement | B9: HCl_quant_RMP | C9: 15000 | D9: lbs
A11: Pilot Study
A12: Include pilot study costs? | B12: include_pilot | C12: 1 | D12: <--- enter 1 for yes, 0 for no
A14: Mobilization and Demobilization
A15: Mobilization percentage for small systems | B15: mob_pct_small | C15: 0.05 | D15: of direct capital cost | E15: Typically 2-5% of the estimated construction cost. Enter 0% to exclude.
A16: Mobilization percentage for medium systems | B16: mob_pct_medium | C16: 0.04 | D16: of direct capital cost
A17: Mobilization percentage for large systems | B17: mob_pct_large | C17: 0.02 | D17: of direct capital cost
A19: Architectural Fees for Treatment Building
A20: Include architectural fee? | B20: include_arch | C20: 1 | D20: <--- enter 1 for yes, 0 for no | E20: Must be added to building cost. Change for special considerations. Includes structural, mechanical, and electrical engineering for building only.
A21: Include architectural fee for small systems? | B21: include_arch_small | C21: 0 | D21: <--- enter 1 for yes, 0 for no
A23: Installation, Transportatation, and O&P
A24: Installation, Transportatation, and O&P percentage | B24: inst_pct | C24: 0 | D24: of direct capital cost | E24: Included in line item unit costs. Add a percentage for special considerations such as a remote site or high cost location.
A26: Sitework
A27: Include sitework costs? | B27: include_sitework | C27: 1 | D27: <--- enter 1 for yes, 0 for no
A29: Yard Piping
A30: Include yard piping costs? | B30: include_yardpipe | C30: 1 | D30: <--- enter 1 for yes, 0 for no
A31: Frost depth | B31: frost | C31: 38 | D31: inches | E31: Should be consistent with (reflect same climate as) heating and cooling assumptions on O&M assumptions page
A32: Minimum trench depth to top of pipe | B32: min_trench_depth | C32: 36 | D32: inches | E32: US Army Corps of Engineers recommended minimum cover for distribution pipes of 2.5 ft in grassed areas, 3 ft if buried under pavement or roadways but not less than frost penetration depth (USACOE 1984)
A33: Soil density | B33: soil_dens | C33: 97 | D33: lb/cubic ft. | E33: Based on soil density of loamy sand (1.55 gm/cc)
A34: Coefficient of passive pressure | B34: Coeff_Kp | C34: 3
A35: Reduction factor | B35: Reduction | C35: 0.467
A36: Bedding depth below pipe | B36: bedding_depth | C36: 6 | D36: inches
A37: Bedding depth surrounding the pipe | B37: bedding_pct | C37: 0.25 | D37: of pipe diameter
A38: Trench inside angle | B38: trench_angle | C38: =RADIANS(45) -> 0.7853981634 | D38: radians
A39: Pipe length from water source to the boundary of the 10 foot buffer | B39: yard_in | C39: 0 | D39: feet | E39: Use if technology is first step in treatment process
A40: Pipe length the boundary of the 10 foot buffer to distribution network | B40: yard_out | C40: 0 | D40: feet | E40: Use if technology is last step in treatment process
A42: Geotechnical
A43: Include geotechnical costs for low cost systems? | B43: include_geo_low | C43: 0 | D43: <--- enter 1 for yes, 0 for no | E43: Note: geotechnical is always included when a clearwell is present, regardless of the numbers entered here, because of excavation requirements
A44: Include geotechnical costs for medium cost systems? | B44: include_geo_medium | C44: 0 | D44: <--- enter 1 for yes, 0 for no
A45: Include geotechnical costs for high cost systems? | B45: include_geo_high | C45: 1 | D45: <--- enter 1 for yes, 0 for no
A46: Test pit length | B46: pit_length | C46: 4 | D46: feet
A47: Test pit width | B47: pit_width | C47: 4 | D47: feet
A48: Test pit depth | B48: pit_depth | C48: 7 | D48: feet
A49: Borehole depth with no clearwell | B49: bore_depth_nobasin | C49: 10 | D49: feet
A50: Borehole depth for shallow clearwells | B50: bore_depth_min | C50: 25 | D50: feet
A51: Borehole depth for deep clearwells | B51: bore_depth_max | C51: 50 | D51: feet
A52: Basin excavation depth above which deeper boreholes are needed | B52: deep_bore_need | C52: 20 | D52: feet | E52: Large systems with deep basins require deeper investigation
A53: Basin excavation depth above which deeper boreholes are needed | B53: bore_need | C53: 2000 | D53: square feet | E53: Without clearwells, only large systems need boreholes
A54: Minimum number of boreholes | B54: min_holes | C54: 4
A55: Borehole needed every x square feet | B55: hole_per_sf | C55: 1000 | D55: square feet
A56: Boreholes per job | B56: hole_per_job | C56: 24 | D56: boreholes/job
A57: Linear feet bored per day | B57: hole_per_day | C57: 55.5 | D57: l.f./day | E57: RS Means Costworks 2001
A59: Standby Power
A60: Include standby power costs? | B60: include_standby | C60: 1 | D60: <--- enter 1 for yes, 0 for no
A61: Include standby power costs for small systems? | B61: include_standby_small | C61: 0 | D61: <--- enter 1 for yes, 0 for no
A62: Design safety factor for standby power | B62: std_safety_factor | C62: 0 | E62: Default 0%. Apply a percentage to increase standby power requirements.
A63: Include heating in standby power | B63: need_heat | C63: 0 | D63: <--- enter 1 for yes, 0 for no | E63: If a system uses gas or diesel heat, heating will not be included in standby power, regardless of this assumption.
A64: Include cooling in standby power | B64: need_cool | C64: 0 | D64: <--- enter 1 for yes, 0 for no | E64: If both heating and cooling are included, standby power requirements will be based on the maximum of the two
A65: Minimum standby power generator size | B65: min_standby | C65: 1.5 | D65: kW
A67: Electrical (including yard wiring)
A68: Electrical percentage | B68: elect_pct | C68: 0.1 | D68: of direct cost
A70: Instrumentation and Control
A71: Instrumentation and control percentage | B71: i_c_pct | C71: 0 | D71: of direct cost | E71: Included as a direct cost line item
A73: Contingency
A74: Include contingency costs for low cost systems? | B74: include_conting_low | C74: 0 | D74: <--- enter 1 for yes, 0 for no
A75: Include contingency costs for medium cost systems? | B75: include_conting_medium | C75: 0 | D75: <--- enter 1 for yes, 0 for no
A76: Include contingency costs for high cost systems? | B76: include_conting_high | C76: 1 | D76: <--- enter 1 for yes, 0 for no
A77: Technology complexity factor | B77: complexity | C77: 1 | E77: Technology-specific factor. See Appendices for details. Low complexity = 0.5; Average complexity = 1.0; High complexity = 1.5; Very high complexity = 2.0.
A79: Process Engineering
A80: Engineering percentage for small systems | B80: eng_pct_small | C80: 0.2 | D80: of direct capital cost | E80: Enter 0% to exclude
A81: Engineering percentage for medium systems | B81: eng_pct_medium | C81: 0.12 | D81: of direct capital cost
A82: Engineering percentage for large systems | B82: eng_pct_large | C82: 0.08 | D82: of direct capital cost
A84: Miscellaneous Allowance
A85: Miscellaneous allowance percentage | B85: misc_pct | C85: 0.1 | D85: of direct capital cost | E85: Enter 0% to exclude
A87: Legal, Fiscal, and Administrative
A88: Legal percentage | B88: legal_pct | C88: 0.02 | D88: of direct capital cost | E88: Enter 0% to exclude. Highly site-specific. Can range from 2-5% of equipment, installation, construction, electrical, and standby power.
A90: Sales Tax
A91: Sales tax percentage | B91: tax_pct | C91: 0 | D91: of direct capital cost | E91: May be exempt if constructed with public funds. May be as high as 7.25% of equipment and construction, with national average 4.75%.
A93: Financing during Construction
A94: Financing percentage | B94: finance_pct | C94: 0.05 | D94: of direct capital cost | E94: Enter 0% to exclude. Typically assumed to be one year's interest on capital cost.
A95: Financing percentage for small systems | B95: finance_pct_small | C95: 0 | D95: of direct capital cost | E95: Small system construction assumed to take less than one year
A97: Construction Management and General Contractor Overhead
A98: Builder's risk insurance percentage | B98: br_ins_pct | C98: 0.0034 | E98: Enter 0% to exclude. 0.34% is national average rate. RSMeans Building Construction Cost Data 2009, reference section R01100-070
A99: Include performance bond cost? | B99: include_bond | C99: 1 | D99: <--- enter 1 for yes, 0 for no
A100: Include construction management cost? | B100: include_cm | C100: 1 | D100: <--- enter 1 for yes, 0 for no
A102: Concrete Pad
A103: Include concrete pad in total capital cost? | B103: include_pad | C103: 1 | D103: <--- enter 1 for yes, 0 for no
A105: Heating Table (1=include heating in buildings and O&M, 0 = do not include heating)
A106: Component Level | B106: Range Name | C106: System Size
C107: Small (<1 mgd) | D107: Medium (1-10 mgd) | E107: Large (>10 mgd)
A108: low cost | B108: heating_table | C108: 0 | D108: 1 | E108: 1
A109: mid cost | C109: 1 | D109: 1 | E109: 1
A110: high cost | C110: 1 | D110: 1 | E110: 1
A111: Buildings less than 500 ft2 (other than those used for chlorine storage)
A112: low cost | B112: heating_table_shed | C112: 0 | D112: 0 | E112: 1
A113: mid cost | C113: 0 | D113: 0 | E113: 1
A114: high cost | C114: 1 | D114: 1 | E114: 1
A116: Cooling Table (1=include cooling in buildings and O&M, 0 = do not include cooling)
A117: Component Level | B117: Range Name | C117: System Size
C118: Small (<1 mgd) | D118: Medium (1-10 mgd) | E118: Large (>10 mgd)
A119: low cost | B119: cooling_table | C119: 0 | D119: 0 | E119: 1
A120: mid cost | C120: 0 | D120: 1 | E120: 1
A121: high cost | C121: 1 | D121: 1 | E121: 1
A122: Buildings less than 500 ft2 (other than those used for chlorine storage)
A123: low cost | B123: cooling_table_shed | C123: 0 | D123: 0 | E123: 0
A124: mid cost | C124: 0 | D124: 0 | E124: 0
A125: high cost | C125: 0 | D125: 0 | E125: 0

Sheet Offgas Assumptions
A1: Default Offgas Assumptions
A2: Users may change any of the cells in the Value column
A4: Assumption | B4: Range Name | C4: Value | D4: Units | E4: Guidance
A5: Specific heat of air | B5: cpa | C5: 1.01 | D5: kJ/kg-deg C | E5: Rough assumption to account for high temperature and relative humidity in this application
A7: GAC
A8: GAC Density | B8: GAC_density | C8: 30 | D8: lbs/cu ft | E8: Bulk density, not particle density. GAC density range of 22-30 lb/cubic ft; lignite GAC approximately 22 and bituminous GAC approximately 28 lb/cubic ft (Randal J. Braker, General Manager, Duck River Utility Commission)
A9: Redundant GAC beds | B9: NRD_GAC | C9: 0 | D9: units | E9: Most of the unit costs are for dual bed units, which should provide sufficient redundancy.
A10: Freundlich isotherm constant K for MTBE | B10: K | C10: 80 | D10: (mg/g)(L/mg)^1/n | E10: Ramakrishnan et al. (2004), assumes 20% relative humidity. See source for values at other relative humidity assumptions.
A11: Freundlich isotherm constant 1/n for MTBE | B11: 1_n | C11: 0.32 | E11: Ramakrishnan et al. (2004), assumes 20% relative humidity. See source for values at other relative humidity assumptions.
A12: Makeup carbon for off-site reactivation | B12: makeup_rate_off | C12: 0.3 | E12: Makeup carbon needs are higher for transport and reactivation off-site -- 30% (Richard E. Hubel, Peter Keenan, American Water Works Service Company).
A13: Miles to non-hazardous solid waste disposal site | B13: non_haz_miles | C13: 10 | D13: miles | E13: For spent carbon disposal
A15: Thermal Oxidizer
A16: Redundant TO units | B16: NRD_TO | C16: 0 | D16: units
A17: Excess air required | B17: TO_ex_air | C17: 2 | E17: Thermal oxidizers typically require 180% to 550% excess air
A18: Recuperative system heat recovery | B18: TO_rec_eff | C18: 0.7 | E18: U.S. EPA, 2006; CMRP, 2000
A19: Regenerative system heat recovery | B19: TO_reg_eff | C19: 0.95 | E19: U.S. EPA, 2006; CMRP, 2000; van der Vaart et al. 1994
A21: Catalytic Oxidizer
A22: Redundant CO units | B22: NRD_CO | C22: 0 | D22: units
A23: Excess air required | B23: CO_ex_air | C23: 2 | E23: Thermal oxidizers typically require 180% to 550% excess air
A24: Recuperative system heat recovery | B24: CO_rec_eff | C24: 0.7 | E24: U.S. EPA, 2006; CMRP, 2000
A25: Regenerative system heat recovery | B25: CO_reg_eff | C25: 0.95 | E25: U.S. EPA, 2006; CMRP, 2000; van der Vaart et al. 1994
A27: Contaminant Specific Assumptions Table | B27: og_contaminant_lookup
A28: Contaminant | B28: Heating Value | C28: GAC Bed Residence Time | D28: TO Operating Temperature | E28: CO Operating Temperature
B29: (BTU/gal) | C29: (sec) | D29: (deg C) | E29: (deg C)
A30: MTBE | B30: 93500 | C30: 3 | D30: 816 | E30: 288
A31: TCE | B31: 0 | C31: 6.4 | D31: 1093 | E31: 500
A32: PCE | B32: 0 | C32: 6.4 | D32: 1093 | E32: 500
A33: Vinyl Chloride | B33: 0 | C33: 6.4 | D33: 1093 | E33: 500
A34: Carbon Tetrachloride | B34: 0 | C34: 6.4 | D34: 1093 | E34: 500
A35: Benzene | B35: 0 | C35: 6.4 | D35: 1093 | E35: 500
A36: 1,2-Dichloropropane | B36: 0 | C36: 6.4 | D36: 1093 | E36: 500
A37: Methylene Chloride | B37: 0 | C37: 6.4 | D37: 1093 | E37: 500
A38: 1,2-Dichloroethane | B38: 0 | C38: 6.4 | D38: 1093 | E38: 500
A39: 1,3-Butadiene | B39: 0 | C39: 6.4 | D39: 1093 | E39: 500
A40: 1,1-Dichloroethane | B40: 0 | C40: 6.4 | D40: 1093 | E40: 500
A41: 1,1,1,2-Tetrachloroethane | B41: 0 | C41: 6.4 | D41: 1093 | E41: 500
A42: 1,1,2,2-Tetrachloroethane | B42: 0 | C42: 6.4 | D42: 1093 | E42: 500
A43: 1,2,3-Trichloropropane | B43: 0 | C43: 6.4 | D43: 1093 | E43: 500
A44: Other

Sheet Onda
A1: Onda Calculations
A3: Calculation | B3: Range Name | C3: Value | D3: Units | E3: Guidance
A4: Inputs
A5: Liquid Loading | C5: =L_LOAD -> 0.006586148313 | D5: m3/m2 s | E5: Calculated on tower design, displayed here for reference
A6: Air Loading | C6: =GAS_L -> 0.6125117931 | D6: m3/m2 s | E6: Calculated on tower design, for reference
A7: Operating temperature | B7: T | C7: =IF(T_units="degrees Centigrade",T_in+273.15,IF(T_units="degrees Fahrenheit",(T_in-32)*(5/9)+273.15,T_in)) -> 283 | D7: degrees Kelvin | E7: From Inputs
A8: Henry's Co-efficient for Onda | B8: ONDA_H | C8: =HENRY -> 0.187 | D8: atm m3/m3 | E8: From Inputs
A10: Calculated Values
A11: Reynold's number | B11: NR | C11: =PW*L_LOAD/(AP*UW) -> 32.08676684
A12: Froude number | B12: FR | C12: =(L_LOAD^2*AP)/(G) -> 0.0006942144635
A13: Weber number | B13: NW | C13: =(PW*L_LOAD^2)/(SW*AP) -> 0.003722452349
A14: Wetted Surface Area | B14: AW | C14: =AP*(1-EXP(-1.45*((SP/SW)^0.75)*(NR^0.1)*(FR^(-0.05))*(NW^0.2))) -> 64.1274882 | E14: Equation 18.56 from the Chemical Engineers Handbook, 5th Ed.
A15: Liquid phase Reynold's number | B15: NRW | C15: =(PW*L_LOAD)/(AW*UW) -> 78.55636538
A16: Schmidt number | B16: SCW | C16: =UW/(PW*DW) -> 2051.476141
A17: Air phase Reynold's number | B17: NRA | C17: =(+GAS_L*MWA)/(AP*UA*GO) -> 282.1705931
A18: Schmidt number | B18: SCA | C18: =UA/(PA*DA) -> 1.79158979
A19: Shape factor | B19: SHAPE | C19: =AP*DP -> 7.9756
A20: Liquid phase Sherwood number | B20: SHW | C20: =0.0051*(NRW^(2/3))*(SCW^(-0.5))*(SHAPE^0.4) -> 0.004739107292 | E20: Equation 18-55 from the Chemical Engineer's Handbook, 5th ed.
A21: Liquid phase co-efficient | B21: ONDA_KL | C21: =(SHW)/((PW)/(UW*G))^(1/3) -> 0.0001109314889 | D21: m/s
A22: Air phase Sherwood number | B22: SHA | C22: =5.23*(NRA^0.7)*(SCA^0.33)*(SHAPE^(-2)) -> 5.174899456 | E22: Equation 18-68 from the Chemical Engineer's Handbook, 5th ed.
A23: Air phase co-efficient | B23: ONDA_KG | C23: =(SHA)/((R_C*T/(AP*DA))) -> 0.0002801689321 | D23: kmole/m2 s atm
A24: Overall coefficient | B24: KLA | C24: =(AW/((1/ONDA_KL)+(1/(ONDA_KG*ONDA_H*R_C*TS/PS)))) -> 0.006499736747 | D24: /s
A25: Design Kla (with Safety Factor) | B25: DES_KLA | C25: =KLA/SF_KLA -> 0.004642669105 | D25: /s
A26: Diffusion coefficient through air | B26: DA | C26: =C44 -> 8.012130212e-06 | D26: m2/s | E26: Treybal; Eq. 2.37
A27: Diffusion coefficient through water | B27: DW | C27: =C53 -> 6.372934064e-10 | D27: m2/s | E27: Treybal: Eq. 2.44
A29: Diffusion Co-efficient Through Air Using the Wilke-Lee modification of the Hirschfelder-Bird-Spotz Method; Treybal Equation 2.37
A30: Inputs
A31: Temperature | C31: =T -> 283 | D31: Deg. Kelvin | E31: From Inputs, displayed here for reference
A32: Molecular Weight of Contaminant | B32: MW | C32: =MW_IN -> 131.39 | D32: kg/kilomole | E32: From Inputs
A33: Molar Volume of Contaminant | B33: MV | C33: =MV_IN -> 0.102 | D33: m3/kilomole | E33: From Inputs
A34: Boiling Point of Contaminant | B34: TB | C34: =TB_IN -> 359.7 | D34: Deg. Kelvin | E34: From Inputs
A35: Melting Point of Contaminant | B35: TM | C35: =TM_IN -> 0 | D35: Deg. Kelvin | E35: From Inputs
A37: Calculated Values
A38: X | B38: X | C38: =SQRT((1/MW)+(1/MWA)) -> 0.2051674631 | E38: Input to Equation 2.37, Treybal
A39: Radius | B39: Radius | C39: =1.18*(MV^(1/3)) -> 0.5513347899 | E39: Equation 2.38, Treybal
A40: Molecular separation at collision | B40: R_ab | C40: =(RA+RADIUS)/2 -> 0.461217395 | E40: Known as Rca in Cummins
A41: E_kc | B41: E_kc | C41: =IF(TB>0,1.15*TB,1.92*TM) -> 413.655 | E41: Input for estimating value of collision integral
A42: K_te | B42: Kt_e | C42: =T/(SQRT(E_KA*E_KC)) -> 1.569480859 | E42: Input for estimating value of collision integral
A43: Collision Integral | B43: F_KT_E | C43: =EXP(-0.33789+LN(KT_E)*(-0.44268+LN(KT_E)*(0.081488*LN(KT_E)*(-0.0070712)))) -> 0.5842194933 | E43: Input to Equation 2.37, Treybal, calculated from relation derived by Cummins
A44: Diffusion Co-efficient Through Air | C44: =0.0001*(1.084-0.249*X)*(T^1.5)*X/(P_S*(R_AB^2)*F_KT_E) -> 8.012130212e-06 | D44: m2/s
A46: Diffusion Co-efficient Through Water Using the Wilke and Chang Method recommended by Treybal (For Radon)
A47: Inputs
A48: Temperature | C48: =T -> 283 | E48: From Inputs, displayed here for reference
A49: Molar Volume of Compound | C49: =MV -> 0.102 | E49: From Inputs, displayed here for reference
A50: X_1 | B50: X_1 | C50: 7.4815e-16 | E50: Constant portion of the Wilke and Chang equation: 1.17E-16 * (2.26 * Molecular Weight of Water) ^ (1/2); where molecular weight of water = 18
A52: Calculated Value
A53: Diffusion Co-efficient Through Water, Dw | C53: =X_1*T/(UW*(MV^0.6)) -> 6.372934064e-10 | D53: m2/s

Sheet Tower Design
A1: Tower Design Calculations
A2: This sheet calculates the design size and other parameters of the PTA system
A4: Calculation | B4: Range Name | C4: Value | D4: Units | E4: Guidance
A5: From Inputs
A6: Maximum Design Flow (metric) | B6: Qw | C6: =IF(df_units="cubic meters/second",(1-bp_pct)*QW_IN,IF(df_units="MGD",(1-bp_pct)*QW_IN*0.04583,IF(df_units="gpm",(1-bp_pct)*QW_IN*0.04583*24*60/1000000,"Unspecified units"))) -> 0.0013749 | D6: m3/s | E6: Converted to SI units if entered in others by user
A7: Daily Production Flow (metric) | B7: Qwa | C7: =IF(af_units="cubic meters/second",(1-bp_pct)*QWA_IN,IF(af_units="MGD",(1-bp_pct)*QWA_IN*0.04583,IF(af_units="gpm",(1-bp_pct)*QWA_IN*0.04583*24*60/1000000,QWA_IN*QW))) -> 0.00032081 | D7: m3/s | E7: Converted to SI units if entered in others by user
A8: Design flow in MGD | B8: design_flow | C8: =QW/0.04583 -> 0.03 | D8: MGD | E8: Design flow expressed in MGD
A9: Average flow in MGD | B9: average_flow | C9: =QWA/0.04583 -> 0.007 | D9: MGD | E9: Average flow expressed in MGD
A10: Design Flow Rate | B10: design_flow_rate | C10: =(QW/0.04583)*1000000/(24*60) -> 20.83333333 | D10: gpm | E10: Design flow expressed in gpm
A11: Average Flow Rate | B11: average_flow_rate | C11: =(QWA/0.04583)*1000000/(24*60) -> 4.861111111 | D11: gpm | E11: Average flow expressed in gpm
A12: Bypass Flow Rate | B12: bp_flow_rate | C12: =bp_pct/(1-bp_pct)*Design_Flow_Rate -> 0 | D12: gpm
A13: Contaminant removal input type | B13: Units_rem | C13: =IF(Units_rem_I="percent removal",1,IF(Units_rem_I="treated water concentration",2,IF(Units_rem_I="calculate based on pH",3,0))) -> 2 | D13: <--- 1 for percent removal, 2 for treated water concentration, 3 for calculate based on pH
A14: Influent concentration | B14: Influent_conc | C14: =IF(AND(Units_rem=3,Influent_conc_I=""),CO2_max,Influent_conc_I) -> 5 | D14: =IF(contam_name="radon","pCi/L",IF(contam_name="carbon dioxide","mg/L","ug/L")) -> ug/L
A15: Target Percent Removal (from user input) | B15: Rem_in | C15: =IF(Units_rem=1,Rem_I,IF(Units_rem=2,1-Rem_I/Influent_conc,IF(Units_rem=3,IFERROR(Rem_in_CO2,"Error"),"Error"))) -> 0.9 | E15: Used by design macro
A16: Target Contaminant | B16: contam | C16: 4 | D16: <--- click here for list
A17: Target Contaminant Name | B17: contam_name | C17: =VLOOKUP(contam,contam_lookup,2) -> TCE
A18: Are available off-gas options valid for this contaminant? | B18: b_offgas_valid | C18: =VLOOKUP(contam,contam_lookup,3) -> TRUE
A19: Actual Percent Removal | B19: P_REM | C19: 0.9 | E19: Selected by design macro, may exceed user input target removal in systems that must be oversized for Radon
A21: Clearwell Size
A22: Access space per tower | B22: space_vessels | C22: =IF(D*3.28>max_space_vessels,max_space_vessels,ROUND(D*3.28,0)) -> 1 | D22: feet
A23: Working Volume | B23: W_vol | C23: =QW*AW_DET*60 -> 0.41247 | D23: m3 | E23: Based on the design flow and detention time
A24: Clearwell Length | B24: AirWell_L | C24: =IF(AW_DET=0,0,IF(TOT_COL=1,ROUND((D+2*space_vessels/3.28),2),IF(ROUND(SQRT(TOT_COL),3)=SQRT(TOT_COL),(ROUND(SQRT(((TOT_COL)*(D+space_vessels/3.28)^2)),0)/(D+space_vessels/3.28)*(D+space_vessels/3.28)+0.5*space_vessels),(ROUNDUP(SQRT(((TOT_COL)*(D+space_vessels/3.28)^2)),0)/(D+space_vessels/3.28)*(D+space_vessels/3.28)+0.5*space_vessels)))) -> 1.5 | D24: m
A25: Clearwell Width | B25: AirWell_W | C25: =IF(AW_DET=0,0,IF(TOT_COL=1,ROUND((D+2*space_vessels/3.28),2),IF(ROUND(SQRT(TOT_COL),3)=SQRT(TOT_COL),(ROUND(SQRT(((TOT_COL)*(D+space_vessels/3.28)^2)),0)/(D+space_vessels/3.28)*(D+space_vessels/3.28)+0.5*space_vessels),(ROUNDUP(SQRT(((TOT_COL)*(D+space_vessels/3.28)^2)),0)/(D+space_vessels/3.28)*(D+space_vessels/3.28)+0.5*space_vessels)))) -> 1.5 | D25: m
A26: Clearwell Depth | B26: AirWell_D | C26: =IF(AW_DET=0,0,freeboard/3.28+W_VOL/(AIRWELL_L*AIRWELL_W)) -> 1.097954146 | D26: m
A27: Clearwell Volume | B27: clearwell_gal | C27: =AIRWELL_L*AIRWELL_W*AIRWELL_D*264.2 -> 652.6788423 | D27: gal
A28: Concrete Volume | B28: Concrete_Vol | C28: =ROUNDUP((2*AIRWELL_D*AIRWELL_L+2*AIRWELL_D*AIRWELL_W+2*AIRWELL_W*AIRWELL_L)*1.2*conc_thick/3.28,0) -> 5 | D28: m3
A29: Concrete Volume in yards | B29: concrete_Vol_yd | C29: =CONCRETE_VOL*1.308 -> 6.54 | D29: cubic yd
A30: Excavation Volume in yards | B30: x_vol_yd | C30: =IF(AW_DET=0,0,ROUNDUP(((AIRWELL_W*3.28+overexcavate)*(AIRWELL_L*3.28+overexcavate)*(AIRWELL_D*3.28+overexcavate)+0.5*(3*(AIRWELL_D*3.28+overexcavate)*(AIRWELL_W*3.28+overexcavate)*(AIRWELL_D*3.28+overexcavate)))/27,0)) -> 52 | D30: cubic yd
A31: Backfill Volume in yards | B31: b_vol_yd | C31: =ROUNDUP(x_vol_yd-((AIRWELL_W*3.28)*(AIRWELL_L*3.28)*(AIRWELL_D*3.28))/27,0) -> 49 | D31: cubic yd
A33: Tower Design
A34: 1. Start with liquid loading of 25gpm and minimum feasible air to water ratio; macro modifies these to obtain realistic designs
A35: Liquid Loading | B35: L_Load | C35: 0.006586148313 | D35: m3/m2 - sec
A36: Ratio | B36: Ratio | C36: 93 | E36: Air to Water Ratio, selected by design macro
A38: 2. Calculate tower diameter using Cummins' approach
A39: Total Operating Area | B39: Tot_Area | C39: =QW/L_LOAD -> 0.2087563071 | D39: m2
A40: Maximum Tower Area, m2 | B40: Max_Area | C40: =Max_Area_cda -> 10.5 | D40: m2
A41: Minimum Tower Area, m2 | B41: Min_Area | C41: =Min_Area_cda -> 0.01825 | D41: m2
A42: Number of Operating Towers | B42: Num_col | C42: =IF(TOT_AREA>MAX_AREA,ROUNDUP(TOT_AREA/MAX_AREA,0),min_col) -> 2 | D42: units | E42: Rounded up to the next whole integer if greater than one as per Cummins
A43: Tower Diameter | B43: D | C43: =ROUND(SQRT((4*TOT_AREA)/(PI()*NUM_COL)),2) -> 0.36 | D43: m
A44: Number of redundant towers | B44: NRD_col | C44: =IF(NRD_I<>"",NRD_I,IF(design_flow>=1,IF(redund_freq=0,0,ROUNDUP(NUM_COL/redund_freq,0)),NRD_small)) -> 0 | D44: units
A45: Total Number of Towers (including redundancy) | B45: TOT_COL | C45: =NUM_COL+NRD_col -> 2 | D45: units
A47: 3. Calculate packing height using Cummins' approach
A48: Strip_Factor | B48: Strip_Factor | C48: =RATIO*DES_HENRY/OP_PRESS -> 12.42214286
A49: Design Henry | B49: Des_Henry | C49: =HENRY/SF_HENRY -> 0.1335714286 | D49: atm m3/m3 | E49: Henry with Safety Factor
A50: Design Kla | B50: Des_Kla | C50: =DES_KLA -> 0.004642669105 | D50: /s | E50: Calculated on Onda, displayed here for reference
A51: HTU | B51: HTU | C51: =L_LOAD/DES_KLA -> 1.418612476
A52: NTU | B52: NTU | C52: =IF(STRIP_FACTOR<=P_REM,1000000,(STRIP_FACTOR/(STRIP_FACTOR-1))*LN(((1/(1-P_REM))*(STRIP_FACTOR-1)+1)/(STRIP_FACTOR))) -> 2.422380164
A53: Packing Height | B53: Pack_ht | C53: =HTU*NTU -> 3.436418722 | D53: m
A55: 4. Calculate other design parameters
A56: Gas Loading | B56: G_Load | C56: =L_LOAD*RATIO -> 0.6125117931 | D56: m3/m2 . s
A57: Air_Flow | B57: Air_Flow | C57: =TOT_AREA*GAS_L -> 0.1278657 | D57: m3/s
A59: 5. Calculate air gradient using approach from Cummins' FNDel_p
A60: Conversion factor for N/m2 to psi | B60: N_m2_to_psi | C60: 0.000145
A61: Min_del_p | B61: Min_del_p | C61: 0.4 | D61: N/m2 (or pascal)
A62: Max_del_p | B62: Max_del_p | C62: 1500 | D62: N/m2 (or pascal)
A63: Air Gradient | B63: AIR_GRADIENT | C63: =AIR_GRADIENT -> 20.32142851 | D63: N/m2 . m | E63: Calculated below, displayed here for reference
A64: Air Pressure | B64: Air_P | C64: =AIR_GRADIENT*PACK_HT+500 -> 569.8329374 | D64: N/m2 . m
A65: Air Pressure in psi | B65: Air_P_psi | C65: =AIR_P*N_m2_to_psi -> 0.08262577592 | D65: psi | E65: Calculated for reference
A67: 6. Calculate additional tower dimensions
A68: Tower Volume | B68: col_vol | C68: =Shell_Height*AREA*264.17 -> 179.2282494 | D68: gal
A69: Shell Height | B69: Shell_height | C69: =ROUND(PACK_HT+Free_Board_Col,1) -> 6.5 | D69: m | E69: Packing Height plus freeboard above packing from CDA
A70: Area Per Tower | B70: Area | C70: =TOT_AREA/NUM_COL -> 0.1043781536 | D70: m2 | E70: Cross-sectional area per tower
A71: Number of redistribution rings | B71: N_R | C71: =IF(PACK_HT<=ring_space,0,ROUNDUP(PACK_HT/ring_space,0)-1) -> 1 | D71: units | E71: Changed from original Cummins design to round up, remove extra ring at top
A72: Total redistribution rings | B72: tot_R | C72: =N_R*TOT_COL -> 2 | D72: units
A74: 7. Calculate packing parameters
A75: Nominal packing size | B75: DP | C75: =Packing_size*(2.54/100) -> 0.0508 | D75: m | E75: Calculated based on packing size in Input
A76: Total Packing Volume | B76: Pv | C76: =PACK_HT*AREA*TOT_COL -> 0.7173740822 | D76: m3
A77: Total Packing Volume (cubic feet) | B77: Pv_ft | C77: =PV*(3.28)^3 -> 25.31437523 | D77: ft3
A79: Internal Use - Air Gradient Calculations | C79: From Cummins' FNDel_p -- actual air gradient found in final column
A80: Log_step | C80: =(LN(MAX_DEL_P)-LN(MIN_DEL_P))/2 -> 4.114755559 | D80: =C80*0.5 -> 2.05737778 | E80: 1.02868889 | F80: 0.5143444449 | G80: 0.2571722225 | H80: 0.1285861112 | I80: 0.06429305562 | J80: 0.03214652781 | K80: 0.0160732639 | L80: 0.008036631952 | M80: 0.004018315976 | N80: 0.002009157988 | O80: 0.001004578994 | P80: 0.000502289497 | Q80: 0.0002511447485 | R80: 0.0001255723743 | S80: 6.278618713e-05
A81: Air gradient | C81: =SQRT(MAX_DEL_P*MIN_DEL_P) -> 24.49489743 | D81: =C81*EXP(SIGN(L_LOAD-C94)*D80) -> 3.13016916 | E81: =D81*EXP(SIGN(L_LOAD-D94)*E80) -> 8.75632186 | F81: 14.64531344 | G81: 18.94031284 | H81: 21.53929015 | I81: 20.19804183 | J81: 20.8578878 | K81: 20.52531341 | L81: 20.36102008 | M81: 20.27936723 | N81: 20.32015264 | O81: 20.3405761 | P81: 20.33036181 | Q81: 20.32525659 | R81: 20.32270445 | S81: =R81*EXP(SIGN(L_LOAD-R94)*S80) -> 20.32142851 | T81: Air_Gradient | U81: N/m2 . m | V81: In Cummins model, this is called del_p but actually its air gradient
A82: Mass Ratio | C82: =RATIO*1.29/PW -> 0.1200060018 | D82: =RATIO*1.29/PW -> 0.1200060018 | E82: 0.1200060018 | F82: 0.1200060018 | G82: 0.1200060018 | H82: 0.1200060018 | I82: 0.1200060018 | J82: 0.1200060018 | K82: 0.1200060018 | L82: 0.1200060018 | M82: 0.1200060018 | N82: 0.1200060018 | O82: 0.1200060018 | P82: 0.1200060018 | Q82: 0.1200060018 | R82: 0.1200060018 | S82: 0.1200060018
A83: X_Axis | C83: =SQRT(PA/(PW-PA))/C82 -> 0.2944872164 | D83: =SQRT(PA/(PW-PA))/D82 -> 0.2944872164 | E83: 0.2944872164 | F83: 0.2944872164 | G83: 0.2944872164 | H83: 0.2944872164 | I83: 0.2944872164 | J83: 0.2944872164 | K83: 0.2944872164 | L83: 0.2944872164 | M83: 0.2944872164 | N83: 0.2944872164 | O83: 0.2944872164 | P83: 0.2944872164 | Q83: 0.2944872164 | R83: 0.2944872164 | S83: 0.2944872164 | T83: X_Axis | V83: X Axis in Treybal
A84: X_11 | C84: =LOG10(X_AXIS) -> -0.5309335531 | D84: =LOG10(D83) -> -0.5309335531 | E84: -0.5309335531 | F84: -0.5309335531 | G84: -0.5309335531 | H84: -0.5309335531 | I84: -0.5309335531 | J84: -0.5309335531 | K84: -0.5309335531 | L84: -0.5309335531 | M84: -0.5309335531 | N84: -0.5309335531 | O84: -0.5309335531 | P84: -0.5309335531 | Q84: -0.5309335531 | R84: -0.5309335531 | S84: -0.5309335531 | T84: X_11
A85: Y_11 | C85: =LOG10(C81) -> 1.389075625 | D85: 0.4955678083 | E85: 0.9423217167 | F85: 1.165698671 | G85: 1.277387148 | H85: 1.333231387 | I85: 1.305309267 | J85: 1.319270327 | K85: 1.312289797 | L85: 1.308799532 | M85: 1.3070544 | N85: 1.307926966 | O85: 1.308363249 | P85: 1.308145108 | Q85: 1.308036037 | R85: 1.307981501 | S85: =LOG10(AIR_GRADIENT) -> 1.307954234 | T85: Y_11
A86: Z | C86: -4.1088301 | D86: -4.1088301 | E86: -4.1088301 | F86: -4.1088301 | G86: -4.1088301 | H86: -4.1088301 | I86: -4.1088301 | J86: -4.1088301 | K86: -4.1088301 | L86: -4.1088301 | M86: -4.1088301 | N86: -4.1088301 | O86: -4.1088301 | P86: -4.1088301 | Q86: -4.1088301 | R86: -4.1088301 | S86: -4.1088301
A87: Z | C87: =Z-0.43342855*X_11 -> -3.87870834 | D87: =D86-0.43342855*D84 -> -3.87870834 | E87: -3.87870834 | F87: -3.87870834 | G87: -3.87870834 | H87: -3.87870834 | I87: -3.87870834 | J87: -3.87870834 | K87: -3.87870834 | L87: -3.87870834 | M87: -3.87870834 | N87: -3.87870834 | O87: -3.87870834 | P87: -3.87870834 | Q87: -3.87870834 | R87: -3.87870834 | S87: -3.87870834
A88: Z | C88: =C87-0.28514237*X_11*X_11 -> -3.959087247 | D88: =D87-0.28514237*D84*D84 -> -3.959087247 | E88: -3.959087247 | F88: -3.959087247 | G88: -3.959087247 | H88: -3.959087247 | I88: -3.959087247 | J88: -3.959087247 | K88: -3.959087247 | L88: -3.959087247 | M88: -3.959087247 | N88: -3.959087247 | O88: -3.959087247 | P88: -3.959087247 | Q88: -3.959087247 | R88: -3.959087247 | S88: -3.959087247
A89: Z | C89: =C88+1.2885509*Y_11 -> -2.1691926 | D89: =D88+1.2885509*D85 -> -3.320522902 | E89: -2.744857751 | F89: -2.457025176 | G89: -2.313108888 | H89: -2.241150744 | I89: -2.277129816 | J89: -2.25914028 | K89: -2.268135048 | L89: -2.272632432 | M89: -2.274881124 | N89: -2.273756778 | O89: -2.273194605 | P89: -2.273475692 | Q89: -2.273616235 | R89: -2.273686507 | S89: -2.273721642
A90: Z | C90: =C89-0.15087096*Y_11*Y_11 -> -2.460302809 | D90: =D89-0.15087096*D85*D85 -> -3.357574917 | E90: -2.87882667 | F90: -2.662036692 | G90: -2.559287738 | H90: -2.50932477 | I90: -2.534188629 | J90: -2.521727293 | K90: -2.527950609 | L90: -2.531067781 | M90: -2.532627745 | N90: -2.531847648 | O90: -2.531457686 | P90: -2.53165266 | Q90: -2.531750152 | R90: -2.5317989 | S90: -2.531823274
A91: Z | C91: =C90-0.17824779*X_11*Y_11 -> -2.328843841 | D91: =D90-0.17824779*D84*D85 -> -3.310675503 | E91: -2.78964748 | F91: -2.551717613 | G91: -2.438398715 | H91: -2.383150775 | I91: -2.410657119 | J91: -2.396874541 | K91: -2.403758478 | L91: -2.407205961 | M91: -2.408931081 | N91: -2.408068406 | O91: -2.407637155 | P91: -2.407852773 | Q91: -2.407960588 | R91: -2.408014496 | S91: -2.408041451
A92: Y_Axis | C92: =10^C91 -> 0.004689819831 | D92: 0.0004890176078 | E92: 0.001623127067 | F92: 0.002807258383 | G92: 0.003644192291 | H92: 0.004138559705 | I92: 0.003884569364 | J92: 0.00400982537 | K92: 0.003946767303 | L92: 0.003915561405 | M92: 0.003900038726 | N92: 0.003907793391 | O92: 0.003911675729 | P92: 0.003909734143 | Q92: 0.003908763663 | R92: 0.003908278501 | S92: 0.00390803594
A93: Test Gas Loading (compare to G_load) | C93: =SQRT(Y_AXIS*PA*(PW-PA)/(CF*UW^0.1))/1.296 -> 0.6709817512 | D93: =SQRT(D92*PA*(PW-PA)/(CF*UW^0.1))/1.296 -> 0.2166680515 | E93: 0.3947379573 | F93: 0.519127246 | G93: 0.5914707495 | H93: 0.6303144186 | I93: 0.610666463 | J93: 0.6204336711 | K93: 0.6155359039 | L93: 0.6130976464 | M93: 0.6118811709 | N93: 0.6124891877 | O93: 0.6127933618 | P93: 0.6126412609 | Q93: 0.6125652208 | R93: 0.6125272034 | S93: 0.6125081953 | U93: m3/m2 . s
A94: Test Liquid Loading (compare to L_load) | C94: =C93/RATIO -> 0.00721485754 | D94: 0.002329763995 | E94: 0.004244494165 | F94: 0.005582013398 | G94: 0.006359900532 | H94: 0.006777574394 | I94: 0.006566306054 | J94: 0.006671329796 | K94: 0.006618665634 | L94: 0.006592447811 | M94: 0.006579367429 | N94: 0.006585905244 | O94: 0.006589175933 | P94: 0.00658754044 | Q94: 0.006586722805 | R94: =R93/RATIO -> 0.006586314015 | S94: 0.006586109627 | U94: m3/m2 . s
A95: Range Check | C95: =IF(X_AXIS<0.015,"X_Axis Out of Range",IF(OR(C81<20,C81>1500),"Del_p Out of Range","Range is OK")) -> Range is OK | D95: =IF(D83<0.015,"X_Axis Out of Range",IF(OR(D81<20,D81>1500),"Del_p Out of Range","Range is OK")) -> Del_p Out of Range | E95: Del_p Out of Range | F95: Del_p Out of Range | G95: Del_p Out of Range | H95: Range is OK | I95: Range is OK | J95: Range is OK | K95: Range is OK | L95: Range is OK | M95: Range is OK | N95: Range is OK | O95: Range is OK | P95: Range is OK | Q95: Range is OK | R95: Range is OK | S95: =IF(S83<0.015,"X_Axis Out of Range",IF(OR(AIR_GRADIENT<20,AIR_GRADIENT>1500),"Del_p Out of Range","Range is OK")) -> Range is OK

Sheet Retrofit
A1: Retrofit Calculations
A3: Calculation | B3: Range Name | C3: Value | D3: Units | E3: Guidance
A4: 1. INITIAL CALCULATIONS
A5: Is this a retrofit design? | B5: retrofit | C5: =IF(retrofit_I="",0,1) -> 0 | D5: 1 = retrofit, 0 = new treatment system
A6: Is there a new contaminant? | B6: r_new_contam | C6: =IF(AND(retrofit=1,retrofit_I="retrofit for new contaminant"),1,0) -> 0 | D6: 1 = new contaminant, 0 = same contaminant
A7: Percent removal or treated water concentration? | B7: r_units_rem | C7: =IF(r_new_contam=1,IF(r_units_rem_I="percent removal",1,2),IF(Units_rem=3,1,Units_rem)) -> 2 | D7: 1 = percent removal, 2 = treated water concentration
A8: Influent concentration | B8: r_influent_conc | C8: =IF(r_new_contam=1,r_influent_conc_I,Influent_conc) -> 5 | D8: ug/L
A9: Percent removal for retrofit | B9: r_Rem_in | C9: =IF(r_units_rem=1,r_rem_I,IF(r_units_rem=2,1-r_rem_I/r_influent_conc,"Error")) -> 1
B10: r_P_REM | C10: =r_Rem_in -> 1
A11: Additional available height per tower | B11: r_xtraheight | C11: =IF(r_xtraheight_I="",0,IF(r_xtraheight_units="meters",r_xtraheight_I,IF(r_xtraheight_units="feet",r_xtraheight_I/3.28,IF(r_xtraheight_units="fraction",PACK_HT*r_xtraheight_I,"Error")))) -> 0 | D11: meters
A12: Design Henry's coefficient for retrofit | B12: r_DES_HENRY | C12: =IF(r_new_contam=1,r_Henry,HENRY)/SF_HENRY -> 0.1335714286 | D12: atm m3/m3
A13: Molecular weight for retrofit | B13: r_Mw | C13: =IF(r_new_contam=1,r_Mw_in,MW_IN) -> 131.39 | D13: kg/kilomole
A14: Molar volume for retrofit | B14: r_Mv | C14: =IF(r_new_contam=1,r_Mv_in,MV_IN) -> 0.102 | D14: m3/kilomole
A15: Boiling point for retrofit | B15: r_Tb | C15: =IF(r_new_contam=1,r_Tb_in,TB_IN) -> 359.7 | D15: degrees Kelvin
A16: Melting point for retrofit | B16: r_Tm | C16: =IF(r_new_contam=1,r_Tm_in,TM_IN) -> 0 | D16: degrees Kelvin
A18: 2. AIR TO WATER RATIO FOR RETROFIT
A19: Air to Water Ratio | B19: r_RATIO | C19: 35 | E19: Air to Water Ratio, selected by design macro
A20: Gas Loading | B20: r_G_Load | C20: =L_LOAD*r_RATIO -> 0.230515191 | D20: m3/m2 . s
A22: 3. ONDA CALCULATIONS
A23: Henry's Co-efficient for Onda | B23: r_ONDA_H | C23: =IF(r_new_contam=1,r_Henry,HENRY) -> 0.187 | D23: atm m3/m3 | E23: From Inputs
A24: Reynold's number | B24: r_NR | C24: =PW*L_LOAD/(AP*UW) -> 32.08676684
A25: Froude number | B25: r_FR | C25: =(L_LOAD^2*AP)/(G) -> 0.0006942144635
A26: Weber number | B26: r_NW | C26: =(PW*L_LOAD^2)/(SW*AP) -> 0.003722452349
A27: Wetted Surface Area | B27: r_AW | C27: =AP*(1-EXP(-1.45*((SP/SW)^0.75)*(r_NR^0.1)*(r_FR^(-0.05))*(r_NW^0.2))) -> 64.1274882 | E27: Equation 18.56 from the Chemical Engineers Handbook, 5th Ed.
A28: Liquid phase Reynold's number | B28: r_NRW | C28: =(PW*L_LOAD)/(r_AW*UW) -> 78.55636538
A29: X_1 | B29: r_X_1 | C29: 7.4815e-16 | E29: Constant portion of the Wilke and Chang equation: 1.17E-16 * (2.26 * Molecular Weight of Water) ^ (1/2); where molecular weight of water = 18
A30: Diffusion Co-efficient Through Water, Dw | B30: r_DW | C30: =r_X_1*T/(UW*(r_Mv^0.6)) -> 6.372934064e-10 | D30: m2/s | E30: Treybal; Eq. 2.37
A31: Schmidt number | B31: r_SCW | C31: =UW/(PW*r_DW) -> 2051.476141
A32: Air phase Reynold's number | B32: r_NRA | C32: =(r_G_Load*MWA)/(AP*UA*GO) -> 106.193234
A33: X | B33: r_X | C33: =SQRT((1/r_Mw)+(1/MWA)) -> 0.2051674631 | E33: Input to Equation 2.37, Treybal
A34: Radius | B34: r_Radius | C34: =1.18*(r_Mv^(1/3)) -> 0.5513347899 | E34: Equation 2.38, Treybal
A35: Molecular separation at collision | B35: r_R_ab | C35: =(RA+r_Radius)/2 -> 0.461217395 | E35: Known as Rca in Cummins
A36: E_kc | B36: r_E_kc | C36: =IF(r_Tb>0,1.15*r_Tb,1.92*r_Tm) -> 413.655 | E36: Input for estimating value of collision integral
A37: K_te | B37: r_Kt_e | C37: =T/(SQRT(E_KA*r_E_kc)) -> 1.569480859 | E37: Input for estimating value of collision integral
A38: Collision Integral | B38: r_F_KT_E | C38: =EXP(-0.33789+LN(r_Kt_e)*(-0.44268+LN(r_Kt_e)*(0.081488*LN(r_Kt_e)*(-0.0070712)))) -> 0.5842194933 | E38: Input to Equation 2.37, Treybal, calculated from relation derived by Cummins
A39: Diffusion Co-efficient Through Air | B39: r_DA | C39: =0.0001*(1.084-0.249*r_X)*(T^1.5)*X/(P_S*(r_R_ab^2)*r_F_KT_E) -> 8.012130212e-06 | D39: m2/s | E39: Treybal: Eq. 2.44
A40: Schmidt number | B40: r_SCA | C40: =UA/(PA*r_DA) -> 1.79158979
A41: Nominal packing size | B41: r_DP | C41: =Packing_size*(2.54/100) -> 0.0508
A42: Shape factor | B42: r_SHAPE | C42: =AP*r_DP -> 7.9756 | D42: m2/s
A43: Liquid phase Sherwood number | B43: r_SHW | C43: =0.0051*(r_NRW^(2/3))*(r_SCW^(-0.5))*(r_SHAPE^0.4) -> 0.004739107292 | E43: Equation 18-55 from the Chemical Engineer's Handbook, 5th ed.
A44: Liquid phase co-efficient | B44: r_ONDA_KL | C44: =(r_SHW)/((PW)/(UW*G))^(1/3) -> 0.0001109314889 | D44: meters
A45: Air phase Sherwood number | B45: r_SHA | C45: =5.23*(r_NRA^0.7)*(r_SCA^0.33)*(r_SHAPE^(-2)) -> 2.611027724 | E45: Equation 18-68 from the Chemical Engineer's Handbook, 5th ed.
A46: Air phase co-efficient | B46: r_ONDA_KG | C46: =(r_SHA)/((R_C*T/(AP*r_DA))) -> 0.0001413609782
A47: Overall coefficient | B47: r_KLA | C47: =(r_AW/((1/r_ONDA_KL)+(1/(r_ONDA_KG*r_ONDA_H*R_C*TS/PS)))) -> 0.00599188987
A48: Design Kla (with Safety Factor) | B48: r_DES_KLA | C48: =r_KLA/SF_KLA -> 0.004279921336
A50: 4. PACKING HEIGHT REQUIRED FOR RETROFIT
A51: Strip Factor | B51: r_Strip_Factor | C51: =r_RATIO*r_DES_HENRY/OP_PRESS -> 4.675
A52: HTU | B52: r_HTU | C52: =L_LOAD/r_DES_KLA -> 1.538847982
A53: NTU | B53: r_NTU | C53: =IF(retrofit=0,0,IF(r_Strip_Factor<=r_P_REM,1000000,(r_Strip_Factor/(r_Strip_Factor-1))*LN(((1/(1-r_P_REM))*(r_Strip_Factor-1)+1)/(r_Strip_Factor)))) -> 0
A54: New packing height required | B54: r_Pack_ht | C54: =r_HTU*r_NTU -> 0 | D54: meters
A55: Check | B55: r_Check_Pack | C55: =IF(r_Pack_ht<=(PACK_HT+r_xtraheight),TRUE,FALSE) -> TRUE | E55: Used by design macro
A56: Packing height for retrofit | B56: New_Pack_ht | C56: =MAX(r_Pack_ht,PACK_HT) -> 3.436418722 | D56: meters | E56: Assume the system won't remove any packing, even if new ratio allows slightly less packing height
A58: 5. AIR GRADIENT CALCULATIONS
A59: Min_del_p | B59: Min_del_p | C59: =MIN_DEL_P -> 0.4 | D59: N/m2 or pascal | E59: From tower design page, shown here for reference
A60: Max_del_p | B60: Max_del_p | C60: =MAX_DEL_P -> 1500 | D60: N/m2 or pascal | E60: From tower design page, shown here for reference
A61: Air Gradient | B61: r_Air_Gradient | C61: =r_Air_Gradient -> 4.684396797 | D61: N/m2 . m | E61: Calculated below, displayed here for reference
A62: Check | B62: Check_Gradient | C62: =IF(r_Air_Gradient<20,FALSE,TRUE) -> FALSE | E62: Used by design macro
A63: Air Pressure | B63: r_Air_P | C63: =r_Air_Gradient*New_Pack_ht+500 -> 516.0975489 | D63: N/m2 . m
A64: Air Pressure in psi | B64: r_Air_P_psi | C64: =r_Air_P*N_m2_to_psi -> 0.07483414458 | D64: psi | E64: Calculated for reference
A66: 6. EQUIPMENT CALCULATIONS
A67: New Blowers
A68: Design air flow | B68: r_Air_Flow | C68: =TOT_AREA*r_G_Load -> 0.0481215 | D68: m3/s
A69: Design air flow | B69: r_design_air_flow | C69: =r_Air_Flow*35.31*60 -> 101.9502099 | D69: cfm
A70: Flow per blower | B70: r_Q_Blower | C70: =IF(parallel_I="",MIN(MAX(r_design_air_flow*average_flow/design_flow,r_design_air_flow/2),max_blow_size),r_design_air_flow/parallel_I) -> 50.97510495 | D70: cfm
A71: Number of operating blowers | B71: r_Parallel | C71: =IF(r_RATIO=RATIO,0,ROUNDUP(r_design_air_flow/r_Q_Blower,0)) -> 2 | D71: units
A72: Total blowers | B72: r_tot_blowers | C72: =IF(r_Parallel=0,0,r_Parallel+NRD_blower) -> 2 | D72: units | E72: Includes redundancy
A74: Incremental materials for blowers | B74: r_blow_materials | C74: =IF(r_tot_blowers=0,0,pump_maintenance*(SUMPRODUCT(OUTPUT!J271:J272,OUTPUT!L271:L272)-SUMPRODUCT(OUTPUT!J66:J67,OUTPUT!L271:L272))) -> 0
A76: Incremental blowers for O&M | B76: r_blowers_added | C76: =IF(r_Parallel=0,0,r_Parallel-PARALLEL) -> 0 | D76: units
A77: Incremental labor hours for blowers | B77: r_blower_labor | C77: =IF(OR(manual=1,manual=2),r_blowers_added*uloe_pump*365/60,0)+r_blowers_added*uloe_pump_maint -> 0 | D77: hr/yr | E77: Includes both operation and maintenance
A79: Incremental daily air flow | B79: r_Daily_Air | C79: =(r_Air_Flow-AIR_FLOW)*QWA/QW -> -0.01860698 | D79: m3/s
A80: Incremental operating power | B80: r_blower_pwr | C80: =r_Daily_Air*(r_Air_P/BLOW_EFF) -> -13.71859539 | D80: Watts
A81: Incremental energy for all active blowers | B81: r_blow_energy | C81: =r_blower_pwr*24*365/1000000 -> -0.1201748956 | D81: MWhr/yr
A83: Additonal Packing
A84: Additional packing volume | B84: r_Pv | C84: =New_Pack_ht*AREA*TOT_COL-PV -> 0 | D84: m3
A85: Additional packing volume (cubic feet) | B85: r_Pv_ft | C85: =r_Pv*(3.28)^3 -> 0 | D85: ft3
A87: Incremental Equipment
A88: Incremental packing height increase | B88: r_pack_ht_added | C88: =New_Pack_ht-PACK_HT -> 0 | D88: meters
A89: New shell height | B89: r_Shell_height | C89: =Shell_Height+r_xtraheight -> 6.5 | D89: meters
A90: New tower volume | B90: r_col_vol | C90: =r_Shell_height*AREA*264.17 -> 179.2282494 | D90: gal
A92: Original actual ring space | B92: r_ring_space | C92: =Shell_Height/(N_R+1) -> 3.25 | D92: meters
A93: in feet | B93: r_ring_space_ft | C93: =ROUNDUP(r_ring_space*3.28,1) -> 10.7 | D93: feet
A94: Additional redistribution rings per tower | B94: r_N_R | C94: =IF(r_xtraheight<=r_ring_space,0,ROUNDUP(r_xtraheight/r_ring_space,0)-1) -> 0 | D94: units
A95: Total additional redistribution rings | B95: r_tot_R | C95: =r_N_R*TOT_COL -> 0 | D95: units
A97: Incremental process pipe length | B97: r_proc_pipe_length | C97: =r_xtraheight*3.28*TOT_COL -> 0 | D97: feet
A99: Incremental materials for towers | B99: r_pta_materials | C99: =PTA_maintenance*SUMPRODUCT(OUTPUT!J275:J280,OUTPUT!L275:L280) -> 0
A101: Incremental pump operating head | B101: r_Head_O | C101: =r_pack_ht_added -> 0 | D101: m - H20
A102: Incremental pressure head | B102: r_Press_H | C102: =r_Head_O*PW*G -> 0 | D102: N/m2
A103: Incremental pump operating power | B103: r_PWR | C103: =IF(NUM_OF_PUMPS=0,0,QWA*(1+bp_pct)*(r_Press_H/PUMP_EFF)) -> 0 | D103: Watts
A104: Incremental energy for all active booster pumps | B104: r_pump_energy | C104: =r_PWR*24*365/1000000 -> 0 | D104: MWhr/yr
A106: Incremental lighting | B106: r_lighting | C106: =MIN(1,(r_blower_labor+Operator_LOE)/(24*365))*(total_fp*lighting_energy_1)/1000-lighting -> 0 | D106: MWhr/yr | E106: If operator labor increases, lighting usage will increase
A108: Standby Power
A109: Additional standby power for new blowers | B109: r_std_power_blow | C109: =r_blow_energy*design_flow/average_flow/365/24*1000 -> -0.05879398022 | D109: kW
A110: Supplemental standby generator cost | C110: =IF(ISERROR(VLOOKUP(r_std_power_blow,std_gen_cost_cl,3)),0,VLOOKUP(r_std_power_blow,std_gen_cost_cl,3)*r_std_power_blow) -> 0
A112: Incremental standby power useage for pumps | C112: =r_pump_energy*design_flow/average_flow/365/24*1000 -> 0 | D112: kW
A113: Total standby power required | B113: r_std_power_pumps | C113: =std_power+C112 -> 1.5 | D113: kW
A114: Total standby power cost | C114: =VLOOKUP(r_std_power_pumps,std_gen_cost_cl,3)*r_std_power_pumps -> 990
A115: Incremental standby power cost for pumps (opportunity cost) | C115: =C114-std_power_cost -> 0
A117: Retrofit standby power cost | B117: r_std_power_cost | C117: =C115+C110 -> 0
A119: Internal Use - Air Gradient Calculations | C119: From Cummins' FNDel_p -- actual air gradient found in final column
A120: Log_step | C120: =(LN(MAX_DEL_P)-LN(MIN_DEL_P))/2 -> 4.114755559 | D120: =C120*0.5 -> 2.05737778 | E120: 1.02868889 | F120: 0.5143444449 | G120: 0.2571722225 | H120: 0.1285861112 | I120: 0.06429305562 | J120: 0.03214652781 | K120: 0.0160732639 | L120: 0.008036631952 | M120: 0.004018315976 | N120: 0.002009157988 | O120: 0.001004578994 | P120: 0.000502289497 | Q120: 0.0002511447485 | R120: 0.0001255723743 | S120: 6.278618713e-05
A121: Air gradient | C121: =SQRT(MAX_DEL_P*MIN_DEL_P) -> 24.49489743 | D121: =C121*EXP(SIGN(L_LOAD-C134)*D120) -> 3.13016916 | E121: =D121*EXP(SIGN(L_LOAD-D134)*E120) -> 8.75632186 | F121: 5.235338446 | G121: 4.0481471 | H121: 4.603631192 | I121: 4.909334717 | J121: 4.754026339 | K121: 4.678224443 | L121: 4.715973094 | M121: 4.697060847 | N121: 4.687633184 | O121: 4.682926451 | P121: 4.685279226 | Q121: 4.684102691 | R121: 4.684690922 | S121: =R121*EXP(SIGN(L_LOAD-R134)*S120) -> 4.684396797 | T121: Air_Gradient | U121: N/m2 . m | V121: In Cummins model, this is called del_p but actually it's air gradient
A122: Mass Ratio | C122: =r_RATIO*1.29/PW -> 0.04516354906 | D122: 0.04516354906 | E122: 0.04516354906 | F122: 0.04516354906 | G122: 0.04516354906 | H122: 0.04516354906 | I122: 0.04516354906 | J122: 0.04516354906 | K122: 0.04516354906 | L122: 0.04516354906 | M122: 0.04516354906 | N122: 0.04516354906 | O122: 0.04516354906 | P122: 0.04516354906 | Q122: 0.04516354906 | R122: 0.04516354906 | S122: 0.04516354906
A123: X_Axis | C123: =SQRT(PA/(PW-PA))/C122 -> 0.7824946035 | D123: 0.7824946035 | E123: 0.7824946035 | F123: 0.7824946035 | G123: 0.7824946035 | H123: 0.7824946035 | I123: 0.7824946035 | J123: 0.7824946035 | K123: 0.7824946035 | L123: 0.7824946035 | M123: 0.7824946035 | N123: 0.7824946035 | O123: 0.7824946035 | P123: 0.7824946035 | Q123: 0.7824946035 | R123: 0.7824946035 | S123: 0.7824946035 | T123: X_Axis | V123: X Axis in Treybal
A124: X_11 | C124: =LOG10(C123) -> -0.1065186489 | D124: =LOG10(D123) -> -0.1065186489 | E124: -0.1065186489 | F124: -0.1065186489 | G124: -0.1065186489 | H124: -0.1065186489 | I124: -0.1065186489 | J124: -0.1065186489 | K124: -0.1065186489 | L124: -0.1065186489 | M124: -0.1065186489 | N124: -0.1065186489 | O124: -0.1065186489 | P124: -0.1065186489 | Q124: -0.1065186489 | R124: -0.1065186489 | S124: -0.1065186489 | T124: X_11
A125: Y_11 | C125: =LOG10(C121) -> 1.389075625 | D125: 0.4955678083 | E125: 0.9423217167 | F125: 0.7189447625 | G125: 0.6072562854 | H125: 0.6631005239 | I125: 0.6910226432 | J125: 0.6770615836 | K125: 0.6700810538 | L125: 0.6735713187 | M125: 0.6718261862 | N125: 0.67095362 | O125: 0.6705173369 | P125: 0.6707354784 | Q125: 0.6706264076 | R125: 0.670680943 | S125: =LOG10(AIR_GRADIENT) -> 1.307954234 | T125: Y_11
A126: Z | C126: -4.1088301 | D126: -4.1088301 | E126: -4.1088301 | F126: -4.1088301 | G126: -4.1088301 | H126: -4.1088301 | I126: -4.1088301 | J126: -4.1088301 | K126: -4.1088301 | L126: -4.1088301 | M126: -4.1088301 | N126: -4.1088301 | O126: -4.1088301 | P126: -4.1088301 | Q126: -4.1088301 | R126: -4.1088301 | S126: -4.1088301
A127: Z | C127: =C126-0.43342855*C124 -> -4.062661876 | D127: =D126-0.43342855*D124 -> -4.062661876 | E127: -4.062661876 | F127: -4.062661876 | G127: -4.062661876 | H127: -4.062661876 | I127: -4.062661876 | J127: -4.062661876 | K127: -4.062661876 | L127: -4.062661876 | M127: -4.062661876 | N127: -4.062661876 | O127: -4.062661876 | P127: -4.062661876 | Q127: -4.062661876 | R127: -4.062661876 | S127: -4.062661876
A128: Z | C128: =C127-0.28514237*C124*C124 -> -4.065897165 | D128: =D127-0.28514237*D124*D124 -> -4.065897165 | E128: -4.065897165 | F128: -4.065897165 | G128: -4.065897165 | H128: -4.065897165 | I128: -4.065897165 | J128: -4.065897165 | K128: -4.065897165 | L128: -4.065897165 | M128: -4.065897165 | N128: -4.065897165 | O128: -4.065897165 | P128: -4.065897165 | Q128: -4.065897165 | R128: -4.065897165 | S128: -4.065897165
A129: Z | C129: =C128+1.2885509*C125 -> -2.276002518 | D129: =D128+1.2885509*D125 -> -3.42733282 | E129: -2.851667669 | F129: -3.139500244 | G129: -3.283416532 | H129: -3.211458388 | I129: -3.175479316 | J129: -3.193468852 | K129: -3.20246362 | L129: -3.197966236 | M129: -3.200214928 | N129: -3.201339274 | O129: -3.201901447 | P129: -3.201620361 | Q129: -3.201760904 | R129: -3.201690632 | S129: -2.38053156
A130: Z | C130: =C129-0.15087096*C125*C125 -> -2.567112727 | D130: =D129-0.15087096*D125*D125 -> -3.464384835 | E130: -2.985636588 | F130: -3.217482663 | G130: -3.339051737 | H130: -3.277796697 | I130: -3.247522055 | J130: -3.262629969 | K130: -3.270205982 | L130: -3.266416138 | M130: -3.2683106 | N130: -3.269258176 | O130: -3.26973205 | P130: -3.269495106 | Q130: -3.269613576 | R130: -3.269554341 | S130: -2.638633192
A131: Z | C131: =C130-0.17824779*C124*C125 -> -2.540738745 | D131: =D130-0.17824779*D124*D125 -> -3.454975631 | E131: -2.967744996 | F131: -3.203832265 | G131: -3.327521936 | H131: -3.265206597 | I131: -3.234401805 | J131: -3.249774795 | K131: -3.257483345 | L131: -3.253627232 | M131: -3.255554829 | N131: -3.256518972 | O131: -3.257001129 | P131: -3.256760043 | Q131: -3.256880585 | R131: -3.256820314 | S131: -2.613799439
A132: Y_Axis | C132: =10^C131 -> 0.002879129867 | D132: 0.0003507715562 | E132: 0.001077097467 | F132: 0.0006254141962 | G132: 0.0004704116452 | H132: 0.0005429919644 | I132: 0.0005829055557 | J132: 0.0005626330051 | K132: 0.0005527346053 | L132: 0.0005576642037 | M132: 0.0005551945206 | N132: 0.000553963344 | O132: 0.0005533486702 | P132: 0.000553655931 | Q132: 0.0005535022815 | R132: 0.0005535791015 | S132: 0.002433327481
A133: Test Gas Loading (compare to G_load) | C133: =SQRT(C132*PA*(PW-PA)/(CF*UW^0.1))/1.296 -> 0.5257306013 | D133: =SQRT(D132*PA*(PW-PA)/(CF*UW^0.1))/1.296 -> 0.1835036953 | E133: 0.3215586018 | F133: 0.2450284411 | G133: 0.2125062275 | H133: 0.2283123114 | I133: 0.2365547792 | J133: 0.232404874 | K133: 0.2303514536 | L133: 0.2313763754 | M133: 0.2308634679 | N133: 0.2306073491 | O133: 0.2304793735 | P133: 0.2305433543 | Q133: 0.2305113622 | R133: 0.2305273578 | S133: 0.4833179335 | U133: m3/m2 . s
A134: Test Liquid Loading (compare to L_load) | C134: =C133/r_RATIO -> 0.01502087432 | D134: 0.005242962721 | E134: 0.009187388623 | F134: 0.007000812602 | G134: 0.006071606499 | H134: 0.006523208896 | I134: 0.006758707978 | J134: 0.006640139259 | K134: 0.006581470103 | L134: 0.006610753584 | M134: 0.006596099082 | N134: 0.006588781404 | O134: 0.006585124956 | P134: 0.006586952981 | Q134: 0.006586038919 | R134: 0.006586495937 | S134: 0.01380908381 | U134: m3/m2 . s
A135: Range Check | C135: =IF(X_AXIS<0.015,"X_Axis Out of Range",IF(OR(C121<20,C121>1500),"Del_p Out of Range","Range is OK")) -> Range is OK | D135: =IF(D123<0.015,"X_Axis Out of Range",IF(OR(D121<20,D121>1500),"Del_p Out of Range","Range is OK")) -> Del_p Out of Range | E135: Del_p Out of Range | F135: Del_p Out of Range | G135: Del_p Out of Range | H135: Del_p Out of Range | I135: Del_p Out of Range | J135: Del_p Out of Range | K135: Del_p Out of Range | L135: Del_p Out of Range | M135: Del_p Out of Range | N135: Del_p Out of Range | O135: Del_p Out of Range | P135: Del_p Out of Range | Q135: Del_p Out of Range | R135: Del_p Out of Range | S135: =IF(S123<0.015,"X_Axis Out of Range",IF(OR(AIR_GRADIENT<20,AIR_GRADIENT>1500),"Del_p Out of Range","Range is OK")) -> Range is OK

Sheet CO2 Removal
A1: Carbon Dioxide Removal Calculations
A2: This sheet is used when the design targets carbon dioxide removal for pH adjustment
A4: Calculation | B4: Range Name | C4: Value | D4: Units | E4: Guidance
A5: Equilibrium constant for carbonic acid dissociation | B5: log_K1 | C5: =VLOOKUP(T-273,log_K1_lookup,3) -> -6.46 | E5: Relationship 11, Table 3, Lytle et al., 1998
A6: Maximum initial dissolved CO2 concentration | B6: CO2_max | C6: =IF(Units_rem<>3,"NA",44010*(alk_I/50045)/(10^(pH_i+log_K1))) -> NA | D6: mg/L | E6: Equation 5, Table 3, Lytle et al., 1998
A7: Target treated water CO2 | B7: CO2_f | C7: =IF(contam_name<>"carbon dioxide","NA",IF(Units_rem=1,Influent_conc*(1-Rem_I),IF(Units_rem=2,Rem_I,10^(pH_i-pH_f)*Influent_conc))) -> NA | D7: mg/L | E7: Based on Equation 1 in text and Equation 3 in Table 3, Lytle et al., 1998
A8: Minimum CO2 achievable at equilibrium | B8: CO2_min | C8: =VLOOKUP(T-273,min_CO2_lookup,3) -> 0.71 | D8: mg/L | E8: Relationship 10, Table 3, Lytle et al., 1998
A9: Percent removal required to achieve desired pH | B9: Rem_in_CO2 | C9: =IF(Units_rem<>3,"NA",(Influent_conc-CO2_f)/Influent_conc) -> NA
A10: Percent removal of removable CO2 | B10: Rem_removableCO2 | C10: =IF(contam_name<>"carbon dioxide","NA",(Influent_conc-CO2_f)/(Influent_conc-CO2_min)) -> NA | E10: Accounting for equilibrium with atmosphere

Sheet Chemical Use
A1: Chemical Use and Storage Calculations
A3: Calculation | B3: Range Name | C3: Value | D3: Units | E3: Guidance
A4: Chemicals Used | E4: Based on critical design assumptions, except when CO2 is the target
A5: Corrosion control chemical chosen | B5: chem_type | C5: =IF(contam_name="carbon dioxide",1,chem_type_default) -> 2 | D5: <-- 1 for no corrosion control chemical, 2 for sodium hexametaphosphate, 3 for tetrasodium pyrophosphate
A6: Type of acid | B6: acid_type | C6: =IF(contam_name="carbon dioxide",1,acid_type_default) -> 1 | D6: <-- 1 for no acid addition, 2 for HCl, 3 for H2SO4
A8: Maximum Sizes
A9: Maximum chemical storage tank size | B9: max_ctank_size | C9: =MAX(VLOOKUP(10^6,fg_cst_cost_cl,1)-1,VLOOKUP(10^6,pl_cst_cost_cl,1)-1,VLOOKUP(10^6,ss_cst_cost_cl,1)-1) -> 30000 | D9: gal | E9: The largest size for which costs are available
A10: Maximum chemical storage tank size excluding stainless steel | B10: max_ctank_size_noSS | C10: =MAX(VLOOKUP(10^6,fg_cst_cost_cl,1)-1,VLOOKUP(10^6,pl_cst_cost_cl,1)-1) -> 30000 | D10: gal | E10: The largest size for which costs are available (excluding stainless, which is not compatible with acids)
A11: Maximum chemical tank mixer horsepower | B11: cmix_hp_max | C11: =MAX(VLOOKUP(10^6,port_mix_cost_cl,1)-0.1,VLOOKUP(10^6,mount_mix_cost_cl,1)-0.1,VLOOKUP(10^6,imp_mix_cost_cl,1)-0.1) -> 30 | D11: hp | E11: The largest size for which costs are available
A12: Maximum chemical metering pump size | B12: max_cm_pump_size | C12: =MAX(VLOOKUP(10^6,ss_empump_cost_cl,1)-0.01,VLOOKUP(10^6,ss_mmpump_cost_cl,1)-0.01,VLOOKUP(10^6,pvc_empump_cost_cl,1)-0.01,VLOOKUP(10^6,pvc_mmpump_cost_cl,1)-0.01) -> 132 | D12: gph | E12: The largest size for which costs are available.
A13: Maximum chemical metering pump size excluding stainless steel | B13: max_cm_pump_size_noSS | C13: =MAX(VLOOKUP(10^6,pvc_empump_cost_cl,1)-0.01,VLOOKUP(10^6,pvc_mmpump_cost_cl,1)-0.01) -> 132 | D13: gph | E13: The largest size for which costs are available (excluding stainless, which is not compatible with acids)
A15: pH Adjustment Chemistry
A16: Ionic strength (I) | B16: I_ion_str | C16: =TDS_I/40000 -> 0.005 | D16: mol/L | E16: 40,000 converts TDS to ionic strength, Equation 4, Trussell 1998
A17: Temperature variance from 25 degrees centigrade | B17: t_minus25 | C17: =(T-273)-25 -> -15 | D17: degrees C | E17: For use in Equation S14, Trussell 1998; 273 converts degrees K to degrees C
A18: Dielectric constant (D) | B18: D_dielectric | C18: =78.54*(1-0.004579*t_minus25+0.0000119*t_minus25^2+0.000000028*t_minus25^3) -> 84.13738872 | E18: Equation S14, Trussell 1998
A19: Limiting theoretical slope (A) | B19: A_slope_lim | C19: =1290000*(SQRT(2)/(D_dielectric*T)^1.5) -> 0.496525447 | E19: Equation S13, Trussell 1998
A20: Monovalent activity coefficient (-log form) | B20: log_gamma_1 | C20: =A_slope_lim*1^2*(SQRT(I_ion_str)/(1+SQRT(I_ion_str))-0.3*I_ion_str) -> 0.03204619055 | E20: Modified Davies equation, Equation S12, Trussell 1998
A21: Divalent activity coefficient (-log form) | B21: log_gamma_2 | C21: =A_slope_lim*2^2*(SQRT(I_ion_str)/(1+SQRT(I_ion_str))-0.3*I_ion_str) -> 0.1281847622 | E21: Modified Davies equation, Equation S12, Trussell 1998
A22: Monovalent activity coefficient (ɣ1) | B22: gamma_1 | C22: =10^-log_gamma_1 -> 0.9288675893
A23: Divalent activity coefficient (ɣ2) | B23: gamma_2 | C23: =10^-log_gamma_2 -> 0.7444152094
A24: Equilibrium constant for carbonic acid (H2CO3) (-log form) | B24: pK_1 | C24: =a1_K1+a2_K1/T+a3_K1*LOG10(T)+a4_K1*T+a5_K1/T^2 -> 6.476641144
A25: Equilibrium constant for bicarbonate (HCO3-) (-log form) | B25: pK_2 | C25: =a1_K2+a2_K2/T+a3_K2*LOG10(T)+a4_K2*T+a5_K2/T^2 -> 10.48853824
A26: Equilibrium constant for water (H2O) (-log form) | B26: pK_w | C26: =a1_Kw+a2_Kw/T+a3_Kw*LOG10(T)+a4_Kw*T+a5_Kw/T^2 -> 14.53856657
A27: Equilibrium constant for carbonic acid (H2CO3) (K1) | B27: K_1 | C27: =10^-pK_1 -> 3.337020356e-07
A28: Equilibrium constant for bicarbonate (HCO3-) (K2) | B28: K_2 | C28: =10^-pK_2 -> 3.246846499e-11
A29: Equilibrium constant for water (H2O) (Kw) | B29: K_w | C29: =10^-pK_w -> 2.893566232e-15
A30: Intermediate calculation | B30: term1_i | C30: =gamma_1*10^-pHo_default/K_1 -> 0.08802275424 | E30: ɣ110-pH / K1
A31: Intermediate calculation | B31: term2_i | C31: =(gamma_1*K_2)/(gamma_2*10^-pHo_default) -> 0.001281151026 | E31: ɣ1K2 / ɣ210-pH
A32: Intermediate calculation | B32: term3_i | C32: =alk_I_default/50000 -> 0.002 | D32: eq/L | E32: Alk / 50,000 (where 50,000 converts mg/L to eq/L)
A33: Intermediate calculation | B33: term4_i | C33: =K_w/(gamma_1*10^-pHo_default) -> 9.8509841e-08 | E33: Kw / ɣ110-pH
A34: Intermediate calculation | B34: term5_i | C34: =10^-pHo_default/gamma_1 -> 3.404443967e-08 | E34: 10-pH / ɣ1
A35: Intermediate calculation | B35: term6_i | C35: =(2*K_2*gamma_1)/(gamma_2*10^-pHo_default) -> 0.002562302051 | E35: 2K2ɣ1 / ɣ210-pH
A36: Initial total inorganic carbon (CT) | B36: C_T_i | C36: =(1+term1_i+term2_i)*((term3_i-term4_i+term5_i)/(1+term6_i)) -> 0.002172969783 | D36: mol/L | E36: Equation 15, Najm 2001
A37: Intermediate calculation | B37: term1_t | C37: =(2*K_2*gamma_1)/(gamma_2*10^-pHf_default) -> 2.562302051e-05 | E37: 2K2ɣ1 / ɣ210-pH
A38: Intermediate calculation | B38: term2_t | C38: =(gamma_1*10^-pHf_default)/K_1 -> 8.802275424 | E38: ɣ110-pH / K1
A39: Intermediate calculation | B39: term3_t | C39: =(gamma_1*K_2)/(gamma_2*10^-pHf_default) -> 1.281151026e-05 | E39: ɣ1K2 / ɣ210-pH
A40: Intermediate calculation | B40: term4_t | C40: =K_w/(gamma_1*10^-pHf_default) -> 9.8509841e-10 | E40: Kw / ɣ110-pH
A41: Intermediate calculation | B41: term5_t | C41: =10^-pHf_default/gamma_1 -> 3.404443967e-06 | E41: 10-pH / ɣ1
A42: Target alkalinity for treatment | B42: alk_t | C42: =50000*((C_T_i*(1+term1_t))/(1+term2_t+term3_t)+term4_t-term5_t) -> 10.91410355 | D42: mg/L as CaCO3 | E42: Equation 17, Najm 2001, where 50,000 converts eq/L to mg/L
A43: Hydrogen ion (H+) required | B43: H_tot | C43: =(alk_I_default-alk_t)/50000 -> 0.001781717929 | D43: mol/L | E43: Equation 18, Najm 2001, where 50,000 converts from mg/L to mol/L
A44: Hydroxide (OH-) required | B44: OH_tot | C44: =H_tot -> 0.001781717929 | D44: mol/L | E44: Provides sufficient OH to restore alkalinity; final pH may be higher than influent pH due to removal of CO2 during aeration process
A46: Chemical Use and Storage - Acid
A47: Acid solution strength | B47: acid_strength | C47: =CHOOSE(acid_type,0,hcl_strength,H2SO4_strength) -> 0
A48: Acid molecular weight | B48: acid_molwt | C48: =CHOOSE(acid_type,0,hcl_molwt,H2SO4_molwt) -> 0 | D48: g/mol
A49: Acid solution concentration in lbs/gal | B49: acid_conc_lbs | C49: =IF(acid_type=1,0,VLOOKUP(acid_strength,IF(acid_type=2,hcl_table_cl,h2so4_table_cl),4)) -> 0 | D49: lbs/gal
A50: Acid solution specific gravity | B50: acid_spgr | C50: =IF(acid_type=1,0,VLOOKUP(acid_strength,IF(acid_type=2,hcl_table_cl,h2so4_table_cl),2)) -> 0
A51: Moles of acid required to lower pH | B51: acid_moles | C51: =H_tot/CHOOSE(acid_type,1,1,2) -> 0.001781717929 | D51: mol/L | E51: Sulfuric acid provides 2 moles of H+ per mole; hydrochloric acid provides 1 mole per mole
A52: Acid dose required | B52: mg_per_liter | C52: =acid_moles*acid_molwt*1000 -> 0 | D52: mg/L | E52: 1,000 converts g to mg
A53: Pounds of pure acid per day at design flow | B53: design_hcl_day | C53: =1000000*3.7854*mg_per_liter*2.2*design_flow/1000000 -> 0 | D53: lbs/day
A54: Pounds of pure acid per day at average flow | B54: average_hcl_day | C54: =design_hcl_day*average_flow/design_flow -> 0 | D54: lbs/day
A55: Acid solution storage volume | B55: HCl_store | C55: =IF(acid_type=1,0,cstore_days*average_hcl_day/acid_conc_lbs) -> 0 | D55: gal
A56: Total weight of bulk acid solution in storage | B56: HCl_store_lbs | C56: =IF(acid_type=1,0,HCl_store*acid_spgr*8.345) -> 0 | D56: lbs
A57: Number of acid tanks | B57: HCl_tanks | C57: =ROUNDUP(HCl_store/max_ctank_size_noSS,0) -> 0 | D57: unit
A58: Acid tank volume | B58: HCl_tank_vol | C58: =IF(acid_type=1,0,ROUNDUP(HCl_store/HCl_tanks,0)) -> 0 | D58: gal
A59: Design acid flow | B59: HCl_flow | C59: =IF(acid_type=1,0,(design_hcl_day/acid_conc_lbs/(24*60))) -> 0 | D59: gpm
A60: Number of metering pumps | B60: HCl_pumps | C60: =IF(acid_type=1,0,ROUNDUP(HCl_flow*60*(1+pump_safety_factor)/max_cm_pump_size_noSS,0)+NRD_cm_pump) -> 0
A61: Pump rating | B61: HCl_pump_rate | C61: =IF(HCl_pumps=0,0,MAX(min_chem_flow,(HCl_flow*60*(1+pump_safety_factor)))/(HCl_pumps-NRD_cm_pump)) -> 0 | D61: gph
A62: Acid day tank storage volume required (based on design flow) | B62: day_tank_vol_needed_acid | C62: =HCl_flow*60*24 -> 0 | D62: gallons
A63: Number of acid day tanks | B63: day_tanks_acid | C63: =IF(day_tank_vol_needed_acid<day_tank_needed,0,ROUNDUP(day_tank_vol_needed_acid/max_ctank_size_noSS,0)) -> 0 | D63: units
A64: Volume of acid day tanks | B64: day_tank_vol_acid | C64: =IF(day_tanks_acid=0,0,ROUNDUP(day_tank_vol_needed_acid/day_tanks_acid,0)) -> 0 | D64: gallons
A66: Mixers per storage tank | B66: cmix_per_tank_acid | C66: =IF(AND(include_cmix=1,HCl_tanks<>0),ROUNDUP(HCl_tank_vol/1000*cmix_hp_per/cmix_hp_max,0),0) -> 0 | D66: units
A67: Number of acid storage tank mixers | B67: cmixers_acid | C67: =HCl_tanks*cmix_per_tank_acid -> 0 | D67: units
A68: Mixer size for acid storage tanks | B68: cmix_size_acid | C68: =IF(cmixers_acid<>0,MAX(min_cmix_hp,HCl_tank_vol/1000*cmix_hp_per/cmix_per_tank_acid),0) -> 0 | D68: hp
A69: Mixers per acid day tank | B69: dmix_per_tank_acid | C69: =IF(AND(include_cmix=1,day_tanks_acid<>0),ROUNDUP(day_tank_vol_acid/1000*cmix_hp_per/cmix_hp_max,0),0) -> 0 | D69: units
A70: Number of acid day tank mixers | B70: dmixers_acid | C70: =day_tanks_acid*dmix_per_tank_acid -> 0 | D70: units
A71: Mixer size for acid day tanks | B71: dmix_size_acid | C71: =IF(dmixers_acid<>0,MAX(min_cmix_hp,day_tank_vol_acid/1000*cmix_hp_per/dmix_per_tank_acid),0) -> 0 | D71: hp
A73: Hydrochloric Acid Purchasing
A74: Quantity required for large quantity purchase | C74: =VLOOKUP("Hydrochloric Acid - Large Qty",chem_break_table_cl,2,FALSE) -> 17710 | D74: lbs | E74: #N/A indicates that price data do not depend on volume purchased.
A75: Quantity required for mid quantity purchase | C75: =VLOOKUP("Hydrochloric Acid - Mid Qty",chem_break_table_cl,2,FALSE) -> 1771 | D75: lbs | E75: #N/A indicates that price data do not depend on volume purchased.
A76: Quantity required for small quantity purchase | C76: =VLOOKUP("Hydrochloric Acid - Small Qty",chem_break_table_cl,2,FALSE) -> 0 | D76: lbs | E76: #N/A indicates that price data do not depend on volume purchased.
A77: Purchase Type | B77: hcl_purchase | C77: =IF(acid_type=2,IF(AND(ISNA(C74),ISNA(C75),ISNA(C76)),"",IF(HCl_store_lbs>=C74," - Large Qty",IF(HCl_store_lbs>=C75," - Mid Qty"," - Small Qty"))),"") ->  | E77: Returns descriptive term based on volume of each purchase for use in determining pricing. Blank indicates that price data do not depend on volume purchased.
A79: Sulfuric Acid Purchasing
A80: Quantity required for large quantity purchase | C80: =VLOOKUP("Sulfuric Acid - Large Qty",chem_break_table_cl,2,FALSE) -> 28427.724 | D80: lbs | E80: #N/A indicates that price data do not depend on volume purchased.
A81: Quantity required for mid quantity purchase | C81: =VLOOKUP("Sulfuric Acid - Mid Qty",chem_break_table_cl,2,FALSE) -> 28427.724 | D81: lbs | E81: #N/A indicates that price data do not depend on volume purchased.
A82: Quantity required for small quantity purchase | C82: =VLOOKUP("Sulfuric Acid - Small Qty",chem_break_table_cl,2,FALSE) -> 0 | D82: lbs | E82: #N/A indicates that price data do not depend on volume purchased.
A83: Purchase Type | B83: h2so4_purchase | C83: =IF(acid_type=3,IF(AND(ISNA(C80),ISNA(C81),ISNA(C82)),"",IF(HCl_store_lbs>=C80," - Large Qty",IF(HCl_store_lbs>=C81," - Mid Qty"," - Small Qty"))),"") ->  | E83: Returns descriptive term based on volume of each purchase for use in determining pricing. Blank indicates that price data do not depend on volume purchased.
A85: Secondary Containment for Acid Storage Tanks
A86: Minimum volume required | B86: acid_st_cont_volume | C86: =MAX(HCl_tanks*HCl_tank_vol*sec_cont_pct_of_total,HCl_tank_vol*sec_cont_pct_of_largest)/7.48 -> 0 | D86: cubic feet | E86: 7.48 converts gallons to cubic feet
A87: Footprint available | B87: acid_st_cont_fp | C87: =IF(HCl_tanks=0,0,acid_st_fp-HCl_tanks*PI()*(at_diam/2)^2) -> 0 | D87: square feet | E87: Total footprint minus displacement by tanks themselves
A88: Curb height required | B88: acid_st_curb_height | C88: =IF(HCl_tanks=0,0,acid_st_cont_volume/acid_st_cont_fp+sec_cont_freeboard/12) -> 0 | D88: feet
A89: Curb thickness | B89: acid_st_curb_thick | C89: =IF(HCl_tanks=0,0,MIN(sec_cont_max_thick,acid_st_curb_height)) -> 0 | D89: feet
A90: Curb length (long side) | B90: acid_st_curb_len_long | C90: =IF(HCl_tanks=0,0,HCl_tanks*at_diam+2*space_at+(HCl_tanks-1)*space_at+2*acid_st_curb_thick) -> 0 | D90: feet
A91: Curb length (short side) | B91: acid_st_curb_len_short | C91: =IF(HCl_tanks=0,0,at_diam+2*space_at) -> 0 | D91: feet
A92: Curb concrete volume | B92: acid_st_curb_concrete | C92: =IF(HCl_tanks=0,0,ROUNDUP((acid_st_curb_len_long*2+acid_st_curb_len_short*2)*acid_st_curb_height*acid_st_curb_thick/27,0)) -> 0 | D92: cubic yards | E92: 27 converts cubic feet to cubic yards
A93: Chemical resistant coating required | B93: acid_st_coating_gal | C93: =IF(HCl_tanks=0,0,ROUNDUP((acid_st_fp+2*(acid_st_curb_len_long-2*acid_st_curb_thick)*acid_st_curb_height+2*acid_st_curb_len_short*acid_st_curb_height)/sec_cont_coating_cvg,0)) -> 0 | D93: gallons | E93: Covers total footprint plus inside surface and top of curbs
A95: Secondary Containment for Acid Day Tanks
A96: Minimum volume required | B96: acid_dt_cont_volume | C96: =MAX(day_tanks_acid*day_tank_vol_acid*sec_cont_pct_of_total,day_tank_vol_acid*sec_cont_pct_of_largest)/7.48 -> 0 | D96: cubic feet | E96: 7.48 converts gallons to cubic feet
A97: Footprint available | B97: acid_dt_cont_fp | C97: =IF(day_tanks_acid=0,0,acid_dt_fp-day_tanks_acid*PI()*(adt_diam/2)^2) -> 0 | D97: square feet | E97: Total footprint minus displacement by tanks themselves
A98: Curb height required | B98: acid_dt_curb_height | C98: =IF(day_tanks_acid=0,0,acid_dt_cont_volume/acid_dt_cont_fp+sec_cont_freeboard/12) -> 0 | D98: feet
A99: Curb thickness | B99: acid_dt_curb_thick | C99: =IF(day_tanks_acid=0,0,MIN(sec_cont_max_thick,acid_dt_curb_height)) -> 0 | D99: feet
A100: Curb length (long side) | B100: acid_dt_curb_len_long | C100: =IF(day_tanks_acid=0,0,day_tanks_acid*adt_diam+2*space_adt+(day_tanks_acid-1)*space_adt+2*acid_dt_curb_thick) -> 0 | D100: feet
A101: Curb length (short side) | B101: acid_dt_curb_len_short | C101: =IF(day_tanks_acid=0,0,adt_diam+2*space_adt) -> 0 | D101: feet
A102: Curb concrete volume | B102: acid_dt_curb_concrete | C102: =IF(day_tanks_acid=0,0,ROUNDUP((acid_dt_curb_len_long*2+acid_dt_curb_len_short*2)*acid_dt_curb_height*acid_dt_curb_thick/27,0)) -> 0 | D102: cubic yards | E102: 27 converts cubic feet to cubic yards
A103: Chemical resistant coating required | B103: acid_dt_coating_gal | C103: =IF(day_tanks_acid=0,0,ROUNDUP((acid_dt_fp+2*(acid_dt_curb_len_long-2*acid_dt_curb_thick)*acid_dt_curb_height+2*acid_dt_curb_len_short*acid_dt_curb_height)/sec_cont_coating_cvg,0)) -> 0 | D103: gallons | E103: Covers total footprint plus inside surface and top of curbs
A105: Chemical Use and Storage - Caustic
A106: NaOH solution concentration in lbs/gal | B106: NaOH_conc_lb | C106: =IF(acid_type=1,0,VLOOKUP(naoh_strength,NaOH_table_cl,2)) -> 0 | D106: lbs/gal
A107: NaOH solution specific gravity | B107: NaOH_spgr | C107: =IF(acid_type=1,0,VLOOKUP(naoh_strength,NaOH_table_cl,4)) -> 0
A108: NaOH dose required to restore alkalinity | B108: NaOH_tot | C108: =IF(acid_type=1,0,39.997*OH_tot*1000) -> 0 | D108: mg/L | E108: 39.997 is molar mass of NaOH in g/mol, 1,000 converts g to mg
A109: Pounds of pure NaOH per day at design flow | B109: design_NaOH_day | C109: =IF(acid_type=1,0,1000000*3.7854*NaOH_tot*2.2*design_flow/1000000) -> 0 | D109: lbs
A110: Pounds of pure NaOH per day at average flow | B110: average_NaOH_day | C110: =design_NaOH_day*average_flow/design_flow -> 0 | D110: lbs
A111: NaOH storage volume | B111: NaOH_store | C111: =IF(acid_type=1,0,cstore_days*average_NaOH_day/NaOH_conc_lb) -> 0 | D111: gal
A112: Total weight of bulk NaOH solution in storage | B112: NaOH_store_lbs | C112: =IF(acid_type=1,0,NaOH_store*NaOH_spgr*8.345) -> 0 | D112: lbs
A113: Number of NaOH tanks | B113: NaOH_tanks | C113: =ROUNDUP(NaOH_store/max_ctank_size,0) -> 0 | D113: units
A114: NaOH tank volume | B114: NaOH_tank_vol | C114: =IF(acid_type=1,0,ROUNDUP(NaOH_store/NaOH_tanks,0)) -> 0 | D114: gal
A115: Design NaOH flow | B115: NaOH_flow | C115: =IF(acid_type=1,0,design_NaOH_day/NaOH_conc_lb/(24*60)) -> 0 | D115: gpm
A116: Number of metering pumps | B116: NaOH_pumps | C116: =IF(acid_type=1,0,ROUNDUP(NaOH_flow*60*(1+pump_safety_factor)/max_cm_pump_size,0)+NRD_cm_pump) -> 0 | D116: units
A117: Pump rating | B117: NaOH_pump_rate | C117: =IF(NaOH_pumps=0,0,MAX(min_chem_flow,(NaOH_flow*60*(1+pump_safety_factor)))/(NaOH_pumps-NRD_cm_pump)) -> 0 | D117: gph
A118: Caustic day tank storage volume required (based on design flow) | B118: day_tank_vol_needed_NaOH | C118: =NaOH_flow*60*24 -> 0 | D118: gallons
A119: Number of caustic day tanks | B119: day_tanks_NaOH | C119: =IF(day_tank_vol_needed_NaOH<day_tank_needed,0,ROUNDUP(day_tank_vol_needed_NaOH/max_ctank_size,0)) -> 0 | D119: units
A120: Volume of caustic day tanks | B120: day_tank_vol_NaOH | C120: =IF(day_tanks_NaOH=0,0,ROUNDUP(day_tank_vol_needed_NaOH/day_tanks_NaOH,0)) -> 0 | D120: gallons
A122: Mixers per caustic storage tank | B122: cmix_per_tank_NaOH | C122: =IF(AND(include_cmix=1,NaOH_tanks<>0),ROUNDUP(NaOH_tank_vol/1000*cmix_hp_per/cmix_hp_max,0),0) -> 0 | D122: units
A123: Number of caustic storage tank mixers | B123: cmixers_NaOH | C123: =NaOH_tanks*cmix_per_tank_NaOH -> 0 | D123: units
A124: Mixer size for caustic storage tanks | B124: cmix_size_NaOH | C124: =IF(cmixers_NaOH<>0,MAX(min_cmix_hp,NaOH_tank_vol/1000*cmix_hp_per/cmix_per_tank_NaOH),0) -> 0 | D124: hp
A125: Mixers per caustic day tank | B125: dmix_per_tank_NaOH | C125: =IF(AND(include_cmix=1,day_tanks_NaOH<>0),ROUNDUP(day_tank_vol_NaOH/1000*cmix_hp_per/cmix_hp_max,0),0) -> 0 | D125: units
A126: Number of caustic day tank mixers | B126: dmixers_NaOH | C126: =day_tanks_NaOH*dmix_per_tank_NaOH -> 0 | D126: units
A127: Mixer size for caustic day tanks | B127: dmix_size_NaOH | C127: =IF(dmixers_NaOH<>0,MAX(min_cmix_hp,day_tank_vol_NaOH/1000*cmix_hp_per/dmix_per_tank_NaOH),0) -> 0 | D127: hp
A129: Sodium Hydroxide Purchasing
A130: Quantity required for large quantity purchase | C130: =VLOOKUP("Sodium Hydroxide "&TEXT(naoh_strength,"0%")&" - Large Qty",chem_break_table_cl,2,FALSE) -> 25437 | D130: lbs | E130: #N/A indicates that price data do not depend on volume purchased.
A131: Quantity required for mid quantity purchase | C131: =VLOOKUP("Sodium Hydroxide "&TEXT(naoh_strength,"0%")&" - Mid Qty",chem_break_table_cl,2,FALSE) -> 5000 | D131: lbs | E131: #N/A indicates that price data do not depend on volume purchased.
A132: Quantity required for small quantity purchase | C132: =VLOOKUP("Sodium Hydroxide "&TEXT(naoh_strength,"0%")&" - Small Qty",chem_break_table_cl,2,FALSE) -> 0 | D132: lbs | E132: #N/A indicates that price data do not depend on volume purchased.
A133: Purchase Type | B133: naoh_purchase | C133: =IF(acid_type=1,0,IF(AND(ISNA(C130),ISNA(C131),ISNA(C132)),"",IF(NaOH_store_lbs>=C130," - Large Qty",IF(NaOH_store_lbs>=C131," - Mid Qty"," - Small Qty")))) -> 0 | E133: Returns descriptive term based on volume of each purchase for use in determining pricing. Blank indicates that price data do not depend on volume purchased.
A135: Secondary Containment for Caustic Storage Tanks
A136: Minimum volume required | B136: NaOH_st_cont_volume | C136: =MAX(NaOH_tanks*NaOH_tank_vol*sec_cont_pct_of_total,NaOH_tank_vol*sec_cont_pct_of_largest)/7.48 -> 0 | D136: cubic feet | E136: 7.48 converts gallons to cubic feet
A137: Footprint available | B137: NaOH_st_cont_fp | C137: =IF(NaOH_tanks=0,0,NaOH_st_fp-NaOH_tanks*PI()*(ct_diam/2)^2) -> 0 | D137: square feet | E137: Total footprint minus displacement by tanks themselves
A138: Curb height required | B138: NaOH_st_curb_height | C138: =IF(NaOH_tanks=0,0,NaOH_st_cont_volume/NaOH_st_cont_fp+sec_cont_freeboard/12) -> 0 | D138: feet
A139: Curb thickness | B139: NaOH_st_curb_thick | C139: =IF(NaOH_tanks=0,0,MIN(sec_cont_max_thick,NaOH_st_curb_height)) -> 0 | D139: feet
A140: Curb length (long side) | B140: NaOH_st_curb_len_long | C140: =IF(NaOH_tanks=0,0,NaOH_tanks*ct_diam+2*space_ct+(NaOH_tanks-1)*space_ct+2*NaOH_st_curb_thick) -> 0 | D140: feet
A141: Curb length (short side) | B141: NaOH_st_curb_len_short | C141: =IF(NaOH_tanks=0,0,ct_diam+2*space_ct) -> 0 | D141: feet
A142: Curb concrete volume | B142: NaOH_st_curb_concrete | C142: =IF(NaOH_tanks=0,0,ROUNDUP((NaOH_st_curb_len_long*2+NaOH_st_curb_len_short*2)*NaOH_st_curb_height*NaOH_st_curb_thick/27,0)) -> 0 | D142: cubic yards | E142: 27 converts cubic feet to cubic yards
A143: Chemical resistant coating required | B143: NaOH_st_coating_gal | C143: =IF(NaOH_tanks=0,0,ROUNDUP((NaOH_st_fp+2*(NaOH_st_curb_len_long-2*NaOH_st_curb_thick)*NaOH_st_curb_height+2*NaOH_st_curb_len_short*NaOH_st_curb_height)/sec_cont_coating_cvg,0)) -> 0 | D143: gallons | E143: Covers total footprint plus inside surface and top of curbs
A145: Secondary Containment for Caustic Day Tanks
A146: Minimum volume required | B146: NaOH_dt_cont_volume | C146: =MAX(day_tanks_NaOH*day_tank_vol_NaOH*sec_cont_pct_of_total,day_tank_vol_NaOH*sec_cont_pct_of_largest)/7.48 -> 0 | D146: cubic feet | E146: 7.48 converts gallons to cubic feet
A147: Footprint available | B147: NaOH_dt_cont_fp | C147: =IF(day_tanks_NaOH=0,0,NaOH_dt_fp-day_tanks_NaOH*PI()*(cdt_diam/2)^2) -> 0 | D147: square feet | E147: Total footprint minus displacement by tanks themselves
A148: Curb height required | B148: NaOH_dt_curb_height | C148: =IF(day_tanks_NaOH=0,0,NaOH_dt_cont_volume/NaOH_dt_cont_fp+sec_cont_freeboard/12) -> 0 | D148: feet
A149: Curb thickness | B149: NaOH_dt_curb_thick | C149: =IF(day_tanks_NaOH=0,0,MIN(sec_cont_max_thick,NaOH_dt_curb_height)) -> 0 | D149: feet
A150: Curb length (long side) | B150: NaOH_dt_curb_len_long | C150: =IF(day_tanks_NaOH=0,0,day_tanks_NaOH*cdt_diam+2*space_cdt+(day_tanks_NaOH-1)*space_cdt+2*NaOH_dt_curb_thick) -> 0 | D150: feet
A151: Curb length (short side) | B151: NaOH_dt_curb_len_short | C151: =IF(day_tanks_NaOH=0,0,cdt_diam+2*space_cdt) -> 0 | D151: feet
A152: Curb concrete volume | B152: NaOH_dt_curb_concrete | C152: =IF(day_tanks_NaOH=0,0,ROUNDUP((NaOH_dt_curb_len_long*2+NaOH_dt_curb_len_short*2)*NaOH_dt_curb_height*NaOH_dt_curb_thick/27,0)) -> 0 | D152: cubic yards | E152: 27 converts cubic feet to cubic yards
A153: Chemical resistant coating required | B153: NaOH_dt_coating_gal | C153: =IF(day_tanks_NaOH=0,0,ROUNDUP((NaOH_dt_fp+2*(NaOH_dt_curb_len_long-2*NaOH_dt_curb_thick)*NaOH_dt_curb_height+2*NaOH_dt_curb_len_short*NaOH_dt_curb_height)/sec_cont_coating_cvg,0)) -> 0 | D153: gallons | E153: Covers total footprint plus inside surface and top of curbs
A155: Chemical Use and Storage - Sodium Hexametaphosphate
A156: Design sodium hexametaphosphate per day | B156: design_sh_day | C156: =design_flow*sh_dose*8.34 -> 1.251 | D156: lbs
A157: Average sodium hexametaphosphate per day | B157: average_sh_day | C157: =average_flow*sh_dose*8.34 -> 0.2919 | D157: lbs
A158: Sodium hexametaphosphate stored in pounds | B158: sh_store_lbs | C158: =cstore_days*average_sh_day -> 8.757 | D158: lbs
A159: Sodium hexametaphosphate storage volume | B159: sh_store | C159: =sh_store_lbs/(sh_spgr*62.4*sh_strength/7.48) -> 9.456912682 | D159: gal
A160: Number of sodium hexametaphosphate tanks | B160: sh_tanks | C160: =ROUNDUP(sh_store/max_ctank_size,0) -> 1 | D160: units
A161: Sodium hexametaphosphate tank volume | B161: sh_tank_vol | C161: =ROUNDUP(sh_store/sh_tanks,0) -> 10 | D161: gal
A162: Annual sodium hexametaphosphate use | B162: sh_yr | C162: =average_sh_day*365*(chem_freq/365) -> 106.5435 | D162: lbs
A163: Design sodium hexametaphosphate flow | B163: sh_flow | C163: =design_sh_day/(sh_spgr*62.4*sh_strength/7.48)/(24*60) -> 0.0009381857819 | D163: gpm
A164: Number of metering pumps | B164: sh_pumps | C164: =ROUNDUP(sh_flow*60*(1+pump_safety_factor)/max_cm_pump_size,0)+NRD_cm_pump -> 2 | D164: units
A165: Pump rating | B165: sh_pump_rate | C165: =IF(sh_pumps=0,0,MAX(min_chem_flow,(sh_flow*60*(1+pump_safety_factor)))/(sh_pumps-NRD_cm_pump)) -> 0.13 | D165: gph
A167: Sodium Hexametaphosphate Purchasing
A168: Quantity required for large quantity purchase | C168: =VLOOKUP("Sodium Hexametaphosphate - Large Qty",chem_break_table_cl,2,FALSE) ->  | D168: lbs | E168: #N/A indicates that price data do not depend on volume purchased.
A169: Quantity required for mid quantity purchase | C169: =VLOOKUP("Sodium Hexametaphosphate - Mid Qty",chem_break_table_cl,2,FALSE) ->  | D169: lbs | E169: #N/A indicates that price data do not depend on volume purchased.
A170: Quantity required for small quantity purchase | C170: =VLOOKUP("Sodium Hexametaphosphate - Small Qty",chem_break_table_cl,2,FALSE) ->  | D170: lbs | E170: #N/A indicates that price data do not depend on volume purchased.
A171: Purchase Type | B171: sh_purchase | C171: =IF(AND(ISNA(C168),ISNA(C169),ISNA(C170)),"",IF(sh_store_lbs>=C168," - Large Qty",IF(sh_store_lbs>=C169," - Mid Qty"," - Small Qty"))) ->  | E171: Returns descriptive term based on volume of each purchase for use in determining pricing. Blank indicates that price data do not depend on volume purchased.
A173: Chemical Use and Storage - Tetrasodium Pyrophosphate
A174: Design tetrasodium pyrophosphate per day | B174: design_tp_day | C174: =design_flow*tp_dose*8.34 -> 1.251 | D174: lbs
A175: Average tetrasodium pyrophosphate per day | B175: average_tp_day | C175: =average_flow*tp_dose*8.34 -> 0.2919 | D175: lbs
A176: Tetrasodium pyrophosphate stored in pounds | B176: tp_store_lbs | C176: =cstore_days*average_tp_day -> 8.757 | D176: lbs
A177: Tetrasodium pyrophosphate storage volume | B177: tp_store | C177: =tp_store_lbs/(tp_spgr*62.4*tp_strength/7.48) -> 25.23358913 | D177: gal
A178: Number of tetrasodium pyrophosphate tanks | B178: tp_tanks | C178: =ROUNDUP(tp_store/max_ctank_size,0) -> 1 | D178: units
A179: Tetrasodium pyrophosphate tank volume | B179: tp_tank_vol | C179: =ROUNDUP(tp_store/tp_tanks,0) -> 26 | D179: gal
A180: Annual tetrasodium pyrophosphate use | B180: tp_yr | C180: =average_tp_day*365*(chem_freq/365) -> 106.5435 | D180: lbs
A181: Design tetrasodium pyrophosphate flow | B181: tp_flow | C181: =design_tp_day/(tp_spgr*62.4*tp_strength/7.48)/(24*60) -> 0.002503332255 | D181: gpm
A182: Number of metering pumps | B182: tp_pumps | C182: =ROUNDUP(tp_flow*60*(1+pump_safety_factor)/max_cm_pump_size,0)+NRD_cm_pump -> 2 | D182: units
A183: Pump rating | B183: tp_pump_rate | C183: =IF(tp_pumps=0,0,MAX(min_chem_flow,(tp_flow*60*(1+pump_safety_factor)))/(tp_pumps-NRD_cm_pump)) -> 0.1877499191 | D183: gph
A185: Tetrasodium Pyrophosphate Purchasing
A186: Quantity required for large quantity purchase | C186: =VLOOKUP("Tetrasodium pyrophosphate - Large Qty",chem_break_table_cl,2,FALSE) ->  | D186: lbs | E186: #N/A indicates that price data do not depend on volume purchased.
A187: Quantity required for mid quantity purchase | C187: =VLOOKUP("Tetrasodium pyrophosphate - Mid Qty",chem_break_table_cl,2,FALSE) ->  | D187: lbs | E187: #N/A indicates that price data do not depend on volume purchased.
A188: Quantity required for small quantity purchase | C188: =VLOOKUP("Tetrasodium pyrophosphate - Small Qty",chem_break_table_cl,2,FALSE) ->  | D188: lbs | E188: #N/A indicates that price data do not depend on volume purchased.
A189: Purchase Type | B189: tp_purchase | C189: =IF(AND(ISNA(C186),ISNA(C187),ISNA(C188)),"",IF(tp_store_lbs>=C186," - Large Qty",IF(tp_store_lbs>=C187," - Mid Qty"," - Small Qty"))) ->  | E189: Returns descriptive term based on volume of each purchase for use in determining pricing. Blank indicates that price data do not depend on volume purchased.
A191: Chemical Use and Storage - Actual Corrosion Control Chemical Chosen | E191: Formulas chose between sodium hexametaphosphate and tetrasodium pyrophosphate calculations above
A192: Number of corrosion chemical tanks | B192: cc_tanks | C192: =CHOOSE(chem_type,0,sh_tanks,tp_tanks) -> 1 | D192: units
A193: Corrosion chemical tank volume | B193: cc_tank_vol | C193: =CHOOSE(chem_type,0,sh_tank_vol,tp_tank_vol) -> 10 | D193: gal
A194: Design corrosion chemical flow | B194: cc_flow | C194: =CHOOSE(chem_type,0,sh_flow,tp_flow) -> 0.0009381857819 | D194: gpm
A195: Number of metering pumps | B195: cc_pumps | C195: =CHOOSE(chem_type,0,sh_pumps,tp_pumps) -> 2 | D195: units
A196: Pump rating | B196: cc_pump_rate | C196: =CHOOSE(chem_type,0,sh_pump_rate,tp_pump_rate) -> 0.13 | D196: gph
A198: Corrosion control day tank storage volume required (based on design flow) | B198: day_tank_vol_needed_sh | C198: =cc_flow*60*24 -> 1.350987526 | D198: gallons
A199: Number of corrosion control day tanks | B199: day_tanks_sh | C199: =IF(day_tank_vol_needed_sh<day_tank_needed,0,ROUNDUP(day_tank_vol_needed_sh/max_ctank_size,0)) -> 0 | D199: units
A200: Volume of corrosion control day tanks | B200: day_tank_vol_sh | C200: =IF(day_tanks_sh=0,0,ROUNDUP(day_tank_vol_needed_sh/day_tanks_sh,0)) -> 0 | D200: gallons
A202: Include mixers for corrosion control chemical tanks | B202: include_cmix_cc | C202: =IF(chem_type=3,1,include_cmix) -> 0 | D202: <- 1 for yes, 0 for no
A203: Mixers per corrosion control storage tank | B203: cmix_per_tank_sh | C203: =IF(AND(include_cmix_cc=1,cc_tanks<>0),ROUNDUP(cc_tank_vol/1000*cmix_hp_per/cmix_hp_max,0),0) -> 0 | D203: units
A204: Number of corrosion control storage tank mixers | B204: cmixers_sh | C204: =cc_tanks*cmix_per_tank_sh -> 0 | D204: units
A205: Mixer size for corrosion control storage tanks | B205: cmix_size_sh | C205: =IF(cmixers_sh<>0,MAX(min_cmix_hp,cc_tank_vol/1000*cmix_hp_per/cmix_per_tank_sh),0) -> 0 | D205: hp
A206: Mixers per corrosion control day tank | B206: dmix_per_tank_sh | C206: =IF(AND(include_cmix_cc=1,day_tanks_sh<>0),ROUNDUP(day_tank_vol_sh/1000*cmix_hp_per/cmix_hp_max,0),0) -> 0 | D206: units
A207: Number of corrosion control day tank mixers | B207: dmixers_sh | C207: =day_tanks_sh*dmix_per_tank_sh -> 0 | D207: units
A208: Mixer size for corrosion control day tanks | B208: dmix_size_sh | C208: =IF(dmixers_sh<>0,MAX(min_cmix_hp,day_tank_vol_sh/1000*cmix_hp_per/dmix_per_tank_sh),0) -> 0 | D208: hp
A210: Secondary Containment for Corrosion Control Chemical Storage Tanks
A211: Minimum volume required | B211: cc_st_cont_volume | C211: =MAX(cc_tanks*cc_tank_vol*sec_cont_pct_of_total,cc_tank_vol*sec_cont_pct_of_largest)/7.48 -> 1.470588235 | D211: cubic feet | E211: 7.48 converts gallons to cubic feet
A212: Footprint available | B212: cc_st_cont_fp | C212: =IF(cc_tanks=0,0,cc_st_fp-cc_tanks*PI()*(cct_diam/2)^2) -> 8.214601837 | D212: square feet | E212: Total footprint minus displacement by tanks themselves
A213: Curb height required | B213: cc_st_curb_height | C213: =IF(cc_tanks=0,0,cc_st_cont_volume/cc_st_cont_fp+sec_cont_freeboard/12) -> 0.6790212435 | D213: feet
A214: Curb thickness | B214: cc_st_curb_thick | C214: =IF(cc_tanks=0,0,MIN(sec_cont_max_thick,cc_st_curb_height)) -> 0.6790212435 | D214: feet
A215: Curb length (long side) | B215: cc_st_curb_len_long | C215: =IF(cc_tanks=0,0,cc_tanks*cct_diam+2*space_cct+(cc_tanks-1)*space_cct+2*cc_st_curb_thick) -> 4.358042487 | D215: feet
A216: Curb length (short side) | B216: cc_st_curb_len_short | C216: =IF(cc_tanks=0,0,cct_diam+2*space_cct) -> 3 | D216: feet
A217: Curb concrete volume | B217: cc_st_curb_concrete | C217: =IF(cc_tanks=0,0,ROUNDUP((cc_st_curb_len_long*2+cc_st_curb_len_short*2)*cc_st_curb_height*cc_st_curb_thick/27,0)) -> 1 | D217: cubic yards | E217: 27 converts cubic feet to cubic yards
A218: Chemical resistant coating required | B218: cc_st_coating_gal | C218: =IF(cc_tanks=0,0,ROUNDUP((cc_st_fp+2*(cc_st_curb_len_long-2*cc_st_curb_thick)*cc_st_curb_height+2*cc_st_curb_len_short*cc_st_curb_height)/sec_cont_coating_cvg,0)) -> 1 | D218: gallons | E218: Covers total footprint plus inside surface and top of curbs
A220: Secondary Containment for Corrosion Control Chemical Day Tanks
A221: Minimum volume required | B221: cc_dt_cont_volume | C221: =MAX(day_tanks_sh*day_tank_vol_sh*sec_cont_pct_of_total,day_tank_vol_sh*sec_cont_pct_of_largest)/7.48 -> 0 | D221: cubic feet | E221: 7.48 converts gallons to cubic feet
A222: Footprint available | B222: cc_dt_cont_fp | C222: =IF(day_tanks_sh=0,0,cc_dt_fp-day_tanks_sh*PI()*(ccdt_diam/2)^2) -> 0 | D222: square feet | E222: Total footprint minus displacement by tanks themselves
A223: Curb height required | B223: cc_dt_curb_height | C223: =IF(day_tanks_sh=0,0,cc_dt_cont_volume/cc_dt_cont_fp+sec_cont_freeboard/12) -> 0 | D223: feet
... 5 more rows

Sheet Offgas
A1: Offgas Calculations
A3: Calculation | B3: Range Name | C3: Value | D3: Units | E3: Guidance
A4: From Inputs
A5: Off-gas Pollution Control Technology | B5: Offgas_Tech | C5: =IF(OR(Offgas_Tech_I="none",Offgas_Tech_I=""),0,IF(Offgas_Tech_I="GAC",1,IF(Offgas_Tech_I="thermal oxidation",2,3))) -> 0 | D5: <--- 0 for none, 1 for GAC, 2 for Thermal Oxidation, 3 for Catalytic Oxidation
A6: Heat recovery type | B6: og_opt1 | C6: =IF(OR(Offgas_Tech=2,Offgas_Tech=3),IF(og_opt1_I="none",0,IF(og_opt1_I="recuperative",1,2)),"") ->  | D6: <--- 0 for none, 1 for recuperative, 2 for regenerative
A7: Spent GAC reactivation | B7: og_opt2 | C7: =IF(Offgas_Tech=1,IF(og_opt2_I="throwaway",0,1),"") ->  | D7: <--- 0 for throwaway (no reactivation), 1 for off-site reactivation
A9: Off-gas Control System
A10: Contaminant heating value | B10: BTU_contam | C10: =IF(Offgas_Tech=1,VLOOKUP(contam_name,og_contaminant_lookup,2),0) -> 0 | D10: BTU/gal | E10: From critical design assumptions for contaminant
A11: Contaminant release rate | B11: VOC_Release | C11: =(Influent_conc*P_REM/10^6)*(QW*60*60*24)*2.205 -> 0.00117870727 | D11: lbs/day | E11: Based on design flow
A12: Off-gas concentration | C12: =(Influent_conc*P_REM/1000)*(AIR_FLOW/QW) -> 0.4185 | D12: mg/m3
A13: Off-gas concentration | B13: C_0 | C13: =C12/1000 -> 0.0004185 | D13: mg/L
A14: Off-gas concentration | C14: =(C12*T)/(12.187*MW) -> 0.07396440604 | D14: ppmv
A15: Off-gas concentration | B15: C_gal | C15: =C14/10^6*1000*3.785 -> 0.0002799552769 | D15: gal/m3
A16: Off-gas flow (design) | C16: =Design_air_flow -> 270.896272 | D16: cfm | E16: Based on design flow
A17: Off-gas flow (design) | B17: Design_air_flow_liters_min | C17: =AIR_FLOW*1000*60 -> 7671.942 | D17: L/min | E17: For comparison
A18: Off-gas flow (average) | B18: Average_air_flow | C18: =C16*average_flow/design_flow -> 63.20913014 | D18: cfm | E18: Based on average flow
A19: Off-gas flow (average) | B19: Average_air_flow_liters_min | C19: =AIR_FLOW*1000*60*average_flow/design_flow -> 1790.1198 | D19: L/min
A20: Off-gas flow (average) | B20: DAILY_AIR | C20: =DAILY_AIR -> 0.02983533 | D20: m3/s | E20: Calculated on O&M, displayed here for reference
A22: GAC System
A23: GAC Bed Residence Time | B23: GAC_EBCT | C23: =IF(Offgas_Tech=1,VLOOKUP(contam_name,og_contaminant_lookup,3),0) -> 0 | D23: sec | E23: From critical design assumptions for contaminant
A24: Total bed size needed | B24: GAC_tot_bed_size | C24: =IF(Offgas_Tech=1,Design_air_flow/60*GAC_EBCT,0) -> 0 | D24: cf
A25: Maximum GAC unit bed size | B25: GAC_max_bed | C25: =MAX(VLOOKUP(10^6,og_gac_cost_cl,1)-0.1) -> 1333.3 | D25: cf | E25: The largest size for which costs are available.
A26: Number of units | B26: op_GAC_beds | C26: =IF(Offgas_Tech=1,ROUNDUP(GAC_tot_bed_size/GAC_max_bed,0),0) -> 0 | D26: units
A27: Total units including redundancy | B27: tot_GAC_beds | C27: =op_GAC_beds+NRD_GAC -> 0 | D27: units
A28: Bed size per unit | B28: GAC_bed_size | C28: =IF(Offgas_Tech=1,GAC_tot_bed_size/op_GAC_beds,0) -> 0 | D28: cf
A29: Total GAC Quantity | B29: GAC | C29: =IF(Offgas_Tech=1,Design_air_flow/60*GAC_EBCT*GAC_density,0) -> 0 | D29: lbs
A30: GAC in grams | B30: M | C30: =GAC*453 -> 0 | D30: grams
A31: Desired off-gas removal efficiency | B31: gas_prem | C31: =MAX(0.25,(VOC_Release-0.8*max_VOC_release)/VOC_Release) -> 0.25 | E31: Assumes breakthrough defined as 80% of limit specified on input page, with a minimum removal of 25%
A32: Breakthrough concentration | B32: Cb | C32: =IF(Offgas_Tech=1,(1-gas_prem)*C_0,0) -> 0 | D32: mg/L
A33: Bed Life | B33: bed_life | C33: =IF(AND(og_opt3="",contam_name="carbon dioxide"),M*(K*Cb^_1_n/(Average_air_flow_liters_min*(C_0-Cb)))/(30*24*60),og_opt3) -> 0 | D33: months | E33: Theoretical calculation is valid only for MTBE; input is required for other contaminants
A34: GAC use rate | C34: =IF(Offgas_Tech=1,(GAC/bed_life)/(Average_air_flow*60*24*30/1000),0) -> 0 | D34: lb/1,000 cf of air | E34: For comparison: For MTBE, CMRP (2000) assumed 0.05 lb/1000 cf at 5 ppmv, 0.006 lb/1000 cf at 0.5 ppmv.
A35: Annual GAC use | B35: GAC_yr | C35: =IF(Offgas_Tech=1,GAC*12/bed_life,0) -> 0 | D35: lbs
A36: Annual Regenerated GAC | B36: regen_yr | C36: =IF(og_opt2=1,(1-makeup_rate_off)*GAC_yr,0) -> 0 | D36: lbs/yr
A37: Annual Regenerated GAC in cubic feet | B37: regen_yr_cf | C37: =regen_yr/GAC_density -> 0 | D37: cubic ft/yr
A38: Annual Virgin GAC | B38: GAC_makeup | C38: =IF(og_opt2=1,makeup_rate_off*GAC_yr,GAC_yr) -> 0 | D38: lbs/yr
A39: Annual Virgin GAC in cubic feet | B39: GAC_makeup_cf | C39: =GAC_makeup/GAC_density -> 0 | D39: cubic ft/yr
A40: Replacement/disposal frequency | B40: disp_freq | C40: =IF(Offgas_Tech=1,12/bed_life,0) -> 0 | D40: times per year
A41: Spent media quantity (total per event) | B41: spent_media | C41: =IF(og_opt2=0,GAC/2000,0) -> 0 | D41: tons
A42: Disposal | C42: =spent_media*disp_freq*nonhaz_disposal_cost_cl -> 0 | D42: $/year
A43: Transportation | C43: =spent_media*disp_freq*non_haz_miles*nonhaz_transportation_cost_cl -> 0 | D43: $/year
A44: Total annual spent media diposal fee | B44: disposal_fee | C44: =C43+C42 -> 0 | D44: $/year
A46: Thermal Oxidizer System
A47: Maximum TO capacity | B47: TO_max_size | C47: =IF(og_opt1=0,TO_max_size_no,IF(og_opt1=1,TO_max_size_rec,TO_max_size_reg)) -> 736000 | D47: scfm
A48: Total capacity needed | B48: TO_tot_size | C48: =IF(Offgas_Tech=2,Design_air_flow,0) -> 0 | D48: scfm
A49: Maximum TO capacity (no heat recovery) | B49: TO_max_size_no | C49: =MAX(VLOOKUP(10^6,og_to_cost_cl,1)-1) -> 7257 | D49: scfm | E49: The largest size for which costs are available.
A50: Maximum TO capacity (recuperative) | B50: TO_max_size_rec | C50: =MAX(VLOOKUP(10^6,og_torec_cost_cl,1)-1) -> 7257 | D50: scfm | E50: The largest size for which costs are available.
A51: Maximum TO capacity (regenerative) | B51: TO_max_size_reg | C51: =MAX(VLOOKUP(10^6,og_toreg_cost_cl,1)-1) -> 736000 | D51: scfm | E51: The largest size for which costs are available.
A52: Number of units | B52: op_TOs | C52: =IF(Offgas_Tech=2,ROUNDUP(TO_tot_size/TO_max_size,0),0) -> 0 | D52: units
A53: Total units including redundancy | B53: tot_TOs | C53: =op_TOs+NRD_TO -> 0 | D53: units
A54: Capacity per unit | B54: TO_size | C54: =IF(Offgas_Tech=2,TO_tot_size/op_TOs,0) -> 0 | D54: scfm
A55: TO operating temperature | B55: TO_op_temp | C55: =IF(Offgas_Tech=2,VLOOKUP(contam_name,og_contaminant_lookup,4),0) -> 0 | D55: deg C | E55: From critical design assumptions for contaminant
A56: Fuel BTUs required (no heat recovery) | C56: =IF(Offgas_Tech=2,MAX(0,((1+TO_ex_air)*(DAILY_AIR*60*60*24*365))*PA*cpa*(TO_op_temp-(T-273))/1.0545-BTU_contam*C_gal*DAILY_AIR*60*60*24*365),0) -> 0 | D56: BTU/yr | E56: kJ = Q (m3/yr) * p (kg/m3) * cp (kJ/kg-deg C) * delta T (deg C). 1 BTU = 1.0545 kJ
A57: Actual fuel BTUs required | C57: =C56*(1-IF(og_opt1=1,TO_rec_eff,IF(og_opt1=2,TO_reg_eff,0))) -> 0 | D57: BTU/yr
A58: Annual natural gas required | B58: TO_ng_yr | C58: =C57/100000 -> 0 | D58: therms/yr
A59: Excess air blower power | C59: =IF(Offgas_Tech=2,TO_ex_air*DAILY_AIR*(AIR_P/BLOW_EFF),0) -> 0 | D59: Watts
A60: Excess air blower energy per year | B60: TO_power_yr | C60: =C59*24*365/1000000 -> 0 | D60: MWhr/yr
A62: Catalytic Oxidizer System
A63: Maximum CO capacity | B63: CO_max_size | C63: =IF(og_opt1=0,CO_max_size_no,IF(og_opt1=1,CO_max_size_rec,CO_max_size_reg)) -> 736000 | D63: scfm
A64: Total capacity needed | B64: CO_tot_size | C64: =IF(Offgas_Tech=3,Design_air_flow,0) -> 0 | D64: scfm
A65: Maximum TO capacity (no heat recovery) | B65: CO_max_size_no | C65: =MAX(VLOOKUP(10^6,og_co_cost_cl,1)-1) -> 736000 | D65: scfm | E65: The largest size for which costs are available.
A66: Maximum TO capacity (recuperative) | B66: CO_max_size_rec | C66: =MAX(VLOOKUP(10^6,og_corec_cost_cl,1)-1) -> 736000 | D66: scfm | E66: The largest size for which costs are available.
A67: Maximum TO capacity (regenerative) | B67: CO_max_size_reg | C67: =MAX(VLOOKUP(10^6,og_coreg_cost_cl,1)-1) -> 736000 | D67: scfm | E67: The largest size for which costs are available.
A68: Number of units | B68: op_COs | C68: =IF(Offgas_Tech=3,ROUNDUP(CO_tot_size/CO_max_size,0),0) -> 0 | D68: units
A69: Total units including redundancy | B69: tot_COs | C69: =op_COs+NRD_CO -> 0 | D69: units
A70: Capacity per unit | B70: CO_size | C70: =IF(Offgas_Tech=3,CO_tot_size/op_COs,0) -> 0 | D70: scfm
A71: CO operating temperature | B71: CO_op_temp | C71: =IF(Offgas_Tech=3,VLOOKUP(contam_name,og_contaminant_lookup,5),0) -> 0 | D71: deg C
A72: Fuel BTUs required (no heat recovery) | C72: =IF(Offgas_Tech=3,MAX(0,((1+CO_ex_air)*(DAILY_AIR*60*60*24*365))*PA*cpa*(CO_op_temp-(T-273))/1.0545-BTU_contam*C_gal*DAILY_AIR*60*60*24*365),0) -> 0 | D72: BTU/yr | E72: kJ = Q (m3/yr) * p (kg/m3) * cp (kJ/kg-deg C) * delta T (deg C). 1 BTU = 1.0545 kJ
A73: Actual fuel BTUs required | C73: =C72*(1-IF(og_opt1=1,CO_rec_eff,IF(og_opt1=2,CO_reg_eff,0))) -> 0 | D73: BTU/yr
A74: Annual natural gas required | B74: CO_ng_yr | C74: =C73/100000 -> 0 | D74: therms/yr
A75: Excess air blower power | C75: =IF(Offgas_Tech=3,CO_ex_air*DAILY_AIR*(AIR_P/BLOW_EFF),0) -> 0 | D75: Watts
A76: Excess air blower energy per year | B76: CO_power_yr | C76: =C75*24*365/1000000 -> 0 | D76: MWhr/yr

Sheet Pumps Pipe Structure
A1: Pumps, Piping, and Structure Calculations
A3: Calculation | B3: Range Name | C3: Value | D3: Units | E3: Guidance
A4: Booster Pumps
A5: Flow of Each Pump | B5: Qp | C5: =IF(num_pumps_I="",MIN(MAX(average_flow_rate+bp_flow_rate*average_flow_rate/Design_Flow_Rate,(Design_Flow_Rate+bp_flow_rate)/2)*(1+pump_safety_factor),max_pump_size),IF(num_pumps_I=0,0,(Design_Flow_Rate+bp_flow_rate)*(1+pump_safety_factor)/num_pumps_I)) -> 13.02083333 | D5: gpm | E5: Includes safety factor
A6: Operating Pumps | B6: num_of_pumps | C6: =IF(QP=0,0,ROUNDUP(Design_Flow_Rate/QP*(1+pump_safety_factor),0)) -> 2 | D6: units
A7: Total Pumps | B7: tot_pumps | C7: =NUM_OF_PUMPS+NRD_pump -> 2 | D7: units | E7: Includes redundancy
A8: Maximum pump size | B8: max_pump_size | C8: =VLOOKUP(10^6,pump_cost_cl,1)-1 -> 10000 | D8: gpm | E8: The largest pump size for which costs are available. Applies to booster pumps.
A10: Blowers
A11: Design air flow | B11: design_air_flow | C11: =AIR_FLOW*35.31*60 -> 270.896272 | D11: cfm
A12: Flow Per Blower | B12: Q_Blower | C12: =IF(parallel_I="",MIN(MAX(Design_air_flow*average_flow/design_flow,Design_air_flow/2),max_blow_size),Design_air_flow/parallel_I) -> 135.448136 | D12: cfm
A13: Number of operating blowers | B13: Parallel | C13: =ROUNDUP(Design_air_flow/Q_BLOWER,0) -> 2 | D13: units
A14: Total blowers | B14: tot_blowers | C14: =PARALLEL+NRD_blower -> 2 | D14: units | E14: Includes redundancy
A15: Maximum blower size | B15: max_blow_size | C15: =MAX(VLOOKUP(10^6,cent_blow_cost_cl,1)-1,VLOOKUP(10^6,pd_blow_cost_cl,1)-1,VLOOKUP(10^6,reg_blow_cost_cl,1)-1) -> 5000 | D15: cfm | E15: The largest size for which costs are available.
A17: Influent and treated water pipe length | B17: in_out_pipe_length | C17: =in_out_pipe_mult*facil_length -> 20 | D17: linear feet
A18: Influent and treated water pipe flow | B18: in_out_pipe_flow | C18: =Design_Flow_Rate -> 20.83333333 | D18: gpm
A19: Influent and treated water piping diameter | B19: in_out_pipe_diam | C19: =VLOOKUP(in_out_pipe_flow,pipe_size_table_cl,2) -> 1.5 | D19: inches
A20: Bypass piping length | B20: bp_pipe_length | C20: =IF(bp_pct>0,bp_pipe_mult*facil_length,0) -> 0 | D20: linear feet
A21: Bypass pipe diameter | B21: bp_pipe_diam | C21: =IF(bp_pct>0,VLOOKUP(bp_flow_rate,pipe_size_table_cl,2),0) -> 0 | D21: inches
A22: Process piping length | B22: proc_pipe_length | C22: =proc_pipe_mult*facil_length+PACK_HT*3.28*TOT_COL -> 42.54290682 | D22: linear feet | E22: Includes additional length to account for tower height
A23: Process pipe flow | B23: proc_pipe_flow | C23: =Design_Flow_Rate/NUM_COL -> 10.41666667 | D23: gpm
A24: Process pipe diameter | B24: proc_pipe_diam | C24: =VLOOKUP(proc_pipe_flow,pipe_size_table_cl,2) -> 1.5 | D24: inches
A25: Air pipe diameter | B25: air_pipe_diam | C25: =proc_pipe_diam -> 1.5 | D25: inches | E25: Assume equal to liquid pipe diameter (from fwbs)
A26: Air pipe length | B26: air_pipe_length | C26: =air_L*TOT_COL+IF(Offgas_Tech=0,0,air_pipe_mult*facil_length) -> 200 | D26: lf
A27: Chemical pipe length | B27: chem_pipe_length | C27: =facil_length*chem_pipe_mult -> 10 | D27: lf
A28: Acid pipe diameter | B28: HCl_pipe_diam | C28: =VLOOKUP(HCl_flow,pipe_size_table_cl,2) -> 0.5 | D28: inches
A29: NaOH pipe diameter | B29: NaOH_pipe_diam | C29: =VLOOKUP(NaOH_flow,pipe_size_table_cl,2) -> 0.5 | D29: inches
A30: Corrosion chemical pipe diameter | B30: cc_pipe_diam | C30: =VLOOKUP(cc_flow,pipe_size_table_cl,2) -> 0.5 | D30: inches
A32: Building Structure
A33: Access space for each pump/blower | B33: space_pumps | C33: =IF(ss_cat2=1,space_pumps_small,space_pumps_large) -> 0.5 | D33: feet
A34: HCl tank diameter | B34: at_diam | C34: =ROUNDUP(2*(MAX((2*HCl_tank_vol/7.48/PI())^(1/3),(4*HCl_tank_vol/7.48/PI()/(Building_height-ceiling_clearance))^(1/2))),0)/2 -> 0 | D34: feet
A35: HCl day tank diameter | B35: adt_diam | C35: =ROUNDUP(2*(MAX((2*day_tank_vol_acid/7.48/PI())^(1/3),(4*day_tank_vol_acid/7.48/PI()/(Building_height-ceiling_clearance))^(1/2))),0)/2 -> 0 | D35: feet
A36: NaOH tank diameter | B36: ct_diam | C36: =ROUNDUP(2*(MAX((2*NaOH_tank_vol/7.48/PI())^(1/3),(4*NaOH_tank_vol/7.48/PI()/(Building_height-ceiling_clearance))^(1/2))),0)/2 -> 0 | D36: feet
A37: NaOH day tank diameter | B37: cdt_diam | C37: =ROUNDUP(2*(MAX((2*day_tank_vol_NaOH/7.48/PI())^(1/3),(4*day_tank_vol_NaOH/7.48/PI()/(Building_height-ceiling_clearance))^(1/2))),0)/2 -> 0 | D37: feet
A38: Corrosion chemical tank diameter | B38: cct_diam | C38: =ROUNDUP(2*(MAX((2*cc_tank_vol/7.48/PI())^(1/3),(4*cc_tank_vol/7.48/PI()/(Building_height-ceiling_clearance))^(1/2))),0)/2 -> 1 | D38: feet
A39: Corrosion chemical day tank diameter | B39: ccdt_diam | C39: =ROUNDUP(2*(MAX((2*day_tank_vol_sh/7.48/PI())^(1/3),(4*day_tank_vol_sh/7.48/PI()/(Building_height-ceiling_clearance))^(1/2))),0)/2 -> 0 | D39: feet
A40: Access space per HCl tank | B40: space_at | C40: =IF(at_diam>max_space_vessels,max_space_vessels,at_diam) -> 0 | D40: feet
A41: Access space per HCl day tank | B41: space_adt | C41: =IF(adt_diam>max_space_vessels,max_space_vessels,adt_diam) -> 0 | D41: feet
